Workbook

Sheet Instructions
A1: Energy Trust of Oregon's Existing Buidings Program Custom Project Service Description 1/16/2024 Streamlined Technical Analysis Study (TAS) Overview: The Streamlined TAS is a path for Existing Buildings Allied Technical Assistance Contractors (ATACs) to complete studies for low complexity sites or stand-alone systems without the full requirements of the standard TAS process. This format is only applicable to Excel spreadsheet models with options for data-logging as needed. Excel spreadsheet models must be clearly annotated, with all variables defined and linked to the final energy savings estimates. Savings determined through simulation modeling and proprietary calculation systems must use the standard TAS process. Benefits: The Streamlined TAS will reduce study preparation time by using this simple Excel-based template in place of the standard TAS template for qualifying projects. The goals of the Streamlined TAS format are to 1) expedite turnaround for incentive offers to participants, 2) bring down study costs and 3) minimize risk to evaluated savings. Parameters: - Less than 200,000 kWh and/or 5,000 therms of estimated annual savings - Eligible for both capital improvement and retrocommissioning (RCx) custom project types. - Suitable for low complexity sites or stand-alone systems only. How to Use this Workbook: - Sheets that are numbered and blue represent program required information. - Cells that require user inputs are shaded blue. - Irrelevant sections in this document should be hidden rather than deleted. - All the rigor of a TAS analysis is required for the streamlined TAS, so assumptions must be clearly defined and the analysis laid out in a manner that is easy to follow. Submission: - Make sure to update the headers and footers for each worksheet. - Select and print the worksheets that are blue and numbered. - This workbook should be submitted to Energy Trust as an excel file, and as a pdf. - Appendix items (spec sheets, quotes) should be included in the final pdf. | M1: Version | N1: Date
M2: Draft | N2: 2024-01-16
A42: White Background Black Text | E42: Standard text/Calculated Values
A43: Turquoise Background Bold Black Text | E43: Table Heading
A44: Grey Background Bold Black Text | E44: Table Calculated Total Value
A45: Light Grey Background Orange Text | E45: Notes for Engineer completing the workbook
A46: Light Blue Background Black Text | E46: User Input

Sheet 1. Cover Page
A1: STREAMLINED TECHNICAL ANALYSIS STUDY | K1: Fill out all light blue boxes.
B4: Project Name | F4: Report Date: | H4: Project #: | K4: Project Name and Site Name are place holders. Update with the relevant information for your project.
H5: CU-xxxxxx
B6: Site Name
B7: Test | G7: Energy Advisor:
G8: Phone: | K8: Fill in contact info for the EA, Site Contact, and ATAC filling the workbook out.
B9: Site Contact: | G9: Email:
B10: Phone: | G10: ATAC:
B11: Email: | G11: Company:
B12: Site Address: | G12: Email:
G13: Phone:
A15: After performing an energy study at your facility, the following energy efficiency measures were identified:
C16: EEM 1 - | D16: Test 1 | K16: Input the EEM Titles. Hide rows of unused EEMs. Rename EEM to RCX as appropriate,
C17: EEM 2 - | K17: measure numbering should remain the same, ie. If EEM2 is RCX, should be named RCX2 even
C18: EEM 3 - | K18: when EEM1 is not RCX
C19: EEM 4 -
C20: EEM 5 -
B22: =CONCATENATE("These measures provide a simple payback of ",TEXT('2. Energy & Economic Summary'!L24,"#.#")," years with Energy Trust incentives.") -> These measures provide a simple payback of . years with Energy Trust incentives.
A24: Next Steps for the Participant: Selecting EEMs and applying for Custom Incentives 1. Evaluate proposed Energy Efficiency Measures (EEMs) and submit contractor bids - The participant will evaluate the recommended EEMs contained in the TAS and estimated incentives in the accompanying Form 110C - Pre-Bid Project Estimates and select the EEMs they wish to implement. - The participant must obtain bids from contractors for the EEM(s) they wish to implement and send a copy of the final bid to the Energy Advisor. - The Program Management Contractor (PMC) will review the contractor’s proposed scope and costs to determine compliance with Existing Buildings program requirements, alignment with the EEMs as described in this TAS and to ensure that the EEMs still meet cost-effectiveness criteria. - If the bids are found satisfactory and in accordance with Existing Buildings program requirements, the PMC will issue Form 120C - Custom Incentive Offer for participant review and signature. The 120C details the approved measures and estimated incentives as well as Energy Trust’s terms and conditions for Existing Buildings custom incentives. - To apply for an incentive reservation, the customer must return the signed Form 120C - Custom Incentive Offer to the PMC by the submittal deadline listed and BEFORE issuing purchase orders or beginning the project work. Measure equipment or services purchased or contracted prior to Participant signing and returning the form 120C are done at-risk. Associated costs will not be included as an eligible project cost for the purposes of Energy Trust's incentive calculations if purchased more than 1 year before the date of Energy Trust's pre-authorization signature as noted on the 120C. 2. Notify Existing Buildings PMC upon Installation of EEM(s) and submit completion documentation - The participant must notify the PMC once the installation of EEMs is completed along with paid final invoices before the project’s incentive reservation expiration date as noted on Form 120C - Custom Incentive Offer. - A post-installation verification (PIV) of the installed EEMs may be required. - PMC will issue Form 140C - Project Completion Certification upon receipt of required project documenation and completion of PIV. - Incentive payment will be issued once signed 140C - Project Completion Certification has been submitted to PMC.
A42: Disclaimer This energy analysis is funded by Energy Trust of Oregon to help the participant (customer) identify energy savings potential at their facility. TRC is the Program Management Contractor for the Existing Buildings Program. TRC will work with the Allied Technical Assistance Contractor (ATAC) to review the accuracy of this study. If the energy efficiency upgrades (measures) recommended in this report are eligible for Energy Trust incentives and if the participant wishes to implement the eligible measures, TRC will support and provide guidance to the participant on Energy Trust’s incentive application process and requirements throughout the life of the project. The intent of this energy analysis is to estimate energy savings associated with the recommended energy efficiency upgrades. This report is not intended to serve as a detailed engineering design document. Any description of proposed improvements that may be diagrammatic in nature are for the purpose of documenting the basis of cost and savings estimates for potential energy efficiency measures only. Detailed design efforts may be required by the participant to implement measures recommended as part of this energy analysis. While the recommendations in this study have been reviewed for technical accuracy and are believed to be reasonably accurate, all findings listed are estimates only. Actual savings and incentives may vary based on final installed measures and costs, actual operating hours, energy rates and usage. In no event will Energy Trust of Oregon, TRC or the ATAC be liable for (i) the inability of the participant to achieve the estimated energy savings or any other estimated benefits included herein, or (ii) for any damages to participant’s site, including, but not limited to, any incidental or consequential damages of any kind, in connection with this report or the installation of any identified energy efficiency measures.

Sheet 2. Energy & Economic Summary
B2: Facility description | E2: EEM Summary | O2: White backgroud cells in tables should automatically populate.
B3: Site Name | C3: ='1. Cover Page'!B7 -> Test | E3: EEM/RCX | F3: Title | I3: Savings Type | J3: Measure Type | K3: Measure Life | L3: Incentive Rates
B4: Facility Type (e.g., office, grocery etc.) | C4: Hotel/Multifamily | E4: 1 | F4: =IF('1. Cover Page'!D16="","",'1. Cover Page'!D16) -> Test 1 | I4: =IF(F4="","",IF(AND($C$9<>"",$C$9<>"Other",$C$10<>"None",$C$10<>""),"Gas & Electric",IF(AND($C$9<>"",$C$9<>"Other"),"Electric",IF(AND($C$10<>"None",$C$10<>""),"Gas","")))) -> Gas & Electric | J4: Capital | K4: 15 | L4: =IF(I4="","",IF(J4="Capital",VLOOKUP(I4,Lists!$C$9:$G$11,5),VLOOKUP(I4,Lists!$C$12:$G$14,5))) -> Capital project Gas & Electric incentives are $0.45/kWh and $5.00/therm with a cap of 90% project costs.
B5: Year Built | C5: 1987
B6: Number of Floors | C6: 4 | E6: 2 | F6: =IF('1. Cover Page'!D17="","",'1. Cover Page'!D17) ->  | I6: =IF(F6="","",IF(AND($C$9<>"",$C$9<>"Other",$C$10<>"None",$C$10<>""),"Gas & Electric",IF(AND($C$9<>"",$C$9<>"Other"),"Electric",IF(AND($C$10<>"None",$C$10<>""),"Gas","")))) ->  | L6: =IF(I6="","",IF(J6="Capital",VLOOKUP(I6,Lists!$C$9:$G$11,5),VLOOKUP(I6,Lists!$C$12:$G$14,5))) -> 
B7: Total Building Area (sq.ft.) | C7: 75000
B8: Area Affected by Proposed Measure(s) (sq.ft.) | C8: 75000 | E8: 3 | F8: =IF('1. Cover Page'!D18="","",'1. Cover Page'!D18) ->  | I8: =IF(F8="","",IF(AND($C$9<>"",$C$9<>"Other",$C$10<>"None",$C$10<>""),"Gas & Electric",IF(AND($C$9<>"",$C$9<>"Other"),"Electric",IF(AND($C$10<>"None",$C$10<>""),"Gas","")))) ->  | L8: =IF(I8="","",IF(J8="Capital",VLOOKUP(I8,Lists!$C$9:$G$11,5),VLOOKUP(I8,Lists!$C$12:$G$14,5))) -> 
B9: Electric Utility Provider | C9: PGE
B10: Gas Utility Provider | C10: Cascade | E10: 4 | F10: =IF('1. Cover Page'!D19="","",'1. Cover Page'!D19) ->  | I10: =IF(F10="","",IF(AND($C$9<>"",$C$9<>"Other",$C$10<>"None",$C$10<>""),"Gas & Electric",IF(AND($C$9<>"",$C$9<>"Other"),"Electric",IF(AND($C$10<>"None",$C$10<>""),"Gas","")))) ->  | L10: =IF(I10="","",IF(J10="Capital",VLOOKUP(I10,Lists!$C$9:$G$11,5),VLOOKUP(I10,Lists!$C$12:$G$14,5))) -> 
B11: Weekly Hours of Operation | C11: 120
B12: Energy Use Intensity, EUI (kBtu/sqft/year) | C12: =('3. Utility Data'!F29+'3. Utility Data'!J29)/'2. Energy & Economic Summary'!C7 -> 105.483712 | E12: 5 | F12: =IF('1. Cover Page'!D20="","",'1. Cover Page'!D20) ->  | I12: =IF(F12="","",IF(AND($C$9<>"",$C$9<>"Other",$C$10<>"None",$C$10<>""),"Gas & Electric",IF(AND($C$9<>"",$C$9<>"Other"),"Electric",IF(AND($C$10<>"None",$C$10<>""),"Gas","")))) ->  | L12: =IF(I12="","",IF(J12="Capital",VLOOKUP(I12,Lists!$C$9:$G$11,5),VLOOKUP(I12,Lists!$C$12:$G$14,5))) -> 
B13: Median EUI for facility type in the US1 | C13: =INDEX(Lists!B18:C35,MATCH(C4,Lists!B18:B35,0),2) -> 63
B14: 1. Please refer to this link to obtain the Median EUI for various facility types - https://www.energystar.gov/buildings/facility-owners-and-managers/existing-buildings/use-portfolio-manager/understand-metrics/what-energy | O14: The Energy Summary Tables are populated from the results in the Analysis Tab.
B16: Custom Measures | C16: Energy Savings | E16: Cost Savings | G16: Estimated Program Eligibility Cost ($)3 | H16: Estimated Project Cost - Without Incentive ($) 4 | I16: Estimated Energy Trust Incentives ($) | J16: Estimated Project Cost - With Incentive ($) | K16: Simple Payback5 (years)
C17: Estimated Annual Electric Savings (kWh) | D17: Estimated Annual Gas Savings (therms) | E17: Estimated Annual Energy Cost Savings1 ($) | F17: Estimated Annual Non-Energy Benefits2 ($) | K17: Without incentives | L17: With incentives
O18: Cost information for the table to the left comes from the data further down this worksheet. Savings numbers come from the 'Analysis' tab,
B19: =LEFT('1. Cover Page'!C16,5) -> EEM 1 | C19: =Analysis!C4-Analysis!E4 -> 100000 | D19: =Analysis!D4-Analysis!F4 -> 20000 | E19: =IF(I4="Gas & Electric",C19*Lists!$G$18+D19*IF($C$10="NWN - WA",1.25,1.17),IF(I4="Gas",D19*IF($C$10="NWN - WA",1.25,1.17),IF(I4="Electric",C19*Lists!$G$18,0))) -> 37980 | F19: =I49 -> 0 | G19: =G49 -> 0 | H19: =G49 -> 0 | I19: =IF(G36="Yes",'CEC Calcs'!K3,IF(G36="Maybe","Program to determine eligibility",0)) -> 0 | J19: =IF(G36="Maybe","TBD",H19-I19) -> 0 | K19: =IFERROR(H19/(E19+F19),"") -> 0 | L19: =IFERROR(J19/(E19+F19),"") -> 0
B20: =LEFT('1. Cover Page'!C17,5) -> EEM 2 | C20: =Analysis!C5-Analysis!E5 -> 0 | D20: =Analysis!D5-Analysis!F5 -> 0 | E20: =IF(I6="Gas & Electric",C20*Lists!$G$18+D20*IF($C$10="NWN - WA",1.25,1.17),IF(I6="Gas",D20*IF($C$10="NWN - WA",1.25,1.17),IF(I6="Electric",C20*Lists!$G$18,0))) -> 0 | F20: =I57 -> 0 | G20: =G57 -> 0 | H20: =G57 -> 0 | I20: =IF(G37="Yes",'CEC Calcs'!K4,IF(G37="Maybe","Program to determine eligibility",0)) -> 0 | J20: =IF(G37="Maybe","TBD",H20-I20) -> 0 | K20: =IFERROR(H20/(E20+F20),"") ->  | L20: =IFERROR(J20/(E20+F20),"") -> 
B21: =LEFT('1. Cover Page'!C18,5) -> EEM 3 | C21: =Analysis!C6-Analysis!E6 -> 0 | D21: =Analysis!D6-Analysis!F6 -> 0 | E21: =IF(I8="Gas & Electric",C21*Lists!$G$18+D21*IF($C$10="NWN - WA",1.25,1.17),IF(I8="Gas",D21*IF($C$10="NWN - WA",1.25,1.17),IF(I8="Electric",C21*Lists!$G$18,0))) -> 0 | F21: =I65 -> 0 | G21: =G65 -> 0 | H21: =G65 -> 0 | I21: =IF(G38="Yes",'CEC Calcs'!K5,IF(G38="Maybe","Program to determine eligibility",0)) -> 0 | J21: 0 | K21: =IFERROR(H21/(E21+F21),"") ->  | L21: =IFERROR(J21/(E21+F21),"") -> 
B22: =LEFT('1. Cover Page'!C19,5) -> EEM 4 | C22: =Analysis!C7-Analysis!E7 -> 0 | D22: =Analysis!D7-Analysis!F7 -> 0 | E22: =IF(I10="Gas & Electric",C22*Lists!$G$18+D22*IF($C$10="NWN - WA",1.25,1.17),IF(I10="Gas",D22*IF($C$10="NWN - WA",1.25,1.17),IF(I10="Electric",C22*Lists!$G$18,0))) -> 0 | F22: =I73 -> 0 | G22: =G73 -> 0 | H22: =G73 -> 0 | I22: =IF(G39="Yes",'CEC Calcs'!K6,IF(G39="Maybe","Program to determine eligibility",0)) -> 0 | J22: 0 | K22: =IFERROR(H22/(E22+F22),"") ->  | L22: =IFERROR(J22/(E22+F22),"") -> 
B23: =LEFT('1. Cover Page'!C20,5) -> EEM 5 | C23: =Analysis!C8-Analysis!E8 -> 0 | D23: =Analysis!D8-Analysis!F8 -> 0 | E23: =IF(I12="Gas & Electric",C23*Lists!$G$18+D23*IF($C$10="NWN - WA",1.25,1.17),IF(I12="Gas",D23*IF($C$10="NWN - WA",1.25,1.17),IF(I12="Electric",C23*Lists!$G$18,0))) -> 0 | F23: =I81 -> 0 | G23: =G81 -> 0 | H23: =G81 -> 0 | I23: =IF(G40="Yes",'CEC Calcs'!K7,IF(G40="Maybe","Program to determine eligibility",0)) -> 0 | J23: 0
B24: Total | C24: =SUM(C19:C23) -> 100000 | D24: 20000 | E24: 37980 | F24: 0 | G24: 0 | H24: 0 | I24: 0 | J24: 0 | K24: =IFERROR(H24/(E24+F24),"") -> 0 | L24: =IFERROR(J24/(E24+F24),"") -> 0
B25: =CONCATENATE("1. Cost savings are based on Energy Trust average utility rates for electricity and gas ",TEXT(Lists!G18,"0.###")," $/kWh and ",TEXT(Lists!G19,"0.###")," $/therm (or ",TEXT(Lists!G20,"0.###")," $/therm for WA). Actual rates and cost savings may differ.") -> 1. Cost savings are based on Energy Trust average utility rates for electricity and gas 0.146 $/kWh and 1.087 $/therm (or 1.658 $/therm for WA). Actual rates and cost savings may differ.
B26: 2. Non-energy cost benefits are related to cost savings due to as avoided maintenance, reduced water costs etc.
B27: 3. Program Eligibility Cost is used to estimate cost-effectiveness under the Program. For example, this could be the incremental cost for end-of-life replacement or full costs for early replacement measures.
B28: Program eligibility cost typically include equipment and labor costs. Costs such as permitting, shipping, crane use, painting, warranties, concrete pads, engineering, and design are ineligible to include in the program costs.
B29: 4. Project Cost includes all costs the participant would incur towards the EEM such as equipment, labor, permitting, shipping and all other applicable costs.
B30: 5. Simple payback is estimated using current utility rates and project costs, which could vary over time.
B32: CEC Calculation | J32: Sanity Check EEM Savings as % of Base Facility Usage
B33: Custom Measures | C33: Sector | D33: Sub-sector | E33: Load Profile | G33: Likelihood of Meeting Cost Effectiveness Criteria
E34: Electric | F34: Gas
J35: Electric | K35: Gas
B36: =B19 -> EEM 1 | C36: Residential | D36: Not applicable | E36: Res Freezer | F36: Flat - gas | G36: =IF(AND(N('CEC Calcs'!N3)>=0.95, N('CEC Calcs'!O3)>=0.95), "Yes", IF(AND(N('CEC Calcs'!N3)>=0.8, N('CEC Calcs'!O3)>=0.8), "Maybe", "No")) -> No | J36: =C24/'3. Utility Data'!F26 -> 0.07462686567 | K36: =D24/'3. Utility Data'!J26 -> 0.5988023952
B37: =B20 -> EEM 2 | C37: Commercial | D37: Grocery | E37: Process | F37: Com Heating | G37: =IF(AND(N('CEC Calcs'!N4)>=0.95, N('CEC Calcs'!O4)>=0.95), "Yes", IF(AND(N('CEC Calcs'!N4)>=0.8, N('CEC Calcs'!O4)>=0.8), "Maybe", "No")) -> No
B38: =B21 -> EEM 3 | C38: Residential | D38: Not applicable | E38: Res Lighting | F38: Com Heating | G38: =IF(AND(N('CEC Calcs'!N5)>=0.95, N('CEC Calcs'!O5)>=0.95), "Yes", IF(AND(N('CEC Calcs'!N5)>=0.8, N('CEC Calcs'!O5)>=0.8), "Maybe", "No")) -> No
B39: =B22 -> EEM 4 | C39: Commercial | D39: Retail | E39: Exterior Lights | F39: Res Heating | G39: =IF(AND(N('CEC Calcs'!N6)>=0.95, N('CEC Calcs'!O6)>=0.95), "Yes", IF(AND(N('CEC Calcs'!N6)>=0.8, N('CEC Calcs'!O6)>=0.8), "Maybe", "No")) -> No
B40: =B23 -> EEM 5 | G40: =IF(AND(N('CEC Calcs'!N7)>=0.95, N('CEC Calcs'!O7)>=0.95), "Yes", IF(AND(N('CEC Calcs'!N7)>=0.8, N('CEC Calcs'!O7)>=0.8), "Maybe", "No")) -> No
O41: Input the items in light blue. Add or hide rows as necessary. Hide tables of unused EEMs.
C43: =CONCATENATE(LEFT('1. Cover Page'!C16,5)&": ",'1. Cover Page'!D16) -> EEM 1: Test 1 | I43: =CONCATENATE(LEFT('1. Cover Page'!C16,5)&" ")&" Non-Energy Benefits (NEBs)" -> EEM 1 Non-Energy Benefits (NEBs)
C44: Item Description | D44: Vendor | E44: $/unit | F44: # Units | G44: Total Cost | I44: NEB Value ($) | J44: Source/Description of NEB | O44: Add any NEB costs to this table, include supporting information.
G45: =IF(F45="","",E45*F45) ->  | I45: 0
G46: =IF(F46="","",E46*F46) -> 
G47: =IF(F47="","",E47*F47) -> 
G48: =IF(F48="","",E48*F48) -> 
C49: Total | G49: =SUM(G45:G48) -> 0 | I49: =SUM(I45:I48) -> 0
C51: =CONCATENATE(LEFT('1. Cover Page'!C17,5)&": ",'1. Cover Page'!D17) -> EEM 2: | I51: =CONCATENATE(LEFT('1. Cover Page'!C17,5)&" ")&" Non-Energy Benefits (NEBs)" -> EEM 2 Non-Energy Benefits (NEBs)
C52: Item Description | D52: Vendor | E52: $/unit | F52: # Units | G52: Total Cost | I52: NEB Value ($) | J52: Source/Description of NEB
G53: =IF(F53="","",E53*F53) -> 
G54: =IF(F54="","",E54*F54) -> 
C57: Total | G57: =SUM(G53:G56) -> 0 | I57: =SUM(I53:I56) -> 0
C59: =CONCATENATE(LEFT('1. Cover Page'!C18,5)&": ",'1. Cover Page'!D18) -> EEM 3: | I59: =CONCATENATE(LEFT('1. Cover Page'!C18,5)&" ")&" Non-Energy Benefits (NEBs)" -> EEM 3 Non-Energy Benefits (NEBs)
C60: Item Description | D60: Vendor | E60: $/unit | F60: # Units | G60: Total Cost | I60: NEB Value ($) | J60: Source/Description of NEB
G61: =IF(F61="","",E61*F61) -> 
G62: =IF(F62="","",E62*F62) -> 
C65: Total | G65: =SUM(G61:G64) -> 0 | I65: =SUM(I61:I64) -> 0
C67: =CONCATENATE(LEFT('1. Cover Page'!C19,5)&": ",'1. Cover Page'!D19) -> EEM 4: | I67: =CONCATENATE(LEFT('1. Cover Page'!C19,5)&" ")&" Non-Energy Benefits (NEBs)" -> EEM 4 Non-Energy Benefits (NEBs)
C68: Item Description | D68: Vendor | E68: $/unit | F68: # Units | G68: Total Cost | I68: NEB Value ($) | J68: Source/Description of NEB
G69: =IF(F69="","",E69*F69) -> 
G70: =IF(F70="","",E70*F70) -> 
C73: Total | G73: =SUM(G69:G72) -> 0 | I73: =SUM(I69:I72) -> 0
C75: =CONCATENATE(LEFT('1. Cover Page'!C20,5)&": ",'1. Cover Page'!D20) -> EEM 5: | I75: =CONCATENATE(LEFT('1. Cover Page'!C20,5)&" ")&" Non-Energy Benefits (NEBs)" -> EEM 5 Non-Energy Benefits (NEBs)
C76: Item Description | D76: Vendor | E76: $/unit | F76: # Units | G76: Total Cost | I76: NEB Value ($) | J76: Source/Description of NEB
G77: =IF(F77="","",E77*F77) -> 
G78: =IF(F78="","",E78*F78) -> 
C81: Total | G81: =SUM(G77:G80) -> 0 | I81: =SUM(I77:I80) -> 0

Sheet 3. Utility Data
B2: Utility Data Narrative | V2: In the Narrative, describe the energy consumption noting any significant differences between seasons, or changes in operation.
B11: Month | C11: Electric Use (kWh) | G11: Natural Gas Use (therms)
C12: 2021 | D12: 2022 | E12: 2023 | F12: 3-year Average | G12: =C12 -> 2021 | H12: =D12 -> 2022 | I12: =E12 -> 2023 | J12: 3-year Average | V12: Input electric and natural gas data in the light blue cells.
B13: January | C13: 100000 | D13: 120000 | E13: 120000 | F13: =IFERROR(AVERAGE(C13:E13),0) -> 113333.3333 | G13: 5000 | H13: 5500 | I13: 6000 | J13: =IFERROR(AVERAGE(G13:I13),0) -> 5500
B14: February | C14: 120000 | D14: 100000 | E14: 110000 | F14: =IFERROR(AVERAGE(C14:E14),0) -> 110000 | G14: 4500 | H14: 5000 | I14: 5500 | J14: =IFERROR(AVERAGE(G14:I14),0) -> 5000
B15: March | C15: 100000 | D15: 120000 | E15: 120000 | F15: 113333.3333 | G15: 1400 | H15: 1400 | I15: 5000 | J15: 2600
B16: April | C16: 120000 | D16: 100000 | E16: 110000 | F16: 110000 | G16: 1400 | H16: 1400 | I16: 1400 | J16: 1400
B17: May | C17: 100000 | D17: 120000 | E17: 120000 | F17: 113333.3333 | G17: 1400 | H17: 1400 | I17: 1400 | J17: 1400
B18: June | C18: 120000 | D18: 100000 | E18: 110000 | F18: 110000 | G18: 1400 | H18: 1400 | I18: 1400 | J18: 1400
B19: July | C19: 100000 | D19: 120000 | E19: 120000 | F19: 113333.3333 | G19: 1400 | H19: 1400 | I19: 1400 | J19: 1400
B20: August | C20: 120000 | D20: 100000 | E20: 110000 | F20: 110000 | G20: 1400 | H20: 1400 | I20: 1400 | J20: 1400
B21: September | C21: 100000 | D21: 120000 | E21: 120000 | F21: 113333.3333 | G21: 1400 | H21: 1400 | I21: 1400 | J21: 1400
B22: October | C22: 120000 | D22: 100000 | E22: 110000 | F22: 110000 | G22: 1400 | H22: 1400 | I22: 1400 | J22: 1400
B23: November | C23: 100000 | D23: 120000 | E23: 120000 | F23: 113333.3333 | G23: 4500 | H23: 5000 | I23: 5500 | J23: 5000
B24: December | C24: 120000 | D24: 100000 | E24: 110000 | F24: 110000 | G24: 5000 | H24: 5500 | I24: 6000 | J24: 5500
B25: Annual Energy Usage
B26: Annual energy usage | C26: =SUM(C13:C24) -> 1320000 | D26: =SUM(D13:D24) -> 1320000 | E26: 1380000 | F26: =SUM(F13:F24) -> 1340000 | G26: 30200 | H26: 32200 | I26: 37800 | J26: =SUM(J13:J24) -> 33400
B27: Rolling energy Usage1 | C27: Month 24-36 | D27: Month 12-24 | E27: Month 0-12 | G27: Month 24-36 | H27: Month 12-24 | I27: Month 0-12
B29: Annual energy usage (kBtu) | C29: =C26*3.412 -> 4503840 | D29: =D26*3.412 -> 4503840 | E29: =E26*3.412 -> 4708560 | F29: =F26*3.412 -> 4572080 | G29: =G26*99.976 -> 3019275.2 | H29: =H26*99.976 -> 3219227.2 | I29: =I26*99.976 -> 3779092.8 | J29: =J26*99.976 -> 3339198.4
B30: 1. Rolling energy usage may need to be calculated in case complete annual data for 3 years is not available. Please estimate utility data for the last 12 months (0-12), previous 12 months (12-24) etc based on data availability. Based on the available utility data range, this table may need to be modified to present rolling or annual energy usage, as feasible to calculate based on the available data. Please modify the table as necessary before printing in the report.

Sheet 4. Measure Details
B2: Baseline Description
I3: Describe the system operation, including: annual operation hours, equipment model numbers and capacity, equipment control strategies, any other note worthy items (i.e. unusual schedules, operations, etc.). Please make note of supporting information for baseline operation.
B9: Baseline Formulas
B10: Formula Description | C10: Formula | D10: Parameter Definition | E10: Assumed Values | F10: Modeled Values | G10: Analysis Location
I11: Input formulas used in the Analysis Tab to complete the energy calculations. Define the parameters in the formulas, list assumed vs modeled values, put location of formula in Analysis or Logged Data Tabs.
B15: Baseline Assumptions | I15: Input assumptions (formula parameters that are not based on logged data or relationships. State the source of the assumption, whether it is constant or variable, the range of values, units, and location in the analysis if applicable.
B16: Assumption | C16: Assumption Source | D16: Assumptions Characteristics | E16: Assumed Value Range | F16: Assumption Units | G16: Analysis Location
B21: Baseline Modeled Values | I21: Input modeled values (formula parameters based on logged data or relationships to independent variables). State the source of the data, whether it is constant or variable, range of values, units, and location in analysis.
B22: Modeled Value | C22: Modeled Value Source Data | D22: Model Characteristics | E22: Modeled Value Range | F22: Modeled Value Units | G22: Analysis Location
B29: =CONCATENATE(LEFT('1. Cover Page'!C16,5)&": ",'1. Cover Page'!D16," Description") -> EEM 1: Test 1 Description
B36: =CONCATENATE(LEFT('1. Cover Page'!C16,5)," Formulas") -> EEM 1 Formulas
B37: Formula Description | C37: Formula | D37: Parameter Definition | E37: Assumed Values | F37: Modeled Values | G37: Analysis Location
B42: =CONCATENATE(LEFT('1. Cover Page'!C16,5)," Assumptions") -> EEM 1 Assumptions
B43: Assumption | C43: Assumption Source | D43: Assumptions Characteristics | E43: Assumed Value Range | F43: Assumption Units | G43: Analysis Location
B48: =CONCATENATE(LEFT('1. Cover Page'!C16,5)," Modeled Values") -> EEM 1 Modeled Values
B49: Modeled Value | C49: Modeled Value Source Data | D49: Model Characteristics | E49: Modeled Value Range | F49: Modeled Value Units | G49: Analysis Location
B56: =CONCATENATE(LEFT('1. Cover Page'!C17,5)&": ",'1. Cover Page'!D17," Description") -> EEM 2: Description
B63: =CONCATENATE(LEFT('1. Cover Page'!C17,5)," Formulas") -> EEM 2 Formulas
B64: Formula Description | C64: Formula | D64: Parameter Definition | E64: Assumed Values | F64: Modeled Values | G64: Analysis Location
B69: =CONCATENATE(LEFT('1. Cover Page'!C17,5)," Assumptions") -> EEM 2 Assumptions
B70: Assumption | C70: Assumption Source | D70: Assumptions Characteristics | E70: Assumed Value Range | F70: Assumption Units | G70: Analysis Location
B75: =CONCATENATE(LEFT('1. Cover Page'!C17,5)," Modeled Values") -> EEM 2 Modeled Values
B76: Modeled Value | C76: Modeled Value Source Data | D76: Model Characteristics | E76: Modeled Value Range | F76: Modeled Value Units | G76: Analysis Location
B83: =CONCATENATE(LEFT('1. Cover Page'!C18,5)&": ",'1. Cover Page'!D18," Description") -> EEM 3: Description
B90: =CONCATENATE(LEFT('1. Cover Page'!C18,5)," Formulas") -> EEM 3 Formulas
B91: Formula Description | C91: Formula | D91: Parameter Definition | E91: Assumed Values | F91: Modeled Values | G91: Analysis Location
B96: =CONCATENATE(LEFT('1. Cover Page'!C18,5)," Assumptions") -> EEM 3 Assumptions
B97: Assumption | C97: Assumption Source | D97: Assumptions Characteristics | E97: Assumed Value Range | F97: Assumption Units | G97: Analysis Location
B102: =CONCATENATE(LEFT('1. Cover Page'!C18,5)," Modeled Values") -> EEM 3 Modeled Values
B103: Modeled Value | C103: Modeled Value Source Data | D103: Model Characteristics | E103: Modeled Value Range | F103: Modeled Value Units | G103: Analysis Location
B110: =CONCATENATE(LEFT('1. Cover Page'!C19,5)&": ",'1. Cover Page'!D19," Description") -> EEM 4: Description
B117: =CONCATENATE(LEFT('1. Cover Page'!C19,5)," Formulas") -> EEM 4 Formulas
B118: Formula Description | C118: Formula | D118: Parameter Definition | E118: Assumed Values | F118: Modeled Values | G118: Analysis Location
B123: =CONCATENATE(LEFT('1. Cover Page'!C19,5)," Assumptions") -> EEM 4 Assumptions
B124: Assumption | C124: Assumption Source | D124: Assumptions Characteristics | E124: Assumed Value Range | F124: Assumption Units | G124: Analysis Location
B129: =CONCATENATE(LEFT('1. Cover Page'!C19,5)," Modeled Values") -> EEM 4 Modeled Values
B130: Modeled Value | C130: Modeled Value Source Data | D130: Model Characteristics | E130: Modeled Value Range | F130: Modeled Value Units | G130: Analysis Location
B137: =CONCATENATE(LEFT('1. Cover Page'!C20,5)&": ",'1. Cover Page'!D20," Description") -> EEM 5: Description
B144: =CONCATENATE(LEFT('1. Cover Page'!C20,5)," Formulas") -> EEM 5 Formulas
B145: Formula Description | C145: Formula | D145: Parameter Definition | E145: Assumed Values | F145: Modeled Values | G145: Analysis Location
B150: =CONCATENATE(LEFT('1. Cover Page'!C20,5)," Assumptions") -> EEM 5 Assumptions
B151: Assumption | C151: Assumption Source | D151: Assumptions Characteristics | E151: Assumed Value Range | F151: Assumption Units | G151: Analysis Location
B156: =CONCATENATE(LEFT('1. Cover Page'!C20,5)," Modeled Values") -> EEM 5 Modeled Values
B157: Modeled Value | C157: Modeled Value Source Data | D157: Model Characteristics | E157: Modeled Value Range | F157: Modeled Value Units | G157: Analysis Location

Sheet 4A. Baseline Descriptions - RCx
E3: AHU-1 | F3: CV AHU, CHW cooling, Gas heating | I3: CHW | J3: Chilled Water
E4: Baseline vs Proposed Conditions | G4: Baseline | H4: Proposed | I4: HW | J4: Hot Water
E5: Schedule | F5: Hours of Operation | G5: 0500-2100 Mon-Fri | H5: No change suggested | I5: SAT | J5: Supply Air Temperature
E6: Temp Control Loop | F6: CHW Enable Temp | G6: CHW Valve found to be open down to 34 DegF; cooling not active below 50F | H6: No change suggested | I6: STPT | J6: Setpoint
F7: HW Enable Temp | G7: +- 55DegF | H7: No change suggested | I7: OSAT | J7: Outside Air Temperature
F8: STPT Reset | G8: SAT STPT is 56F | H8: Add reset up to 60F when OAT < 50F | I8: Delta-t | J8: Difference Temperature
F9: SAT vs STPT | G9: SAT tracks to STPT | H9: No change suggested | I9: FT | J9: Functional Testing
F10: Simultaneous Htg/Clg | G10: Not apparent from logged data | I10: MAT | J10: Mixed Air Temperature
F11: Delta-t (CHW / HW) | G11: 4degF heating (limited cold data) and 15 DegF cooling | H11: No changes suggested | I11: RAT | J11: Return Air Temperature
F12: Sensors | G12: OAT Reads low at higher temperatures | H12: Investigate whether sensor needs to be moved or replaced | I12: OAD | J12: Outside Air Damper
F13: Valve Actuators | G13: No issues apparent in data assessment | H13: No changes suggested | I13: MAD | J13: Mixed Air Damper
F14: Morning Warmup/Cooldown | G14: None in place | H14: Suggesting add sequence to close OAD prior to occupancy unless economizing (remove min damper position) | I14: RAD | J14: Return Air Damper
E15: Econ Loop | F15: Economizer Control Description | G15: Economizer is enabled up to 75F OAT | H15: Optimize econ to cutoff when OAT=>RAT or based on enthalpy | I15: SSP | J15: Supply Static Pressure
F16: MAT vs SAT STPT | G16: MAT tracks SAT setpoint | H16: No changes suggested | I16: OA% | J16: Outside Air Percentage
F17: Clg when OSAT<SAT STPT and OAD<100% | G17: Yes | H17: Optimize economizer logic | I17: DX | J17: Direct Expansion Cooling (Compressors)
F18: MAT / RAT Sensors | G18: No issues apparent in data assessment | H18: No changes suggested | I18: DCV | J18: Demand Control Ventilation
F19: OAD/MAD/RAD Actuators | G19: No issues apparent in data assessment | H19: No changes suggested
F20: C02 Sensor(DCV) | G20: N/A | H20: No changes suggested
E21: Fan Loop | F21: SSP STPT Reset | G21: Some variability, ranges between 1.7" and 1.9" with temperature | H21: Suggest resetting SSP from 1.8 to 1.2 inwc.
F22: SSP vs STPT | G22: Tracks to setpoint | H22: No changes suggested
F23: Fan Modulation | G23: Constant volume | H23: No changes suggested
F24: Static P. transducers | G24: No issues apparent in data assessment | H24: No changes suggested
F25: Building Pressure | G25: N/A | H25: No changes suggested
E27: Chilled Water
E28: Baseline vs Proposed Conditions | G28: Baseline | H28: Proposed
E30: Distibuted Chilled Water | F30: Chilled Water Differential Temperature | G30: Low delta T, AHU valves not 100% open | H30: Assess pump speeds and primary/secondary valve positions. Open valves and slow pumps to increase Delta-t to 8-12 DegF. Investigate further.

Sheet 4B. Other Opportunities
B3: Energy Efficiency Measure (EEM) Summary – Standard (Prescriptive) Track
B4: The following energy efficiency measure(s) (EEMs) are recommended for the participant’s site and are potentially eligible for standard (prescriptive) incentives under the Existing Buildings program:
B7: EEM # - [Title]
B8: Provide brief measure description
B11: EEM # - [Title]
B12: Provide brief measure description
C15: Other EEM Opportunities
C16: Prescriptive Measures | D16: Measure Quantity | E16: Incentive per unit ($) | F16: Total Incentives ($)
C17: EEM #
C18: EEM #
C19: EEM #
C20: Total | F20: =SUM(F17:F19) -> 0
B23: Lighting and Solar Opportunities
B24: Please include brief details of lighting and solar opportunities you may have identified during the study. For lighting include brief details of existing lighting systems. For solar include brief details about the solar potential such as available area, orientation, shading details etc. TRC’s Energy Advisor will work with the participant and the ATAC to discuss these opportunities and/or connect the participant with Energy Trust’s lighting and solar program representatives.

Sheet 5. Appendix
A1: Reminder: Include photos below. Update Table of Contents below to match your project needs. Actual quotes, equipment specs, etc. should be included as an appendix to the PDF report, they should not be in Excel.
A3: APPENDIX TABLE OF CONTENTS
A4: A. | B4: Equipment Photos | C4: PDF Document
A5: B. | B5: Quotes | C5: PDF Document
A6: C. | B6: Analysis Snapshot | C6: PDF Document
A7: D. | B7: Analysis File | C7: Additional Excel File
A10: Appendix A. Equipment Photos

Sheet Analysis
A1: Use this sheet to perform your energy calculations, or include calculations in additional tabs. Link the summary results to the appropriate cells in the tables below.
B2: Model | C2: Baseline | E2: EEM
C3: Electrical Energy (kWh/yr) | D3: Natural Gas Energy (therms/yr) | E3: Electrical Energy (kWh/yr) | F3: Natural Gas Energy (therms/yr)
B4: ='2. Energy & Economic Summary'!B19 -> EEM 1 | C4: 500000 | D4: 50000 | E4: 400000 | F4: 30000
B5: ='2. Energy & Economic Summary'!B20 -> EEM 2
B6: ='2. Energy & Economic Summary'!B21 -> EEM 3
B7: ='2. Energy & Economic Summary'!B22 -> EEM 4
B8: ='2. Energy & Economic Summary'!B23 -> EEM 5

Sheet Logged Data
A1: Use this sheet for your logged data and any data processing (ie pivot tables)

Sheet Lists
B2: Savings Type | D2: Measure Type | F2: Electric Utility | H2: Gas utility
B3: Electric | D3: Capital | F3: PacPower | H3: Cascade
B4: Gas | D4: RCx | F4: PGE | H4: NW Natural
B5: Gas & Electric | F5: Other | H5: Avista
H6: NWN - WA
H7: None
B8: Measure Type | C8: Savings Type | D8: kWh Incentive | E8: Therm Incentive | F8: Incentive Cap | G8: Total
B9: Capital | C9: Electric | D9: 0.45 | E9: 0 | F9: 0.9 | G9: =CONCATENATE(TEXT(B9,)," project ",TEXT(C9,)," incentives are ",TEXT(D9,"$0.##"),"/kWh with a cap of ",TEXT(F9,"##%")," project costs.") -> Capital project Electric incentives are $0.45/kWh with a cap of 90% project costs.
B10: Capital | C10: Gas | D10: 0 | E10: 5 | F10: 0.9 | G10: =CONCATENATE(TEXT(B10,)," project ",TEXT(C10,)," incentives are ",TEXT(E10,"$#.00"),"/therm with a cap of ",TEXT(F10,"##%")," project costs.") -> Capital project Gas incentives are $5.00/therm with a cap of 90% project costs.
B11: Capital | C11: Gas & Electric | D11: 0.45 | E11: 5 | F11: 0.9 | G11: =CONCATENATE(TEXT(B11,)," project ",TEXT(C11,)," incentives are ",TEXT(D11,"$0.##"),"/kWh and ",TEXT(E11,"$#.00"),"/therm with a cap of ",TEXT(F11,"##%")," project costs.") -> Capital project Gas & Electric incentives are $0.45/kWh and $5.00/therm with a cap of 90% project costs.
B12: RCx | C12: Electric | D12: 0.45 | E12: 0 | F12: 0.9 | G12: =CONCATENATE(TEXT(B12,)," project ",TEXT(C12,)," incentives are ",TEXT(D12,"$0.##"),"/kWh with a cap of ",TEXT(F12,"##%")," project costs.") -> RCx project Electric incentives are $0.45/kWh with a cap of 90% project costs.
B13: RCx | C13: Gas | D13: 0 | E13: 5 | F13: 0.9 | G13: =CONCATENATE(TEXT(B13,)," project ",TEXT(C13,)," incentives are ",TEXT(E13,"$#.00"),"/therm with a cap of ",TEXT(F13,"##%")," project costs.") -> RCx project Gas incentives are $5.00/therm with a cap of 90% project costs.
B14: RCx | C14: Gas & Electric | D14: 0.45 | E14: 5 | F14: 0.9 | G14: =CONCATENATE(TEXT(B14,)," project ",TEXT(C14,)," incentives are ",TEXT(D14,"$0.##"),"/kWh and ",TEXT(E14,"$#.00"),"/therm with a cap of ",TEXT(F14,"##%")," project costs.") -> RCx project Gas & Electric incentives are $0.45/kWh and $5.00/therm with a cap of 90% project costs.
B15: Site Annual Cap | C15: 750000 | F15: Source: | G15: https://www.energytrust.org/incentives/existing-buildings-custom-incentives/#tab-two
B17: Facility type | C17: EUI | D17: Source | F17: Utility Rate
B18: Data Center | C18: 40.1 | D18: CBECS - Other | F18: Commercial Electric | G18: 0.1458 | H18: $/kWh
B19: Service Shop | C19: 47.9 | D19: CBECS - Service | F19: NWN | G19: 1.087 | H19: $/therm
B20: Utility (W/WW) | C20: 40.1 | D20: CBECS - Other | F20: NWN - WA | G20: 1.658 | H20: $/therm
B21: Warehouse | C21: 22.7 | D21: CBECS - Non-refrigerated Warehouse & Distribution Center
B22: Other | C22: 40.1 | D22: CBECS - Other
B23: Bank | C23: 88.3 | D23: CBECS - Bank/Financial
B24: K-12 | C24: 48.5 | D24: CBECS - Elementary/Middle & High School
B25: College/University | C25: 84.3 | D25: CBECS - College/University
B26: Public Assembly | C26: 56.2 | D26: CBECS - Public Assembly
B27: Convience Store | C27: 231.4 | D27: CBECS - Food Sales
B28: Supermarket | C28: 196 | D28: CBECS - Grocery Store/Food Market
B29: Fast food | C29: 402.7 | D29: CBECS - Fast Food
B30: Hospital | C30: 234.3 | D30: Industry Survey
B31: Outpatient | C31: 64.5 | D31: CBECS - Clinic/Outpatient
B32: Hotel/Multifamily | C32: 63 | D32: CBECS - Hotel & Motel/Inn
B33: Office | C33: 52.9 | D33: CBECS - Office & Bank/Financial
B34: Church | C34: 30.5 | D34: CBECS - Religious Worship
B35: Retail | C35: 51.4 | D35: CBECS - Retail Store
C37: Source: | D37: US Energy Use Intensity by Property Type (energystar.gov)

Sheet CEC Calcs (hidden)
B2: EEM/RCX | C2: Sector | D2: Sub Sector | E2: Ele LP | F2: Measure Life | G2: Final Ele Load Profile | H2: Gas Load Profile | I2: kWh | J2: Therms | K2: Incentive | L2: NEBs | M2: Cost | N2: UCT BCR at Max Incentive | O2: TRC BCR
B3: 1 | C3: ='2. Energy & Economic Summary'!C36 -> Residential | D3: ='2. Energy & Economic Summary'!D36 -> Not applicable | E3: ='2. Energy & Economic Summary'!E36 -> Res Freezer | F3: ='2. Energy & Economic Summary'!$K4 -> 15 | G3: =IF(E3="","",IF(E3="None - ele","None - ele",IF(OR(C3="Residential",C3="Industrial"),E3,IF(C3="Commercial",D3&" "&E3,D3&" "&E3)))) -> Res Freezer | H3: =IF(J3=0,"None - gas",'2. Energy & Economic Summary'!$F36) -> Flat - gas | I3: ='2. Energy & Economic Summary'!C19 -> 100000 | J3: ='2. Energy & Economic Summary'!D19 -> 20000 | K3: =IF(IF('2. Energy & Economic Summary'!J4="RCx",IF('2. Energy & Economic Summary'!I4="Electric",MIN('2. Energy & Economic Summary'!C19*Lists!$D$12,'2. Energy & Economic Summary'!G19*Lists!$F$12),MIN('2. Energy & Economic Summary'!C19*Lists!$D$14+'2. Energy & Economic Summary'!D19*Lists!$E$13,'2. Energy & Economic Summary'!G19*Lists!$F$14)),IF('2. Energy & Economic Summary'!I4="Electric",MIN('2. Energy & Economic Summary'!C19*Lists!$D$9,Lists!$F$9*'2. Energy & Economic Summary'!G19),IF('2. Energy & Economic Summary'!I4="Gas",MIN('2. Energy & Economic Summary'!D19*Lists!$E$10,Lists!$F$10*'2. Energy & Economic Summary'!G19),MIN('2. Energy & Economic Summary'!C19*Lists!$D$11+Lists!$E$11*'2. Energy & Economic Summary'!D19,'2. Energy & Economic Summary'!G19*Lists!$F$11))))>Lists!$C$15,Lists!$C$15,IF('2. Energy & Economic Summary'!J4="RCx",IF('2. Energy & Economic Summary'!I4="Electric",MIN('2. Energy & Economic Summary'!C19*Lists!$D$12,'2. Energy & Economic Summary'!G19*Lists!$F$12),MIN('2. Energy & Economic Summary'!C19*Lists!$D$14+'2. Energy & Economic Summary'!D19*Lists!$E$13,'2. Energy & Economic Summary'!G19*Lists!$F$14)),IF('2. Energy & Economic Summary'!I4="Electric",MIN('2. Energy & Economic Summary'!C19*Lists!$D$9,Lists!$F$9*'2. Energy & Economic Summary'!G19),IF('2. Energy & Economic Summary'!I4="Gas",MIN('2. Energy & Economic Summary'!D19*Lists!$E$10,Lists!$F$10*'2. Energy & Economic Summary'!G19),MIN('2. Energy & Economic Summary'!C19*Lists!$D$11+Lists!$E$11*'2. Energy & Economic Summary'!D19,'2. Energy & Economic Summary'!G19*Lists!$F$11))))) -> 0 | L3: ='2. Energy & Economic Summary'!F19 -> 0 | M3: ='2. Energy & Economic Summary'!G19 -> 0 | N3: =IFERROR((INDEX(OR_GAS_AC,MATCH(ROUND(F3,0),OR_GAS_AC_ML,0),MATCH(H3,OR_GAS_AC_LP,0))*J3+(INDEX(ELE_AC,MATCH(G3,ELE_FRIENDLY,0),MATCH(ROUND(F3,0),ELE_AC_ML,0)))*I3)/K3, "") ->  | O3: =IFERROR((INDEX(OR_GAS_AC,MATCH(ROUND(F3,0),OR_GAS_AC_ML,0),MATCH(H3,OR_GAS_AC_LP,0))*J3+(INDEX(ELE_AC,MATCH(G3,ELE_FRIENDLY,0),MATCH(ROUND(F3,0),ELE_AC_ML,0)))*I3+-PV(OR_DISCOUNT,ROUND(F3,0),L3))/M3, "") -> 
B4: 2 | C4: ='2. Energy & Economic Summary'!C37 -> Commercial | D4: ='2. Energy & Economic Summary'!D37 -> Grocery | E4: ='2. Energy & Economic Summary'!E37 -> Process | F4: ='2. Energy & Economic Summary'!K6 -> 0 | G4: =IF(E4="","",IF(E4="None - ele","None - ele",IF(OR(C4="Residential",C4="Industrial"),E4,IF(C4="Commercial",D4&" "&E4,D4&" "&E4)))) -> Grocery Process | H4: =IF(J4=0,"None - gas",'2. Energy & Economic Summary'!$F37) -> None - gas | I4: ='2. Energy & Economic Summary'!C20 -> 0 | J4: ='2. Energy & Economic Summary'!D20 -> 0 | K4: =IF(IF('2. Energy & Economic Summary'!J5="RCx",IF('2. Energy & Economic Summary'!I5="Electric",MIN('2. Energy & Economic Summary'!C20*Lists!$D$12,'2. Energy & Economic Summary'!G20*Lists!$F$12),MIN('2. Energy & Economic Summary'!C20*Lists!$D$14+'2. Energy & Economic Summary'!D20*Lists!$E$13,'2. Energy & Economic Summary'!G20*Lists!$F$14)),IF('2. Energy & Economic Summary'!I5="Electric",MIN('2. Energy & Economic Summary'!C20*Lists!$D$9,Lists!$F$9*'2. Energy & Economic Summary'!G20),IF('2. Energy & Economic Summary'!I5="Gas",MIN('2. Energy & Economic Summary'!D20*Lists!$E$10,Lists!$F$10*'2. Energy & Economic Summary'!G20),MIN('2. Energy & Economic Summary'!C20*Lists!$D$11+Lists!$E$11*'2. Energy & Economic Summary'!D20,'2. Energy & Economic Summary'!G20*Lists!$F$11))))>Lists!$C$15,Lists!$C$15,IF('2. Energy & Economic Summary'!J5="RCx",IF('2. Energy & Economic Summary'!I5="Electric",MIN('2. Energy & Economic Summary'!C20*Lists!$D$12,'2. Energy & Economic Summary'!G20*Lists!$F$12),MIN('2. Energy & Economic Summary'!C20*Lists!$D$14+'2. Energy & Economic Summary'!D20*Lists!$E$13,'2. Energy & Economic Summary'!G20*Lists!$F$14)),IF('2. Energy & Economic Summary'!I5="Electric",MIN('2. Energy & Economic Summary'!C20*Lists!$D$9,Lists!$F$9*'2. Energy & Economic Summary'!G20),IF('2. Energy & Economic Summary'!I5="Gas",MIN('2. Energy & Economic Summary'!D20*Lists!$E$10,Lists!$F$10*'2. Energy & Economic Summary'!G20),MIN('2. Energy & Economic Summary'!C20*Lists!$D$11+Lists!$E$11*'2. Energy & Economic Summary'!D20,'2. Energy & Economic Summary'!G20*Lists!$F$11))))) -> 0 | L4: ='2. Energy & Economic Summary'!F20 -> 0 | M4: ='2. Energy & Economic Summary'!G20 -> 0 | N4: =IFERROR((INDEX(OR_GAS_AC,MATCH(ROUND(F4,0),OR_GAS_AC_ML,0),MATCH(H4,OR_GAS_AC_LP,0))*J4+(INDEX(ELE_AC,MATCH(G4,ELE_FRIENDLY,0),MATCH(ROUND(F4,0),ELE_AC_ML,0)))*I4)/K4, "") ->  | O4: =IFERROR((INDEX(OR_GAS_AC,MATCH(ROUND(F4,0),OR_GAS_AC_ML,0),MATCH(H4,OR_GAS_AC_LP,0))*J4+(INDEX(ELE_AC,MATCH(G4,ELE_FRIENDLY,0),MATCH(ROUND(F4,0),ELE_AC_ML,0)))*I4+-PV(OR_DISCOUNT,ROUND(F4,0),L4))/M4, "") -> 
B5: 3 | C5: ='2. Energy & Economic Summary'!C38 -> Residential | D5: ='2. Energy & Economic Summary'!D38 -> Not applicable | E5: ='2. Energy & Economic Summary'!E38 -> Res Lighting | F5: ='2. Energy & Economic Summary'!$K8 -> 0 | G5: Res Lighting | H5: =IF(J5=0,"None - gas",'2. Energy & Economic Summary'!$F38) -> None - gas | I5: ='2. Energy & Economic Summary'!C21 -> 0 | J5: ='2. Energy & Economic Summary'!D21 -> 0 | K5: =IF(IF('2. Energy & Economic Summary'!J6="RCx",IF('2. Energy & Economic Summary'!I6="Electric",MIN('2. Energy & Economic Summary'!C21*Lists!$D$12,'2. Energy & Economic Summary'!G21*Lists!$F$12),MIN('2. Energy & Economic Summary'!C21*Lists!$D$14+'2. Energy & Economic Summary'!D21*Lists!$E$13,'2. Energy & Economic Summary'!G21*Lists!$F$14)),IF('2. Energy & Economic Summary'!I6="Electric",MIN('2. Energy & Economic Summary'!C21*Lists!$D$9,Lists!$F$9*'2. Energy & Economic Summary'!G21),IF('2. Energy & Economic Summary'!I6="Gas",MIN('2. Energy & Economic Summary'!D21*Lists!$E$10,Lists!$F$10*'2. Energy & Economic Summary'!G21),MIN('2. Energy & Economic Summary'!C21*Lists!$D$11+Lists!$E$11*'2. Energy & Economic Summary'!D21,'2. Energy & Economic Summary'!G21*Lists!$F$11))))>Lists!$C$15,Lists!$C$15,IF('2. Energy & Economic Summary'!J6="RCx",IF('2. Energy & Economic Summary'!I6="Electric",MIN('2. Energy & Economic Summary'!C21*Lists!$D$12,'2. Energy & Economic Summary'!G21*Lists!$F$12),MIN('2. Energy & Economic Summary'!C21*Lists!$D$14+'2. Energy & Economic Summary'!D21*Lists!$E$13,'2. Energy & Economic Summary'!G21*Lists!$F$14)),IF('2. Energy & Economic Summary'!I6="Electric",MIN('2. Energy & Economic Summary'!C21*Lists!$D$9,Lists!$F$9*'2. Energy & Economic Summary'!G21),IF('2. Energy & Economic Summary'!I6="Gas",MIN('2. Energy & Economic Summary'!D21*Lists!$E$10,Lists!$F$10*'2. Energy & Economic Summary'!G21),MIN('2. Energy & Economic Summary'!C21*Lists!$D$11+Lists!$E$11*'2. Energy & Economic Summary'!D21,'2. Energy & Economic Summary'!G21*Lists!$F$11))))) -> 0 | L5: ='2. Energy & Economic Summary'!F21 -> 0 | M5: ='2. Energy & Economic Summary'!G21 -> 0 | N5: =IFERROR((INDEX(OR_GAS_AC,MATCH(ROUND(F5,0),OR_GAS_AC_ML,0),MATCH(H5,OR_GAS_AC_LP,0))*J5+(INDEX(ELE_AC,MATCH(G5,ELE_FRIENDLY,0),MATCH(ROUND(F5,0),ELE_AC_ML,0)))*I5)/K5, "") ->  | O5: =IFERROR((INDEX(OR_GAS_AC,MATCH(ROUND(F5,0),OR_GAS_AC_ML,0),MATCH(H5,OR_GAS_AC_LP,0))*J5+(INDEX(ELE_AC,MATCH(G5,ELE_FRIENDLY,0),MATCH(ROUND(F5,0),ELE_AC_ML,0)))*I5+-PV(OR_DISCOUNT,ROUND(F5,0),L5))/M5, "") -> 
B6: 4 | C6: ='2. Energy & Economic Summary'!C39 -> Commercial | D6: ='2. Energy & Economic Summary'!D39 -> Retail | E6: ='2. Energy & Economic Summary'!E39 -> Exterior Lights | F6: ='2. Energy & Economic Summary'!$K10 -> 0 | G6: Retail Exterior Lights | H6: =IF(J6=0,"None - gas",'2. Energy & Economic Summary'!$F39) -> None - gas | I6: ='2. Energy & Economic Summary'!C22 -> 0 | J6: ='2. Energy & Economic Summary'!D22 -> 0 | K6: =IF(IF('2. Energy & Economic Summary'!J7="RCx",IF('2. Energy & Economic Summary'!I7="Electric",MIN('2. Energy & Economic Summary'!C22*Lists!$D$12,'2. Energy & Economic Summary'!G22*Lists!$F$12),MIN('2. Energy & Economic Summary'!C22*Lists!$D$14+'2. Energy & Economic Summary'!D22*Lists!$E$13,'2. Energy & Economic Summary'!G22*Lists!$F$14)),IF('2. Energy & Economic Summary'!I7="Electric",MIN('2. Energy & Economic Summary'!C22*Lists!$D$9,Lists!$F$9*'2. Energy & Economic Summary'!G22),IF('2. Energy & Economic Summary'!I7="Gas",MIN('2. Energy & Economic Summary'!D22*Lists!$E$10,Lists!$F$10*'2. Energy & Economic Summary'!G22),MIN('2. Energy & Economic Summary'!C22*Lists!$D$11+Lists!$E$11*'2. Energy & Economic Summary'!D22,'2. Energy & Economic Summary'!G22*Lists!$F$11))))>Lists!$C$15,Lists!$C$15,IF('2. Energy & Economic Summary'!J7="RCx",IF('2. Energy & Economic Summary'!I7="Electric",MIN('2. Energy & Economic Summary'!C22*Lists!$D$12,'2. Energy & Economic Summary'!G22*Lists!$F$12),MIN('2. Energy & Economic Summary'!C22*Lists!$D$14+'2. Energy & Economic Summary'!D22*Lists!$E$13,'2. Energy & Economic Summary'!G22*Lists!$F$14)),IF('2. Energy & Economic Summary'!I7="Electric",MIN('2. Energy & Economic Summary'!C22*Lists!$D$9,Lists!$F$9*'2. Energy & Economic Summary'!G22),IF('2. Energy & Economic Summary'!I7="Gas",MIN('2. Energy & Economic Summary'!D22*Lists!$E$10,Lists!$F$10*'2. Energy & Economic Summary'!G22),MIN('2. Energy & Economic Summary'!C22*Lists!$D$11+Lists!$E$11*'2. Energy & Economic Summary'!D22,'2. Energy & Economic Summary'!G22*Lists!$F$11))))) -> 0 | L6: ='2. Energy & Economic Summary'!F22 -> 0 | M6: ='2. Energy & Economic Summary'!G22 -> 0 | N6: =IFERROR((INDEX(OR_GAS_AC,MATCH(ROUND(F6,0),OR_GAS_AC_ML,0),MATCH(H6,OR_GAS_AC_LP,0))*J6+(INDEX(ELE_AC,MATCH(G6,ELE_FRIENDLY,0),MATCH(ROUND(F6,0),ELE_AC_ML,0)))*I6)/K6, "") ->  | O6: =IFERROR((INDEX(OR_GAS_AC,MATCH(ROUND(F6,0),OR_GAS_AC_ML,0),MATCH(H6,OR_GAS_AC_LP,0))*J6+(INDEX(ELE_AC,MATCH(G6,ELE_FRIENDLY,0),MATCH(ROUND(F6,0),ELE_AC_ML,0)))*I6+-PV(OR_DISCOUNT,ROUND(F6,0),L6))/M6, "") -> 
B7: 5 | C7: ='2. Energy & Economic Summary'!C40 -> 0 | D7: ='2. Energy & Economic Summary'!D40 -> 0 | E7: ='2. Energy & Economic Summary'!E40 -> 0 | F7: ='2. Energy & Economic Summary'!$K12 -> 0 | G7: 0 0 | H7: =IF(J7=0,"None - gas",'2. Energy & Economic Summary'!$F40) -> None - gas | I7: ='2. Energy & Economic Summary'!C23 -> 0 | J7: ='2. Energy & Economic Summary'!D23 -> 0 | K7: =IF(IF('2. Energy & Economic Summary'!J8="RCx",IF('2. Energy & Economic Summary'!I8="Electric",MIN('2. Energy & Economic Summary'!C23*Lists!$D$12,'2. Energy & Economic Summary'!G23*Lists!$F$12),MIN('2. Energy & Economic Summary'!C23*Lists!$D$14+'2. Energy & Economic Summary'!D23*Lists!$E$13,'2. Energy & Economic Summary'!G23*Lists!$F$14)),IF('2. Energy & Economic Summary'!I8="Electric",MIN('2. Energy & Economic Summary'!C23*Lists!$D$9,Lists!$F$9*'2. Energy & Economic Summary'!G23),IF('2. Energy & Economic Summary'!I8="Gas",MIN('2. Energy & Economic Summary'!D23*Lists!$E$10,Lists!$F$10*'2. Energy & Economic Summary'!G23),MIN('2. Energy & Economic Summary'!C23*Lists!$D$11+Lists!$E$11*'2. Energy & Economic Summary'!D23,'2. Energy & Economic Summary'!G23*Lists!$F$11))))>Lists!$C$15,Lists!$C$15,IF('2. Energy & Economic Summary'!J8="RCx",IF('2. Energy & Economic Summary'!I8="Electric",MIN('2. Energy & Economic Summary'!C23*Lists!$D$12,'2. Energy & Economic Summary'!G23*Lists!$F$12),MIN('2. Energy & Economic Summary'!C23*Lists!$D$14+'2. Energy & Economic Summary'!D23*Lists!$E$13,'2. Energy & Economic Summary'!G23*Lists!$F$14)),IF('2. Energy & Economic Summary'!I8="Electric",MIN('2. Energy & Economic Summary'!C23*Lists!$D$9,Lists!$F$9*'2. Energy & Economic Summary'!G23),IF('2. Energy & Economic Summary'!I8="Gas",MIN('2. Energy & Economic Summary'!D23*Lists!$E$10,Lists!$F$10*'2. Energy & Economic Summary'!G23),MIN('2. Energy & Economic Summary'!C23*Lists!$D$11+Lists!$E$11*'2. Energy & Economic Summary'!D23,'2. Energy & Economic Summary'!G23*Lists!$F$11))))) -> 0 | L7: ='2. Energy & Economic Summary'!F23 -> 0 | M7: ='2. Energy & Economic Summary'!G23 -> 0 | N7: =IFERROR((INDEX(OR_GAS_AC,MATCH(ROUND(F7,0),OR_GAS_AC_ML,0),MATCH(H7,OR_GAS_AC_LP,0))*J7+(INDEX(ELE_AC,MATCH(G7,ELE_FRIENDLY,0),MATCH(ROUND(F7,0),ELE_AC_ML,0)))*I7)/K7, "") ->  | O7: =IFERROR((INDEX(OR_GAS_AC,MATCH(ROUND(F7,0),OR_GAS_AC_ML,0),MATCH(H7,OR_GAS_AC_LP,0))*J7+(INDEX(ELE_AC,MATCH(G7,ELE_FRIENDLY,0),MATCH(ROUND(F7,0),ELE_AC_ML,0)))*I7+-PV(OR_DISCOUNT,ROUND(F7,0),L7))/M7, "") -> 

Sheet Lists_CEC (hidden)
A1: LOOKUPS
A2: Sector | B2: Commercial | C2: Industrial | D2: Residential | E2: Com End Use | F2: Ind End Use | G2: Res End Use | H2: OR Gas Load Profiles | I2: WA Gas Load Profiles | J2: Qty Unit Type | K2: Prescriptive or Not Prescriptive? | L2: Pilot? | M2: OPUC Exception? | N2: Measure Class
A3: Commercial | B3: College | C3: Not applicable | D3: Not applicable | E3: Compressed Air | F3: Ag-Irrigation | G3: Res Refrigerator | H3: DHW | I3: DHW | J3: Units | K3: Prescriptive | L3: No | M3: No | N3: Retrofit
A4: Residential | B4: Grocery | E4: Cooking | F4: Flat - ele | G4: Res Freezer | H4: Flat - gas | I4: Flat - gas | J4: Tons | K4: Not Prescriptive | L4: Yes | M4: Yes | N4: Replacement/New
B5: Healthcare | E5: Cooling | F5: 1-Shift Industrial | G5: Res Dryer | H5: Res Heating | I5: Res Heating | J5: Square feet | K5: Not Approved | N5: Early Replacement
B6: Lodging | E6: Exterior Lights | F6: 2-Shift Industrial | G6: Res Clotheswasher | H6: Com Heating | I6: Hearth | J6: SCFM capacity
B7: Large Office | E7: Heating | F7: 3-Shift Industrial | G7: Res Central AC | H7: Clotheswasher | I7: Com Heating | J7: Linear feet
B8: Other | E8: Hot Water | F8: Warehouse Cooling | G8: Res Window AC | H8: None - gas | I8: Com Cooking | J8: kBtu/hr
B9: Restaurant | E9: Interior Lights | F9: Warehouse Heating | G9: Res Water Heat | I9: Clotheswasher | J9: CFM
B10: Retail | E10: Other | F10: Warehouse Hot Water | G10: Res HP Water Heat Convert | I10: None - gas | J10: Buildings
B11: School | E11: Motors | F11: Warehouse Ventilation | G11: Res Solar Water Heat | J11: Amps
B12: Small Office | E12: Office Eqpmt | F12: Street Lighting | G12: Res Air Source HP | J12: Acres
B13: Warehouse | E13: Process | F13: Cold Storage | G13: Res Zonal Ele Heat | J13: Horsepower
E14: Refrigeration | F14: Food Products | G14: Res Ele Resistance Heat | J14: Other
E15: Ventilation | F15: Wood Products | G15: Res Lighting
E16: None - ele | F16: Pulp & Paper | G16: Res Other
F17: Chemicals | G17: Res Whole Home
F18: Oil & Petroleum | G18: Res Spa Cover
F19: Primary Metals | G19: Res Power Strip
F20: Transportation & Equipment | G20: Res Space Conditioning
F21: None - ele | G21: Res EV Standby Mode
G22: Res EV Charging Mode
G23: None - ele

Sheet GAS AC (hidden)
A1: Oregon Blended Gas Avoided Costs | I1: Oregon Blended Gas Avoided Cost Info | M1: Washington-Only Gas Avoided Costs
I2: Updated on | J2: 2023-01-04
A3: $2024 NPV of Avoided Costs with supply & Distribution Capacity, State CO2 Policy, 10% Conservation Act Credit, Risk Premium Value, and Discount Rate of 0.045 | I3: Base Year | J3: 2024$ | M3: NPV of Avoided Costs, with supply & Capacity peak factors, 10% Act Credit, Hedge Value, CO2 Social Cost of Carbon adder and Discount Rate of 3.39%
A4: Lifetime | B4: DHW | C4: FLAT - gas | D4: Res Heating | E4: Com Heating | F4: Clotheswasher | G4: None - gas | I4: Discount Rate | J4: 0.045 | M4: Lifetime | N4: DHW | O4: FLAT - gas | P4: Res Heating | Q4: Hearth | R4: Com Heating | S4: Com Cooking | T4: Clotheswasher | U4: None - gas
A5: 1 | B5: 1.189627446 | C5: 1.115378237 | D5: 1.639938246 | E5: 1.621389858 | F5: 1.155762299 | G5: 0 | I5: Source | J5: Link | M5: 1 | N5: 1.318542009 | O5: 1.201873023 | P5: 2.122821631 | Q5: 1.665183737 | R5: 2.300961734 | S5: 1.675622386 | T5: 1.168963291 | U5: 0
A6: 2 | B6: 2.366962154 | C6: 2.222194438 | D6: 3.245422807 | E6: 3.209467351 | F6: 2.300383643 | G6: 0 | I6: Inputs | J6: Inputs received from OPUC in new Avoided Cost Input Template - Includes components from NWN's 2018 IRPs, CNG's 2020 IRP; Avista's 2021 IRP | M6: 2 | N6: 2.626609589 | O6: 2.397097014 | P6: 4.198788651 | Q6: 3.298518108 | R6: 4.549227914 | S6: 3.329062223 | T6: 2.333069109 | U6: 0
A7: 3 | B7: 3.499306507 | C7: 3.286962404 | D7: 4.788014318 | E7: 4.735380626 | F7: 3.401391496 | G7: 0 | I7: Avoided Cost Version Year | J7: 2024 | M7: 3 | N7: 3.875764613 | O7: 3.53710842 | P7: 6.193891131 | Q7: 4.865501187 | R7: 6.710980129 | S7: 4.912265277 | T7: 3.44269412 | U7: 0
A8: 4 | B8: 4.605857593 | C8: 4.328782664 | D8: 6.287661691 | E8: 6.219165882 | F8: 4.477679987 | G8: 0 | M8: 4 | N8: 5.093418223 | O8: 4.649197062 | P8: 8.134530873 | Q8: 6.392058909 | R8: 8.812805415 | S8: 6.453013992 | T8: 4.525444188 | U8: 0
A9: 5 | B9: 5.689398562 | C9: 5.350259797 | D9: 7.748223518 | E9: 7.664645016 | F9: 5.531940437 | G9: 0 | I9: Washington-Only Gas Avoided Cost Info | M9: 5 | N9: 6.288625868 | O9: 5.742301054 | P9: 10.03270056 | Q9: 7.889723695 | R9: 10.86687562 | S9: 7.960722948 | T9: 5.58972726 | U9: 0
A10: 6 | B10: 6.752171833 | C10: 6.353464862 | D10: 9.172970026 | E10: 9.075050332 | F10: 6.566333513 | G10: 0 | I10: Updated on | J10: 2023-01-24 | M10: 6 | N10: 7.460318292 | O10: 6.815237648 | P10: 11.88164379 | Q10: 9.351293961 | R10: 12.86660763 | S10: 9.434670242 | T10: 6.635086038 | U10: 0
A11: 7 | B11: 7.791129165 | C11: 7.335243137 | D11: 10.55946452 | E11: 10.44788938 | F11: 7.577826335 | G11: 0 | I11: Base Year | J11: 2024$ | M11: 7 | N11: 8.599541824 | O11: 7.858943401 | P11: 13.67536365 | Q11: 10.77034223 | R11: 14.80617213 | S11: 10.86623817 | T11: 7.652258722 | U11: 0
A12: 8 | B12: 8.804449114 | C12: 8.293677787 | D12: 11.90644202 | E12: 11.78185251 | F12: 8.564598664 | G12: 0 | I12: Discount Rate | J12: 0.0339 | M12: 8 | N12: 9.711522403 | O12: 8.878538084 | P12: 15.42049316 | Q12: 12.15308505 | R12: 16.69236426 | S12: 12.26097762 | T12: 8.646027291 | U12: 0
A13: 9 | B13: 9.785468698 | C13: 9.222125229 | D13: 13.20709807 | E13: 13.07008781 | F13: 9.520095482 | G13: 0 | I13: Source | J13: Link | M13: 9 | N13: 10.79778173 | O13: 9.875440708 | P13: 17.11802214 | Q13: 13.50010945 | R13: 18.52633064 | S13: 13.62072458 | T13: 9.618207427 | U13: 0
A14: 10 | B14: 10.73664015 | C14: 10.12255644 | D14: 14.47493336 | E14: 14.32461505 | F14: 10.44550896 | G14: 0 | I14: Inputs | J14: NWN 2022 IRP - WA Only AC | M14: 10 | N14: 11.86018434 | O14: 10.85141648 | P14: 18.77107641 | Q14: 14.81415166 | R14: 20.31134873 | S14: 14.94764759 | T14: 10.57041777 | U14: 0
A15: 11 | B15: 11.6512204 | C15: 10.98860247 | D15: 15.6924248 | E15: 15.52937965 | F15: 11.33544047 | G15: 0 | I15: Avoided Cost Version Year | J15: 2024 | M15: 11 | N15: 12.89532262 | O15: 11.80296173 | P15: 20.37580217 | Q15: 16.09098103 | R15: 22.04371142 | S15: 16.23863305 | T15: 11.49889999 | U15: 0
A16: 12 | B16: 12.53825267 | C16: 11.8291224 | D16: 16.86978168 | E16: 16.69459318 | F16: 12.19874651 | G16: 0 | M16: 12 | N16: 13.89636919 | O16: 12.72315616 | P16: 21.92779213 | Q16: 17.32582582 | R16: 23.71915328 | S16: 17.48713796 | T16: 12.39700953 | U16: 0
A17: 13 | B17: 13.38907166 | C17: 12.63543814 | D17: 17.99837472 | E17: 17.81155709 | F17: 13.02688585 | G17: 0 | M17: 13 | N17: 14.87387665 | O17: 13.6224625 | P17: 23.44089785 | Q17: 18.5321851 | R17: 25.35166312 | S17: 18.70398998 | T17: 13.27452371 | U17: 0
A18: 14 | B18: 14.20342375 | C18: 13.40721586 | D18: 19.07844097 | E18: 18.88047713 | F18: 13.81958577 | G18: 0 | M18: 14 | N18: 15.83278406 | O18: 14.50573287 | P18: 24.91451816 | Q18: 19.70911669 | R18: 26.94077245 | S18: 19.89439421 | T18: 14.13710604 | U18: 0
A19: 15 | B19: 14.99673112 | C19: 14.15971096 | D19: 20.12651744 | E19: 19.91793912 | F19: 14.59199524 | G19: 0 | M19: 15 | N19: 16.76735869 | O19: 15.3671505 | P19: 26.3465645 | Q19: 20.85420229 | R19: 28.48452112 | S19: 21.05287523 | T19: 14.97868816 | U19: 0
A20: 16 | B20: 15.76807904 | C20: 14.89192499 | D20: 21.14219169 | E20: 20.92349498 | F20: 15.34318874 | G20: 0 | M20: 16 | N20: 17.67888403 | O20: 16.20791754 | P20: 27.74099443 | Q20: 21.97108049 | R20: 29.98699082 | S20: 22.18096541 | T20: 15.79999019 | U20: 0
A21: 17 | B21: 16.50794544 | C21: 15.59436542 | D21: 22.11572257 | E21: 21.88734066 | F21: 16.06379414 | G21: 0 | M21: 17 | N21: 18.57283567 | O21: 17.03343094 | P21: 29.09964612 | Q21: 23.06128094 | R21: 31.45013983 | S21: 23.28438107 | T21: 16.60703626 | U21: 0
A22: 18 | B22: 17.21810948 | C22: 16.26871734 | D22: 23.04946789 | E22: 22.81181425 | F22: 16.75553788 | G22: 0 | M22: 18 | N22: 19.44089567 | O22: 17.83529667 | P22: 30.41976331 | Q22: 24.12174899 | R22: 32.87132802 | S22: 24.35503707 | T22: 17.39074377 | U22: 0
A23: 19 | B23: 17.90069659 | C23: 16.91702231 | D23: 23.94608013 | E23: 23.69955274 | F23: 17.42049018 | G23: 0 | M23: 19 | N23: 20.29403043 | O23: 18.62440758 | P23: 31.70983702 | Q23: 25.16068706 | R23: 34.25915878 | S23: 25.40412502 | T23: 18.16230837 | U23: 0
A24: 20 | B24: 18.5567447 | C24: 17.54026588 | D24: 24.80693127 | E24: 24.55191406 | F24: 18.05966 | G24: 0 | M24: 20 | N24: 21.13148241 | O24: 19.39993496 | P24: 32.96762033 | Q24: 26.17556909 | R24: 35.61149383 | S24: 26.43110519 | T24: 18.92116068 | U24: 0
A25: 21 | B25: 19.18726033 | C25: 18.13939988 | D25: 25.63337354 | E25: 25.37023595 | F25: 18.67402449 | G25: 0 | M25: 21 | N25: 21.94790463 | O25: 20.15646299 | P25: 34.19241759 | Q25: 27.16542943 | R25: 36.92774262 | S25: 27.43084127 | T25: 19.6613008 | U25: 0
A26: 22 | B26: 19.79323845 | C26: 18.71535158 | D26: 26.42682104 | E26: 26.15591505 | F26: 19.26454517 | G26: 0 | M26: 22 | N26: 22.74624468 | O26: 20.89687269 | P26: 35.38367119 | Q26: 28.12944933 | R26: 38.2074492 | S26: 28.40648459 | T26: 20.38612412 | U26: 0
A27: 23 | B27: 20.37563296 | C27: 19.26901188 | D27: 27.18861834 | E27: 26.91027965 | F27: 19.83214458 | G27: 0 | M27: 23 | N27: 23.52414964 | O27: 21.61874674 | P27: 36.54359062 | Q27: 29.06958571 | R27: 39.45292137 | S27: 29.35587931 | T27: 21.09271489 | U27: 0
A28: 24 | B28: 20.93535875 | C28: 19.80123693 | D28: 27.92004542 | E28: 27.6345945 | F28: 20.37770808 | G28: 0 | M28: 24 | N28: 24.28680405 | O28: 22.32720741 | P28: 37.67537699 | Q28: 29.98879538 | R28: 40.66745533 | S28: 30.2844006 | T28: 21.78640552 | U28: 0
A29: 25 | B29: 21.47329533 | C29: 20.31285029 | D29: 28.62232973 | E29: 28.33007252 | F29: 20.90208707 | G29: 0 | M29: 25 | N29: 25.0345303 | O29: 23.02251685 | P29: 38.77901012 | Q29: 30.88682187 | R29: 41.8511229 | S29: 31.19255521 | T29: 22.46756469 | U29: 0
A30: 26 | B30: 21.99026356 | C30: 20.80463374 | D30: 29.29654192 | E30: 28.99777389 | F30: 21.4060805 | G30: 0 | M30: 26 | N30: 25.76429007 | O30: 23.70157847 | P30: 39.85356079 | Q30: 31.76250743 | R30: 43.00308379 | S30: 32.07748313 | T30: 23.13286158 | U30: 0
A31: 27 | B31: 22.48708324 | C31: 21.2773523 | D31: 29.94384071 | E31: 29.63884321 | F31: 21.89048116 | G31: 0 | M31: 27 | N31: 26.47823333 | O31: 24.36648591 | P31: 40.90578439 | Q31: 32.6223864 | R31: 44.13017944 | S31: 32.94150683 | T31: 23.78407819 | U31: 0
A32: 28 | B32: 22.962916 | C32: 21.73012259 | D32: 30.5636695 | E32: 30.25271211 | F32: 22.35442741 | G32: 0 | M32: 28 | N32: 27.18892254 | O32: 25.02974711 | P32: 41.93419523 | Q32: 33.4647593 | R32: 45.2310074 | S32: 33.79735556 | T32: 24.43467947 | U32: 0
A33: 29 | B33: 23.41843041 | C33: 22.16356718 | D33: 31.1569832 | E33: 30.84032357 | F33: 22.79856454 | G33: 0 | M33: 29 | N33: 27.87630934 | O33: 25.67126098 | P33: 42.92888605 | Q33: 34.27951208 | R33: 46.2957409 | S33: 34.62514232 | T33: 25.06394853 | U33: 0
A34: 30 | B34: 23.85450745 | C34: 22.57851753 | D34: 31.7249686 | E34: 31.40285164 | F34: 23.22374932 | G34: 0 | M34: 30 | N34: 28.54115777 | O34: 26.29174059 | P34: 43.89096248 | Q34: 35.06755036 | R34: 47.32556341 | S34: 35.42578722 | T34: 25.67258482 | U34: 0
A35: 31 | B35: 24.27197515 | C35: 22.97576304 | D35: 32.26869587 | E35: 31.94135639 | F35: 23.63078966 | G35: 0 | M35: 31 | N35: 29.18420685 | O35: 26.89187563 | P35: 44.8214939 | Q35: 35.82975007 | R35: 48.32161962 | S35: 36.2001802 | T35: 26.26126486 | U35: 0
A36: 32 | B36: 24.67161398 | C36: 23.35605419 | D36: 32.7891374 | E36: 32.45680215 | F36: 24.02044922 | G36: 0 | M36: 32 | N36: 29.80617132 | O36: 27.47233315 | P36: 45.72151461 | Q36: 36.56695842 | R36: 49.28501666 | S36: 36.94918201 | T36: 26.83064297 | U36: 0
A37: 33 | B37: 25.0541942 | C37: 23.72011914 | D37: 33.28732375 | E37: 32.95020864 | F37: 24.39347748 | G37: 0 | M37: 33 | N37: 30.40774253 | O37: 28.03375836 | P37: 46.59202502 | Q37: 37.27999484 | R37: 50.21682539 | S37: 37.6736252 | T37: 27.38135205 | U37: 0
A38: 34 | B38: 25.42044317 | C38: 24.06865069 | D38: 33.7641987 | E38: 33.42251063 | F38: 24.75058392 | G38: 0 | M38: 34 | N38: 30.98958915 | O38: 28.5767753 | P38: 47.43399273 | Q38: 37.96965188 | R38: 51.11808154 | S38: 38.37431501 | T38: 27.91400422 | U38: 0
A39: 35 | B39: 25.77106098 | C39: 24.4023136 | D39: 34.22068232 | E39: 33.87461901 | F39: 25.09245075 | G39: 0 | M39: 35 | N39: 31.5523579 | O39: 29.10198754 | P39: 48.2483536 | Q39: 38.63669612 | R39: 51.98978688 | S39: 39.05203027 | T39: 28.42919154 | U39: 0
A40: 36 | B40: 26.10672512 | C40: 24.72174732 | D40: 34.65768696 | E40: 34.30743636 | F40: 25.41973683 | G40: 0 | M40: 36 | N40: 32.09667432 | O40: 29.60997888 | P40: 49.03601283 | Q40: 39.281869 | R40: 52.83291033 | S40: 39.70752428 | T40: 28.92748666 | U40: 0
A41: 37 | B41: 26.42807235 | C41: 25.02755893 | D41: 35.07603537 | E41: 34.72177767 | F41: 25.73306346 | G41: 0 | M41: 37 | N41: 32.62314344 | O41: 30.10131395 | P41: 49.79784591 | Q41: 39.90588765 | R41: 53.64838905 | S41: 40.34152565 | T41: 29.40944344 | U41: 0
A42: 38 | B42: 26.73570289 | C42: 25.32032562 | D42: 35.47647522 | E42: 35.11838444 | F42: 26.03301793 | G42: 0 | M42: 38 | N42: 33.13235045 | O42: 30.5765389 | P42: 50.53469965 | Q42: 40.50944568 | R42: 54.43712947 | S42: 40.95473908 | T42: 29.8755976 | U42: 0
A43: 39 | B43: 27.03020909 | C43: 25.60060741 | D43: 35.85979877 | E43: 35.4980406 | F43: 26.32017663 | G43: 0 | M43: 39 | N43: 33.62486133 | O43: 31.03618196 | P43: 51.24739309 | Q43: 41.09321397 | R43: 55.2000083 | S43: 41.54784618 | T43: 30.32646727 | U43: 0
A44: 40 | B44: 27.31215033 | C44: 25.86893711 | D44: 36.22673167 | E44: 35.86146488 | F44: 26.5950852 | G44: 0 | M44: 40 | N44: 34.10122354 | O44: 31.48075401 | P44: 51.93671839 | Q44: 41.65784138 | R44: 55.9378735 | S44: 42.1215062 | T44: 30.76255362 | U44: 0
A45: 41 | B45: 27.58206502 | C45: 26.12582603 | D45: 36.57798127 | E45: 36.20935759 | F45: 26.85826828 | G45: 0 | M45: 41 | N45: 34.56196656 | O45: 31.91074923 | P45: 52.60344177 | Q45: 42.20395553 | R45: 56.65154523 | S45: 42.67635679 | T45: 31.18434136 | U45: 0
A46: 42 | B46: 27.84047418 | C46: 26.37176594 | D46: 36.91424901 | E46: 36.54241267 | F46: 27.11023259 | G46: 0 | M46: 42 | N46: 35.00760251 | O46: 32.32664557 | P46: 53.24830432 | Q46: 42.73216343 | R46: 57.34181675 | S46: 43.21301468 | T46: 31.59229933 | U46: 0
A47: 43 | B47: 28.08786753 | C47: 26.60722379 | D47: 37.23616747 | E47: 36.86125675 | F47: 27.35145598 | G47: 0 | M47: 43 | N47: 35.43862675 | O47: 32.7289053 | P47: 53.8720228 | Q47: 43.2430522 | R47: 58.00945533 | S47: 43.73207638 | T47: 31.98688097 | U47: 0
A48: 44 | B48: 28.32460235 | C48: 26.83254008 | D48: 37.54420085 | E48: 37.16634885 | F48: 27.58228757 | G48: 0 | M48: 44 | N48: 35.85551836 | O48: 33.11797555 | P48: 54.47529051 | Q48: 43.73718971 | R48: 58.65520305 | S48: 44.23411884 | T48: 32.36852489 | U48: 0
A49: 45 | B49: 28.55114284 | C49: 27.04815376 | D49: 37.83896964 | E49: 37.45830302 | F49: 27.80317904 | G49: 0 | M49: 45 | N49: 36.25874074 | O49: 33.49428878 | P49: 55.058778 | Q49: 44.21512521 | R49: 59.2797777 | S49: 44.71970009 | T49: 32.73765529 | U49: 0
A50: 46 | B50: 28.767928 | C50: 27.25448265 | D50: 38.12104504 | E50: 37.73768499 | F50: 28.01455844 | G50: 0 | M50: 46 | N50: 36.64874206 | O50: 33.85826327 | P50: 55.62313382 | Q50: 44.67738993 | R50: 59.8838735 | S50: 45.18935987 | T50: 33.09468247 | U50: 0
A51: 47 | B51: 28.97537791 | C51: 27.45192655 | D51: 38.39097365 | E51: 38.00503616 | F51: 28.21683538 | G51: 0 | M51: 47 | N51: 37.02595584 | O51: 34.2103036 | P51: 56.16898528 | Q51: 45.12449769 | R51: 60.46816192 | S51: 45.64362023 | T51: 33.44000328 | U51: 0
A52: 48 | B52: 29.17389458 | C52: 27.64086809 | D52: 38.64927854 | E52: 38.26087461 | F52: 28.41040183 | G52: 0 | M52: 48 | N52: 37.39080136 | O52: 34.55080106 | P52: 56.69693911 | Q52: 45.55694548 | R52: 61.03329242 | S52: 46.08298609 | T52: 33.77400154 | U52: 0
A53: 49 | B53: 29.36386268 | C53: 27.82167339 | D53: 38.89646025 | E53: 38.50569608 | F53: 28.59563288 | G53: 0 | M53: 49 | N53: 37.74368415 | O53: 34.88013414 | P53: 57.20758213 | Q53: 45.97521397 | R53: 61.57989315 | S53: 46.50794581 | T53: 34.09704851 | U53: 0
A54: 50 | B54: 29.54565033 | C54: 27.99469281 | D54: 39.13299777 | E54: 38.73997501 | F54: 28.77288748 | G54: 0 | M54: 50 | N54: 38.08499646 | O54: 35.19866888 | P54: 57.70148195 | Q54: 46.37976807 | R54: 62.10857169 | S54: 46.91897176 | T54: 34.40950326 | U54: 0
A55: 51 | B55: 29.71960981 | C55: 28.16026164 | D55: 39.35934947 | E55: 38.96416536 | F55: 28.9425091 | G55: 0 | M55: 51 | N55: 38.41511765 | O55: 35.50675936 | P55: 58.17918755 | Q55: 46.77105746 | R55: 62.61991566 | S55: 47.31652079 | T55: 34.7117131 | U55: 0
A56: 52 | B56: 29.88607821 | C56: 28.3187007 | D56: 39.57595396 | E56: 39.17870159 | F56: 29.10482644 | G56: 0 | M56: 52 | N56: 38.73441468 | O56: 35.80474802 | P56: 58.64122992 | Q56: 47.14951707 | R56: 63.11449344 | S56: 47.70103479 | T56: 35.00401394 | U56: 0
A57: 53 | B57: 30.04537812 | C57: 28.47031704 | D57: 39.78323099 | E57: 39.38399942 | F57: 29.26015404 | G57: 0 | M57: 53 | N57: 39.04324244 | O57: 36.09296609 | P57: 59.08812262 | Q57: 47.51556757 | R57: 63.59285477 | S57: 48.07294117 | T57: 35.28673069 | U57: 0
A58: 54 | B58: 30.19781822 | C58: 28.61540444 | D58: 39.98158221 | E58: 39.58045667 | F58: 29.40879289 | G58: 0 | M58: 54 | N58: 39.34194422 | O58: 36.37173393 | P58: 59.52036239 | Q58: 47.86961584 | R58: 64.05553137 | S58: 48.43265331 | T58: 35.56017758 | U58: 0
A59: 55 | B59: 30.34369391 | C59: 28.75424406 | D59: 40.17139199 | E59: 39.76845403 | F59: 29.55103102 | G59: 0 | M59: 55 | N59: 39.63085202 | O59: 36.6413614 | P59: 59.93842969 | Q59: 48.2120554 | R59: 64.50303751 | S59: 48.78057104 | T59: 35.82465857 | U59: 0
A60: 56 | B60: 30.48328788 | C60: 28.88710493 | D60: 40.35302815 | E60: 39.94835582 | F60: 29.68714407 | G60: 0 | M60: 56 | N60: 39.91028698 | O60: 36.90214819 | P60: 60.34278919 | Q60: 48.54326689 | R60: 64.93587061 | S60: 49.11708108 | T60: 36.08046763 | U60: 0
A61: 57 | B61: 30.61687062 | C61: 29.01424453 | D61: 40.52684265 | E61: 40.12051064 | F61: 29.81739579 | G61: 0 | M61: 57 | N61: 40.18055969 | O61: 37.15438419 | P61: 60.73389037 | Q61: 48.86361846 | R61: 65.35451177 | S61: 49.44255747 | T61: 36.3278891 | U61: 0
A62: 58 | B62: 30.74470099 | C62: 29.13590922 | D62: 40.69317232 | E62: 40.2852521 | F62: 29.94203858 | G62: 0 | M62: 58 | N62: 40.44197057 | O62: 37.39834975 | P62: 61.11216794 | Q62: 49.1734662 | R62: 65.75942633 | S62: 49.75736198 | T62: 36.567198 | U62: 0
A63: 59 | B63: 30.86702671 | C63: 29.25233475 | D63: 40.85233947 | E63: 40.44289942 | F63: 30.06131399 | G63: 0 | M63: 59 | N63: 40.69481019 | O63: 37.63431605 | P63: 61.47804236 | Q63: 49.4731545 | R63: 66.15106436 | S63: 50.06184454 | T63: 36.79866033 | U63: 0
A64: 60 | B64: 30.98408482 | C64: 29.36374675 | D64: 41.00465252 | E64: 40.59375811 | F64: 30.17545313 | G64: 0 | M64: 60 | N64: 40.93935958 | O64: 37.86254539 | P64: 61.83192032 | Q64: 49.76301648 | R64: 66.52986118 | S64: 50.35634357 | T64: 37.02253337 | U64: 0
A65: 61 | B65: 31.09610214 | C65: 29.4703611 | D65: 41.15040665 | E65: 40.73812048 | F65: 30.28467718 | G65: 0 | M65: 61 | N65: 41.17589057 | O65: 38.08329143 | P65: 62.17419516 | Q65: 50.04337433 | R65: 66.89623783 | S65: 50.64118644 | T65: 37.23906594 | U65: 0
A66: 62 | B66: 31.20329575 | C66: 29.5723844 | D66: 41.28988428 | E66: 40.8762663 | F66: 30.38919781 | G66: 0 | M66: 62 | N66: 41.40466608 | O66: 38.29679954 | P66: 62.50524734 | Q66: 50.31453968 | R66: 67.25060154 | S66: 50.91668974 | T66: 37.44849875 | U66: 0
A67: 63 | B67: 31.30587337 | C67: 29.67001436 | D67: 41.42335569 | E67: 41.00846325 | F67: 30.48921755 | G67: 0 | M67: 63 | N67: 41.62594038 | O67: 38.50330705 | P67: 62.82544482 | Q67: 50.57681393 | R67: 67.59334622 | S67: 51.18315971 | T67: 37.65106458 | U67: 0
A68: 64 | B68: 31.40403377 | C68: 29.76344015 | D68: 41.55107954 | E68: 41.13496751 | F68: 30.58493022 | G68: 0 | M68: 64 | N68: 41.83995944 | O68: 38.7030435 | P68: 63.13514351 | Q68: 50.8304886 | R68: 67.92485282 | S68: 51.44089254 | T68: 37.84698858 | U68: 0
A69: 65 | B69: 31.49796717 | C69: 29.85284282 | D69: 41.67330331 | E69: 41.25602422 | F69: 30.6765213 | G69: 0 | M69: 65 | N69: 42.04696114 | O69: 38.89623089 | P69: 63.43468766 | Q69: 51.07584567 | R69: 68.24548983 | S69: 51.69017471 | T69: 38.03648853 | U69: 0
A70: 66 | B70: 31.58785559 | C70: 29.93839562 | D70: 41.79026386 | E70: 41.37186796 | F70: 30.76416825 | G70: 0 | M70: 66 | N70: 42.24717558 | O70: 39.08308396 | P70: 63.72441021 | Q70: 51.31315786 | R70: 68.55561363 | S70: 51.93128329 | T70: 38.21977507 | U70: 0
A71: 67 | B71: 31.67387321 | C71: 30.02026433 | D71: 41.90218783 | E71: 41.48272322 | F71: 30.84804094 | G71: 0 | M71: 67 | N71: 42.44082528 | O71: 39.26381041 | P71: 64.00463321 | Q71: 51.54268895 | R71: 68.85556896 | S71: 52.16448629 | T71: 38.39705192 | U71: 0
A72: 68 | B72: 31.75618673 | C72: 30.09860758 | D72: 42.00929211 | E72: 41.5888048 | F72: 30.92830189 | G72: 0 | M72: 68 | N72: 42.62812551 | O72: 39.43861111 | P72: 64.27566812 | Q72: 51.76469406 | R72: 69.1456892 | S72: 52.39004292 | T72: 38.56851614 | U72: 0
A73: 69 | B73: 31.83495564 | C73: 30.17357721 | D73: 42.11178424 | E73: 41.69031828 | F73: 31.00510662 | G73: 0 | M73: 69 | N73: 42.80928445 | O73: 39.60768037 | P73: 64.53781621 | Q73: 51.97941996 | R73: 69.42629685 | S73: 52.60820389 | T73: 38.73435831 | U73: 0
A74: 70 | B74: 31.9103326 | C74: 30.24531848 | D74: 42.20986283 | E74: 41.78746036 | F74: 31.07860397 | G74: 0 | M74: 70 | N74: 42.98450347 | O74: 39.7712061 | P74: 64.79136886 | Q74: 52.18710533 | R74: 69.6977038 | S74: 52.8192117 | T74: 38.89476276 | U74: 0

Sheet ELE AC (hidden)
A1: Oregon Blended Ele Avoided Cost Info
A2: Updated on | B2: 2023-01-04
A3: Base Year | B3: 2024$
A4: Discount Rate | B4: 0.045
A5: Source | B5: Link
A6: Inputs | B6: PAC and PGE avoided costs
A7: Avoided Cost Version Year | B7: 2024
A9: Avoided Cost (NPV/kWh) | C9: Lifetime (yrs)
A10: Load Profile Name | B10: Friendly Name | C10: 0 | D10: 1 | E10: 2 | F10: 3 | G10: 4 | H10: 5 | I10: 6 | J10: 7 | K10: 8 | L10: 9 | M10: 10 | N10: 11 | O10: 12 | P10: 13 | Q10: 14 | R10: 15 | S10: 16 | T10: 17 | U10: 18 | V10: 19 | W10: 20 | X10: 21 | Y10: 22 | Z10: 23 | AA10: 24 | AB10: 25 | AC10: 26 | AD10: 27 | AE10: 28 | AF10: 29 | AG10: 30 | AH10: 31 | AI10: 32 | AJ10: 33 | AK10: 34 | AL10: 35 | AM10: 36 | AN10: 37 | AO10: 38 | AP10: 39 | AQ10: 40 | AR10: 41 | AS10: 42 | AT10: 43 | AU10: 44 | AV10: 45 | AW10: 46 | AX10: 47 | AY10: 48 | AZ10: 49 | BA10: 50 | BB10: 51 | BC10: 52 | BD10: 53 | BE10: 54 | BF10: 55 | BG10: 56 | BH10: 57 | BI10: 58 | BJ10: 59 | BK10: 60 | BL10: 61 | BM10: 62 | BN10: 63 | BO10: 64 | BP10: 65 | BQ10: 66 | BR10: 67 | BS10: 68 | BT10: 69 | BU10: 70
A11: R-All-Ref-Refrig-All-All-C | B11: Res Refrigerator | C11: 0 | D11: 0.07745983259 | E11: 0.1496836014 | F11: 0.2164172385 | G11: 0.2811090334 | H11: 0.3439503744 | I11: 0.4059704404 | J11: 0.4664243986 | K11: 0.5256310375 | L11: 0.5824015167 | M11: 0.6367804034 | N11: 0.689031721 | O11: 0.7393527264 | P11: 0.7867560277 | Q11: 0.8326049326 | R11: 0.8770074501 | S11: 0.9197153803 | T11: 0.9602398837 | U11: 0.9993227588 | V11: 1.03652308 | W11: 1.072310693 | X11: 1.106304769 | Y11: 1.139083441 | Z11: 1.170336511 | AA11: 1.200339001 | AB11: 1.228868244 | AC11: 1.256406191 | AD11: 1.282618179 | AE11: 1.30770142 | AF11: 1.331704522 | AG11: 1.354673998 | AH11: 1.376654358 | AI11: 1.397688194 | AJ11: 1.417816268 | AK11: 1.437077582 | AL11: 1.455509462 | AM11: 1.473147625 | AN11: 1.490026249 | AO11: 1.506178043 | AP11: 1.521634305 | AQ11: 1.536424986 | AR11: 1.550578748 | AS11: 1.564123018 | AT11: 1.577084042 | AU11: 1.589486935 | AV11: 1.601355733 | AW11: 1.612713434 | AX11: 1.623582047 | AY11: 1.633982634 | AZ11: 1.643935349 | BA11: 1.653459478 | BB11: 1.662573477 | BC11: 1.671295008 | BD11: 1.67964097 | BE11: 1.687627536 | BF11: 1.695270184 | BG11: 1.702583722 | BH11: 1.709582323 | BI11: 1.716279549 | BJ11: 1.722688377 | BK11: 1.728821228 | BL11: 1.734689984 | BM11: 1.740306019 | BN11: 1.745680215 | BO11: 1.750822986 | BP11: 1.755744298 | BQ11: 1.760453688 | BR11: 1.764960281 | BS11: 1.76927281 | BT11: 1.773399632 | BU11: 1.777348744
A12: R-All-Ref-Freezer-All-All-R | B12: Res Freezer | C12: 0 | D12: 0.07704958106 | E12: 0.1487247125 | F12: 0.214968019 | G12: 0.2791753811 | H12: 0.341565421 | I12: 0.4030913685 | J12: 0.4630602916 | K12: 0.5217417018 | L12: 0.5780596436 | M12: 0.6319357719 | N12: 0.6837418362 | O12: 0.733590783 | P12: 0.7805490715 | Q12: 0.8259096797 | R12: 0.8699019242 | S12: 0.912184543 | T12: 0.9523248643 | U12: 0.9910452418 | V12: 1.027865298 | W12: 1.063288141 | X12: 1.096968728 | Y12: 1.129447001 | Z12: 1.16042914 | AA12: 1.190160097 | AB12: 1.21844149 | AC12: 1.24573622 | AD12: 1.271724764 | AE12: 1.296594184 | AF12: 1.320392672 | AG12: 1.343166345 | AH12: 1.364959333 | AI12: 1.385813867 | AJ12: 1.405770359 | AK12: 1.424867481 | AL12: 1.443142238 | AM12: 1.460630044 | AN12: 1.477364787 | AO12: 1.493378895 | AP12: 1.5087034 | AQ12: 1.523367998 | AR12: 1.537401107 | AS12: 1.550829919 | AT12: 1.563680456 | AU12: 1.575977622 | AV12: 1.587745244 | AW12: 1.599006126 | AX12: 1.60978209 | AY12: 1.620094018 | AZ12: 1.629961891 | BA12: 1.639404832 | BB12: 1.648441139 | BC12: 1.657088322 | BD12: 1.665363139 | BE12: 1.673281624 | BF12: 1.680859122 | BG12: 1.688110316 | BH12: 1.695049258 | BI12: 1.701689393 | BJ12: 1.70804359 | BK12: 1.714124161 | BL12: 1.719942889 | BM12: 1.72551105 | BN12: 1.730839434 | BO12: 1.735938365 | BP12: 1.740817726 | BQ12: 1.745486971 | BR12: 1.749955147 | BS12: 1.754230914 | BT12: 1.758322557 | BU12: 1.762238005
A13: R-All-Plug-Dryer-All-All-R | B13: Res Dryer | C13: 0 | D13: 0.09745318496 | E13: 0.1899962135 | F13: 0.2765104883 | G13: 0.3598964976 | H13: 0.4404584223 | I13: 0.519797262 | J13: 0.5967782619 | K13: 0.6719008362 | L13: 0.7436859502 | M13: 0.8127264845 | N13: 0.8790200355 | O13: 0.9429036118 | P13: 1.003190963 | Q13: 1.061481891 | R13: 1.117679457 | S13: 1.171727175 | T13: 1.223146159 | U13: 1.272532881 | V13: 1.319747697 | W13: 1.365116665 | X13: 1.408138361 | Y13: 1.449589622 | Z13: 1.489097874 | AA13: 1.527039931 | AB13: 1.563100609 | AC13: 1.597861826 | AD13: 1.6309597 | AE13: 1.662632307 | AF13: 1.692941022 | AG13: 1.721944577 | AH13: 1.749699174 | AI13: 1.776258598 | AJ13: 1.801674315 | AK13: 1.825995575 | AL13: 1.849269507 | AM13: 1.871541213 | AN13: 1.892853851 | AO13: 1.913248719 | AP13: 1.93276534 | AQ13: 1.951441531 | AR13: 1.969313485 | AS13: 1.986415833 | AT13: 2.002781717 | AU13: 2.018442849 | AV13: 2.033429579 | AW13: 2.047770947 | AX13: 2.061494744 | AY13: 2.074627564 | AZ13: 2.087194857 | BA13: 2.099220974 | BB13: 2.110729219 | BC13: 2.121741895 | BD13: 2.13228034 | BE13: 2.142364977 | BF13: 2.152015347 | BG13: 2.161250151 | BH13: 2.170087284 | BI13: 2.17854387 | BJ13: 2.186636298 | BK13: 2.194380247 | BL13: 2.201790725 | BM13: 2.208882092 | BN13: 2.215668088 | BO13: 2.222161865 | BP13: 2.228376006 | BQ13: 2.234322552 | BR13: 2.240013026 | BS13: 2.245458456 | BT13: 2.250669394 | BU13: 2.255655938
A14: R-All-WH-Cwash-All-All-R | B14: Res Clotheswasher | C14: 0 | D14: 0.07855729224 | E14: 0.151325283 | F14: 0.218147564 | G14: 0.2828980867 | H14: 0.3458289494 | I14: 0.407940527 | J14: 0.4684920709 | K14: 0.5278049523 | L14: 0.5846527696 | M14: 0.6390449133 | N14: 0.6912760375 | O14: 0.7415340055 | P14: 0.7889372843 | Q14: 0.8347754801 | R14: 0.8791419429 | S14: 0.9218306119 | T14: 0.9623573 | U14: 1.001421505 | V14: 1.038604809 | W14: 1.07438698 | X14: 1.10838227 | Y14: 1.141155003 | Z14: 1.172404031 | AA14: 1.202419054 | AB14: 1.230934285 | AC14: 1.258460124 | AD14: 1.284683278 | AE14: 1.309777205 | AF14: 1.333790533 | AG14: 1.356769793 | AH14: 1.378759516 | AI14: 1.399802314 | AJ14: 1.419938962 | AK14: 1.439208481 | AL14: 1.457648213 | AM14: 1.475293889 | AN14: 1.492179704 | AO14: 1.508338378 | AP14: 1.523801225 | AQ14: 1.538598207 | AR14: 1.552757998 | AS14: 1.566308038 | AT14: 1.579274583 | AU14: 1.59168276 | AV14: 1.603556614 | AW14: 1.614919153 | AX14: 1.625792396 | AY14: 1.636197414 | AZ14: 1.646154369 | BA14: 1.655682555 | BB14: 1.664800437 | BC14: 1.673525683 | BD14: 1.6818752 | BE14: 1.689865169 | BF14: 1.697511072 | BG14: 1.704827725 | BH14: 1.711829308 | BI14: 1.718529387 | BJ14: 1.724940946 | BK14: 1.731076408 | BL14: 1.736947665 | BM14: 1.742566092 | BN14: 1.747942577 | BO14: 1.753087539 | BP14: 1.758010948 | BQ14: 1.762722344 | BR14: 1.767230857 | BS14: 1.771545223 | BT14: 1.775673803 | BU14: 1.779624598
A15: R-All-HVAC-CAC-All-All-E | B15: Res Central AC | C15: 0 | D15: 0.3374910525 | E15: 0.6507659635 | F15: 0.9424545941 | G15: 1.223221731 | H15: 1.492844551 | I15: 1.752515221 | J15: 2.002476523 | K15: 2.243084983 | L15: 2.473416234 | M15: 2.693933915 | N15: 2.904570037 | O15: 3.106851628 | P15: 3.299550861 | Q15: 3.484610379 | R15: 3.662091234 | S15: 3.832402942 | T15: 3.994529474 | U15: 4.150350894 | V15: 4.298878191 | W15: 4.441515582 | X15: 4.577521351 | Y15: 4.708002527 | Z15: 4.832718847 | AA15: 4.95226474 | AB15: 5.066411537 | AC15: 5.175915142 | AD15: 5.280634641 | AE15: 5.380844688 | AF15: 5.47673947 | AG15: 5.568504811 | AH15: 5.656318535 | AI15: 5.740350807 | AJ15: 5.820764464 | AK15: 5.897715332 | AL15: 5.971352527 | AM15: 6.041818741 | AN15: 6.109250526 | AO15: 6.173778549 | AP15: 6.235527854 | AQ15: 6.294618097 | AR15: 6.351163785 | AS15: 6.405274491 | AT15: 6.457055071 | AU15: 6.506605865 | AV15: 6.554022893 | AW15: 6.599398039 | AX15: 6.642819232 | AY15: 6.684370612 | AZ15: 6.724132699 | BA15: 6.762182542 | BB15: 6.798593876 | BC15: 6.833437258 | BD15: 6.866780206 | BE15: 6.898687334 | BF15: 6.929220471 | BG15: 6.958438784 | BH15: 6.986398892 | BI15: 7.013154976 | BJ15: 7.038758884 | BK15: 7.063260232 | BL15: 7.086706497 | BM15: 7.109143115 | BN15: 7.130613563 | BO15: 7.151159446 | BP15: 7.170820578 | BQ15: 7.189635058 | BR15: 7.207639346 | BS15: 7.224868329 | BT15: 7.241355394 | BU15: 7.25713249
A16: R-All-HVAC-RAC-All-All-E | B16: Res Window AC | C16: 0 | D16: 0.373148044 | E16: 0.7202863753 | F16: 1.044162936 | G16: 1.355725113 | H16: 1.654832276 | I16: 1.942712412 | J16: 2.21967036 | K16: 2.486130358 | L16: 2.741189524 | M16: 2.985352546 | N16: 3.218598818 | O16: 3.442498055 | P16: 3.655905915 | Q16: 3.860788759 | R16: 4.057214463 | S16: 4.245674976 | T16: 4.425172326 | U16: 4.597604483 | V16: 4.762029248 | W16: 4.919867007 | X16: 5.070444815 | Y16: 5.214843766 | Z16: 5.352881946 | AA16: 5.48518491 | AB16: 5.611526921 | AC16: 5.732708062 | AD16: 5.848607945 | AE16: 5.959516924 | AF16: 6.065649919 | AG16: 6.167212593 | AH16: 6.264401755 | AI16: 6.357405737 | AJ16: 6.446404764 | AK16: 6.531571296 | AL16: 6.613070371 | AM16: 6.691059915 | AN16: 6.765691058 | AO16: 6.83710842 | AP16: 6.905450394 | AQ16: 6.970849411 | AR16: 7.033432203 | AS16: 7.093320042 | AT16: 7.150628978 | AU16: 7.205470066 | AV16: 7.257949576 | AW16: 7.308169203 | AX16: 7.356226262 | AY16: 7.402213878 | AZ16: 7.446221167 | BA16: 7.488333404 | BB16: 7.528632196 | BC16: 7.567195634 | BD16: 7.604098444 | BE16: 7.639412139 | BF16: 7.673205148 | BG16: 7.705542956 | BH16: 7.736488227 | BI16: 7.766100926 | BJ16: 7.794438437 | BK16: 7.821555673 | BL16: 7.84750518 | BM16: 7.872337245 | BN16: 7.896099987 | BO16: 7.918839452 | BP16: 7.940599706 | BQ16: 7.961422916 | BR16: 7.981349432 | BS16: 8.000417869 | BT16: 8.018665177 | BU16: 8.036126715
A17: Residential-res-Water Heating | B17: Res Water Heat | C17: 0 | D17: 0.08245308959 | E17: 0.1596561997 | F17: 0.2310610252 | G17: 0.3001151763 | H17: 0.3671442575 | I17: 0.4332843009 | J17: 0.4976985156 | K17: 0.5607681051 | L17: 0.621129358 | M17: 0.6789855851 | N17: 0.7345185532 | O17: 0.7879723403 | P17: 0.8384204706 | Q17: 0.8872362358 | R17: 0.9343845442 | S17: 0.9797709804 | T17: 1.022890325 | U17: 1.064388541 | V17: 1.103989457 | W17: 1.142052611 | X17: 1.178202676 | Y17: 1.213027734 | Z17: 1.246224244 | AA17: 1.278111389 | AB17: 1.308402904 | AC17: 1.337630145 | AD17: 1.365473857 | AE17: 1.392118557 | AF17: 1.417615878 | AG17: 1.442015228 | AH17: 1.465363888 | AI17: 1.487707104 | AJ17: 1.509088171 | AK17: 1.529548523 | AL17: 1.549127807 | AM17: 1.567863964 | AN17: 1.585793301 | AO17: 1.602950561 | AP17: 1.619368991 | AQ17: 1.635080408 | AR17: 1.650115257 | AS17: 1.664502672 | AT17: 1.678270533 | AU17: 1.69144552 | AV17: 1.704053163 | AW17: 1.716117893 | AX17: 1.72766309 | AY17: 1.738711124 | AZ17: 1.749283406 | BA17: 1.759400423 | BB17: 1.769081778 | BC17: 1.778346233 | BD17: 1.78721174 | BE17: 1.795695479 | BF17: 1.803813889 | BG17: 1.811582703 | BH17: 1.819016974 | BI17: 1.826131109 | BJ17: 1.832938894 | BK17: 1.839453521 | BL17: 1.845687614 | BM17: 1.851653253 | BN17: 1.857361998 | BO17: 1.862824912 | BP17: 1.868052582 | BQ17: 1.873055136 | BR17: 1.877842269 | BS17: 1.882423258 | BT17: 1.886806979 | BU17: 1.891001927
A18: R-All-WH-WHConvert-All-All-N | B18: Res HP Water Heat Convert | C18: 0 | D18: 0.09552151141 | E18: 0.1846600177 | F18: 0.2673762598 | G18: 0.3472937417 | H18: 0.4247622874 | I18: 0.5007457705 | J18: 0.5745447657 | K18: 0.6465067085 | L18: 0.7154951146 | M18: 0.781443311 | N18: 0.844809246 | O18: 0.9056437405 | P18: 0.963196956 | Q18: 1.018668994 | R18: 1.072320714 | S18: 1.123851326 | T18: 1.172872431 | U18: 1.220039571 | V18: 1.264970346 | W18: 1.308126807 | X18: 1.349259653 | Y18: 1.388838204 | Z18: 1.426613091 | AA18: 1.462866565 | AB18: 1.497347509 | AC18: 1.53058367 | AD18: 1.562278853 | AE18: 1.592609171 | AF18: 1.621633399 | AG18: 1.649407779 | AH18: 1.675986134 | AI18: 1.701419966 | AJ18: 1.725758562 | AK18: 1.749049084 | AL18: 1.771336665 | AM18: 1.792664493 | AN18: 1.813073899 | AO18: 1.83260443 | AP18: 1.851293934 | AQ18: 1.869178626 | AR18: 1.886293165 | AS18: 1.902670713 | AT18: 1.918343009 | AU18: 1.933340421 | AV18: 1.947692011 | AW18: 1.96142559 | AX18: 1.974567771 | AY18: 1.987144021 | AZ18: 1.99917871 | BA18: 2.010695159 | BB18: 2.021715684 | BC18: 2.032261641 | BD18: 2.042353465 | BE18: 2.052010714 | BF18: 2.0612521 | BG18: 2.070095532 | BH18: 2.078558146 | BI18: 2.086656342 | BJ18: 2.094405811 | BK18: 2.101821571 | BL18: 2.108917992 | BM18: 2.115708826 | BN18: 2.122207231 | BO18: 2.128425801 | BP18: 2.134376585 | BQ18: 2.140071116 | BR18: 2.145520428 | BS18: 2.15073508 | BT18: 2.155725178 | BU18: 2.160500391
A19: R-All-WH-SWH-All-All-C | B19: Res Solar Water Heat | C19: 0 | D19: 0.07852585115 | E19: 0.1524213271 | F19: 0.2209430706 | G19: 0.287208785 | H19: 0.3515561299 | I19: 0.4151525245 | J19: 0.4771346475 | K19: 0.5378847725 | L19: 0.5960130597 | M19: 0.6517745572 | N19: 0.7053206298 | O19: 0.7568907066 | P19: 0.8055148839 | Q19: 0.8526073497 | R19: 0.8980972159 | S19: 0.9419018446 | T19: 0.9835084795 | U19: 1.023549541 | V19: 1.061784403 | W19: 1.098518422 | X19: 1.133398961 | Y19: 1.167003807 | Z19: 1.199030241 | AA19: 1.229796308 | AB19: 1.259018546 | AC19: 1.287220131 | AD19: 1.314075347 | AE19: 1.339774119 | AF19: 1.364366245 | AG19: 1.387899379 | AH19: 1.410419126 | AI19: 1.431969122 | AJ19: 1.452591128 | AK19: 1.472325105 | AL19: 1.491209294 | AM19: 1.509280288 | AN19: 1.526573105 | AO19: 1.543121255 | AP19: 1.558956806 | AQ19: 1.574110443 | AR19: 1.588611531 | AS19: 1.60248817 | AT19: 1.61576725 | AU19: 1.628474505 | AV19: 1.640634556 | AW19: 1.65227097 | AX19: 1.663406293 | AY19: 1.674062105 | AZ19: 1.684259055 | BA19: 1.694016901 | BB19: 1.703354553 | BC19: 1.712290105 | BD19: 1.720840873 | BE19: 1.729023425 | BF19: 1.736853619 | BG19: 1.744346628 | BH19: 1.751516971 | BI19: 1.758378543 | BJ19: 1.764944641 | BK19: 1.771227989 | BL19: 1.777240761 | BM19: 1.782994611 | BN19: 1.788500687 | BO19: 1.793769659 | BP19: 1.798811738 | BQ19: 1.803636693 | BR19: 1.808253876 | BS19: 1.812672232 | BT19: 1.816900324 | BU19: 1.820946346
A20: R-All-HVAC-ASHP-All-All-E | B20: Res Air Source HP | C20: 0 | D20: 0.1148391108 | E20: 0.2246519007 | F20: 0.3277939323 | G20: 0.4274292264 | H20: 0.523677279 | I20: 0.6181304248 | J20: 0.709717108 | K20: 0.7991510127 | L20: 0.8844239066 | M20: 0.9666962586 | N20: 1.045411509 | O20: 1.121414789 | P20: 1.193193196 | Q20: 1.262889489 | R20: 1.329742423 | S20: 1.394256187 | T20: 1.455535155 | U20: 1.514414421 | V20: 1.570753291 | W20: 1.624833081 | X20: 1.676119894 | Y20: 1.725478991 | Z20: 1.772508162 | AA20: 1.817623372 | AB20: 1.860537824 | AC20: 1.901880911 | AD20: 1.941274475 | AE20: 1.978971666 | AF20: 2.015045532 | AG20: 2.049565979 | AH20: 2.082599899 | AI20: 2.114211306 | AJ20: 2.144461456 | AK20: 2.173408968 | AL20: 2.201109936 | AM20: 2.22761804 | AN20: 2.252984647 | AO20: 2.277258911 | AP20: 2.300487872 | AQ20: 2.322716544 | AR20: 2.343987999 | AS20: 2.364343459 | AT20: 2.383822368 | AU20: 2.402462472 | AV20: 2.420299893 | AW20: 2.437369195 | AX20: 2.453703455 | AY20: 2.469334326 | AZ20: 2.484292097 | BA20: 2.498605754 | BB20: 2.512303033 | BC20: 2.525410477 | BD20: 2.537953486 | BE20: 2.549956365 | BF20: 2.561442373 | BG20: 2.572433769 | BH20: 2.582951852 | BI20: 2.593017002 | BJ20: 2.602648725 | BK20: 2.611865685 | BL20: 2.620685742 | BM20: 2.629125988 | BN20: 2.637202779 | BO20: 2.644931765 | BP20: 2.652327924 | BQ20: 2.659405588 | BR20: 2.666178472 | BS20: 2.672659701 | BT20: 2.678861834 | BU20: 2.68479689
A21: R-All-HVAC-ERconvertDHP-HZ1-All-N | B21: Res Ductless HP Convert | C21: 0 | D21: 0.07987145798 | E21: 0.1573428473 | F21: 0.2303765565 | G21: 0.3009034979 | H21: 0.3692895036 | I21: 0.4370781347 | J21: 0.5031322994 | K21: 0.568007723 | L21: 0.6298170166 | M21: 0.6895315091 | N21: 0.7467809494 | O21: 0.8021205739 | P21: 0.8542162618 | Q21: 0.9049095712 | R21: 0.9536173129 | S21: 1.000695743 | T21: 1.045393619 | U21: 1.088335039 | V21: 1.12953868 | W21: 1.169036128 | X21: 1.206432784 | Y21: 1.242459343 | Z21: 1.27675119 | AA21: 1.309677982 | AB21: 1.340939281 | AC21: 1.37110833 | AD21: 1.399808929 | AE21: 1.427273616 | AF21: 1.453555614 | AG21: 1.478705851 | AH21: 1.502773063 | AI21: 1.525803889 | AJ21: 1.547842956 | AK21: 1.568932973 | AL21: 1.589114807 | AM21: 1.608427566 | AN21: 1.626908676 | AO21: 1.644593949 | AP21: 1.661517655 | AQ21: 1.677712589 | AR21: 1.693210133 | AS21: 1.708040319 | AT21: 1.722231884 | AU21: 1.73581233 | AV21: 1.748807971 | AW21: 1.761243992 | AX21: 1.77314449 | AY21: 1.784532527 | AZ21: 1.79543017 | BA21: 1.805858536 | BB21: 1.815837834 | BC21: 1.825387401 | BD21: 1.834525743 | BE21: 1.843270567 | BF21: 1.851638821 | BG21: 1.859646719 | BH21: 1.867309779 | BI21: 1.874642851 | BJ21: 1.881660145 | BK21: 1.888375258 | BL21: 1.894801205 | BM21: 1.900950435 | BN21: 1.906834867 | BO21: 1.912465901 | BP21: 1.917854451 | BQ21: 1.923010958 | BR21: 1.927945415 | BS21: 1.932667383 | BT21: 1.937186013 | BU21: 1.94151006
A22: R-All-HVAC-DHP_cool-All-All-N | B22: Res Ductless HP - Cooling | C22: 0 | D22: 0.2808575565 | E22: 0.5400242838 | F22: 0.780273981 | G22: 1.011796752 | H22: 1.234288285 | I22: 1.448801232 | J22: 1.655521987 | K22: 1.854678787 | L22: 2.045356189 | M22: 2.228026084 | N22: 2.402514569 | O22: 2.570214801 | P22: 2.729670121 | Q22: 2.882868578 | R22: 3.029968785 | S22: 3.171219806 | T22: 3.305514365 | U22: 3.434722539 | V22: 3.557642325 | W22: 3.675856349 | X22: 3.788483061 | Y22: 3.896683487 | Z22: 4.000079682 | AA22: 4.099174019 | AB22: 4.193761644 | AC22: 4.284541882 | AD22: 4.371370988 | AE22: 4.45446104 | AF22: 4.533973053 | AG22: 4.610061103 | AH22: 4.682872634 | AI22: 4.752548741 | AJ22: 4.81922444 | AK22: 4.883028938 | AL22: 4.944085873 | AM22: 5.002513563 | AN22: 5.058425227 | AO22: 5.111929212 | AP22: 5.163129198 | AQ22: 5.2121244 | AR22: 5.25900976 | AS22: 5.303876134 | AT22: 5.346810463 | AU22: 5.387895945 | AV22: 5.427212196 | AW22: 5.464835403 | AX22: 5.500838471 | AY22: 5.535291168 | AZ22: 5.568260257 | BA22: 5.599809623 | BB22: 5.630000405 | BC22: 5.658891105 | BD22: 5.686537708 | BE22: 5.712993787 | BF22: 5.738310609 | BG22: 5.762537234 | BH22: 5.785720606 | BI22: 5.807905651 | BJ22: 5.82913536 | BK22: 5.84945087 | BL22: 5.86889155 | BM22: 5.887495072 | BN22: 5.905297485 | BO22: 5.922333287 | BP22: 5.938635489 | BQ22: 5.954235683 | BR22: 5.969164099 | BS22: 5.983449664 | BT22: 5.997120061 | BU22: 6.01020178
A23: R-All-HVAC-Zonal-All-All-E | B23: Res Zonal Ele Heat | C23: 0 | D23: 0.08379323509 | E23: 0.1649813396 | F23: 0.2413517209 | G23: 0.3151533051 | H23: 0.3866506222 | I23: 0.4574881355 | J23: 0.5264526645 | K23: 0.594209372 | L23: 0.6587078769 | M23: 0.7211103364 | N23: 0.7808293179 | O23: 0.8386081338 | P23: 0.8929900108 | Q23: 0.9460322338 | R23: 0.9968945844 | S23: 1.046089465 | T23: 1.092791955 | U23: 1.137645531 | V23: 1.180695654 | W23: 1.22200674 | X23: 1.261066052 | Y23: 1.29870126 | Z23: 1.334510493 | AA23: 1.368890731 | AB23: 1.401540073 | AC23: 1.433044335 | AD23: 1.463019873 | AE23: 1.491704599 | AF23: 1.519154097 | AG23: 1.54542156 | AH23: 1.570557887 | AI23: 1.59461179 | AJ23: 1.617629878 | AK23: 1.639656756 | AL23: 1.660735109 | AM23: 1.680905782 | AN23: 1.70020786 | AO23: 1.718678749 | AP23: 1.736354241 | AQ23: 1.753268587 | AR23: 1.769454565 | AS23: 1.784943538 | AT23: 1.799765522 | AU23: 1.813949239 | AV23: 1.827522174 | AW23: 1.840510628 | AX23: 1.852939771 | AY23: 1.864833688 | AZ23: 1.876215426 | BA23: 1.887107042 | BB23: 1.897529641 | BC23: 1.90750342 | BD23: 1.917047705 | BE23: 1.926180993 | BF23: 1.934920982 | BG23: 1.943284607 | BH23: 1.951288076 | BI23: 1.958946899 | BJ23: 1.966275915 | BK23: 1.973289328 | BL23: 1.980000728 | BM23: 1.98642312 | BN23: 1.99256895 | BO23: 1.998450127 | BP23: 2.004078047 | BQ23: 2.009463617 | BR23: 2.014617273 | BS23: 2.019549 | BT23: 2.024268357 | BU23: 2.028784487
A24: R-All-HVAC-ER-All-All-E | B24: Res Ele Resistance Heat | C24: 0 | D24: 0.09268525505 | E24: 0.1822188463 | F24: 0.2664732056 | G24: 0.347872362 | H24: 0.426692663 | I24: 0.5045439124 | J24: 0.5802218572 | K24: 0.6544597389 | L24: 0.7251484691 | M24: 0.7934320518 | N24: 0.8588038772 | O24: 0.9219845797 | P24: 0.9815921568 | Q24: 1.03962791 | R24: 1.095273221 | S24: 1.149036742 | T24: 1.200123396 | U24: 1.249167321 | V24: 1.296212983 | W24: 1.341361241 | X24: 1.384089198 | Y24: 1.425226234 | Z24: 1.464382079 | AA24: 1.501976713 | AB24: 1.537682654 | AC24: 1.572128872 | AD24: 1.604906922 | AE24: 1.636273477 | AF24: 1.666289319 | AG24: 1.695012612 | AH24: 1.722499018 | AI24: 1.748801798 | AJ24: 1.773971923 | AK24: 1.798058166 | AL24: 1.821107203 | AM24: 1.843163698 | AN24: 1.864270392 | AO24: 1.884468185 | AP24: 1.903796216 | AQ24: 1.92229194 | AR24: 1.939991197 | AS24: 1.956928286 | AT24: 1.973136026 | AU24: 1.988645825 | AV24: 2.003487738 | AW24: 2.017690525 | AX24: 2.03128171 | AY24: 2.044287628 | AZ24: 2.056733482 | BA24: 2.068643391 | BB24: 2.080040432 | BC24: 2.090946693 | BD24: 2.101383305 | BE24: 2.111370494 | BF24: 2.120927613 | BG24: 2.130073181 | BH24: 2.13882492 | BI24: 2.147199791 | BJ24: 2.155214021 | BK24: 2.162883141 | BL24: 2.170222012 | BM24: 2.177244855 | BN24: 2.183965278 | BO24: 2.190396306 | BP24: 2.196550399 | BQ24: 2.202439483 | BR24: 2.208074971 | BS24: 2.213467782 | BT24: 2.218628367 | BU24: 2.223566725
A25: R-All-Lgt-Lighting-All-All-R | B25: Res Lighting | C25: 0 | D25: 0.08591843612 | E25: 0.1669412922 | F25: 0.2423197084 | G25: 0.3152826624 | H25: 0.3860729663 | I25: 0.4558842711 | J25: 0.5237769722 | K25: 0.5902903666 | L25: 0.6539010485 | M25: 0.7149570157 | N25: 0.7735804376 | O25: 0.8300519515 | P25: 0.8833578106 | Q25: 0.9349784481 | R25: 0.9847863429 | S25: 1.032759091 | T25: 1.078337242 | U25: 1.122200574 | V25: 1.164036748 | W25: 1.20425592 | X25: 1.242434125 | Y25: 1.279211821 | Z25: 1.314260169 | AA25: 1.347913859 | AB25: 1.379882086 | AC25: 1.410741446 | AD25: 1.440113421 | AE25: 1.468220574 | AF25: 1.495117372 | AG25: 1.520855934 | AH25: 1.545486137 | AI25: 1.569055709 | AJ25: 1.591610323 | AK25: 1.613193686 | AL25: 1.633847622 | AM25: 1.653612154 | AN25: 1.672525582 | AO25: 1.690624556 | AP25: 1.707944148 | AQ25: 1.724517921 | AR25: 1.740377991 | AS25: 1.75555509 | AT25: 1.770078631 | AU25: 1.783976756 | AV25: 1.797276397 | AW25: 1.810003327 | AX25: 1.822182206 | AY25: 1.833836637 | AZ25: 1.844989202 | BA25: 1.855661513 | BB25: 1.86587425 | BC25: 1.875647205 | BD25: 1.884999315 | BE25: 1.893948702 | BF25: 1.902512709 | BG25: 1.910707931 | BH25: 1.918550249 | BI25: 1.92605486 | BJ25: 1.933236305 | BK25: 1.940108501 | BL25: 1.946684766 | BM25: 1.952977842 | BN25: 1.958999924 | BO25: 1.964762683 | BP25: 1.970277284 | BQ25: 1.975554414 | BR25: 1.9806043 | BS25: 1.985436726 | BT25: 1.990061058 | BU25: 1.994486255
A26: Residential-res-Other | B26: Res Other | C26: 0 | D26: 0.08270845583 | E26: 0.1602151173 | F26: 0.2320715366 | G26: 0.301623793 | H26: 0.3691171547 | I26: 0.4356735678 | J26: 0.500461543 | K26: 0.5638800699 | L26: 0.6246088729 | M26: 0.6828309444 | N26: 0.7387497296 | O26: 0.7925816361 | P26: 0.8433472331 | Q26: 0.8924624914 | R26: 0.93994406 | S26: 0.9856332357 | T26: 1.029027229 | U26: 1.070812574 | V26: 1.110642686 | W26: 1.148927883 | X26: 1.185312043 | Y26: 1.220367342 | Z26: 1.253788744 | AA26: 1.285875548 | AB26: 1.316372994 | AC26: 1.345802141 | AD26: 1.373829072 | AE26: 1.400649102 | AF26: 1.426314203 | AG26: 1.450874107 | AH26: 1.474376409 | AI26: 1.496866649 | AJ26: 1.51838841 | AK26: 1.538983397 | AL26: 1.558691518 | AM26: 1.577550964 | AN26: 1.595598281 | AO26: 1.612868441 | AP26: 1.62939491 | AQ26: 1.645209713 | AR26: 1.660343495 | AS26: 1.674825583 | AT26: 1.688684041 | AU26: 1.701945723 | AV26: 1.714636328 | AW26: 1.726780448 | AX26: 1.738401615 | AY26: 1.749522348 | AZ26: 1.760164199 | BA26: 1.770347788 | BB26: 1.78009285 | BC26: 1.789418267 | BD26: 1.798342112 | BE26: 1.806881676 | BF26: 1.815053508 | BG26: 1.822873443 | BH26: 1.830356634 | BI26: 1.837517582 | BJ26: 1.844370164 | BK26: 1.850927659 | BL26: 1.857202774 | BM26: 1.863207669 | BN26: 1.868953979 | BO26: 1.874452841 | BP26: 1.87971491 | BQ26: 1.884750382 | BR26: 1.889569016 | BS26: 1.894180149 | BT26: 1.898592716 | BU26: 1.902815269
A27: R-All-Bld-Bldg-All-All-R | B27: Res Whole Home | C27: 0 | D27: 0.08666843472 | E27: 0.168406703 | F27: 0.2443670865 | G27: 0.3178521227 | H27: 0.3891029804 | I27: 0.4593840838 | J27: 0.5277737347 | K27: 0.5947627159 | L27: 0.6587853602 | M27: 0.7203320742 | N27: 0.7793799784 | O27: 0.8363220441 | P27: 0.8900269273 | Q27: 0.9420686133 | R27: 0.9922580649 | S27: 1.040621853 | T27: 1.086539597 | U27: 1.130720545 | V27: 1.172895889 | W27: 1.21343046 | X27: 1.25188902 | Y27: 1.288947079 | Z27: 1.324252588 | AA27: 1.358160657 | AB27: 1.390372534 | AC27: 1.421454311 | AD27: 1.451046742 | AE27: 1.479364858 | AF27: 1.506463534 | AG27: 1.532395281 | AH27: 1.55721035 | AI27: 1.580956827 | AJ27: 1.603680729 | AK27: 1.62542609 | AL27: 1.646235047 | AM27: 1.666147925 | AN27: 1.685203311 | AO27: 1.70343813 | AP27: 1.720887717 | AQ27: 1.737585887 | AR27: 1.753564997 | AS27: 1.768856011 | AT27: 1.783488561 | AU27: 1.797491 | AV27: 1.810890464 | AW27: 1.823712917 | AX27: 1.835983208 | AY27: 1.847725112 | AZ27: 1.858961385 | BA27: 1.869713798 | BB27: 1.88000319 | BC27: 1.889849497 | BD27: 1.899271801 | BE27: 1.908288359 | BF27: 1.916916645 | BG27: 1.925173378 | BH27: 1.933074557 | BI27: 1.940635495 | BJ27: 1.947870841 | BK27: 1.954794618 | BL27: 1.961420242 | BM27: 1.967760552 | BN27: 1.973827834 | BO27: 1.979633846 | BP27: 1.985189838 | BQ27: 1.990506576 | BR27: 1.995594365 | BS27: 2.000463062 | BT27: 2.005122102 | BU27: 2.009580513
A28: Residential-Spa Heater | B28: Res Spa Cover | C28: 0 | D28: 0.1106119825 | E28: 0.213682742 | F28: 0.3096071503 | G28: 0.4025275195 | H28: 0.4926139541 | I28: 0.5806367038 | J28: 0.6662002523 | K28: 0.7495385547 | L28: 0.8294010381 | M28: 0.9056142024 | N28: 0.9788829497 | O28: 1.049216985 | P28: 1.115966058 | Q28: 1.180252012 | R28: 1.242373137 | S28: 1.30200859 | T28: 1.358653502 | U28: 1.413182526 | V28: 1.46520362 | W28: 1.514989639 | X28: 1.562647926 | Y28: 1.608353133 | Z28: 1.652031756 | AA28: 1.69391631 | AB28: 1.733775601 | AC28: 1.772180859 | AD28: 1.808828404 | AE28: 1.843897824 | AF28: 1.877457079 | AG28: 1.909571198 | AH28: 1.940302412 | AI28: 1.969710273 | AJ28: 1.997851766 | AK28: 2.024781425 | AL28: 2.050551433 | AM28: 2.075211728 | AN28: 2.098810097 | AO28: 2.121392268 | AP28: 2.143002 | AQ28: 2.163681171 | AR28: 2.18346985 | AS28: 2.202406386 | AT28: 2.220527472 | AU28: 2.237868225 | AV28: 2.254462247 | AW28: 2.270341694 | AX28: 2.285537336 | AY28: 2.300078621 | AZ28: 2.313993726 | BA28: 2.327309616 | BB28: 2.340052095 | BC28: 2.352245854 | BD28: 2.363914524 | BE28: 2.375080714 | BF28: 2.385766064 | BG28: 2.39599128 | BH28: 2.405776175 | BI28: 2.415139711 | BJ28: 2.424100032 | BK28: 2.432674502 | BL28: 2.440879737 | BM28: 2.448731636 | BN28: 2.456245415 | BO28: 2.463435635 | BP28: 2.470316227 | BQ28: 2.476900527 | BR28: 2.483201291 | BS28: 2.489230731 | BT28: 2.49500053 | BU28: 2.500521869
A29: Residential-Res-TV | B29: Res Power Strip | C29: 0 | D29: 0.09072686871 | E29: 0.1760266781 | F29: 0.2553727365 | G29: 0.3320435886 | H29: 0.4063405895 | I29: 0.4794157092 | J29: 0.5504525053 | K29: 0.6198442809 | L29: 0.6862840537 | M29: 0.7499801125 | N29: 0.8111344229 | O29: 0.8699806596 | P29: 0.9255488454 | Q29: 0.9792520285 | R29: 1.031115976 | S29: 1.080992709 | T29: 1.128391834 | U29: 1.174002993 | V29: 1.217519811 | W29: 1.259318479 | X29: 1.299062943 | Y29: 1.337328671 | Z29: 1.373818798 | AA29: 1.408854473 | AB29: 1.442168224 | AC29: 1.474286301 | AD29: 1.504886204 | AE29: 1.534168407 | AF29: 1.562189655 | AG29: 1.589004246 | AH29: 1.614664141 | AI29: 1.639219065 | AJ29: 1.6627166 | AK29: 1.685202279 | AL29: 1.706719676 | AM29: 1.727310486 | AN29: 1.74701461 | AO29: 1.765870231 | AP29: 1.783913888 | AQ29: 1.801180546 | AR29: 1.817703663 | AS29: 1.833515258 | AT29: 1.848645971 | AU29: 1.863125122 | AV29: 1.87698077 | AW29: 1.890239762 | AX29: 1.902927793 | AY29: 1.91506945 | AZ29: 1.92668826 | BA29: 1.937806739 | BB29: 1.948446431 | BC29: 1.958627955 | BD29: 1.96837104 | BE29: 1.977694566 | BF29: 1.986616601 | BG29: 1.995154434 | BH29: 2.003324608 | BI29: 2.011142957 | BJ29: 2.01862463 | BK29: 2.025784126 | BL29: 2.032635319 | BM29: 2.039191484 | BN29: 2.045465326 | BO29: 2.051469003 | BP29: 2.057214148 | BQ29: 2.062711895 | BR29: 2.067972896 | BS29: 2.073007347 | BT29: 2.077825004 | BU29: 2.082435202
A30: Res-Conditioning-Synthetic-ETO | B30: Res Space Conditioning | C30: 0 | D30: 0.2133048725 | E30: 0.4131891666 | F30: 0.599849273 | G30: 0.779662474 | H30: 0.9526664868 | I30: 1.120260425 | J30: 1.281959657 | K30: 1.43829495 | L30: 1.587772401 | M30: 1.73118331 | N30: 1.868244699 | O30: 2.000071657 | P30: 2.125356912 | Q30: 2.246069224 | R30: 2.361838081 | S30: 2.473105006 | T30: 2.578983536 | U30: 2.680719965 | V30: 2.777849622 | W30: 2.871112537 | X30: 2.959867977 | Y30: 3.045098775 | Z30: 3.126482411 | AA30: 3.204519891 | AB30: 3.278942829 | AC30: 3.350430704 | AD30: 3.418712489 | AE30: 3.48405391 | AF30: 3.546581585 | AG30: 3.606416682 | AH30: 3.663675147 | AI30: 3.718467937 | AJ30: 3.770901228 | AK30: 3.821076627 | AL30: 3.869091363 | AM30: 3.915038478 | AN30: 3.95900701 | AO30: 4.001082159 | AP30: 4.04134546 | AQ30: 4.079874935 | AR30: 4.116745246 | AS30: 4.15202784 | AT30: 4.185791088 | AU30: 4.218100416 | AV30: 4.249018434 | AW30: 4.278605053 | AX30: 4.306917608 | AY30: 4.334010961 | AZ30: 4.359937616 | BA30: 4.384747811 | BB30: 4.408489625 | BC30: 4.431209064 | BD30: 4.452950154 | BE30: 4.473755025 | BF30: 4.493663992 | BG30: 4.512715635 | BH30: 4.530946873 | BI30: 4.548393033 | BJ30: 4.565087924 | BK30: 4.581063895 | BL30: 4.596351906 | BM30: 4.610981582 | BN30: 4.624981272 | BO30: 4.638378104 | BP30: 4.651198039 | BQ30: 4.66346592 | BR30: 4.675205518 | BS30: 4.686439584 | BT30: 4.697189886 | BU30: 4.707477256
A31: R-All-Plug-EVSEStandbySave-All-All-U | B31: Res EV Standby Mode | C31: 0 | D31: 0.04950468035 | E31: 0.0981125618 | F31: 0.1505221098 | G31: 0.2035477987 | H31: 0.2571016649 | I31: 0.3097268132 | J31: 0.3637656471 | K31: 0.4173798226 | L31: 0.4705524809 | M31: 0.5213873111 | N31: 0.5704390741 | O31: 0.6173467589 | P31: 0.6632378327 | Q31: 0.7073550781 | R31: 0.750721898 | S31: 0.7928153268 | T31: 0.8341957756 | U31: 0.8749406322 | V31: 0.9141985479 | W31: 0.951611391 | X31: 0.9875618403 | Y31: 1.021716612 | Z31: 1.054629178 | AA31: 1.086014474 | AB31: 1.116130769 | AC31: 1.144788829 | AD31: 1.172431651 | AE31: 1.19874235 | AF31: 1.222739313 | AG31: 1.245702913 | AH31: 1.267677651 | AI31: 1.288706108 | AJ31: 1.308829033 | AK31: 1.328085421 | AL31: 1.346512586 | AM31: 1.364146237 | AN31: 1.381020544 | AO31: 1.397168207 | AP31: 1.412620515 | AQ31: 1.427407413 | AR31: 1.441557555 | AS31: 1.45509836 | AT31: 1.468056069 | AU31: 1.48045579 | AV31: 1.492321552 | AW31: 1.503676348 | AX31: 1.514542182 | AY31: 1.524940108 | AZ31: 1.534890278 | BA31: 1.544411971 | BB31: 1.553523639 | BC31: 1.562242938 | BD31: 1.570586765 | BE31: 1.578571289 | BF31: 1.586211982 | BG31: 1.593523649 | BH31: 1.60052046 | BI31: 1.607215973 | BJ31: 1.613623162 | BK31: 1.619754444 | BL31: 1.625621699 | BM31: 1.631236298 | BN31: 1.636609119 | BO31: 1.641750575 | BP31: 1.646670628 | BQ31: 1.651378813 | BR31: 1.655884254 | BS31: 1.66019568 | BT31: 1.664321446 | BU31: 1.668269548
A32: R-All-Plug-EVSEChargeSave-All-All-U | B32: Res EV Charging Mode | C32: 0 | D32: 0.0706494686 | E32: 0.1395653054 | F32: 0.2115715337 | G32: 0.2833717795 | H32: 0.3551299019 | I32: 0.4252106532 | J32: 0.4961325645 | K32: 0.5658288632 | L32: 0.6344778557 | M32: 0.7000375122 | N32: 0.7631070352 | O32: 0.823392626 | P32: 0.8820799229 | Q32: 0.9384932154 | R32: 0.9936220024 | S32: 1.046967255 | T32: 1.099084816 | U32: 1.150104853 | V32: 1.19917816 | W32: 1.245984626 | X32: 1.290931401 | Y32: 1.333705986 | Z32: 1.374856475 | AA32: 1.414122436 | AB32: 1.451799535 | AC32: 1.487663896 | AD32: 1.52220655 | AE32: 1.555138191 | AF32: 1.585096161 | AG32: 1.613764075 | AH32: 1.641197486 | AI32: 1.667449553 | AJ32: 1.692571149 | AK32: 1.716610953 | AL32: 1.739615551 | AM32: 1.76162952 | AN32: 1.782695519 | AO32: 1.80285437 | AP32: 1.822145136 | AQ32: 1.840605199 | AR32: 1.858270332 | AS32: 1.875174765 | AT32: 1.891351256 | AU32: 1.906831151 | AV32: 1.921644449 | AW32: 1.935819853 | AX32: 1.949384833 | AY32: 1.962365675 | AZ32: 1.974787533 | BA32: 1.986674479 | BB32: 1.998049547 | BC32: 2.008934779 | BD32: 2.019351269 | BE32: 2.029319203 | BF32: 2.038857895 | BG32: 2.04798583 | BH32: 2.056720696 | BI32: 2.065079419 | BJ32: 2.073078198 | BK32: 2.080732531 | BL32: 2.088057252 | BM32: 2.095066555 | BN32: 2.101774021 | BO32: 2.10819265 | BP32: 2.114334877 | BQ32: 2.120212608 | BR32: 2.12583723 | BS32: 2.131219643 | BT32: 2.136370278 | BU32: 2.141299115
A33: A-Irr-Irr-Irrigation-All-All-E | B33: Ag-Irrigation | C33: 0 | D33: 0.09001911881 | E33: 0.1711376171 | F33: 0.2454796632 | G33: 0.3174319162 | H33: 0.387313169 | I33: 0.4554285385 | J33: 0.5215904609 | K33: 0.5857570908 | L33: 0.6477592824 | M33: 0.7064948735 | N33: 0.7632275044 | O33: 0.8174295659 | P33: 0.8687590678 | Q33: 0.9176283036 | R33: 0.9655401109 | S33: 1.011203702 | T33: 1.054709094 | U33: 1.09663191 | V33: 1.136222345 | W33: 1.174300186 | X33: 1.210898362 | Y33: 1.246125903 | Z33: 1.279853423 | AA33: 1.312157568 | AB33: 1.342983224 | AC33: 1.372688648 | AD33: 1.401052135 | AE33: 1.428194228 | AF33: 1.454167522 | AG33: 1.479022349 | AH33: 1.502806873 | AI33: 1.525567182 | AJ33: 1.547347383 | AK33: 1.56818968 | AL33: 1.588134462 | AM33: 1.607220378 | AN33: 1.625484412 | AO33: 1.642961957 | AP33: 1.65968688 | AQ33: 1.675691591 | AR33: 1.691007105 | AS33: 1.705663098 | AT33: 1.719687972 | AU33: 1.733108904 | AV33: 1.745951902 | AW33: 1.758241851 | AX33: 1.770002568 | AY33: 1.781256843 | AZ33: 1.792026484 | BA33: 1.802332361 | BB33: 1.812194444 | BC33: 1.821631844 | BD33: 1.830662848 | BE33: 1.839304958 | BF33: 1.847574919 | BG33: 1.855488758 | BH33: 1.86306181 | BI33: 1.870308749 | BJ33: 1.877243619 | BK33: 1.883879858 | BL33: 1.890230326 | BM33: 1.896307329 | BN33: 1.902122643 | BO33: 1.907687537 | BP33: 1.913012794 | BQ33: 1.918108734 | BR33: 1.922985231 | BS33: 1.927651736 | BT33: 1.932117291 | BU33: 1.936390549
A34: DSI-0 | B34: Flat - ele | C34: 0 | D34: 0.07237007371 | E34: 0.1402078671 | F34: 0.2030598712 | G34: 0.2639670242 | H34: 0.323155445 | I34: 0.3816744141 | J34: 0.438751584 | K34: 0.4947098972 | L34: 0.5483407289 | M34: 0.5997517484 | N34: 0.6491684563 | O34: 0.6967759711 | P34: 0.7415879768 | Q34: 0.7849705093 | R34: 0.8269796201 | S34: 0.8674057759 | T34: 0.9057664864 | U34: 0.9427512069 | V34: 0.9779844957 | W34: 1.011863223 | X34: 1.044036586 | Y34: 1.075061363 | Z34: 1.104635228 | AA34: 1.133029655 | AB34: 1.160021014 | AC34: 1.186079698 | AD34: 1.210876926 | AE34: 1.234606332 | AF34: 1.257313897 | AG34: 1.279043624 | AH34: 1.299837621 | AI34: 1.319736183 | AJ34: 1.338777869 | AK34: 1.356999579 | AL34: 1.374436621 | AM34: 1.391122786 | AN34: 1.407090408 | AO34: 1.422370429 | AP34: 1.436992458 | AQ34: 1.450984831 | AR34: 1.464374662 | AS34: 1.477187897 | AT34: 1.489449365 | AU34: 1.501182828 | AV34: 1.512411023 | AW34: 1.523155706 | AX34: 1.5334377 | AY34: 1.543276928 | AZ34: 1.552692458 | BA34: 1.561702534 | BB34: 1.570324617 | BC34: 1.578575413 | BD34: 1.586470913 | BE34: 1.594026414 | BF34: 1.601256559 | BG34: 1.608175358 | BH34: 1.614796219 | BI34: 1.62113197 | BJ34: 1.627194891 | BK34: 1.632996728 | BL34: 1.638548726 | BM34: 1.643861642 | BN34: 1.648945773 | BO34: 1.653810969 | BP34: 1.65846666 | BQ34: 1.662921866 | BR34: 1.667185221 | BS34: 1.671264987 | BT34: 1.675169069 | BU34: 1.678905033
A35: IndShift1 | B35: 1-Shift Industrial | C35: 0 | D35: 0.07837954581 | E35: 0.1511521891 | F35: 0.218024269 | G35: 0.2827414301 | H35: 0.3456282496 | I35: 0.4076973138 | J35: 0.4681821252 | K35: 0.5274420533 | L35: 0.5841907535 | M35: 0.6385065392 | N35: 0.6906496773 | O35: 0.7407994988 | P35: 0.7881414558 | Q35: 0.8339247917 | R35: 0.878191535 | S35: 0.9207949172 | T35: 0.9612627365 | U35: 1.000223732 | V35: 1.037357485 | W35: 1.073063332 | X35: 1.107000979 | Y35: 1.139695023 | Z35: 1.170862803 | AA35: 1.200815066 | AB35: 1.229247525 | AC35: 1.256692091 | AD35: 1.282847176 | AE35: 1.307875966 | AF35: 1.331826961 | AG35: 1.354746573 | AH35: 1.376679216 | AI35: 1.397667392 | AJ35: 1.41775177 | AK35: 1.436971271 | AL35: 1.455363138 | AM35: 1.47296301 | AN35: 1.489804994 | AO35: 1.505921724 | AP35: 1.521344433 | AQ35: 1.536103006 | AR35: 1.550226042 | AS35: 1.563740909 | AT35: 1.576673796 | AU35: 1.589049765 | AV35: 1.600892797 | AW35: 1.612225842 | AX35: 1.623070861 | AY35: 1.63344887 | AZ35: 1.643379979 | BA35: 1.652883433 | BB35: 1.661977647 | BC35: 1.670680244 | BD35: 1.679008088 | BE35: 1.686977317 | BF35: 1.694603373 | BG35: 1.701901035 | BH35: 1.708884443 | BI35: 1.71556713 | BJ35: 1.721962046 | BK35: 1.728081583 | BL35: 1.733937599 | BM35: 1.739541442 | BN35: 1.744903971 | BO35: 1.750035578 | BP35: 1.754946207 | BQ35: 1.759645373 | BR35: 1.764142183 | BS35: 1.768445351 | BT35: 1.772563214 | BU35: 1.776503753
A36: IndShift2 | B36: 2-Shift Industrial | C36: 0 | D36: 0.0774628267 | E36: 0.1494488105 | F36: 0.2156445669 | G36: 0.2797167036 | H36: 0.3419810979 | I36: 0.4034522471 | J36: 0.4633634562 | K36: 0.5220695865 | L36: 0.5782933278 | M36: 0.6321144785 | N36: 0.6837898287 | O36: 0.7334986414 | P36: 0.7804091019 | Q36: 0.8257810269 | R36: 0.8696577245 | S36: 0.9118861043 | T36: 0.9519933307 | U36: 0.9906132071 | V36: 1.027419714 | W36: 1.062811641 | X36: 1.09644693 | Y36: 1.128853439 | Z36: 1.159746547 | AA36: 1.189432507 | AB36: 1.217615695 | AC36: 1.244820955 | AD36: 1.270743415 | AE36: 1.295549597 | AF36: 1.31928757 | AG36: 1.342003334 | AH36: 1.363740907 | AI36: 1.384542412 | AJ36: 1.404448159 | AK36: 1.42349672 | AL36: 1.441725009 | AM36: 1.459168347 | AN36: 1.475860536 | AO36: 1.491833924 | AP36: 1.507119462 | AQ36: 1.521746771 | AR36: 1.535744196 | AS36: 1.549138861 | AT36: 1.561956722 | AU36: 1.574222618 | AV36: 1.585960318 | AW36: 1.597192566 | AX36: 1.607941129 | AY36: 1.618226835 | AZ36: 1.628069616 | BA36: 1.637488545 | BB36: 1.646501875 | BC36: 1.655127071 | BD36: 1.663380846 | BE36: 1.671279196 | BF36: 1.678837426 | BG36: 1.686070181 | BH36: 1.692991479 | BI36: 1.69961473 | BJ36: 1.705952769 | BK36: 1.712017878 | BL36: 1.71782181 | BM36: 1.723375813 | BN36: 1.728690647 | BO36: 1.733776614 | BP36: 1.738643567 | BQ36: 1.743300938 | BR36: 1.747757753 | BS36: 1.752022648 | BT36: 1.756103887 | BU36: 1.760009379
A37: IndShift3 | B37: 3-Shift Industrial | C37: 0 | D37: 0.07565181858 | E37: 0.146252813 | F37: 0.2114208763 | G37: 0.2745215346 | H37: 0.3358342113 | I37: 0.3963892024 | J37: 0.4554199345 | K37: 0.5132655718 | L37: 0.5686831925 | M37: 0.6217651152 | N37: 0.6727557611 | O37: 0.7218364003 | P37: 0.7681051133 | Q37: 0.8128722376 | R37: 0.8561849659 | S37: 0.89786698 | T37: 0.9374406251 | U37: 0.9755674749 | V37: 1.011897998 | W37: 1.046831857 | X37: 1.080021832 | Y37: 1.112009978 | Z37: 1.142503878 | AA37: 1.171795219 | AB37: 1.199621296 | AC37: 1.226481507 | AD37: 1.252060584 | AE37: 1.276538169 | AF37: 1.299961696 | AG37: 1.322376554 | AH37: 1.34382618 | AI37: 1.364352137 | AJ37: 1.383994201 | AK37: 1.402790435 | AL37: 1.420777261 | AM37: 1.437989535 | AN37: 1.454460611 | AO37: 1.470222406 | AP37: 1.485305463 | AQ37: 1.499739011 | AR37: 1.513551018 | AS37: 1.52676825 | AT37: 1.539416319 | AU37: 1.551519734 | AV37: 1.56310195 | AW37: 1.57418541 | AX37: 1.584791591 | AY37: 1.594941047 | AZ37: 1.604653446 | BA37: 1.613947606 | BB37: 1.62284154 | BC37: 1.631352482 | BD37: 1.639496924 | BE37: 1.647290648 | BF37: 1.654748757 | BG37: 1.661885703 | BH37: 1.668715317 | BI37: 1.675250833 | BJ37: 1.681504915 | BK37: 1.687489683 | BL37: 1.693216733 | BM37: 1.698697164 | BN37: 1.703941595 | BO37: 1.70896019 | BP37: 1.713762673 | BQ37: 1.71835835 | BR37: 1.722756128 | BS37: 1.726964527 | BT37: 1.730991704 | BU37: 1.734845461
A38: Commercial-Ref.warehouse-Refrig | B38: Cold Storage | C38: 0 | D38: 0.07581951154 | E38: 0.1461779792 | F38: 0.2109639866 | G38: 0.2738250657 | H38: 0.3348959976 | I38: 0.3951696268 | J38: 0.4539259661 | K38: 0.5114902811 | L38: 0.5666868906 | M38: 0.6195542398 | N38: 0.6703432403 | O38: 0.7192707681 | P38: 0.7653456545 | Q38: 0.8099195183 | R38: 0.853097339 | S38: 0.8946353811 | T38: 0.9340261158 | U38: 0.972041254 | V38: 1.008184833 | W38: 1.042980808 | X38: 1.076019673 | Y38: 1.107890139 | Z38: 1.138273184 | AA38: 1.167447598 | AB38: 1.195180007 | AC38: 1.221954326 | AD38: 1.247438884 | AE38: 1.27182602 | AF38: 1.295162992 | AG38: 1.317495023 | AH38: 1.338865388 | AI38: 1.359315497 | AJ38: 1.37888498 | AK38: 1.397611758 | AL38: 1.41553212 | AM38: 1.432680791 | AN38: 1.449091003 | AO38: 1.464794555 | AP38: 1.479821877 | AQ38: 1.49420209 | AR38: 1.50796306 | AS38: 1.521131451 | AT38: 1.533732783 | AU38: 1.545791474 | AV38: 1.557330891 | AW38: 1.568373395 | AX38: 1.578940385 | AY38: 1.589052336 | AZ38: 1.598728845 | BA38: 1.607988663 | BB38: 1.616849732 | BC38: 1.625329224 | BD38: 1.63344357 | BE38: 1.641208495 | BF38: 1.648639045 | BG38: 1.655749619 | BH38: 1.662553996 | BI38: 1.669065362 | BJ38: 1.675296334 | BK38: 1.681258986 | BL38: 1.686964874 | BM38: 1.692425054 | BN38: 1.697650106 | BO38: 1.702650156 | BP38: 1.707434893 | BQ38: 1.712013588 | BR38: 1.716395115 | BS38: 1.720587964 | BT38: 1.724600259 | BU38: 1.728439776
A39: SIC 20-IND_SIC 20 | B39: Food Products | C39: 0 | D39: 0.07503243021 | E39: 0.1450361743 | F39: 0.209785157 | G39: 0.2726071296 | H39: 0.333646362 | I39: 0.3939263546 | J39: 0.4526476396 | K39: 0.5102158129 | L39: 0.5653963291 | M39: 0.6182735387 | N39: 0.6690935481 | O39: 0.7180444069 | P39: 0.7641177497 | Q39: 0.8087338881 | R39: 0.8519334529 | S39: 0.8935059269 | T39: 0.9329531374 | U39: 0.9710124795 | V39: 1.007192159 | W39: 1.042026427 | X39: 1.07509562 | Y39: 1.106992222 | Z39: 1.137397178 | AA39: 1.166587594 | AB39: 1.194326894 | AC39: 1.22111742 | AD39: 1.246607676 | AE39: 1.271000265 | AF39: 1.294342456 | AG39: 1.316679481 | AH39: 1.338054624 | AI39: 1.358509307 | AJ39: 1.378083166 | AK39: 1.396814131 | AL39: 1.4147385 | AM39: 1.431891006 | AN39: 1.448304887 | AO39: 1.464011951 | AP39: 1.479042634 | AQ39: 1.493426062 | AR39: 1.507190109 | AS39: 1.520361445 | AT39: 1.532965595 | AU39: 1.545026982 | AV39: 1.556568979 | AW39: 1.567613953 | AX39: 1.578183305 | AY39: 1.588297518 | AZ39: 1.597976191 | BA39: 1.607238079 | BB39: 1.616101129 | BC39: 1.624582518 | BD39: 1.632698678 | BE39: 1.640465339 | BF39: 1.647897551 | BG39: 1.655009715 | BH39: 1.661815614 | BI39: 1.668328436 | BJ39: 1.674560801 | BK39: 1.680524787 | BL39: 1.68623195 | BM39: 1.691693351 | BN39: 1.696919572 | BO39: 1.70192074 | BP39: 1.706706546 | BQ39: 1.711286266 | BR39: 1.715668772 | BS39: 1.719862559 | BT39: 1.723875751 | BU39: 1.727716127
A40: SIC 24-IND_SIC 24 | B40: Wood Products | C40: 0 | D40: 0.07433826851 | E40: 0.1440932955 | F40: 0.2087254269 | G40: 0.2713105548 | H40: 0.3321050254 | I40: 0.3921932094 | J40: 0.4507658743 | K40: 0.5081867654 | L40: 0.563189257 | M40: 0.6159261168 | N40: 0.6665949869 | O40: 0.7153976119 | P40: 0.7613683368 | Q40: 0.8058832594 | R40: 0.8489396416 | S40: 0.8903823906 | T40: 0.9297209844 | U40: 0.9676252419 | V40: 1.003758343 | W40: 1.03849886 | X40: 1.071486622 | Y40: 1.103283003 | Z40: 1.133587438 | AA40: 1.162693724 | AB40: 1.190351538 | AC40: 1.217051673 | AD40: 1.242462258 | AE40: 1.266778608 | AF40: 1.290047842 | AG40: 1.312315051 | AH40: 1.333623386 | AI40: 1.354014137 | AJ40: 1.373526817 | AK40: 1.392199238 | AL40: 1.410067584 | AM40: 1.427166479 | AN40: 1.443529058 | AO40: 1.459187029 | AP40: 1.474170733 | AQ40: 1.488509206 | AR40: 1.502230232 | AS40: 1.515360401 | AT40: 1.527925156 | AU40: 1.539948845 | AV40: 1.551454767 | AW40: 1.562465219 | AX40: 1.573001537 | AY40: 1.583084138 | AZ40: 1.59273256 | BA40: 1.601965499 | BB40: 1.610800848 | BC40: 1.619255727 | BD40: 1.627346521 | BE40: 1.635088907 | BF40: 1.642497889 | BG40: 1.649587824 | BH40: 1.65637245 | BI40: 1.662864916 | BJ40: 1.669077802 | BK40: 1.675023147 | BL40: 1.680712473 | BM40: 1.686156804 | BN40: 1.69136669 | BO40: 1.696352226 | BP40: 1.701123075 | BQ40: 1.70568848 | BR40: 1.710057289 | BS40: 1.714237968 | BT40: 1.718238617 | BU40: 1.722066989
A41: SIC 26-IND_SIC 26 | B41: Pulp & Paper | C41: 0 | D41: 0.07439782606 | E41: 0.1440166491 | F41: 0.2084647259 | G41: 0.2708891162 | H41: 0.3315078312 | I41: 0.3913838101 | J41: 0.4497589304 | K41: 0.506937162 | L41: 0.5617532417 | M41: 0.6142868685 | N41: 0.6647760169 | O41: 0.7134136159 | P41: 0.759211219 | Q41: 0.8035181105 | R41: 0.846420006 | S41: 0.8876841196 | T41: 0.9268337013 | U41: 0.9645845428 | V41: 1.00054499 | W41: 1.035129752 | X41: 1.067972339 | Y41: 1.099638808 | Z41: 1.129825039 | AA41: 1.15881399 | AB41: 1.186378526 | AC41: 1.212981356 | AD41: 1.238296865 | AE41: 1.262522232 | AF41: 1.285704402 | AG41: 1.307888296 | AH41: 1.329116903 | AI41: 1.34943136 | AJ41: 1.368871031 | AK41: 1.387473587 | AL41: 1.405275077 | AM41: 1.422309995 | AN41: 1.438611351 | AO41: 1.454210736 | AP41: 1.469138377 | AQ41: 1.4834232 | AR41: 1.497092888 | AS41: 1.510173929 | AT41: 1.522691671 | AU41: 1.534670372 | AV41: 1.546133244 | AW41: 1.557102499 | AX41: 1.567599394 | AY41: 1.57764427 | AZ41: 1.587256591 | BA41: 1.596454984 | BB41: 1.605257275 | BC41: 1.613680519 | BD41: 1.62174104 | BE41: 1.629454457 | BF41: 1.636835717 | BG41: 1.643899124 | BH41: 1.650658366 | BI41: 1.657126539 | BJ41: 1.663316179 | BK41: 1.669239279 | BL41: 1.674907317 | BM41: 1.680331277 | BN41: 1.68552167 | BO41: 1.690488553 | BP41: 1.695241551 | BQ41: 1.699789874 | BR41: 1.704142337 | BS41: 1.708307372 | BT41: 1.712293053 | BU41: 1.716107101
A42: SIC 28-IND_SIC 28 | B42: Chemicals | C42: 0 | D42: 0.0708053852 | E42: 0.1373337135 | F42: 0.1989922989 | G42: 0.2587379708 | H42: 0.316802092 | I42: 0.3742801532 | J42: 0.4303713578 | K42: 0.4853966587 | L42: 0.5381090379 | M42: 0.5886761491 | N42: 0.6372659788 | O42: 0.6841052632 | P42: 0.7281676613 | Q42: 0.7708650185 | R42: 0.8121855264 | S42: 0.8519721127 | T42: 0.8897156831 | U42: 0.9261081089 | V42: 0.9608013752 | W42: 0.9941576927 | X42: 1.025808668 | Y42: 1.056335082 | Z42: 1.08542752 | AA42: 1.113364055 | AB42: 1.139914388 | AC42: 1.165548501 | AD42: 1.189938575 | AE42: 1.213278358 | AF42: 1.23561308 | AG42: 1.256986018 | AH42: 1.277438592 | AI42: 1.297010432 | AJ42: 1.315739466 | AK42: 1.333661986 | AL42: 1.350812724 | AM42: 1.367224912 | AN42: 1.382930356 | AO42: 1.397959489 | AP42: 1.412341434 | AQ42: 1.426104061 | AR42: 1.439274039 | AS42: 1.451876889 | AT42: 1.463937032 | AU42: 1.475477839 | AV42: 1.486521674 | AW42: 1.497089937 | AX42: 1.507203107 | AY42: 1.516880781 | AZ42: 1.526141714 | BA42: 1.535003851 | BB42: 1.543484364 | BC42: 1.551599688 | BD42: 1.559365548 | BE42: 1.566796993 | BF42: 1.573908424 | BG42: 1.580713621 | BH42: 1.587225771 | BI42: 1.593457493 | BJ42: 1.599420864 | BK42: 1.605127439 | BL42: 1.610588277 | BM42: 1.615813958 | BN42: 1.620814611 | BO42: 1.625599924 | BP42: 1.630179171 | BQ42: 1.634561226 | BR42: 1.638754579 | BS42: 1.642767358 | BT42: 1.646607338 | BU42: 1.650281959
A43: SIC 29-IND_SIC 29 | B43: Oil & Petroleum | C43: 0 | D43: 0.07087806672 | E43: 0.1372109771 | F43: 0.1986222339 | G43: 0.2581629242 | H43: 0.3160519562 | I43: 0.373313644 | J43: 0.4291799187 | K43: 0.4839712204 | L43: 0.5364996724 | M43: 0.5868368508 | N43: 0.6352434619 | O43: 0.6818691706 | P43: 0.725746468 | Q43: 0.7682093398 | R43: 0.8093643688 | S43: 0.848959386 | T43: 0.8865315943 | U43: 0.9227596654 | V43: 0.9572559527 | W43: 0.9904242119 | X43: 1.021938994 | Y43: 1.052329744 | Z43: 1.081302505 | AA43: 1.109116082 | AB43: 1.135552975 | AC43: 1.161083701 | AD43: 1.185377483 | AE43: 1.208625121 | AF43: 1.230871665 | AG43: 1.252160224 | AH43: 1.27253205 | AI43: 1.292026621 | AJ43: 1.310681713 | AK43: 1.328533475 | AL43: 1.345616501 | AM43: 1.361963895 | AN43: 1.377607333 | AO43: 1.392577131 | AP43: 1.406902297 | AQ43: 1.420610589 | AR43: 1.433728572 | AS43: 1.446281666 | AT43: 1.458294195 | AU43: 1.469789439 | AV43: 1.480789673 | AW43: 1.491316212 | AX43: 1.501389455 | AY43: 1.511028922 | AZ43: 1.520253293 | BA43: 1.529080442 | BB43: 1.537527474 | BC43: 1.545610759 | BD43: 1.553345959 | BE43: 1.560748065 | BF43: 1.56783142 | BG43: 1.57460975 | BH43: 1.58109619 | BI43: 1.58730331 | BJ43: 1.593243137 | BK43: 1.598927183 | BL43: 1.604366461 | BM43: 1.609571512 | BN43: 1.614552421 | BO43: 1.619318842 | BP43: 1.62388001 | BQ43: 1.628244765 | BR43: 1.632421563 | BS43: 1.636418499 | BT43: 1.640243319 | BU43: 1.643903433
A44: SIC 33-IND_SIC 33 | B44: Primary Metals | C44: 0 | D44: 0.07066732486 | E44: 0.1371891442 | F44: 0.1989721677 | G44: 0.2588168617 | H44: 0.3169890245 | I44: 0.374558384 | J44: 0.4307293367 | K44: 0.4858244338 | L44: 0.5386044179 | M44: 0.589238322 | N44: 0.637898071 | O44: 0.684790357 | P44: 0.7289000057 | Q44: 0.7716398734 | R44: 0.8130037216 | S44: 0.8528358838 | T44: 0.8906406169 | U44: 0.9270819388 | V44: 0.9618167735 | W44: 0.9952150995 | X44: 1.026910529 | Y44: 1.057482991 | Z44: 1.086621842 | AA44: 1.114593955 | AB44: 1.141181799 | AC44: 1.166851834 | AD44: 1.191278149 | AE44: 1.214652614 | AF44: 1.237020523 | AG44: 1.258425221 | AH44: 1.278908185 | AI44: 1.298509108 | AJ44: 1.317265972 | AK44: 1.335215124 | AL44: 1.352391346 | AM44: 1.368827922 | AN44: 1.384556703 | AO44: 1.399608168 | AP44: 1.414011484 | AQ44: 1.427794561 | AR44: 1.440984109 | AS44: 1.453605685 | AT44: 1.465683749 | AU44: 1.477241705 | AV44: 1.48830195 | AW44: 1.498885916 | AX44: 1.509014114 | AY44: 1.518706169 | AZ44: 1.527980862 | BA44: 1.536856167 | BB44: 1.545349282 | BC44: 1.553476665 | BD44: 1.561254064 | BE44: 1.568696552 | BF44: 1.57581855 | BG44: 1.582633859 | BH44: 1.589155686 | BI44: 1.595396668 | BJ44: 1.6013689 | BK44: 1.607083955 | BL44: 1.612552907 | BM44: 1.617786353 | BN44: 1.622794436 | BO44: 1.62758686 | BP44: 1.632172912 | BQ44: 1.636561478 | BR44: 1.640761062 | BS44: 1.644779804 | BT44: 1.648625489 | BU44: 1.652305571
A45: SIC 37-IND_SIC 37 | B45: Transportation & Equipment | C45: 0 | D45: 0.07381819279 | E45: 0.1428902579 | F45: 0.2067822017 | G45: 0.2686493015 | H45: 0.3287578783 | I45: 0.3881611113 | J45: 0.4460871286 | K45: 0.5028526628 | L45: 0.5572491328 | M45: 0.609375033 | N45: 0.6594645612 | O45: 0.7076972678 | P45: 0.753128068 | Q45: 0.7970885268 | R45: 0.8396424778 | S45: 0.8805900905 | T45: 0.9194571161 | U45: 0.9569132346 | V45: 0.9926082267 | W45: 1.026925003 | X45: 1.05952424 | Y45: 1.090950599 | Z45: 1.120908979 | AA45: 1.149680217 | AB45: 1.17702256 | AC45: 1.203414792 | AD45: 1.228540474 | AE45: 1.25258419 | AF45: 1.27559253 | AG45: 1.297610081 | AH45: 1.318679507 | AI45: 1.338841638 | AJ45: 1.358135543 | AK45: 1.376598609 | AL45: 1.394266616 | AM45: 1.411173799 | AN45: 1.427352922 | AO45: 1.442835336 | AP45: 1.457651043 | AQ45: 1.471828753 | AR45: 1.48539594 | AS45: 1.498378894 | AT45: 1.510802774 | AU45: 1.522691653 | AV45: 1.534068572 | AW45: 1.544955575 | AX45: 1.55537376 | AY45: 1.565343315 | AZ45: 1.574883559 | BA45: 1.584012979 | BB45: 1.592749267 | BC45: 1.60110935 | BD45: 1.60910943 | BE45: 1.616765009 | BF45: 1.624090921 | BG45: 1.631101364 | BH45: 1.637809922 | BI45: 1.644229594 | BJ45: 1.650372822 | BK45: 1.656251508 | BL45: 1.661877045 | BM45: 1.667260334 | BN45: 1.672411807 | BO45: 1.677341446 | BP45: 1.682058804 | BQ45: 1.686573022 | BR45: 1.690892848 | BS45: 1.695026653 | BT45: 1.698982447 | BU45: 1.702767896
A46: Other SICs-IND_Other SICs | B46: Other Industrial | C46: 0 | D46: 0.07381819262 | E46: 0.1428902576 | F46: 0.2067822012 | G46: 0.2686493009 | H46: 0.3287578775 | I46: 0.3881611104 | J46: 0.4460871274 | K46: 0.5028526616 | L46: 0.5572491314 | M46: 0.6093750315 | N46: 0.6594645596 | O46: 0.7076972661 | P46: 0.7531280661 | Q46: 0.7970885249 | R46: 0.8396424757 | S46: 0.8805900884 | T46: 0.9194571139 | U46: 0.9569132323 | V46: 0.9926082243 | W46: 1.026925001 | X46: 1.059524237 | Y46: 1.090950596 | Z46: 1.120908976 | AA46: 1.149680214 | AB46: 1.177022557 | AC46: 1.203414789 | AD46: 1.228540471 | AE46: 1.252584187 | AF46: 1.275592527 | AG46: 1.297610078 | AH46: 1.318679504 | AI46: 1.338841635 | AJ46: 1.358135539 | AK46: 1.376598606 | AL46: 1.394266612 | AM46: 1.411173796 | AN46: 1.427352918 | AO46: 1.442835332 | AP46: 1.45765104 | AQ46: 1.47182875 | AR46: 1.485395937 | AS46: 1.498378891 | AT46: 1.51080277 | AU46: 1.52269165 | AV46: 1.534068568 | AW46: 1.544955571 | AX46: 1.555373756 | AY46: 1.565343311 | AZ46: 1.574883555 | BA46: 1.584012976 | BB46: 1.592749263 | BC46: 1.601109346 | BD46: 1.609109426 | BE46: 1.616765005 | BF46: 1.624090918 | BG46: 1.63110136 | BH46: 1.637809918 | BI46: 1.64422959 | BJ46: 1.650372818 | BK46: 1.656251504 | BL46: 1.661877041 | BM46: 1.66726033 | BN46: 1.672411803 | BO46: 1.677341442 | BP46: 1.6820588 | BQ46: 1.686573018 | BR46: 1.690892844 | BS46: 1.695026649 | BT46: 1.698982443 | BU46: 1.702767892
A47: S-All-Lgt-Streetlight-All-All-U | B47: Street Lighting | C47: 0 | D47: 0.07583515034 | E47: 0.1486759356 | F47: 0.2173974547 | G47: 0.2840601049 | H47: 0.3486986543 | I47: 0.4125977617 | J47: 0.474834647 | K47: 0.5358601372 | L47: 0.5942781435 | M47: 0.650553451 | N47: 0.704647706 | O47: 0.7569432849 | P47: 0.806050145 | Q47: 0.8537389259 | R47: 0.8998153204 | S47: 0.9442090465 | T47: 0.9862891552 | U47: 1.026891698 | V47: 1.065611406 | W47: 1.1028313 | X47: 1.138080676 | Y47: 1.17209773 | Z47: 1.204501644 | AA47: 1.235572769 | AB47: 1.265158437 | AC47: 1.293717722 | AD47: 1.320834798 | AE47: 1.346784153 | AF47: 1.371616072 | AG47: 1.395378674 | AH47: 1.418118005 | AI47: 1.439878131 | AJ47: 1.460701219 | AK47: 1.480627618 | AL47: 1.499695942 | AM47: 1.517943143 | AN47: 1.535404579 | AO47: 1.552114087 | AP47: 1.568104047 | AQ47: 1.583405444 | AR47: 1.598047929 | AS47: 1.612059877 | AT47: 1.625468439 | AU47: 1.638299599 | AV47: 1.650578221 | AW47: 1.662328098 | AX47: 1.673572 | AY47: 1.684331715 | AZ47: 1.694628093 | BA47: 1.704481086 | BB47: 1.713909788 | BC47: 1.722932469 | BD47: 1.731566613 | BE47: 1.739828952 | BF47: 1.747735497 | BG47: 1.755301568 | BH47: 1.762541828 | BI47: 1.769470306 | BJ47: 1.776100429 | BK47: 1.782445044 | BL47: 1.788516446 | BM47: 1.7943264 | BN47: 1.799886164 | BO47: 1.805206513 | BP47: 1.810297756 | BQ47: 1.815169759 | BR47: 1.819831963 | BS47: 1.824293402 | BT47: 1.828562721 | BU47: 1.832648194
A48: Commercial-college-AirComp | B48: College Compressed Air | C48: 0 | D48: 0.08205312591 | E48: 0.1586358327 | F48: 0.2293254973 | G48: 0.2976690228 | H48: 0.3640524378 | I48: 0.4295288861 | J48: 0.4932816817 | K48: 0.5556964182 | L48: 0.61546008 | M48: 0.6726457648 | N48: 0.7275566524 | O48: 0.7803408699 | P48: 0.8302143453 | Q48: 0.8784170792 | R48: 0.9250043336 | S48: 0.9698218025 | T48: 1.012437544 | U48: 1.053434344 | V48: 1.092548734 | W48: 1.130132074 | X48: 1.165862359 | Y48: 1.200267947 | Z48: 1.233075227 | AA48: 1.264595867 | AB48: 1.294521355 | AC48: 1.323399299 | AD48: 1.350921189 | AE48: 1.377257926 | AF48: 1.402460545 | AG48: 1.426577884 | AH48: 1.449656677 | AI48: 1.471741647 | AJ48: 1.492875589 | AK48: 1.513099457 | AL48: 1.532452441 | AM48: 1.550972042 | AN48: 1.568694149 | AO48: 1.585653103 | AP48: 1.601881767 | AQ48: 1.617411589 | AR48: 1.632272663 | AS48: 1.646493787 | AT48: 1.660102517 | AU48: 1.673125225 | AV48: 1.685587147 | AW48: 1.697512432 | AX48: 1.708924187 | AY48: 1.719844527 | AZ48: 1.730294613 | BA48: 1.740294695 | BB48: 1.749864152 | BC48: 1.759021527 | BD48: 1.767784565 | BE48: 1.776170248 | BF48: 1.784194824 | BG48: 1.791873845 | BH48: 1.79922219 | BI48: 1.806254099 | BJ48: 1.812983199 | BK48: 1.819422529 | BL48: 1.825584567 | BM48: 1.831481254 | BN48: 1.837124017 | BO48: 1.84252379 | BP48: 1.847691037 | BQ48: 1.852635771 | BR48: 1.857367574 | BS48: 1.861895615 | BT48: 1.866228668 | BU48: 1.870375131
A49: Commercial-college-Cook | B49: College Cooking | C49: 0 | D49: 0.08114371249 | E49: 0.1567881925 | F49: 0.2265407251 | G49: 0.2940074049 | H49: 0.3595373185 | I49: 0.4241873633 | J49: 0.4871522633 | K49: 0.5488064838 | L49: 0.6078483472 | M49: 0.6643610118 | N49: 0.7186187555 | O49: 0.7707964732 | P49: 0.8200663338 | Q49: 0.8677067557 | R49: 0.9137526441 | S49: 0.9580574651 | T49: 1.000164021 | U49: 1.040690524 | V49: 1.079339191 | W49: 1.116490309 | X49: 1.151798787 | Y49: 1.185805407 | Z49: 1.218229414 | AA49: 1.249381278 | AB49: 1.278962797 | AC49: 1.30751032 | AD49: 1.334712966 | AE49: 1.360744206 | AF49: 1.385654483 | AG49: 1.409492069 | AH49: 1.432303157 | AI49: 1.454131948 | AJ49: 1.475020744 | AK49: 1.495010022 | AL49: 1.514138518 | AM49: 1.532443299 | AN49: 1.549959836 | AO49: 1.566722072 | AP49: 1.582762489 | AQ49: 1.598112171 | AR49: 1.612800861 | AS49: 1.626857024 | AT49: 1.640307898 | AU49: 1.653179548 | AV49: 1.665496916 | AW49: 1.677283871 | AX49: 1.688563254 | AY49: 1.699356922 | AZ49: 1.70968579 | BA49: 1.719569875 | BB49: 1.72902833 | BC49: 1.738079482 | BD49: 1.746740872 | BE49: 1.755029284 | BF49: 1.762960778 | BG49: 1.770550725 | BH49: 1.777813832 | BI49: 1.784764173 | BJ49: 1.791415218 | BK49: 1.797779854 | BL49: 1.803870414 | BM49: 1.809698702 | BN49: 1.815276011 | BO49: 1.820613148 | BP49: 1.825720457 | BQ49: 1.830607834 | BR49: 1.835284749 | BS49: 1.839760267 | BT49: 1.844043058 | BU49: 1.848141424
A50: Commercial-college-Cool | B50: College Cooling | C50: 0 | D50: 0.1045921186 | E50: 0.2002321014 | F50: 0.2877070263 | G50: 0.3723340095 | H50: 0.454303488 | I50: 0.5344676 | J50: 0.6122614563 | K50: 0.6880320973 | L50: 0.7607240511 | M50: 0.8300946828 | N50: 0.8966478612 | O50: 0.9605032454 | P50: 1.020967009 | Q50: 1.079194975 | R50: 1.13551263 | S50: 1.189590711 | T50: 1.240969264 | U50: 1.290466666 | V50: 1.337475556 | W50: 1.382696046 | X50: 1.425832511 | Y50: 1.467331 | Z50: 1.506945275 | AA50: 1.544997159 | AB50: 1.581172921 | AC50: 1.616035682 | AD50: 1.649316431 | AE50: 1.681164039 | AF50: 1.711640218 | AG50: 1.740804025 | AH50: 1.768711975 | AI50: 1.795418147 | AJ50: 1.820974293 | AK50: 1.845429935 | AL50: 1.868832463 | AM50: 1.891227226 | AN50: 1.912657622 | AO50: 1.933165178 | AP50: 1.952789633 | AQ50: 1.971569016 | AR50: 1.989539718 | AS50: 2.006736561 | AT50: 2.023192871 | AU50: 2.038940535 | AV50: 2.054010071 | AW50: 2.068430679 | AX50: 2.082230304 | AY50: 2.095435687 | AZ50: 2.108072417 | BA50: 2.120164982 | BB50: 2.131736814 | BC50: 2.142810338 | BD50: 2.153407011 | BE50: 2.163547368 | BF50: 2.173251059 | BG50: 2.182536888 | BH50: 2.191422849 | BI50: 2.19992616 | BJ50: 2.2080633 | BK50: 2.215850038 | BL50: 2.223301461 | BM50: 2.230432009 | BN50: 2.2372555 | BO50: 2.243785157 | BP50: 2.250033632 | BQ50: 2.256013035 | BR50: 2.261734951 | BS50: 2.267210468 | BT50: 2.272450198 | BU50: 2.277464294
A51: Commercial-college-ExtLight | B51: College Exterior Lights | C51: 0 | D51: 0.08776636885 | E51: 0.1716639104 | F51: 0.2508304005 | G51: 0.3274506249 | H51: 0.4016219298 | I51: 0.4745774664 | J51: 0.5454714089 | K51: 0.6147128233 | L51: 0.6810412902 | M51: 0.7448149973 | N51: 0.8061017485 | O51: 0.8652181896 | P51: 0.9208735874 | Q51: 0.974758233 | R51: 1.026814088 | S51: 1.076894037 | T51: 1.12443633 | U51: 1.170259175 | V51: 1.213952442 | W51: 1.255926971 | X51: 1.295774404 | Y51: 1.334182201 | Z51: 1.370802471 | AA51: 1.405906794 | AB51: 1.439358712 | AC51: 1.471609208 | AD51: 1.502275798 | AE51: 1.531621818 | AF51: 1.559704133 | AG51: 1.586577162 | AH51: 1.612292979 | AI51: 1.636901416 | AJ51: 1.66045016 | AK51: 1.682984844 | AL51: 1.704549134 | AM51: 1.725184818 | AN51: 1.744931884 | AO51: 1.763828599 | AP51: 1.781911579 | AQ51: 1.799215866 | AR51: 1.815774993 | AS51: 1.831621047 | AT51: 1.846784735 | AU51: 1.861295441 | AV51: 1.875181284 | AW51: 1.888469173 | AX51: 1.901184855 | AY51: 1.913352973 | AZ51: 1.924997104 | BA51: 1.936139814 | BB51: 1.946802694 | BC51: 1.957006407 | BD51: 1.966770725 | BE51: 1.976114571 | BF51: 1.98505605 | BG51: 1.993612489 | BH51: 2.001800469 | BI51: 2.009635857 | BJ51: 2.017133835 | BK51: 2.024308934 | BL51: 2.031175058 | BM51: 2.037745511 | BN51: 2.044033026 | BO51: 2.050049787 | BP51: 2.055807453 | BQ51: 2.061317181 | BR51: 2.066589648 | BS51: 2.071635071 | BT51: 2.076463227 | BU51: 2.081083472
A52: Commercial-college-Heat | B52: College Heating | C52: 0 | D52: 0.08296746541 | E52: 0.1613064095 | F52: 0.2340926656 | G52: 0.3044200977 | H52: 0.3726393329 | I52: 0.439989712 | J52: 0.5055647603 | K52: 0.5697895745 | L52: 0.6311847945 | M52: 0.6901539309 | N52: 0.7467329155 | O52: 0.8012380268 | P52: 0.8526562515 | Q52: 0.9024719435 | R52: 0.9505234756 | S52: 0.9968127175 | T52: 1.040799489 | U52: 1.083090414 | V52: 1.12351002 | W52: 1.162337199 | X52: 1.199192155 | Y52: 1.234698031 | Z52: 1.268532146 | AA52: 1.301026698 | AB52: 1.33189517 | AC52: 1.361673997 | AD52: 1.390041554 | AE52: 1.417187541 | AF52: 1.443164562 | AG52: 1.468022955 | AH52: 1.491810892 | AI52: 1.514574467 | AJ52: 1.536357793 | AK52: 1.557203081 | AL52: 1.577150724 | AM52: 1.596239379 | AN52: 1.614506034 | AO52: 1.631986086 | AP52: 1.648713409 | AQ52: 1.664720417 | AR52: 1.680038127 | AS52: 1.694696224 | AT52: 1.70872311 | AU52: 1.722145968 | AV52: 1.734990808 | AW52: 1.747282521 | AX52: 1.759044926 | AY52: 1.770300815 | AZ52: 1.781072002 | BA52: 1.791379357 | BB52: 1.801242855 | BC52: 1.810681609 | BD52: 1.819713909 | BE52: 1.828357259 | BF52: 1.836628407 | BG52: 1.844543381 | BH52: 1.852117519 | BI52: 1.859365498 | BJ52: 1.866301363 | BK52: 1.872938555 | BL52: 1.879289934 | BM52: 1.885367809 | BN52: 1.891183957 | BO52: 1.89674965 | BP52: 1.902075671 | BQ52: 1.907172342 | BR52: 1.912049539 | BS52: 1.916716713 | BT52: 1.921182909 | BU52: 1.92545678
A53: Commercial-college-HotWater | B53: College Hot Water | C53: 0 | D53: 0.08310319592 | E53: 0.1606532658 | F53: 0.2321807747 | G53: 0.3012786024 | H53: 0.3683617292 | I53: 0.4345135316 | J53: 0.4989371413 | K53: 0.5619802737 | L53: 0.6223280647 | M53: 0.6801015208 | N53: 0.7355528445 | O53: 0.78886758 | P53: 0.83924434 | Q53: 0.8879354537 | R53: 0.9349765823 | S53: 0.9802323869 | T53: 1.02326307 | U53: 1.064639835 | V53: 1.104148108 | W53: 1.142104701 | X53: 1.178186518 | Y53: 1.212928626 | Z53: 1.246053991 | AA53: 1.277883396 | AB53: 1.308109021 | AC53: 1.33726631 | AD53: 1.365061793 | AE53: 1.39166034 | AF53: 1.417113496 | AG53: 1.441470583 | AH53: 1.4647788 | AI53: 1.487083314 | AJ53: 1.508427347 | AK53: 1.528852259 | AL53: 1.548397629 | AM53: 1.567101332 | AN53: 1.584999612 | AO53: 1.602127154 | AP53: 1.618517145 | AQ53: 1.634201348 | AR53: 1.649210154 | AS53: 1.663572648 | AT53: 1.677316662 | AU53: 1.690468827 | AV53: 1.703054632 | AW53: 1.715098465 | AX53: 1.726623663 | AY53: 1.737652561 | AZ53: 1.74820653 | BA53: 1.758306022 | BB53: 1.767970608 | BC53: 1.777219016 | BD53: 1.786069166 | BE53: 1.79453821 | BF53: 1.802642558 | BG53: 1.810397915 | BH53: 1.817819309 | BI53: 1.824921122 | BJ53: 1.831717115 | BK53: 1.838220458 | BL53: 1.844443752 | BM53: 1.850399058 | BN53: 1.856097915 | BO53: 1.861551366 | BP53: 1.86676998 | BQ53: 1.87176387 | BR53: 1.876542711 | BS53: 1.881115765 | BT53: 1.885491893 | BU53: 1.889679575
A54: C-Unv-Lgt-LPD Int-All-All-C | B54: College Interior Lights | C54: 0 | D54: 0.0835150932 | E54: 0.1614430406 | F54: 0.2333444847 | G54: 0.3028683146 | H54: 0.3703729545 | I54: 0.4369296896 | J54: 0.5017215445 | K54: 0.565147464 | L54: 0.6258667005 | M54: 0.6839938488 | N54: 0.739784196 | O54: 0.7934352646 | P54: 0.8441246154 | Q54: 0.8931376919 | R54: 0.9404786906 | S54: 0.9860354296 | T54: 1.029340925 | U54: 1.071008785 | V54: 1.110758742 | W54: 1.148964567 | X54: 1.185270457 | Y54: 1.22023286 | Z54: 1.25356681 | AA54: 1.285594354 | AB54: 1.316006057 | AC54: 1.345350864 | AD54: 1.373314967 | AE54: 1.400074875 | AF54: 1.425682442 | AG54: 1.450187291 | AH54: 1.473636907 | AI54: 1.496076731 | AJ54: 1.517550246 | AK54: 1.538099065 | AL54: 1.557763007 | AM54: 1.576580176 | AN54: 1.594587036 | AO54: 1.611818481 | AP54: 1.628307902 | AQ54: 1.644087253 | AR54: 1.65918711 | AS54: 1.673636734 | AT54: 1.687464125 | AU54: 1.700696078 | AV54: 1.713358235 | AW54: 1.72547513 | AX54: 1.737070246 | AY54: 1.748166051 | AZ54: 1.758784046 | BA54: 1.768944806 | BB54: 1.778668022 | BC54: 1.787972535 | BD54: 1.796876375 | BE54: 1.805396796 | BF54: 1.813550309 | BG54: 1.821352714 | BH54: 1.82881913 | BI54: 1.835964025 | BJ54: 1.842801246 | BK54: 1.849344041 | BL54: 1.855605089 | BM54: 1.861596522 | BN54: 1.867329951 | BO54: 1.872816486 | BP54: 1.878066759 | BQ54: 1.883090943 | BR54: 1.887898775 | BS54: 1.892499571 | BT54: 1.896902247 | BU54: 1.901115334
A55: Commercial-college-Misc | B55: College Other | C55: 0 | D55: 0.08060095309 | E55: 0.1560213981 | F55: 0.225800283 | G55: 0.2932992515 | H55: 0.3588597571 | I55: 0.4235539945 | J55: 0.4865565546 | K55: 0.5482526191 | L55: 0.6073341001 | M55: 0.6638957306 | N55: 0.7182254736 | O55: 0.7704763566 | P55: 0.8198037835 | Q55: 0.8674993806 | R55: 0.9136102594 | S55: 0.95797449 | T55: 1.000141405 | U55: 1.040725668 | V55: 1.079439201 | W55: 1.11663006 | X55: 1.151985897 | Y55: 1.186035545 | Z55: 1.218503138 | AA55: 1.249690323 | AB55: 1.279306334 | AC55: 1.307888329 | AD55: 1.335117992 | AE55: 1.361175086 | AF55: 1.386110105 | AG55: 1.409971366 | AH55: 1.432805109 | AI55: 1.454655581 | AJ55: 1.475565123 | AK55: 1.495574254 | AL55: 1.514721749 | AM55: 1.53304471 | AN55: 1.550578644 | AO55: 1.567357528 | AP55: 1.583413876 | AQ55: 1.598778803 | AR55: 1.613482082 | AS55: 1.627552206 | AT55: 1.641016439 | AU55: 1.653900872 | AV55: 1.666230474 | AW55: 1.678029136 | AX55: 1.689319721 | AY55: 1.700124109 | AZ55: 1.710463236 | BA55: 1.720357138 | BB55: 1.729824986 | BC55: 1.738885129 | BD55: 1.747555121 | BE55: 1.755851764 | BF55: 1.763791136 | BG55: 1.771388621 | BH55: 1.778658942 | BI55: 1.785616186 | BJ55: 1.792273836 | BK55: 1.798644794 | BL55: 1.804741403 | BM55: 1.81057548 | BN55: 1.816158328 | BO55: 1.821500766 | BP55: 1.826613147 | BQ55: 1.831505378 | BR55: 1.836186939 | BS55: 1.840666901 | BT55: 1.844953946 | BU55: 1.849056382
A56: Commercial-college-Motors | B56: College Motors | C56: 0 | D56: 0.08339655594 | E56: 0.161407146 | F56: 0.2335651378 | G56: 0.3032964586 | H56: 0.3710108559 | I56: 0.4377637848 | J56: 0.5027371182 | K56: 0.5663157007 | L56: 0.6271929041 | M56: 0.6854439679 | N56: 0.7413796032 | O56: 0.7951394958 | P56: 0.8459501879 | Q56: 0.8950452475 | R56: 0.94248841 | S56: 0.9881208685 | T56: 1.031527233 | U56: 1.073272083 | V56: 1.113115745 | W56: 1.151388284 | X56: 1.187779349 | Y56: 1.222816911 | Z56: 1.256230119 | AA56: 1.288328117 | AB56: 1.318807183 | AC56: 1.348212833 | AD56: 1.376240312 | AE56: 1.403060865 | AF56: 1.428726466 | AG56: 1.45328685 | AH56: 1.476789609 | AI56: 1.499280288 | AJ56: 1.520802469 | AK56: 1.541397858 | AL56: 1.561106364 | AM56: 1.579966178 | AN56: 1.598013847 | AO56: 1.615284343 | AP56: 1.631811134 | AQ56: 1.647626245 | AR56: 1.662760323 | AS56: 1.677242694 | AT56: 1.691101422 | AU56: 1.704363363 | AV56: 1.717054215 | AW56: 1.729198571 | AX56: 1.740819965 | AY56: 1.751940916 | AZ56: 1.762582974 | BA56: 1.772766762 | BB56: 1.782512013 | BC56: 1.791837613 | BD56: 1.800761632 | BE56: 1.809301362 | BF56: 1.817473354 | BG56: 1.825293441 | BH56: 1.832776778 | BI56: 1.839937866 | BJ56: 1.846790582 | BK56: 1.853348205 | BL56: 1.859623442 | BM56: 1.865628454 | BN56: 1.871374876 | BO56: 1.876873845 | BP56: 1.882136017 | BQ56: 1.887171587 | BR56: 1.891990315 | BS56: 1.896601538 | BT56: 1.901014191 | BU56: 1.905236826
A57: Commercial-college-OffEquip | B57: College Office Eqpmt | C57: 0 | D57: 0.07781924959 | E57: 0.150474955 | F57: 0.2174995402 | G57: 0.2823413345 | H57: 0.3453597556 | I57: 0.4076080867 | J57: 0.46827664 | K57: 0.527730045 | L57: 0.5846656752 | M57: 0.6391697153 | N57: 0.6915097584 | O57: 0.7418543646 | P57: 0.7893678925 | Q57: 0.8353290941 | R57: 0.8797669675 | S57: 0.9225324704 | T57: 0.963172609 | U57: 1.002291012 | V57: 1.039606355 | W57: 1.075470954 | X57: 1.109548106 | Y57: 1.142376174 | Z57: 1.173673249 | AA57: 1.203742858 | AB57: 1.232292876 | AC57: 1.259850868 | AD57: 1.286104842 | AE57: 1.311228261 | AF57: 1.335269811 | AG57: 1.358276079 | AH57: 1.380291647 | AI57: 1.401359176 | AJ57: 1.42151949 | AK57: 1.440811657 | AL57: 1.459273061 | AM57: 1.476939476 | AN57: 1.493845136 | AO57: 1.510022802 | AP57: 1.525503822 | AQ57: 1.540318194 | AR57: 1.554494628 | AS57: 1.568060593 | AT57: 1.581042377 | AU57: 1.593465138 | AV57: 1.605352947 | AW57: 1.61672884 | AX57: 1.627614863 | AY57: 1.63803211 | AZ57: 1.648000767 | BA57: 1.657540151 | BB57: 1.666668749 | BC57: 1.67540425 | BD57: 1.68376358 | BE57: 1.691762939 | BF57: 1.699417829 | BG57: 1.706743082 | BH57: 1.713752893 | BI57: 1.720460846 | BJ57: 1.726879941 | BK57: 1.733022615 | BL57: 1.738900771 | BM57: 1.744525802 | BN57: 1.749908606 | BO57: 1.755059615 | BP57: 1.75998881 | BQ57: 1.764705743 | BR57: 1.769219555 | BS57: 1.773538992 | BT57: 1.777672424 | BU57: 1.781627862
A58: Commercial-college-Process | B58: College Process | C58: 0 | D58: 0.08696309479 | E58: 0.168205325 | F58: 0.2431882241 | G58: 0.3156499456 | H58: 0.3859682569 | I58: 0.4552557923 | J58: 0.5226595432 | K58: 0.5886144212 | L58: 0.6517240411 | M58: 0.712146433 | N58: 0.7700964767 | O58: 0.8258324993 | P58: 0.878539035 | Q58: 0.9295142032 | R58: 0.9786753751 | S58: 1.025995281 | T58: 1.07099354 | U58: 1.114280657 | V58: 1.155598354 | W58: 1.195323997 | X58: 1.233038256 | Y58: 1.269348889 | Z58: 1.303965011 | AA58: 1.337231007 | AB58: 1.368821278 | AC58: 1.399298116 | AD58: 1.428335817 | AE58: 1.45612309 | AF58: 1.482713782 | AG58: 1.508159421 | AH58: 1.532509314 | AI58: 1.555810648 | AJ58: 1.578108575 | AK58: 1.599446304 | AL58: 1.619865183 | AM58: 1.63940478 | AN58: 1.65810296 | AO58: 1.675995954 | AP58: 1.693118437 | AQ58: 1.709503588 | AR58: 1.725183159 | AS58: 1.740187532 | AT58: 1.754545785 | AU58: 1.768285739 | AV58: 1.781434021 | AW58: 1.794016108 | AX58: 1.806056384 | AY58: 1.817578178 | AZ58: 1.828603819 | BA58: 1.839154671 | BB58: 1.849251181 | BC58: 1.858912912 | BD58: 1.868158588 | BE58: 1.877006125 | BF58: 1.885472668 | BG58: 1.893574622 | BH58: 1.901327689 | BI58: 1.908746892 | BJ58: 1.915846607 | BK58: 1.922640593 | BL58: 1.929142015 | BM58: 1.935363471 | BN58: 1.941317018 | BO58: 1.947014192 | BP58: 1.952466033 | BQ58: 1.957683106 | BR58: 1.96267552 | BS58: 1.96745295 | BT58: 1.972024653 | BU58: 1.976399489
A59: Commercial-college-Refrig | B59: College Refrigeration | C59: 0 | D59: 0.07311881236 | E59: 0.141555365 | F59: 0.2048598852 | G59: 0.2662072612 | H59: 0.3258405811 | I59: 0.3848232873 | J59: 0.442364482 | K59: 0.4987967003 | L59: 0.5528771401 | M59: 0.6047072675 | N59: 0.6545228442 | O59: 0.7025078256 | P59: 0.7476818147 | Q59: 0.7914162458 | R59: 0.8337655952 | S59: 0.8745229925 | T59: 0.9131998196 | U59: 0.9504858789 | V59: 0.9860084119 | W59: 1.02016597 | X59: 1.052603663 | Y59: 1.083882335 | Z59: 1.113697087 | AA59: 1.142328085 | AB59: 1.169535408 | AC59: 1.195805844 | AD59: 1.220807211 | AE59: 1.244731963 | AF59: 1.267626463 | AG59: 1.289535075 | AH59: 1.310500255 | AI59: 1.330562627 | AJ59: 1.34976107 | AK59: 1.368132786 | AL59: 1.385713375 | AM59: 1.402536905 | AN59: 1.418635977 | AO59: 1.434041787 | AP59: 1.448784189 | AQ59: 1.462891751 | AR59: 1.476391811 | AS59: 1.489310528 | AT59: 1.501672936 | AU59: 1.513502993 | AV59: 1.52482362 | AW59: 1.535656757 | AX59: 1.546023395 | AY59: 1.555943623 | AZ59: 1.565436664 | BA59: 1.574520914 | BB59: 1.583213976 | BC59: 1.591532695 | BD59: 1.599493192 | BE59: 1.607110893 | BF59: 1.614400559 | BG59: 1.621376315 | BH59: 1.62805168 | BI59: 1.63443959 | BJ59: 1.640552422 | BK59: 1.646402021 | BL59: 1.651999725 | BM59: 1.657356378 | BN59: 1.662482363 | BO59: 1.667387611 | BP59: 1.672081629 | BQ59: 1.676573512 | BR59: 1.680871964 | BS59: 1.684985316 | BT59: 1.688921537 | BU59: 1.692688257
A60: Commercial-college-Vent | B60: College Ventilation | C60: 0 | D60: 0.08283381521 | E60: 0.1598829119 | F60: 0.230857696 | G60: 0.2995235786 | H60: 0.3661927997 | I60: 0.4319144297 | J60: 0.4959049147 | K60: 0.5585362669 | L60: 0.6185231934 | M60: 0.6759429641 | N60: 0.7310687247 | O60: 0.7840836128 | P60: 0.8341390403 | Q60: 0.8825283092 | R60: 0.9293075393 | S60: 0.9743122157 | T60: 1.017070897 | U60: 1.058234988 | V60: 1.097466674 | W60: 1.135185882 | X60: 1.171044794 | Y60: 1.205583825 | Z60: 1.238517011 | AA60: 1.270155811 | AB60: 1.300205828 | AC60: 1.329202363 | AD60: 1.356835761 | AE60: 1.383279204 | AF60: 1.408583934 | AG60: 1.432798987 | AH60: 1.455971286 | AI60: 1.478145735 | AJ60: 1.499365303 | AK60: 1.519671111 | AL60: 1.539102505 | AM60: 1.557697141 | AN60: 1.575491051 | AO60: 1.592518715 | AP60: 1.608813132 | AQ60: 1.624405874 | AR60: 1.639327159 | AS60: 1.653605901 | AT60: 1.667269768 | AU60: 1.68034524 | AV60: 1.692857652 | AW60: 1.704831253 | AX60: 1.716289244 | AY60: 1.727253829 | AZ60: 1.737746255 | BA60: 1.747786853 | BB60: 1.757395082 | BC60: 1.766589559 | BD60: 1.775388101 | BE60: 1.783807759 | BF60: 1.791864848 | BG60: 1.799574981 | BH60: 1.806953099 | BI60: 1.814013498 | BJ60: 1.820769862 | BK60: 1.827235281 | BL60: 1.833422285 | BM60: 1.839342864 | BN60: 1.845008489 | BO60: 1.85043014 | BP60: 1.855618322 | BQ60: 1.86058309 | BR60: 1.865334064 | BS60: 1.869880451 | BT60: 1.874231061 | BU60: 1.878394323
A61: Commercial-Grocery-AirComp | B61: Grocery Compressed Air | C61: 0 | D61: 0.07835624651 | E61: 0.1512365498 | F61: 0.2183035271 | G61: 0.2832317108 | H61: 0.3463266755 | I61: 0.408635138 | J61: 0.4693676672 | K61: 0.5288844386 | L61: 0.5858858734 | M61: 0.6404587249 | N61: 0.6928642603 | O61: 0.7432851007 | P61: 0.7908554842 | Q61: 0.8368721768 | R61: 0.8813779981 | S61: 0.9242104731 | T61: 0.9648875637 | U61: 1.004060989 | V61: 1.041395776 | W61: 1.07729569 | X61: 1.111410215 | Y61: 1.144279859 | Z61: 1.175614678 | AA61: 1.205722023 | AB61: 1.234308535 | AC61: 1.261904471 | AD61: 1.288195213 | AE61: 1.313353817 | AF61: 1.337429036 | AG61: 1.360467524 | AH61: 1.382513923 | AI61: 1.403610956 | AJ61: 1.423799505 | AK61: 1.44311869 | AL61: 1.461605948 | AM61: 1.479297104 | AN61: 1.496226441 | AO61: 1.512426762 | AP61: 1.527929463 | AQ61: 1.542764582 | AR61: 1.556960869 | AS61: 1.570545833 | AT61: 1.583545798 | AU61: 1.595985956 | AV61: 1.607890414 | AW61: 1.619282239 | AX61: 1.630183507 | AY61: 1.640615343 | AZ61: 1.650597961 | BA61: 1.660150705 | BB61: 1.669292087 | BC61: 1.678039821 | BD61: 1.686410859 | BE61: 1.694421421 | BF61: 1.70208703 | BG61: 1.709422542 | BH61: 1.716442171 | BI61: 1.723159518 | BJ61: 1.729587602 | BK61: 1.735738879 | BL61: 1.741625268 | BM61: 1.747258176 | BN61: 1.752648519 | BO61: 1.757806741 | BP61: 1.76274284 | BQ61: 1.767466379 | BR61: 1.771986512 | BS61: 1.776311998 | BT61: 1.780451219 | BU61: 1.784412196
A62: Commercial-Grocery-Cook | B62: Grocery Cooking | C62: 0 | D62: 0.07501855098 | E62: 0.1448180956 | F62: 0.2090315794 | G62: 0.271231552 | H62: 0.3317115021 | I62: 0.3915167182 | J62: 0.4498503277 | K62: 0.5070662222 | L62: 0.5618728152 | M62: 0.6143499388 | N62: 0.6647597609 | O62: 0.7132770734 | P62: 0.7590193448 | Q62: 0.8032861137 | R62: 0.8461213912 | S62: 0.887351482 | T62: 0.9264963551 | U62: 0.9642067457 | V62: 1.000141058 | W62: 1.03470179 | X62: 1.067530944 | Y62: 1.099171532 | Z62: 1.129331155 | AA62: 1.158309168 | AB62: 1.185821684 | AC62: 1.21239017 | AD62: 1.237692255 | AE62: 1.261904777 | AF62: 1.285074654 | AG62: 1.307246785 | AH62: 1.328464135 | AI62: 1.34876782 | AJ62: 1.368197183 | AK62: 1.386789875 | AL62: 1.404581925 | AM62: 1.42160781 | AN62: 1.437900523 | AO62: 1.453491636 | AP62: 1.468411361 | AQ62: 1.48268861 | AR62: 1.496351049 | AS62: 1.509425154 | AT62: 1.521936259 | AU62: 1.533908608 | AV62: 1.545365401 | AW62: 1.55632884 | AX62: 1.566820169 | AY62: 1.576859718 | AZ62: 1.586466942 | BA62: 1.595660458 | BB62: 1.604458081 | BC62: 1.612876859 | BD62: 1.620933106 | BE62: 1.628642433 | BF62: 1.636019779 | BG62: 1.643079441 | BH62: 1.649835098 | BI62: 1.656299841 | BJ62: 1.662486199 | BK62: 1.668406158 | BL62: 1.674071191 | BM62: 1.679492275 | BN62: 1.684679916 | BO62: 1.689644165 | BP62: 1.694394642 | BQ62: 1.698940554 | BR62: 1.703290708 | BS62: 1.707453536 | BT62: 1.711437103 | BU62: 1.715249128
A63: Commercial-Grocery-Cool | B63: Grocery Cooling | C63: 0 | D63: 0.1054416949 | E63: 0.2016865639 | F63: 0.2897066853 | G63: 0.3748912472 | H63: 0.4573761431 | I63: 0.5379823352 | J63: 0.61620051 | K63: 0.6923262679 | L63: 0.7654051344 | M63: 0.8351306762 | N63: 0.9020480949 | O63: 0.9662573791 | P63: 1.02703662 | Q63: 1.085523979 | R63: 1.142154309 | S63: 1.196494032 | T63: 1.248106235 | U63: 1.297851216 | V63: 1.345057542 | W63: 1.390486501 | X63: 1.43382844 | Y63: 1.475544179 | Z63: 1.515370864 | AA63: 1.553615441 | AB63: 1.589995842 | AC63: 1.62504796 | AD63: 1.658510217 | AE63: 1.690531515 | AF63: 1.721173906 | AG63: 1.750496768 | AH63: 1.778556923 | AI63: 1.805408746 | AJ63: 1.83110427 | AK63: 1.855693288 | AL63: 1.87922345 | AM63: 1.90174035 | AN63: 1.923287624 | AO63: 1.943907024 | AP63: 1.963638508 | AQ63: 1.98252031 | AR63: 2.000589021 | AS63: 2.017879653 | AT63: 2.034425712 | AU63: 2.050259262 | AV63: 2.065410984 | AW63: 2.07991024 | AX63: 2.093785125 | AY63: 2.107062528 | AZ63: 2.119768177 | BA63: 2.131926692 | BB63: 2.143561635 | BC63: 2.154695551 | BD63: 2.165350017 | BE63: 2.175545678 | BF63: 2.185302291 | BG63: 2.194638763 | BH63: 2.203573186 | BI63: 2.212122874 | BJ63: 2.220304392 | BK63: 2.228133597 | BL63: 2.235625659 | BM63: 2.242795096 | BN63: 2.249655801 | BO63: 2.25622107 | BP63: 2.262503623 | BQ63: 2.268515636 | BR63: 2.274268758 | BS63: 2.279774138 | BT63: 2.285042445 | BU63: 2.290083886
A64: Commercial-Grocery-ExtLight | B64: Grocery Exterior Lights | C64: 0 | D64: 0.0878000817 | E64: 0.1715038774 | F64: 0.2503253728 | G64: 0.3265964598 | H64: 0.4004424819 | I64: 0.4730682034 | J64: 0.5436504616 | K64: 0.6125787428 | L64: 0.6786154431 | M64: 0.7420726782 | N64: 0.803048853 | O64: 0.861841819 | P64: 0.9172104271 | Q64: 0.9707980701 | R64: 1.022575244 | S64: 1.07238069 | T64: 1.11966844 | U64: 1.165241098 | V64: 1.208694069 | W64: 1.250436199 | X64: 1.290076243 | Y64: 1.328280698 | Z64: 1.364710581 | AA64: 1.399636981 | AB64: 1.432914251 | AC64: 1.464994122 | AD64: 1.495508436 | AE64: 1.524708737 | AF64: 1.552651608 | AG64: 1.579391198 | AH64: 1.604979323 | AI64: 1.629465566 | AJ64: 1.652897378 | AK64: 1.675320164 | AL64: 1.696777376 | AM64: 1.717310594 | AN64: 1.736959605 | AO64: 1.755762487 | AP64: 1.773755676 | AQ64: 1.790974038 | AR64: 1.80745094 | AS64: 1.82321831 | AT64: 1.838306702 | AU64: 1.852745355 | AV64: 1.866562248 | AW64: 1.879784155 | AX64: 1.892436697 | AY64: 1.904544393 | AZ64: 1.916130706 | BA64: 1.927218086 | BB64: 1.937828019 | BC64: 1.947981065 | BD64: 1.957696898 | BE64: 1.966994347 | BF64: 1.975891426 | BG64: 1.984405378 | BH64: 1.992552701 | BI64: 2.000349181 | BJ64: 2.007809929 | BK64: 2.0149494 | BL64: 2.021781429 | BM64: 2.028319257 | BN64: 2.034575551 | BO64: 2.040562435 | BP64: 2.046291511 | BQ64: 2.05177388 | BR64: 2.057020167 | BS64: 2.062040536 | BT64: 2.066844718 | BU64: 2.071442021
A65: Commercial-Grocery-Heat | B65: Grocery Heating | C65: 0 | D65: 0.08277246523 | E65: 0.1633632486 | F65: 0.239451444 | G65: 0.3130239529 | H65: 0.384189789 | I65: 0.4547496601 | J65: 0.5234560812 | K65: 0.5909946782 | L65: 0.6552307202 | M65: 0.7176120117 | N65: 0.777320583 | O65: 0.8352025072 | P65: 0.8895018037 | Q65: 0.9425395466 | R65: 0.9934417619 | S65: 1.042718352 | T65: 1.089406462 | U65: 1.13426404 | V65: 1.177290534 | W65: 1.218536392 | X65: 1.257563986 | Y65: 1.295210929 | Z65: 1.331010383 | AA65: 1.36537722 | AB65: 1.398017136 | AC65: 1.429503637 | AD65: 1.459459768 | AE65: 1.488125922 | AF65: 1.515557648 | AG65: 1.541808104 | AH65: 1.566928158 | AI65: 1.590966486 | AJ65: 1.613969672 | AK65: 1.635982289 | AL65: 1.657046995 | AM65: 1.677204608 | AN65: 1.69649419 | AO65: 1.71495312 | AP65: 1.732617168 | AQ65: 1.749520564 | AR65: 1.765696061 | AS65: 1.781175007 | AT65: 1.795987394 | AU65: 1.810161928 | AV65: 1.823726075 | AW65: 1.836706121 | AX65: 1.849127216 | AY65: 1.861013432 | AZ65: 1.872387802 | BA65: 1.883272366 | BB65: 1.893688217 | BC65: 1.903655538 | BD65: 1.913193645 | BE65: 1.922321019 | BF65: 1.931055349 | BG65: 1.93941356 | BH65: 1.947411847 | BI65: 1.955065711 | BJ65: 1.962389982 | BK65: 1.969398854 | BL65: 1.976105909 | BM65: 1.982524143 | BN65: 1.988665994 | BO65: 1.994543363 | BP65: 2.00016764 | BQ65: 2.005549723 | BR65: 2.010700042 | BS65: 2.015628576 | BT65: 2.020344877 | BU65: 2.024858084
A66: Commercial-Grocery-HotWater | B66: Grocery Hot Water | C66: 0 | D66: 0.07758701105 | E66: 0.1500063584 | F66: 0.216777942 | G66: 0.2813588754 | H66: 0.3441078932 | I66: 0.406102948 | J66: 0.4665486876 | K66: 0.5257736198 | L66: 0.5824849218 | M66: 0.6367928135 | N66: 0.6889433215 | O66: 0.7391215363 | P66: 0.7864638575 | Q66: 0.8322627501 | R66: 0.8765458766 | S66: 0.9191617651 | T66: 0.9596461816 | U66: 0.9986146466 | V66: 1.035799138 | W66: 1.071537067 | X66: 1.105491056 | Y66: 1.13820231 | Z66: 1.169385833 | AA66: 1.199348836 | AB66: 1.227802075 | AC66: 1.255262203 | AD66: 1.281424771 | AE66: 1.306460722 | AF66: 1.330418569 | AG66: 1.353344739 | AH66: 1.375283657 | AI66: 1.396277837 | AJ66: 1.416367962 | AK66: 1.435592962 | AL66: 1.453990091 | AM66: 1.471594999 | AN66: 1.488441801 | AO66: 1.504563142 | AP66: 1.519990264 | AQ66: 1.534753059 | AR66: 1.548880136 | AS66: 1.56239887 | AT66: 1.575335457 | AU66: 1.587714967 | AV66: 1.599561387 | AW66: 1.610897675 | AX66: 1.621745797 | AY66: 1.632126775 | AZ66: 1.642060725 | BA66: 1.651566898 | BB66: 1.660663714 | BC66: 1.669368801 | BD66: 1.677699027 | BE66: 1.685670536 | BF66: 1.693298774 | BG66: 1.700598524 | BH66: 1.70758393 | BI66: 1.714268529 | BJ66: 1.720665275 | BK66: 1.726786563 | BL66: 1.732644254 | BM66: 1.738249701 | BN66: 1.743613764 | BO66: 1.748746839 | BP66: 1.753658873 | BQ66: 1.758359384 | BR66: 1.76285748 | BS66: 1.767161879 | BT66: 1.77128092 | BU66: 1.775222587
A67: C-Gro-Lgt-LPD Int-All-All-C | B67: Grocery Interior Lights | C67: 0 | D67: 0.0760251304 | E67: 0.1469295861 | F67: 0.2123235622 | G67: 0.2756591933 | H67: 0.3372136289 | I67: 0.3980422267 | J67: 0.4573553691 | K67: 0.5155004729 | L67: 0.5712018324 | M67: 0.6245572826 | N67: 0.6758116463 | O67: 0.725151311 | P67: 0.7716558022 | Q67: 0.8166592307 | R67: 0.8602065028 | S67: 0.9021181564 | T67: 0.9419062128 | U67: 0.9802412413 | V67: 1.016770807 | W67: 1.051896865 | X67: 1.085266032 | Y67: 1.117429164 | Z67: 1.148088528 | AA67: 1.177539833 | AB67: 1.205513692 | AC67: 1.232520562 | AD67: 1.258238471 | AE67: 1.282848911 | AF67: 1.306399571 | AG67: 1.328936087 | AH67: 1.350502132 | AI67: 1.371139495 | AJ67: 1.390888168 | AK67: 1.40978642 | AL67: 1.427870871 | AM67: 1.445176566 | AN67: 1.46173704 | AO67: 1.477584383 | AP67: 1.492749305 | AQ67: 1.507261191 | AR67: 1.521148165 | AS67: 1.534437134 | AT67: 1.547153851 | AU67: 1.559322959 | AV67: 1.570968037 | AW67: 1.582111653 | AX67: 1.592775401 | AY67: 1.602979944 | AZ67: 1.612745057 | BA67: 1.622089662 | BB67: 1.631031869 | BC67: 1.639589004 | BD67: 1.64777765 | BE67: 1.655613675 | BF67: 1.663112264 | BG67: 1.670287947 | BH67: 1.677154629 | BI67: 1.683725617 | BJ67: 1.690013643 | BK67: 1.696030894 | BL67: 1.701789028 | BM67: 1.707299204 | BN67: 1.7125721 | BO67: 1.717617934 | BP67: 1.722446482 | BQ67: 1.727067103 | BR67: 1.73148875 | BS67: 1.735719991 | BT67: 1.739769025 | BU67: 1.743643699
A68: Commercial-Grocery-Misc | B68: Grocery Other | C68: 0 | D68: 0.07506383601 | E68: 0.1450100411 | F68: 0.2094524179 | G68: 0.2718744916 | H68: 0.3325592605 | I68: 0.392557413 | J68: 0.4510748131 | K68: 0.5084608217 | L68: 0.5634347685 | M68: 0.6160854065 | N68: 0.6666653002 | O68: 0.7153544065 | P68: 0.7612460962 | Q68: 0.805659517 | R68: 0.8486397327 | S68: 0.8900079705 | T68: 0.9292806282 | U68: 0.9671187361 | V68: 1.003173953 | W68: 1.037848113 | X68: 1.070784393 | Y68: 1.102530929 | Z68: 1.132791976 | AA68: 1.161863283 | AB68: 1.189471198 | AC68: 1.216129313 | AD68: 1.241513956 | AE68: 1.265805481 | AF68: 1.289050959 | AG68: 1.311295436 | AH68: 1.332582017 | AI68: 1.352951951 | AJ68: 1.37244471 | AK68: 1.391098069 | AL68: 1.408948172 | AM68: 1.426029611 | AN68: 1.442375486 | AO68: 1.458017471 | AP68: 1.472985878 | AQ68: 1.487309713 | AR68: 1.501016731 | AS68: 1.514133495 | AT68: 1.526685423 | AU68: 1.538696837 | AV68: 1.550191013 | AW68: 1.561190224 | AX68: 1.571715785 | AY68: 1.581788093 | AZ68: 1.591426664 | BA68: 1.600650178 | BB68: 1.609476506 | BC68: 1.617922754 | BD68: 1.626005287 | BE68: 1.633739769 | BF68: 1.641141187 | BG68: 1.648223884 | BH68: 1.655001584 | BI68: 1.661487422 | BJ68: 1.667693965 | BK68: 1.673633241 | BL68: 1.679316758 | BM68: 1.684755531 | BN68: 1.689960098 | BO68: 1.694940545 | BP68: 1.699706523 | BQ68: 1.704267267 | BR68: 1.708631616 | BS68: 1.712808026 | BT68: 1.716804591 | BU68: 1.720629055
A69: Commercial-Grocery-Motors | B69: Grocery Motors | C69: 0 | D69: 0.07763635518 | E69: 0.1499328988 | F69: 0.2165323141 | G69: 0.2810167791 | H69: 0.3436796736 | I69: 0.4055718185 | J69: 0.465904645 | K69: 0.5250328552 | L69: 0.5816677809 | M69: 0.6359027724 | N69: 0.6879898303 | O69: 0.7381153625 | P69: 0.7853885287 | Q69: 0.8311237719 | R69: 0.8753649096 | S69: 0.9179431662 | T69: 0.9583728424 | U69: 0.9973153626 | V69: 1.034427195 | W69: 1.070112746 | X69: 1.104019524 | Y69: 1.136693887 | Z69: 1.167841943 | AA69: 1.197766389 | AB69: 1.226184409 | AC69: 1.253617777 | AD69: 1.279749141 | AE69: 1.304755231 | AF69: 1.328684504 | AG69: 1.35158333 | AH69: 1.373496081 | AI69: 1.394465222 | AJ69: 1.414531385 | AK69: 1.433733455 | AL69: 1.452108641 | AM69: 1.469692552 | AN69: 1.48651926 | AO69: 1.502621374 | AP69: 1.518030095 | AQ69: 1.532775282 | AR69: 1.54688551 | AS69: 1.56038812 | AT69: 1.573309278 | AU69: 1.585674022 | AV69: 1.597506313 | AW69: 1.60882908 | AX69: 1.619664263 | AY69: 1.63003286 | AZ69: 1.639954962 | BA69: 1.649449797 | BB69: 1.658535763 | BC69: 1.667230467 | BD69: 1.675550758 | BE69: 1.683512759 | BF69: 1.691131899 | BG69: 1.698422942 | BH69: 1.705400017 | BI69: 1.712076643 | BJ69: 1.718465759 | BK69: 1.724579746 | BL69: 1.730430451 | BM69: 1.736029212 | BN69: 1.741386878 | BO69: 1.746513831 | BP69: 1.751420006 | BQ69: 1.75611491 | BR69: 1.760607642 | BS69: 1.764906906 | BT69: 1.769021035 | BU69: 1.772958
A70: Commercial-Grocery-OffEquip | B70: Grocery Office Eqpmt | C70: 0 | D70: 0.07761975947 | E70: 0.1497870886 | F70: 0.2161660655 | G70: 0.2804352793 | H70: 0.3428998535 | I70: 0.4046047697 | J70: 0.4647594527 | K70: 0.5237234908 | L70: 0.5801953897 | M70: 0.6342623928 | N70: 0.686182345 | O70: 0.7361378877 | P70: 0.783262608 | Q70: 0.8288526784 | R70: 0.8729499786 | S70: 0.9153924203 | T70: 0.9556961546 | U70: 0.9945119882 | V70: 1.031504189 | W70: 1.067075955 | X70: 1.100876943 | Y70: 1.133446835 | Z70: 1.164494707 | AA70: 1.194327609 | AB70: 1.222650963 | AC70: 1.249995005 | AD70: 1.276045286 | AE70: 1.300973784 | AF70: 1.324828806 | AG70: 1.347656579 | AH70: 1.369501338 | AI70: 1.390405413 | AJ70: 1.410409313 | AK70: 1.4295518 | AL70: 1.44786997 | AM70: 1.46539932 | AN70: 1.482173817 | AO70: 1.498225967 | AP70: 1.513586876 | AQ70: 1.528286311 | AR70: 1.542352756 | AS70: 1.555813468 | AT70: 1.568694533 | AU70: 1.581020911 | AV70: 1.592816488 | AW70: 1.604104121 | AX70: 1.614905684 | AY70: 1.625242108 | AZ70: 1.635133423 | BA70: 1.644598796 | BB70: 1.653656569 | BC70: 1.662324294 | BD70: 1.670618768 | BE70: 1.678556064 | BF70: 1.686151563 | BG70: 1.693419982 | BH70: 1.700375408 | BI70: 1.707031317 | BJ70: 1.713400608 | BK70: 1.719495624 | BL70: 1.725328175 | BM70: 1.730909563 | BN70: 1.736250605 | BO70: 1.741361649 | BP70: 1.746252601 | BQ70: 1.750932938 | BR70: 1.755411729 | BS70: 1.759697653 | BT70: 1.763799016 | BU70: 1.767723765
A71: Commercial-Grocery-Process | B71: Grocery Process | C71: 0 | D71: 0.08146480174 | E71: 0.1572073816 | F71: 0.2269195725 | G71: 0.2943787612 | H71: 0.3599011629 | I71: 0.4245344025 | J71: 0.4874951228 | K71: 0.5491515978 | L71: 0.6081923273 | M71: 0.66471393 | N71: 0.7189738224 | O71: 0.7711636146 | P71: 0.8204330363 | Q71: 0.8680770616 | R71: 0.914135493 | S71: 0.9584590045 | T71: 1.000561178 | U71: 1.041095106 | V71: 1.079731861 | W71: 1.116876594 | X71: 1.152186181 | Y71: 1.186198565 | Z71: 1.218625707 | AA71: 1.249782791 | AB71: 1.279366741 | AC71: 1.30791732 | AD71: 1.335127035 | AE71: 1.361165039 | AF71: 1.38608179 | AG71: 1.40992557 | AH71: 1.432742585 | AI71: 1.454577049 | AJ71: 1.475471273 | AK71: 1.495465745 | AL71: 1.514599212 | AM71: 1.532908749 | AN71: 1.550429838 | AO71: 1.56719643 | AP71: 1.583241015 | AQ71: 1.598594685 | AR71: 1.613287193 | AS71: 1.627347009 | AT71: 1.640801378 | AU71: 1.653676372 | AV71: 1.665996941 | AW71: 1.677786959 | AX71: 1.689069273 | AY71: 1.699865745 | AZ71: 1.710197298 | BA71: 1.720083951 | BB71: 1.729544864 | BC71: 1.738598368 | BD71: 1.747262009 | BE71: 1.755552574 | BF71: 1.76348613 | BG71: 1.771078049 | BH71: 1.778343043 | BI71: 1.78529519 | BJ71: 1.791947963 | BK71: 1.798314253 | BL71: 1.804406396 | BM71: 1.810236198 | BN71: 1.815814956 | BO71: 1.821153481 | BP71: 1.826262117 | BQ71: 1.831150764 | BR71: 1.835828895 | BS71: 1.840305575 | BT71: 1.844589479 | BU71: 1.84868891
A72: Commercial-Grocery-Refrig | B72: Grocery Refrigeration | C72: 0 | D72: 0.07350031415 | E72: 0.1420938066 | F72: 0.2054493215 | G72: 0.2668640322 | H72: 0.3265643947 | I72: 0.3855817984 | J72: 0.4431546965 | K72: 0.499600055 | L72: 0.5537154066 | M72: 0.6055519066 | N72: 0.6553774191 | O72: 0.7033619514 | P72: 0.7485386142 | Q72: 0.792256542 | R72: 0.8346089176 | S72: 0.8753573627 | T72: 0.9140196779 | U72: 0.9513048988 | V72: 0.9868035227 | W72: 1.020947312 | X72: 1.053379875 | Y72: 1.084655156 | Z72: 1.114470048 | AA72: 1.143100812 | AB72: 1.170311702 | AC72: 1.196584709 | AD72: 1.221590275 | AE72: 1.245519046 | AF72: 1.268417392 | AG72: 1.290329685 | AH72: 1.311298386 | AI72: 1.331364129 | AJ72: 1.350565796 | AK72: 1.368940598 | AL72: 1.38652414 | AM72: 1.403350496 | AN72: 1.419452272 | AO72: 1.434860671 | AP72: 1.449605549 | AQ72: 1.463715481 | AR72: 1.477217808 | AS72: 1.490138696 | AT72: 1.502503181 | AU72: 1.514335224 | AV72: 1.525657754 | AW72: 1.53649271 | AX72: 1.54686109 | AY72: 1.556782984 | AZ72: 1.56627762 | BA72: 1.575363395 | BB72: 1.584057917 | BC72: 1.592378034 | BD72: 1.600339869 | BE72: 1.607958849 | BF72: 1.615249739 | BG72: 1.622226668 | BH72: 1.628903154 | BI72: 1.635292137 | BJ72: 1.641405995 | BK72: 1.647256578 | BL72: 1.652855221 | BM72: 1.658212775 | BN72: 1.66333962 | BO72: 1.668245693 | BP72: 1.672940499 | BQ72: 1.677433136 | BR72: 1.681732311 | BS72: 1.685846353 | BT72: 1.689783236 | BU72: 1.693550588
A73: Commercial-Grocery-Vent | B73: Grocery Ventilation | C73: 0 | D73: 0.07534589456 | E73: 0.145649485 | F73: 0.2105480833 | G73: 0.2734225111 | H73: 0.3345277151 | I73: 0.3949114903 | J73: 0.4537940672 | K73: 0.5115122509 | L73: 0.5668230328 | M73: 0.6198049353 | N73: 0.670714418 | O73: 0.7197304076 | P73: 0.7659115741 | Q73: 0.8105976298 | R73: 0.8538584445 | S73: 0.8954857556 | T73: 0.9349973166 | U73: 0.9730788511 | V73: 1.009353598 | W73: 1.044239431 | X73: 1.077378774 | Y73: 1.109326545 | Z73: 1.139781809 | AA73: 1.169032233 | AB73: 1.196823918 | AC73: 1.223655252 | AD73: 1.249199894 | AE73: 1.273644527 | AF73: 1.297036521 | AG73: 1.319421204 | AH73: 1.340841953 | AI73: 1.361340278 | AJ73: 1.380955899 | AK73: 1.399726829 | AL73: 1.417689441 | AM73: 1.434878544 | AN73: 1.451327446 | AO73: 1.467068022 | AP73: 1.482130774 | AQ73: 1.496544891 | AR73: 1.510338304 | AS73: 1.523537743 | AT73: 1.536168785 | AU73: 1.548255906 | AV73: 1.559822529 | AW73: 1.570891068 | AX73: 1.581482972 | AY73: 1.591618764 | AZ73: 1.601318087 | BA73: 1.610599736 | BB73: 1.619481697 | BC73: 1.627981181 | BD73: 1.636114658 | BE73: 1.64389789 | BF73: 1.651345959 | BG73: 1.658473298 | BH73: 1.665293718 | BI73: 1.671820435 | BJ73: 1.678066098 | BK73: 1.684042809 | BL73: 1.689762149 | BM73: 1.695235202 | BN73: 1.700472573 | BO73: 1.705484412 | BP73: 1.710280429 | BQ73: 1.71486992 | BR73: 1.719261777 | BS73: 1.723464511 | BT73: 1.727486266 | BU73: 1.731334836
A74: Commercial-Healthcare-AirComp | B74: Healthcare Compressed Air | C74: 0 | D74: 0.07237944754 | E74: 0.1398207517 | F74: 0.2019177697 | G74: 0.2620989461 | H74: 0.3206366033 | I74: 0.3785801176 | J74: 0.4351302317 | K74: 0.4906325796 | L74: 0.5438063301 | M74: 0.5947399048 | N74: 0.643680682 | O74: 0.690806358 | P74: 0.7351963658 | Q74: 0.7781750504 | R74: 0.8197841547 | S74: 0.8598394732 | T74: 0.8978548954 | U74: 0.934492042 | V74: 0.969397805 | W74: 1.002971852 | X74: 1.034853581 | Y74: 1.065591997 | Z74: 1.094888453 | AA74: 1.123034241 | AB74: 1.149759971 | AC74: 1.175573909 | AD74: 1.200147965 | AE74: 1.223663808 | AF74: 1.246167007 | AG74: 1.267701169 | AH74: 1.288308022 | AI74: 1.308027499 | AJ74: 1.326897812 | AK74: 1.344955528 | AL74: 1.362235639 | AM74: 1.37877163 | AN74: 1.394595545 | AO74: 1.409738047 | AP74: 1.42422848 | AQ74: 1.438094923 | AR74: 1.451364246 | AS74: 1.464062163 | AT74: 1.47621328 | AU74: 1.487841143 | AV74: 1.498968284 | AW74: 1.509616267 | AX74: 1.519805724 | AY74: 1.5295564 | AZ74: 1.538887191 | BA74: 1.547816177 | BB74: 1.556360662 | BC74: 1.564537202 | BD74: 1.572361643 | BE74: 1.579849146 | BF74: 1.58701422 | BG74: 1.593870751 | BH74: 1.600432024 | BI74: 1.606710755 | BJ74: 1.612719109 | BK74: 1.618468731 | BL74: 1.623970761 | BM74: 1.629235861 | BN74: 1.634274235 | BO74: 1.639095646 | BP74: 1.643709435 | BQ74: 1.648124545 | BR74: 1.652349531 | BS74: 1.656392579 | BT74: 1.660261525 | BU74: 1.663963866
A75: Commercial-Healthcare-Cook | B75: Healthcare Cooking | C75: 0 | D75: 0.07746628808 | E75: 0.1493971025 | F75: 0.2154720218 | G75: 0.2794481974 | H75: 0.3416416901 | I75: 0.4030899801 | J75: 0.4629986525 | K75: 0.5217338057 | L75: 0.5779835631 | M75: 0.6318225497 | N75: 0.6835232552 | O75: 0.7332597394 | P75: 0.7801927003 | Q75: 0.825593782 | R75: 0.8695063183 | S75: 0.9117713291 | T75: 0.9519121419 | U75: 0.9905652695 | V75: 1.027403423 | W75: 1.062830575 | X75: 1.096494397 | Y75: 1.128928478 | Z75: 1.159846833 | AA75: 1.189558312 | AB75: 1.217760474 | AC75: 1.244991228 | AD75: 1.270934853 | AE75: 1.295761287 | AF75: 1.319518641 | AG75: 1.342252951 | AH75: 1.364008272 | AI75: 1.38482676 | AJ75: 1.404748759 | AK75: 1.423812872 | AL75: 1.442056043 | AM75: 1.459513622 | AN75: 1.47621944 | AO75: 1.492205869 | AP75: 1.507503887 | AQ75: 1.522143138 | AR75: 1.536151991 | AS75: 1.549557592 | AT75: 1.562385919 | AU75: 1.574661829 | AV75: 1.586409112 | AW75: 1.59765053 | AX75: 1.608407869 | AY75: 1.618701973 | AZ75: 1.62855279 | BA75: 1.637979409 | BB75: 1.647000098 | BC75: 1.655632335 | BD75: 1.66389285 | BE75: 1.671797648 | BF75: 1.679362049 | BG75: 1.686600709 | BH75: 1.693527657 | BI75: 1.700156316 | BJ75: 1.70649953 | BK75: 1.712569591 | BL75: 1.718378262 | BM75: 1.723936799 | BN75: 1.729255972 | BO75: 1.734346091 | BP75: 1.739217018 | BQ75: 1.743878192 | BR75: 1.748338646 | BS75: 1.752607022 | BT75: 1.756691593 | BU75: 1.760600274
A76: Commercial-Healthcare-Cool | B76: Healthcare Cooling | C76: 0 | D76: 0.09545128278 | E76: 0.1827828202 | F76: 0.2627085655 | G76: 0.3401179489 | H76: 0.4151593645 | I76: 0.4886778504 | J76: 0.5601110142 | K76: 0.6297515422 | L76: 0.6966106611 | M76: 0.7604249358 | N76: 0.8217027625 | O76: 0.8805437523 | P76: 0.9361769667 | Q76: 0.9897600364 | R76: 1.04167578 | S76: 1.091507932 | T76: 1.138824805 | U76: 1.184449775 | V76: 1.227753302 | W76: 1.26943884 | X76: 1.30916699 | Y76: 1.347425425 | Z76: 1.383940899 | AA76: 1.419006757 | AB76: 1.452358061 | AC76: 1.484512409 | AD76: 1.515182611 | AE76: 1.544532086 | AF76: 1.572617708 | AG76: 1.599493902 | AH76: 1.625212747 | AI76: 1.649824083 | AJ76: 1.6733756 | AK76: 1.695912937 | AL76: 1.717479766 | AM76: 1.738117881 | AN76: 1.757867273 | AO76: 1.776766212 | AP76: 1.794851322 | AQ76: 1.812157647 | AR76: 1.828718723 | AS76: 1.844566643 | AT76: 1.859732117 | AU76: 1.874244532 | AV76: 1.888132011 | AW76: 1.901421464 | AX76: 1.914138644 | AY76: 1.926308195 | AZ76: 1.937953697 | BA76: 1.949097719 | BB76: 1.959761855 | BC76: 1.969966769 | BD76: 1.979732238 | BE76: 1.989077183 | BF76: 1.998019715 | BG76: 2.006577162 | BH76: 2.014766106 | BI76: 2.022602417 | BJ76: 2.030101278 | BK76: 2.037277222 | BL76: 2.044144155 | BM76: 2.050715381 | BN76: 2.057003637 | BO76: 2.063021106 | BP76: 2.06877945 | BQ76: 2.074289827 | BR76: 2.079562915 | BS76: 2.084608932 | BT76: 2.089437656 | BU76: 2.094058446
A77: Commercial-Healthcare-ExtLight | B77: Healthcare Exterior Lights | C77: 0 | D77: 0.08614013183 | E77: 0.168335955 | F77: 0.2457807964 | G77: 0.3207366468 | H77: 0.393319704 | I77: 0.4647359774 | J77: 0.534159772 | K77: 0.6019755189 | L77: 0.6669516813 | M77: 0.7294003184 | N77: 0.7894161933 | O77: 0.8472962003 | P77: 0.9017835575 | Q77: 0.9545297359 | R77: 1.005503991 | S77: 1.054539515 | T77: 1.10108923 | U77: 1.145958976 | V77: 1.188739223 | W77: 1.229837395 | X77: 1.268858625 | Y77: 1.30647223 | Z77: 1.342337091 | AA77: 1.376719718 | AB77: 1.409481388 | AC77: 1.441067386 | AD77: 1.471105799 | AE77: 1.499850692 | AF77: 1.527357767 | AG77: 1.553680327 | AH77: 1.578869379 | AI77: 1.602973735 | AJ77: 1.626040105 | AK77: 1.648113186 | AL77: 1.669235751 | AM77: 1.689448732 | AN77: 1.708791298 | AO77: 1.727300931 | AP77: 1.745013498 | AQ77: 1.761963322 | AR77: 1.778183251 | AS77: 1.793704713 | AT77: 1.808557787 | AU77: 1.822771255 | AV77: 1.836372659 | AW77: 1.849388357 | AX77: 1.861843571 | AY77: 1.873762436 | AZ77: 1.885168048 | BA77: 1.896082509 | BB77: 1.90652697 | BC77: 1.916521669 | BD77: 1.926085975 | BE77: 1.93523842 | BF77: 1.943996741 | BG77: 1.952377909 | BH77: 1.960398166 | BI77: 1.968073053 | BJ77: 1.975417442 | BK77: 1.982445566 | BL77: 1.989171044 | BM77: 1.995606907 | BN77: 2.001765628 | BO77: 2.007659141 | BP77: 2.013298866 | BQ77: 2.018695733 | BR77: 2.023860198 | BS77: 2.02880227 | BT77: 2.033531526 | BU77: 2.038057129
A78: Commercial-Healthcare-Heat | B78: Healthcare Heating | C78: 0 | D78: 0.0720982741 | E78: 0.1406380255 | F78: 0.2046250266 | G78: 0.2665844914 | H78: 0.3267667938 | I78: 0.386392444 | J78: 0.444564764 | K78: 0.5016691465 | L78: 0.5563045122 | M78: 0.6088388031 | N78: 0.6593155416 | O78: 0.7080237158 | P78: 0.7538233285 | Q78: 0.7982670195 | R78: 0.8412193655 | S78: 0.8826123215 | T78: 0.9218890601 | U78: 0.9597214835 | V78: 0.9958499522 | W78: 1.030556135 | X78: 1.063472013 | Y78: 1.095213703 | Z78: 1.12545311 | AA78: 1.154482664 | AB78: 1.182075442 | AC78: 1.208715934 | AD78: 1.234051659 | AE78: 1.258296371 | AF78: 1.281497053 | AG78: 1.303698662 | AH78: 1.324944221 | AI78: 1.3452749 | AJ78: 1.364730095 | AK78: 1.383347506 | AL78: 1.401163211 | AM78: 1.418211732 | AN78: 1.434526106 | AO78: 1.450137948 | AP78: 1.465077509 | AQ78: 1.47937374 | AR78: 1.493054343 | AS78: 1.50614583 | AT78: 1.518673569 | AU78: 1.530661835 | AV78: 1.542133861 | AW78: 1.553111875 | AX78: 1.563617152 | AY78: 1.573670049 | AZ78: 1.583290046 | BA78: 1.592495785 | BB78: 1.601305105 | BC78: 1.609735075 | BD78: 1.617802033 | BE78: 1.62552161 | BF78: 1.632908764 | BG78: 1.639977812 | BH78: 1.646742451 | BI78: 1.653215789 | BJ78: 1.659410372 | BK78: 1.665338202 | BL78: 1.671010766 | BM78: 1.676439058 | BN78: 1.681633595 | BO78: 1.686604444 | BP78: 1.691361238 | BQ78: 1.695913193 | BR78: 1.700269131 | BS78: 1.704437493 | BT78: 1.708426356 | BU78: 1.71224345
A79: Commercial-Healthcare-HotWater | B79: Healthcare Hot Water | C79: 0 | D79: 0.07268568331 | E79: 0.140727143 | F79: 0.2035545699 | G79: 0.2643567034 | H79: 0.3234704343 | I79: 0.3819853334 | J79: 0.4390967209 | K79: 0.495118288 | L79: 0.5487737113 | M79: 0.6001879275 | N79: 0.6495843463 | O79: 0.6971456727 | P79: 0.7419552886 | Q79: 0.7853373029 | R79: 0.827315304 | S79: 0.8677235247 | T79: 0.9060910097 | U79: 0.943039478 | V79: 0.9782957754 | W79: 1.012180602 | X79: 1.044359012 | Y79: 1.075375707 | Z79: 1.104937938 | AA79: 1.133340016 | AB79: 1.160315048 | AC79: 1.186357194 | AD79: 1.211153861 | AE79: 1.234882729 | AF79: 1.257589779 | AG79: 1.279319014 | AH79: 1.30011254 | AI79: 1.320010651 | AJ79: 1.339051905 | AK79: 1.357273201 | AL79: 1.374709849 | AM79: 1.391395635 | AN79: 1.407362895 | AO79: 1.42264257 | AP79: 1.437264268 | AQ79: 1.451256324 | AR79: 1.464645851 | AS79: 1.477458796 | AT79: 1.489719986 | AU79: 1.501453184 | AV79: 1.512681123 | AW79: 1.523425563 | AX79: 1.533707324 | AY79: 1.54354633 | AZ79: 1.552961646 | BA79: 1.561971518 | BB79: 1.570593405 | BC79: 1.578844015 | BD79: 1.586739335 | BE79: 1.594294665 | BF79: 1.601524646 | BG79: 1.608443289 | BH79: 1.615063999 | BI79: 1.621399607 | BJ79: 1.62746239 | BK79: 1.633264096 | BL79: 1.638815968 | BM79: 1.644128764 | BN79: 1.649212779 | BO79: 1.654077865 | BP79: 1.65873345 | BQ79: 1.663188556 | BR79: 1.667451814 | BS79: 1.671531488 | BT79: 1.675435481 | BU79: 1.67917136
A80: C-Hos-Lgt-LPD Int-All-All-C | B80: Healthcare Interior Lights | C80: 0 | D80: 0.07463889683 | E80: 0.144227543 | F80: 0.2083730239 | G80: 0.2705145431 | H80: 0.3309266008 | I80: 0.3906609925 | J80: 0.4489254203 | K80: 0.5060663506 | L80: 0.5608087955 | M80: 0.6132456464 | N80: 0.6636232554 | O80: 0.7121240907 | P80: 0.75782667 | Q80: 0.8020611607 | R80: 0.8448739753 | S80: 0.8860813672 | T80: 0.9251973213 | U80: 0.9628885671 | V80: 0.9988014968 | W80: 1.033338496 | X80: 1.066143447 | Y80: 1.097766393 | Z80: 1.127909257 | AA80: 1.156865111 | AB80: 1.184366199 | AC80: 1.210921216 | AD80: 1.236205543 | AE80: 1.26040107 | AF80: 1.283554686 | AG80: 1.305711255 | AH80: 1.326913714 | AI80: 1.347203148 | AJ80: 1.366618875 | AK80: 1.385198518 | AL80: 1.40297808 | AM80: 1.419992015 | AN80: 1.436273293 | AO80: 1.451853463 | AP80: 1.466762717 | AQ80: 1.481029945 | AR80: 1.494682796 | AS80: 1.507747724 | AT80: 1.520250048 | AU80: 1.532213994 | AV80: 1.543662747 | AW80: 1.55461849 | AX80: 1.565102456 | AY80: 1.575134959 | AZ80: 1.58473544 | BA80: 1.593922503 | BB80: 1.602713952 | BC80: 1.611126821 | BD80: 1.619177413 | BE80: 1.626881329 | BF80: 1.634253498 | BG80: 1.641308205 | BH80: 1.64805912 | BI80: 1.654519326 | BJ80: 1.660701342 | BK80: 1.666617146 | BL80: 1.672278203 | BM80: 1.677695483 | BN80: 1.682879482 | BO80: 1.687840247 | BP80: 1.69258739 | BQ80: 1.697130111 | BR80: 1.701477213 | BS80: 1.705637118 | BT80: 1.709617889 | BU80: 1.71342724
A81: Commercial-Healthcare-Misc | B81: Healthcare Other | C81: 0 | D81: 0.07285461733 | E81: 0.1407227208 | F81: 0.2032084588 | G81: 0.2637604929 | H81: 0.3226529559 | I81: 0.3809341482 | J81: 0.4378084837 | K81: 0.4936203138 | L81: 0.5470897357 | M81: 0.5983062196 | N81: 0.6475149207 | O81: 0.6948956676 | P81: 0.7395292889 | Q81: 0.7827404257 | R81: 0.8245726714 | S81: 0.8648419451 | T81: 0.9030611432 | U81: 0.9398930117 | V81: 0.9749848418 | W81: 1.0087358 | X81: 1.04078877 | Y81: 1.071691324 | Z81: 1.101144809 | AA81: 1.129441709 | AB81: 1.156311076 | AC81: 1.18226174 | AD81: 1.206968346 | AE81: 1.230611032 | AF81: 1.253235612 | AG81: 1.274885927 | AH81: 1.295603933 | AI81: 1.315429775 | AJ81: 1.334401873 | AK81: 1.352556991 | AL81: 1.369930309 | AM81: 1.386555494 | AN81: 1.402464762 | AO81: 1.417688942 | AP81: 1.432257535 | AQ81: 1.446198773 | AR81: 1.45953967 | AS81: 1.472306078 | AT81: 1.484522737 | AU81: 1.49621332 | AV81: 1.507400481 | AW81: 1.518105898 | AX81: 1.528350316 | AY81: 1.538153587 | AZ81: 1.547534707 | BA81: 1.556511856 | BB81: 1.565102429 | BC81: 1.573323073 | BD81: 1.581189718 | BE81: 1.588717608 | BF81: 1.59592133 | BG81: 1.602814844 | BH81: 1.609411509 | BI81: 1.615724106 | BJ81: 1.621764869 | BK81: 1.627545504 | BL81: 1.633077212 | BM81: 1.638370712 | BN81: 1.643436262 | BO81: 1.648283679 | BP81: 1.652922355 | BQ81: 1.65736128 | BR81: 1.661609055 | BS81: 1.665673911 | BT81: 1.669563725 | BU81: 1.673286036
A82: Commercial-Healthcare-Motors | B82: Healthcare Motors | C82: 0 | D82: 0.0727858143 | E82: 0.1406329056 | F82: 0.2031333441 | G82: 0.2637016844 | H82: 0.3226083813 | I82: 0.3809042862 | J82: 0.4377922988 | K82: 0.4936170459 | L82: 0.5470998971 | M82: 0.598332248 | N82: 0.6475593077 | O82: 0.6949609904 | P82: 0.7396118753 | Q82: 0.7828412526 | R82: 0.8246913032 | S82: 0.8649772526 | T82: 0.9032117758 | U82: 0.9400598782 | V82: 0.975167428 | W82: 1.008933675 | X82: 1.040999499 | Y82: 1.071914752 | Z82: 1.101380359 | AA82: 1.12968746 | AB82: 1.156568612 | AC82: 1.182530777 | AD82: 1.20724634 | AE82: 1.230897597 | AF82: 1.253530379 | AG82: 1.275188544 | AH82: 1.29591406 | AI82: 1.31574709 | AJ82: 1.334726066 | AK82: 1.352887766 | AL82: 1.370267382 | AM82: 1.386898595 | AN82: 1.40281363 | AO82: 1.418043329 | AP82: 1.432617204 | AQ82: 1.446563496 | AR82: 1.45990923 | AS82: 1.472680267 | AT82: 1.484901355 | AU82: 1.496596176 | AV82: 1.507787392 | AW82: 1.51849669 | AX82: 1.528744822 | AY82: 1.538551647 | AZ82: 1.547936168 | BA82: 1.556916572 | BB82: 1.565510259 | BC82: 1.573733883 | BD82: 1.58160338 | BE82: 1.589133999 | BF82: 1.596340333 | BG82: 1.603236347 | BH82: 1.609835403 | BI82: 1.616150289 | BJ82: 1.622193242 | BK82: 1.627975972 | BL82: 1.633509685 | BM82: 1.638805104 | BN82: 1.643872491 | BO82: 1.648721665 | BP82: 1.653362023 | BQ82: 1.657802557 | BR82: 1.662051872 | BS82: 1.666118202 | BT82: 1.670009427 | BU82: 1.673733087
A83: Commercial-Healthcare-OffEquip | B83: Healthcare Office Eqpmt | C83: 0 | D83: 0.07296240672 | E83: 0.1409564255 | F83: 0.2035815235 | G83: 0.2642667207 | H83: 0.323285009 | I83: 0.3816858404 | J83: 0.4386739031 | K83: 0.4945929693 | L83: 0.5481663185 | M83: 0.5994845269 | N83: 0.6487913426 | O83: 0.6962675141 | P83: 0.7409896727 | Q83: 0.7842860142 | R83: 0.8262005563 | S83: 0.8665482805 | T83: 0.9048424245 | U83: 0.9417468235 | V83: 0.9769078909 | W83: 1.010724917 | X83: 1.042840405 | Y83: 1.073803462 | Z83: 1.10331497 | AA83: 1.131666483 | AB83: 1.158589503 | AC83: 1.18459119 | AD83: 1.209345864 | AE83: 1.233034546 | AF83: 1.255703142 | AG83: 1.277395579 | AH83: 1.298153891 | AI83: 1.318018304 | AJ83: 1.337027313 | AK83: 1.355217751 | AL83: 1.372624869 | AM83: 1.389282399 | AN83: 1.405222618 | AO83: 1.420476417 | AP83: 1.435073353 | AQ83: 1.449041713 | AR83: 1.462408565 | AS83: 1.475199811 | AT83: 1.487440238 | AU83: 1.499153565 | AV83: 1.51036249 | AW83: 1.521088734 | AX83: 1.531353083 | AY83: 1.541175426 | AZ83: 1.550574797 | BA83: 1.559569411 | BB83: 1.568176697 | BC83: 1.576413334 | BD83: 1.584295284 | BE83: 1.591837819 | BF83: 1.599055556 | BG83: 1.605962482 | BH83: 1.61257198 | BI83: 1.618896859 | BJ83: 1.624949374 | BK83: 1.630741255 | BL83: 1.636283725 | BM83: 1.641587524 | BN83: 1.646662929 | BO83: 1.651519776 | BP83: 1.656167477 | BQ83: 1.660615038 | BR83: 1.664871077 | BS83: 1.668943841 | BT83: 1.672841223 | BU83: 1.676570776
A84: Commercial-Healthcare-Process | B84: Healthcare Process | C84: 0 | D84: 0.07369971478 | E84: 0.1424162025 | F84: 0.2057466104 | G84: 0.2671055498 | H84: 0.3267683316 | I84: 0.3857866755 | J84: 0.4433640943 | K84: 0.49984659 | L84: 0.5539595334 | M84: 0.6057945962 | N84: 0.6555977401 | O84: 0.7035487752 | P84: 0.7487246413 | Q84: 0.7924550512 | R84: 0.8347844812 | S84: 0.8755293575 | T84: 0.9142044025 | U84: 0.9514733907 | V84: 0.9869825325 | W84: 1.021133919 | X84: 1.053568262 | Y84: 1.084836574 | Z84: 1.114640271 | AA84: 1.143270714 | AB84: 1.170461136 | AC84: 1.196719107 | AD84: 1.221718266 | AE84: 1.245640907 | AF84: 1.268533386 | AG84: 1.290440064 | AH84: 1.311403393 | AI84: 1.331463994 | AJ84: 1.350660742 | AK84: 1.369030836 | AL84: 1.386609873 | AM84: 1.403431918 | AN84: 1.419529568 | AO84: 1.434934019 | AP84: 1.44967512 | AQ84: 1.463781436 | AR84: 1.477280304 | AS84: 1.490197881 | AT84: 1.502559198 | AU84: 1.51438821 | AV84: 1.525707838 | AW84: 1.536540019 | AX84: 1.546905742 | AY84: 1.556825094 | AZ84: 1.566317297 | BA84: 1.575400745 | BB84: 1.584093039 | BC84: 1.592411024 | BD84: 1.600370819 | BE84: 1.607987847 | BF84: 1.615276869 | BG84: 1.62225201 | BH84: 1.628926786 | BI84: 1.635314131 | BJ84: 1.641426423 | BK84: 1.647275507 | BL84: 1.652872716 | BM84: 1.658228897 | BN84: 1.663354429 | BO84: 1.668259244 | BP84: 1.672952847 | BQ84: 1.677444334 | BR84: 1.681742407 | BS84: 1.685855395 | BT84: 1.689791269 | BU84: 1.693557656
A85: Commercial-Healthcare-Refrig | B85: Healthcare Refrigeration | C85: 0 | D85: 0.07221951342 | E85: 0.1397640818 | F85: 0.202195985 | G85: 0.2627111712 | H85: 0.3215475966 | I85: 0.3797636606 | J85: 0.4365720654 | K85: 0.4923011825 | L85: 0.5457108103 | M85: 0.5968981947 | N85: 0.6460977902 | O85: 0.6934940356 | P85: 0.7381035861 | Q85: 0.781297696 | R85: 0.8231308846 | S85: 0.8633941575 | T85: 0.9015957803 | U85: 0.9384294569 | V85: 0.9735153909 | W85: 1.007258066 | X85: 1.039298482 | Y85: 1.070197744 | Z85: 1.099649344 | AA85: 1.127932807 | AB85: 1.154808655 | AC85: 1.180761703 | AD85: 1.205459454 | AE85: 1.229093666 | AF85: 1.251710136 | AG85: 1.273352691 | AH85: 1.294063271 | AI85: 1.313882007 | AJ85: 1.332847304 | AK85: 1.350995915 | AL85: 1.368363006 | AM85: 1.384982232 | AN85: 1.400885797 | AO85: 1.41610452 | AP85: 1.430667891 | AQ85: 1.444604132 | AR85: 1.457940247 | AS85: 1.47070208 | AT85: 1.48291436 | AU85: 1.494600753 | AV85: 1.505783903 | AW85: 1.516485483 | AX85: 1.526726229 | AY85: 1.536525986 | AZ85: 1.545903744 | BA85: 1.554877675 | BB85: 1.563465169 | BC85: 1.571682866 | BD85: 1.579546692 | BE85: 1.587071883 | BF85: 1.594273024 | BG85: 1.601164067 | BH85: 1.607758367 | BI85: 1.614068702 | BJ85: 1.6201073 | BK85: 1.625885862 | BL85: 1.631415587 | BM85: 1.63670719 | BN85: 1.641770925 | BO85: 1.646616604 | BP85: 1.651253618 | BQ85: 1.655690951 | BR85: 1.659937203 | BS85: 1.664000603 | BT85: 1.667889023 | BU85: 1.671609999
A86: Commercial-Healthcare-Vent | B86: Healthcare Ventilation | C86: 0 | D86: 0.07297265963 | E86: 0.1412125682 | F86: 0.2042945006 | G86: 0.2654344529 | H86: 0.3248675835 | I86: 0.3836527655 | J86: 0.441005468 | K86: 0.4972551925 | L86: 0.551163943 | M86: 0.6028298899 | N86: 0.6524864969 | O86: 0.7003206975 | P86: 0.7453471644 | Q86: 0.7889404596 | R86: 0.8311572615 | S86: 0.8717876186 | T86: 0.9103387218 | U86: 0.9475077814 | V86: 0.9829119362 | W86: 1.016959961 | X86: 1.04929362 | Y86: 1.080474103 | Z86: 1.110194761 | AA86: 1.138735769 | AB86: 1.165858128 | AC86: 1.19204701 | AD86: 1.21697092 | AE86: 1.240821553 | AF86: 1.263645124 | AG86: 1.285485863 | AH86: 1.306386091 | AI86: 1.326386309 | AJ86: 1.345525274 | AK86: 1.363840073 | AL86: 1.381366197 | AM86: 1.398137607 | AN86: 1.414186803 | AO86: 1.429544885 | AP86: 1.444241615 | AQ86: 1.458305471 | AR86: 1.471763706 | AS86: 1.4846424 | AT86: 1.49696651 | AU86: 1.508759916 | AV86: 1.520045472 | AW86: 1.530845047 | AX86: 1.541179569 | AY86: 1.551069063 | AZ86: 1.560532694 | BA86: 1.5695888 | BB86: 1.578254931 | BC86: 1.586547878 | BD86: 1.594483713 | BE86: 1.602077814 | BF86: 1.609344896 | BG86: 1.616299041 | BH86: 1.622953726 | BI86: 1.629321845 | BJ86: 1.635415739 | BK86: 1.641247217 | BL86: 1.646827578 | BM86: 1.652167636 | BN86: 1.65727774 | BO86: 1.662167792 | BP86: 1.666847267 | BQ86: 1.671325234 | BR86: 1.67561037 | BS86: 1.679710978 | BT86: 1.683635005 | BU86: 1.687390055
A87: Commercial-Lodging-AirComp | B87: Lodging Compressed Air | C87: 0 | D87: 0.07906612787 | E87: 0.1528191859 | F87: 0.2208851938 | G87: 0.2867762066 | H87: 0.3507817391 | I87: 0.4139584271 | J87: 0.4755190183 | K87: 0.5358194849 | L87: 0.5935802024 | M87: 0.6488972914 | N87: 0.7020268471 | O87: 0.7531552552 | P87: 0.8013822232 | Q87: 0.8480317077 | R87: 0.8931506501 | S87: 0.9365667496 | T87: 0.9777978138 | U87: 1.017509822 | V87: 1.055358292 | W87: 1.091748155 | X87: 1.126327258 | Y87: 1.15964562 | Z87: 1.191410416 | AA87: 1.22192183 | AB87: 1.250906269 | AC87: 1.278881644 | AD87: 1.305527969 | AE87: 1.331026845 | AF87: 1.355427683 | AG87: 1.378777768 | AH87: 1.401122346 | AI87: 1.422504718 | AJ87: 1.442966317 | AK87: 1.462546795 | AL87: 1.481284095 | AM87: 1.499214525 | AN87: 1.516372832 | AO87: 1.532792264 | AP87: 1.548504639 | AQ87: 1.563540405 | AR87: 1.577928697 | AS87: 1.591697398 | AT87: 1.604873189 | AU87: 1.6174816 | AV87: 1.629547066 | AW87: 1.641092967 | AX87: 1.652141675 | AY87: 1.662714602 | AZ87: 1.672832235 | BA87: 1.682514181 | BB87: 1.691779201 | BC87: 1.700645249 | BD87: 1.709129505 | BE87: 1.71724841 | BF87: 1.725017698 | BG87: 1.732452423 | BH87: 1.739566992 | BI87: 1.746375192 | BJ87: 1.752890216 | BK87: 1.759124689 | BL87: 1.765090692 | BM87: 1.770799786 | BN87: 1.776263033 | BO87: 1.781491021 | BP87: 1.78649388 | BQ87: 1.791281305 | BR87: 1.795862574 | BS87: 1.800246562 | BT87: 1.804441767 | BU87: 1.808456316
A88: Commercial-Lodging-Cook | B88: Lodging Cooking | C88: 0 | D88: 0.08339911644 | E88: 0.1609623091 | F88: 0.2324091917 | G88: 0.3015373681 | H88: 0.3686600514 | I88: 0.4348211488 | J88: 0.4992397272 | K88: 0.5622915268 | L88: 0.6226732184 | M88: 0.6804708052 | N88: 0.7359594244 | O88: 0.7893232833 | P88: 0.8397200438 | Q88: 0.888436978 | R88: 0.9355274214 | S88: 0.9808350619 | T88: 1.023880624 | U88: 1.065318546 | V88: 1.104812498 | W88: 1.142783336 | X88: 1.178883733 | Y88: 1.213652189 | Z88: 1.246803795 | AA88: 1.278652076 | AB88: 1.308898864 | AC88: 1.338086441 | AD88: 1.365903363 | AE88: 1.392522428 | AF88: 1.417995217 | AG88: 1.442371092 | AH88: 1.465697288 | AI88: 1.488019006 | AJ88: 1.509379502 | AK88: 1.529820169 | AL88: 1.549380615 | AM88: 1.568098745 | AN88: 1.586010832 | AO88: 1.603151584 | AP88: 1.619554218 | AQ88: 1.635250519 | AR88: 1.650270902 | AS88: 1.664644475 | AT88: 1.67839909 | AU88: 1.6915614 | AV88: 1.704156913 | AW88: 1.716210036 | AX88: 1.727744124 | AY88: 1.738781529 | AZ88: 1.749343639 | BA88: 1.759450921 | BB88: 1.769122962 | BC88: 1.778378503 | BD88: 1.787235481 | BE88: 1.795711057 | BF88: 1.803821656 | BG88: 1.811582995 | BH88: 1.819010114 | BI88: 1.826117405 | BJ88: 1.83291864 | BK88: 1.839426999 | BL88: 1.845655093 | BM88: 1.851614993 | BN88: 1.857318246 | BO88: 1.862775904 | BP88: 1.867998543 | BQ88: 1.872996284 | BR88: 1.877778812 | BS88: 1.882355393 | BT88: 1.886734896 | BU88: 1.890925809
A89: Commercial-Lodging-Cool | B89: Lodging Cooling | C89: 0 | D89: 0.1000253464 | E89: 0.191703225 | F89: 0.2757606464 | G89: 0.3571437733 | H89: 0.435979023 | I89: 0.5131328765 | J89: 0.5880462583 | K89: 0.6610239193 | L89: 0.7310737051 | M89: 0.7979573357 | N89: 0.8621652516 | O89: 0.9238249464 | P89: 0.9821419094 | Q89: 1.038306421 | R89: 1.092688385 | S89: 1.144886289 | T89: 1.194453012 | U89: 1.24224146 | V89: 1.28760811 | W89: 1.33127371 | X89: 1.372888055 | Y89: 1.41295679 | Z89: 1.45120152 | AA89: 1.487923397 | AB89: 1.522859728 | AC89: 1.556531236 | AD89: 1.588650779 | AE89: 1.619387184 | AF89: 1.648800012 | AG89: 1.676946258 | AH89: 1.703880466 | AI89: 1.729654827 | AJ89: 1.754319287 | AK89: 1.777921641 | AL89: 1.800507627 | AM89: 1.822121009 | AN89: 1.842803672 | AO89: 1.862595694 | AP89: 1.881535428 | AQ89: 1.899659576 | AR89: 1.917003257 | AS89: 1.933600082 | AT89: 1.949482211 | AU89: 1.96468042 | AV89: 1.979224161 | AW89: 1.993141617 | AX89: 2.006459756 | AY89: 2.019204387 | AZ89: 2.031400206 | BA89: 2.043070846 | BB89: 2.054238923 | BC89: 2.064926078 | BD89: 2.07515302 | BE89: 2.084939568 | BF89: 2.094304685 | BG89: 2.10326652 | BH89: 2.111842439 | BI89: 2.120049059 | BJ89: 2.127902285 | BK89: 2.135417333 | BL89: 2.142608767 | BM89: 2.149490521 | BN89: 2.156075933 | BO89: 2.162377762 | BP89: 2.16840822 | BQ89: 2.174178994 | BR89: 2.179701265 | BS89: 2.184985735 | BT89: 2.190042644 | BU89: 2.194881792
A90: Commercial-Lodging-ExtLight | B90: Lodging Exterior Lights | C90: 0 | D90: 0.08711989801 | E90: 0.1702788767 | F90: 0.2486728409 | G90: 0.3245363166 | H90: 0.3979852401 | I90: 0.4702255731 | J90: 0.5404399043 | K90: 0.6090068446 | L90: 0.6747052481 | M90: 0.7378456997 | N90: 0.7985259441 | O90: 0.8570432973 | P90: 0.9121359416 | Q90: 0.9654599383 | R90: 1.016991009 | S90: 1.066557385 | T90: 1.113612721 | U90: 1.158969292 | V90: 1.202214923 | W90: 1.243755916 | X90: 1.283203051 | Y90: 1.321224908 | Z90: 1.357481128 | AA90: 1.392237336 | AB90: 1.425359146 | AC90: 1.457288101 | AD90: 1.487654385 | AE90: 1.516713031 | AF90: 1.544520347 | AG90: 1.571130219 | AH90: 1.596594211 | AI90: 1.620961668 | AJ90: 1.644279808 | AK90: 1.666593818 | AL90: 1.687946937 | AM90: 1.708380545 | AN90: 1.727934236 | AO90: 1.746645902 | AP90: 1.764551802 | AQ90: 1.781686636 | AR90: 1.798083605 | AS90: 1.813774485 | AT90: 1.828789681 | AU90: 1.84315829 | AV90: 1.856908154 | AW90: 1.87006592 | AX90: 1.882657083 | AY90: 1.894706043 | AZ90: 1.906236148 | BA90: 1.917269741 | BB90: 1.927828204 | BC90: 1.937931995 | BD90: 1.947600696 | BE90: 1.956853041 | BF90: 1.965706959 | BG90: 1.974179609 | BH90: 1.982287407 | BI90: 1.990046066 | BJ90: 1.99747062 | BK90: 2.004575456 | BL90: 2.011374342 | BM90: 2.017880453 | BN90: 2.024106397 | BO90: 2.030064238 | BP90: 2.035765521 | BQ90: 2.041221295 | BR90: 2.046442131 | BS90: 2.051438146 | BT90: 2.056219022 | BU90: 2.060794022
A91: Commercial-Lodging-Heat | B91: Lodging Heating | C91: 0 | D91: 0.07944730338 | E91: 0.1560903095 | F91: 0.228121605 | G91: 0.2978222084 | H91: 0.3653231537 | I91: 0.432220333 | J91: 0.4973967968 | K91: 0.5614435067 | L91: 0.6224853298 | M91: 0.6815866318 | N91: 0.7382387255 | O91: 0.7930918595 | P91: 0.8445837584 | Q91: 0.8947655177 | R91: 0.9430631668 | S91: 0.989736235 | T91: 1.033968229 | U91: 1.076487137 | V91: 1.117199777 | W91: 1.15624779 | X91: 1.193257874 | Y91: 1.228946288 | Z91: 1.26290604 | AA91: 1.295508642 | AB91: 1.326484095 | AC91: 1.356374115 | AD91: 1.384809971 | AE91: 1.412021316 | AF91: 1.43806088 | AG91: 1.462979124 | AH91: 1.486824333 | AI91: 1.509642715 | AJ91: 1.531478487 | AK91: 1.552373963 | AL91: 1.572369633 | AM91: 1.591504246 | AN91: 1.609814881 | AO91: 1.627337019 | AP91: 1.644104615 | AQ91: 1.660150162 | AR91: 1.675504752 | AS91: 1.69019814 | AT91: 1.704258798 | AU91: 1.717713973 | AV91: 1.730589739 | AW91: 1.742911046 | AX91: 1.754701771 | AY91: 1.76598476 | AZ91: 1.77678188 | BA91: 1.787114052 | BB91: 1.797001297 | BC91: 1.806462776 | BD91: 1.815516823 | BE91: 1.824180983 | BF91: 1.832472045 | BG91: 1.840406076 | BH91: 1.84799845 | BI91: 1.855263879 | BJ91: 1.862216443 | BK91: 1.868869615 | BL91: 1.875236286 | BM91: 1.881328794 | BN91: 1.887158946 | BO91: 1.892738038 | BP91: 1.898076883 | BQ91: 1.903185825 | BR91: 1.908074764 | BS91: 1.912753175 | BT91: 1.917230124 | BU91: 1.921514285
A92: Commercial-Lodging-HotWater | B92: Lodging Hot Water | C92: 0 | D92: 0.07567079819 | E92: 0.1465484023 | F92: 0.2120753118 | G92: 0.2754474706 | H92: 0.3370256647 | I92: 0.3978855053 | J92: 0.4572503656 | K92: 0.5154114681 | L92: 0.5711249619 | M92: 0.6244825608 | N92: 0.675735234 | O92: 0.7250646312 | P92: 0.7715793176 | Q92: 0.8165844959 | R92: 0.8601099091 | S92: 0.9019943087 | T92: 0.9417755815 | U92: 0.9800835063 | V92: 1.016646114 | W92: 1.051781033 | X92: 1.08515205 | Y92: 1.117306887 | Z92: 1.147960828 | AA92: 1.177409585 | AB92: 1.20538888 | AC92: 1.232388114 | AD92: 1.258101892 | AE92: 1.282708377 | AF92: 1.306255253 | AG92: 1.328788149 | AH92: 1.350350729 | AI92: 1.370984777 | AJ92: 1.390730277 | AK92: 1.409625492 | AL92: 1.427707038 | AM92: 1.445009953 | AN92: 1.461567766 | AO92: 1.477412563 | AP92: 1.492575048 | AQ92: 1.507084604 | AR92: 1.520969346 | AS92: 1.53425618 | AT92: 1.546970854 | AU92: 1.559138007 | AV92: 1.570781214 | AW92: 1.58192304 | AX92: 1.592585074 | AY92: 1.602787978 | AZ92: 1.612551522 | BA92: 1.621894626 | BB92: 1.630835396 | BC92: 1.639391157 | BD92: 1.647578487 | BE92: 1.655413253 | BF92: 1.662910637 | BG92: 1.670085167 | BH92: 1.676950746 | BI92: 1.683520678 | BJ92: 1.689807695 | BK92: 1.695823978 | BL92: 1.701581187 | BM92: 1.707090478 | BN92: 1.712362527 | BO92: 1.71740755 | BP92: 1.722235323 | BQ92: 1.726855201 | BR92: 1.731276138 | BS92: 1.735506699 | BT92: 1.739555083 | BU92: 1.743429134
A93: C-Lod-Lgt-LPD Int-All-All-C | B93: Lodging Interior Lights | C93: 0 | D93: 0.0786990469 | E93: 0.1522852772 | F93: 0.2203532734 | G93: 0.2862557579 | H93: 0.3502590813 | I93: 0.4134279802 | J93: 0.4749792276 | K93: 0.5352609447 | L93: 0.5930132349 | M93: 0.6483450149 | N93: 0.7014984707 | O93: 0.7526666145 | P93: 0.800905042 | Q93: 0.8475715744 | R93: 0.8927168121 | S93: 0.9361558048 | T93: 0.977400645 | U93: 1.017136473 | V93: 1.055003701 | W93: 1.091408652 | X93: 1.125999659 | Y93: 1.15933538 | Z93: 1.191117081 | AA93: 1.221637309 | AB93: 1.250641709 | AC93: 1.278633858 | AD93: 1.305289641 | AE93: 1.330797568 | AF93: 1.355207067 | AG93: 1.37856544 | AH93: 1.400917949 | AI93: 1.422307911 | AJ93: 1.442776773 | AK93: 1.462364201 | AL93: 1.481108152 | AM93: 1.499044946 | AN93: 1.516209343 | AO93: 1.532634603 | AP93: 1.548352555 | AQ93: 1.563393658 | AR93: 1.577787058 | AS93: 1.591560646 | AT93: 1.604741113 | AU93: 1.617354 | AV93: 1.629423749 | AW93: 1.640973747 | AX93: 1.652026378 | AY93: 1.662603057 | AZ93: 1.672724282 | BA93: 1.682409664 | BB93: 1.691677973 | BC93: 1.700547168 | BD93: 1.709034435 | BE93: 1.717156222 | BF93: 1.724928268 | BG93: 1.732365631 | BH93: 1.739482726 | BI93: 1.746293343 | BJ93: 1.75281068 | BK93: 1.759047365 | BL93: 1.765015486 | BM93: 1.770726606 | BN93: 1.776191792 | BO93: 1.781421636 | BP93: 1.786426271 | BQ93: 1.791215395 | BR93: 1.79579829 | BS93: 1.800183834 | BT93: 1.804380528 | BU93: 1.808396502
A94: Commercial-Lodging-Misc | B94: Lodging Other | C94: 0 | D94: 0.07843061458 | E94: 0.1517041281 | F94: 0.2194319662 | G94: 0.285008108 | H94: 0.3487003308 | I94: 0.4115702667 | J94: 0.4728357298 | K94: 0.5328437132 | L94: 0.5903337272 | M94: 0.6454102302 | N94: 0.6983176445 | O94: 0.7492469935 | P94: 0.7972599972 | Q94: 0.8437085596 | R94: 0.8886453715 | S94: 0.9318848376 | T94: 0.9729388234 | U94: 1.012491184 | V94: 1.050180992 | W94: 1.086417785 | X94: 1.120849194 | Y94: 1.15403181 | Z94: 1.185667042 | AA94: 1.216048416 | AB94: 1.244918123 | AC94: 1.272781541 | AD94: 1.299315912 | AE94: 1.324707654 | AF94: 1.349005972 | AG94: 1.372257951 | AH94: 1.394508648 | AI94: 1.415801182 | AJ94: 1.436176812 | AK94: 1.455675023 | AL94: 1.474333597 | AM94: 1.492188693 | AN94: 1.509274909 | AO94: 1.525625354 | AP94: 1.541271714 | AQ94: 1.556244307 | AR94: 1.570572147 | AS94: 1.584282998 | AT94: 1.597403431 | AU94: 1.609958868 | AV94: 1.621973641 | AW94: 1.633471031 | AX94: 1.644473319 | AY94: 1.655001823 | AZ94: 1.665076947 | BA94: 1.674718214 | BB94: 1.683944307 | BC94: 1.692773104 | BD94: 1.701221714 | BE94: 1.709306507 | BF94: 1.717043152 | BG94: 1.72444664 | BH94: 1.731531317 | BI94: 1.738310913 | BJ94: 1.744798564 | BK94: 1.751006843 | BL94: 1.75694778 | BM94: 1.762632886 | BN94: 1.76807318 | BO94: 1.773279202 | BP94: 1.778261042 | BQ94: 1.783028353 | BR94: 1.787590373 | BS94: 1.791955942 | BT94: 1.79613352 | BU94: 1.800131203
A95: Commercial-Lodging-Motors | B95: Lodging Motors | C95: 0 | D95: 0.08117295645 | E95: 0.1569071329 | F95: 0.2268423572 | G95: 0.2945243867 | H95: 0.3602447899 | I95: 0.4250619549 | J95: 0.4881940092 | K95: 0.5499994809 | L95: 0.6091991806 | M95: 0.6658934503 | N95: 0.7203379735 | O95: 0.7727250676 | P95: 0.8221568481 | Q95: 0.8699596904 | R95: 0.9161818311 | S95: 0.9606548854 | T95: 1.002895739 | U95: 1.043574492 | V95: 1.082347046 | W95: 1.119621622 | X95: 1.155047593 | Y95: 1.189176571 | Z95: 1.22171683 | AA95: 1.252971096 | AB95: 1.282665246 | AC95: 1.311319835 | AD95: 1.338617158 | AE95: 1.364738999 | AF95: 1.389735976 | AG95: 1.413656528 | AH95: 1.436547009 | AI95: 1.458451775 | AJ95: 1.479413273 | AK95: 1.499472124 | AL95: 1.518667196 | AM95: 1.537035686 | AN95: 1.554613188 | AO95: 1.571433765 | AP95: 1.58753001 | AQ95: 1.602933116 | AR95: 1.61767293 | AS95: 1.631778015 | AT95: 1.645275704 | AU95: 1.658192153 | AV95: 1.670552391 | AW95: 1.68238037 | AX95: 1.693699011 | AY95: 1.704530246 | AZ95: 1.714895064 | BA95: 1.72481355 | BB95: 1.734304924 | BC95: 1.743387579 | BD95: 1.752079115 | BE95: 1.760396374 | BF95: 1.768355473 | BG95: 1.775971836 | BH95: 1.783260222 | BI95: 1.790234754 | BJ95: 1.796908947 | BK95: 1.803295735 | BL95: 1.809407494 | BM95: 1.815256067 | BN95: 1.820852787 | BO95: 1.8262085 | BP95: 1.831333585 | BQ95: 1.836237972 | BR95: 1.840931166 | BS95: 1.84542226 | BT95: 1.849719958 | BU95: 1.853832587
A96: Commercial-Lodging-OffEquip | B96: Lodging Office Eqpmt | C96: 0 | D96: 0.0747001761 | E96: 0.1443745183 | F96: 0.2086239667 | G96: 0.2708691475 | H96: 0.3313780277 | I96: 0.3912055139 | J96: 0.4495603505 | K96: 0.5067878469 | L96: 0.5616130623 | M96: 0.6141350297 | N96: 0.6645943695 | O96: 0.7131781579 | P96: 0.7589545876 | Q96: 0.8032630033 | R96: 0.846147005 | S96: 0.8874235786 | T96: 0.9266021084 | U96: 0.9643562425 | V96: 1.000328749 | W96: 1.034922164 | X96: 1.067780006 | Y96: 1.099454936 | Z96: 1.129647091 | AA96: 1.158649385 | AB96: 1.186196327 | AC96: 1.212794837 | AD96: 1.238119764 | AE96: 1.262354145 | AF96: 1.285544939 | AG96: 1.307737087 | AH96: 1.328973592 | AI96: 1.349295607 | AJ96: 1.368742511 | AK96: 1.387351988 | AL96: 1.4051601 | AM96: 1.422201356 | AN96: 1.438508778 | AO96: 1.454113966 | AP96: 1.469047161 | AQ96: 1.483337299 | AR96: 1.497012073 | AS96: 1.510097981 | AT96: 1.52262038 | AU96: 1.534603538 | AV96: 1.546070674 | AW96: 1.557044011 | AX96: 1.567544811 | AY96: 1.577593424 | AZ96: 1.587209321 | BA96: 1.596411137 | BB96: 1.605216702 | BC96: 1.61364308 | BD96: 1.6217066 | BE96: 1.629422887 | BF96: 1.636806894 | BG96: 1.643872929 | BH96: 1.650634685 | BI96: 1.657105265 | BJ96: 1.663297207 | BK96: 1.669222511 | BL96: 1.674892658 | BM96: 1.680318636 | BN96: 1.68551096 | BO96: 1.690479691 | BP96: 1.695234457 | BQ96: 1.699784473 | BR96: 1.704138554 | BS96: 1.70830514 | BT96: 1.712292303 | BU96: 1.71610777
A97: Commercial-Lodging-Misc | B97: Lodging Process | C97: 0 | D97: 0.07843061458 | E97: 0.1517041281 | F97: 0.2194319662 | G97: 0.285008108 | H97: 0.3487003308 | I97: 0.4115702667 | J97: 0.4728357298 | K97: 0.5328437132 | L97: 0.5903337272 | M97: 0.6454102302 | N97: 0.6983176445 | O97: 0.7492469935 | P97: 0.7972599972 | Q97: 0.8437085596 | R97: 0.8886453715 | S97: 0.9318848376 | T97: 0.9729388234 | U97: 1.012491184 | V97: 1.050180992 | W97: 1.086417785 | X97: 1.120849194 | Y97: 1.15403181 | Z97: 1.185667042 | AA97: 1.216048416 | AB97: 1.244918123 | AC97: 1.272781541 | AD97: 1.299315912 | AE97: 1.324707654 | AF97: 1.349005972 | AG97: 1.372257951 | AH97: 1.394508648 | AI97: 1.415801182 | AJ97: 1.436176812 | AK97: 1.455675023 | AL97: 1.474333597 | AM97: 1.492188693 | AN97: 1.509274909 | AO97: 1.525625354 | AP97: 1.541271714 | AQ97: 1.556244307 | AR97: 1.570572147 | AS97: 1.584282998 | AT97: 1.597403431 | AU97: 1.609958868 | AV97: 1.621973641 | AW97: 1.633471031 | AX97: 1.644473319 | AY97: 1.655001823 | AZ97: 1.665076947 | BA97: 1.674718214 | BB97: 1.683944307 | BC97: 1.692773104 | BD97: 1.701221714 | BE97: 1.709306507 | BF97: 1.717043152 | BG97: 1.72444664 | BH97: 1.731531317 | BI97: 1.738310913 | BJ97: 1.744798564 | BK97: 1.751006843 | BL97: 1.75694778 | BM97: 1.762632886 | BN97: 1.76807318 | BO97: 1.773279202 | BP97: 1.778261042 | BQ97: 1.783028353 | BR97: 1.787590373 | BS97: 1.791955942 | BT97: 1.79613352 | BU97: 1.800131203
A98: Commercial-Lodging-Refrig | B98: Lodging Refrigeration | C98: 0 | D98: 0.07266981016 | E98: 0.1406493925 | F98: 0.2034961337 | G98: 0.2644075482 | H98: 0.3236235893 | I98: 0.3822052258 | J98: 0.4393639649 | K98: 0.4954303699 | L98: 0.5491604293 | M98: 0.600656126 | N98: 0.6501497651 | O98: 0.6978277359 | P98: 0.7427071587 | Q98: 0.7861611744 | R98: 0.8282412678 | S98: 0.8687421848 | T98: 0.9071712437 | U98: 0.9442216185 | V98: 0.9795162095 | W98: 1.013458144 | X98: 1.0456889 | Y98: 1.076770138 | Z98: 1.106395504 | AA98: 1.134845629 | AB98: 1.161880078 | AC98: 1.187985077 | AD98: 1.212828511 | AE98: 1.236602132 | AF98: 1.259352008 | AG98: 1.281122225 | AH98: 1.301954968 | AI98: 1.321890608 | AJ98: 1.340967775 | AK98: 1.359223437 | AL98: 1.37669297 | AM98: 1.393410226 | AN98: 1.409407601 | AO98: 1.424716094 | AP98: 1.439365369 | AQ98: 1.453383814 | AR98: 1.466798594 | AS98: 1.479635704 | AT98: 1.49192002 | AU98: 1.503675346 | AV98: 1.514924462 | AW98: 1.525689167 | AX98: 1.535990319 | AY98: 1.545847881 | AZ98: 1.555280955 | BA98: 1.56430782 | BB98: 1.572945968 | BC98: 1.581212139 | BD98: 1.58912235 | BE98: 1.59669193 | BF98: 1.603935547 | BG98: 1.610867238 | BH98: 1.617500435 | BI98: 1.623847992 | BJ98: 1.62992221 | BK98: 1.635734858 | BL98: 1.641297201 | BM98: 1.646620017 | BN98: 1.651713621 | BO98: 1.656587883 | BP98: 1.661252248 | BQ98: 1.665715756 | BR98: 1.669987055 | BS98: 1.674074423 | BT98: 1.67798578 | BU98: 1.681728705
A99: Commercial-Lodging-Vent | B99: Lodging Ventilation | C99: 0 | D99: 0.07365731768 | E99: 0.1425331682 | F99: 0.2062172581 | G99: 0.267941295 | H99: 0.3279302403 | I99: 0.3872442378 | J99: 0.4451031953 | K99: 0.5018365463 | L99: 0.5562105807 | M99: 0.6083252651 | N99: 0.658411407 | O99: 0.7066603818 | P99: 0.7520777349 | Q99: 0.7960465912 | R99: 0.8386261049 | S99: 0.8796035514 | T99: 0.9184817284 | U99: 0.9559680478 | V99: 0.9916706179 | W99: 1.026005478 | X99: 1.058614162 | Y99: 1.090059663 | Z99: 1.120033655 | AA99: 1.148816691 | AB99: 1.176171899 | AC99: 1.202583403 | AD99: 1.227719873 | AE99: 1.251773912 | AF99: 1.27479213 | AG99: 1.296819133 | AH99: 1.317897605 | AI99: 1.338068392 | AJ99: 1.35737058 | AK99: 1.375841573 | AL99: 1.393517165 | AM99: 1.410431607 | AN99: 1.426617676 | AO99: 1.442106737 | AP99: 1.456928805 | AQ99: 1.471112602 | AR99: 1.484685614 | AS99: 1.497674141 | AT99: 1.510103355 | AU99: 1.521997339 | AV99: 1.533379141 | AW99: 1.544270819 | AX99: 1.554693477 | AY99: 1.564667312 | AZ99: 1.574211652 | BA99: 1.583344991 | BB99: 1.592085029 | BC99: 1.600448702 | BD99: 1.608452216 | BE99: 1.616111082 | BF99: 1.62344014 | BG99: 1.630453592 | BH99: 1.63716503 | BI99: 1.643587459 | BJ99: 1.649733323 | BK99: 1.655614534 | BL99: 1.661242486 | BM99: 1.666628086 | BN99: 1.671781771 | BO99: 1.676713526 | BP99: 1.68143291 | BQ99: 1.685949066 | BR99: 1.690270747 | BS99: 1.694406326 | BT99: 1.698363818 | BU99: 1.702150893
A100: Commercial-large Office-AirComp | B100: Large Office Compressed Air | C100: 0 | D100: 0.07400103817 | E100: 0.1426178002 | F100: 0.2055234976 | G100: 0.2664584341 | H100: 0.3257395325 | I100: 0.3843963119 | J100: 0.4416307553 | K100: 0.4978011833 | L100: 0.5515995295 | M100: 0.6030930062 | N100: 0.6525458195 | O100: 0.7001288088 | P100: 0.7449994026 | Q100: 0.7884243569 | R100: 0.8304461242 | S100: 0.8709010388 | T100: 0.9093130629 | U100: 0.9463100741 | V100: 0.9815639156 | W100: 1.015474616 | X100: 1.047686728 | Y100: 1.07873271 | Z100: 1.108323334 | AA100: 1.136763798 | AB100: 1.163750693 | AC100: 1.189817255 | AD100: 1.214647565 | AE100: 1.238408628 | AF100: 1.261146487 | AG100: 1.282905203 | AH100: 1.303726942 | AI100: 1.32365205 | AJ100: 1.34271914 | AK100: 1.360965158 | AL100: 1.378425463 | AM100: 1.395133889 | AN100: 1.411122813 | AO100: 1.426423219 | AP100: 1.441064756 | AQ100: 1.455075796 | AR100: 1.468483489 | AS100: 1.481313818 | AT100: 1.493591645 | AU100: 1.505340761 | AV100: 1.516583935 | AW100: 1.527342953 | AX100: 1.537638664 | AY100: 1.547491019 | AZ100: 1.55691911 | BA100: 1.565941206 | BB100: 1.574574791 | BC100: 1.582836595 | BD100: 1.590742628 | BE100: 1.598308209 | BF100: 1.605548 | BG100: 1.612476029 | BH100: 1.619105723 | BI100: 1.625449927 | BJ100: 1.631520935 | BK100: 1.637330513 | BL100: 1.642889917 | BM100: 1.648209922 | BN100: 1.653300835 | BO100: 1.658172522 | BP100: 1.662834424 | BQ100: 1.667295574 | BR100: 1.671564617 | BS100: 1.675649825 | BT100: 1.679559116 | BU100: 1.683300064
A101: Commercial-large Office-Cook | B101: Large Office Cooking | C101: 0 | D101: 0.07635061564 | E101: 0.1468048998 | F101: 0.2111143568 | G101: 0.2733736464 | H101: 0.3339493852 | I101: 0.3938515581 | J101: 0.4522794271 | K101: 0.5096116578 | L101: 0.564503269 | M101: 0.6169982238 | N101: 0.6673849836 | O101: 0.715825908 | P101: 0.7615715857 | Q101: 0.8058193196 | R101: 0.8486096511 | S101: 0.8898053064 | T101: 0.9289445622 | U101: 0.9666135837 | V101: 1.002516964 | W101: 1.037054189 | X101: 1.06987257 | Y101: 1.101487808 | Z101: 1.131622914 | AA101: 1.160598934 | AB101: 1.188074567 | AC101: 1.214613794 | AD101: 1.239910656 | AE101: 1.26411818 | AF101: 1.287283274 | AG101: 1.309450829 | AH101: 1.3306638 | AI101: 1.350963293 | AJ101: 1.370388646 | AK101: 1.3889775 | AL101: 1.406765878 | AM101: 1.423788248 | AN101: 1.440077598 | AO101: 1.455665493 | AP101: 1.470582138 | AQ101: 1.48485644 | AR101: 1.498516059 | AS101: 1.511587465 | AT101: 1.524095988 | AU101: 1.536065866 | AV101: 1.547520294 | AW101: 1.55848147 | AX101: 1.568970633 | AY101: 1.57900811 | AZ101: 1.588613351 | BA101: 1.597804969 | BB101: 1.606600776 | BC101: 1.615017816 | BD101: 1.6230724 | BE101: 1.630780136 | BF101: 1.638155959 | BG101: 1.645214164 | BH101: 1.651968426 | BI101: 1.658431836 | BJ101: 1.664616916 | BK101: 1.670535654 | BL101: 1.676199517 | BM101: 1.681619482 | BN101: 1.686806052 | BO101: 1.691769276 | BP101: 1.696518773 | BQ101: 1.701063746 | BR101: 1.705413003 | BS101: 1.709574971 | BT101: 1.713557716 | BU101: 1.717368955
A102: Commercial-large Office-Cool | B102: Large Office Cooling | C102: 0 | D102: 0.09358819258 | E102: 0.1791348655 | F102: 0.2572292121 | G102: 0.3328438714 | H102: 0.4061795437 | I102: 0.4781083367 | J102: 0.5480260267 | K102: 0.6162577378 | L102: 0.681719819 | M102: 0.7442122197 | N102: 0.8041907742 | O102: 0.8617745907 | P102: 0.9162237979 | Q102: 0.96870728 | R102: 1.01951956 | S102: 1.068330004 | T102: 1.114679064 | U102: 1.159348722 | V102: 1.201772198 | W102: 1.242596782 | X102: 1.281506215 | Y102: 1.318967803 | Z102: 1.354715592 | AA102: 1.389059811 | AB102: 1.42169541 | AC102: 1.453166871 | AD102: 1.483196621 | AE102: 1.511933223 | AF102: 1.539432365 | AG102: 1.565747332 | AH102: 1.59092912 | AI102: 1.615026524 | AJ102: 1.63808624 | AK102: 1.660152955 | AL102: 1.681269428 | AM102: 1.70147658 | AN102: 1.720813567 | AO102: 1.739317861 | AP102: 1.757025319 | AQ102: 1.773970255 | AR102: 1.790185505 | AS102: 1.805702491 | AT102: 1.820551281 | AU102: 1.834760649 | AV102: 1.848358131 | AW102: 1.861370075 | AX102: 1.873821696 | AY102: 1.885737123 | AZ102: 1.897139446 | BA102: 1.908050759 | BB102: 1.918492208 | BC102: 1.928484024 | BD102: 1.938045571 | BE102: 1.947195377 | BF102: 1.955951172 | BG102: 1.964329923 | BH102: 1.972347866 | BI102: 1.98002054 | BJ102: 1.987362811 | BK102: 1.994388908 | BL102: 2.001112445 | BM102: 2.007546453 | BN102: 2.013703397 | BO102: 2.01959521 | BP102: 2.025233309 | BQ102: 2.030628619 | BR102: 2.035791595 | BS102: 2.040732242 | BT102: 2.045460133 | BU102: 2.049984431
A103: Commercial-large Office-ExtLight | B103: Large Office Exterior Lights | C103: 0 | D103: 0.08441512116 | E103: 0.1648346957 | F103: 0.2404982031 | G103: 0.313739897 | H103: 0.3846870527 | I103: 0.4545276998 | J103: 0.5224457806 | K103: 0.5888126275 | L103: 0.6524062627 | M103: 0.713512236 | N103: 0.7722408979 | O103: 0.828875136 | P103: 0.882181669 | Q103: 0.9337847991 | R103: 0.9836700631 | S103: 1.031658442 | T103: 1.077209485 | U103: 1.121120808 | V103: 1.162981867 | W103: 1.203199444 | X103: 1.241386882 | Y103: 1.278200158 | Z103: 1.313301187 | AA103: 1.346955844 | AB103: 1.379018309 | AC103: 1.409933399 | AD103: 1.439335293 | AE103: 1.467471076 | AF103: 1.494395271 | AG103: 1.520160051 | AH103: 1.544815343 | AI103: 1.568408923 | AJ103: 1.590986512 | AK103: 1.61259186 | AL103: 1.633266835 | AM103: 1.653051499 | AN103: 1.671984193 | AO103: 1.690101603 | AP103: 1.707438837 | AQ103: 1.724029492 | AR103: 1.739905717 | AS103: 1.755098276 | AT103: 1.769636611 | AU103: 1.783548893 | AV103: 1.796862081 | AW103: 1.809601975 | AX103: 1.82179326 | AY103: 1.833459562 | AZ103: 1.844623487 | BA103: 1.855306669 | BB103: 1.865529809 | BC103: 1.875312719 | BD103: 1.884674355 | BE103: 1.893632859 | BF103: 1.902205589 | BG103: 1.910409159 | BH103: 1.918259465 | BI103: 1.92577172 | BJ103: 1.93296048 | BK103: 1.939839677 | BL103: 1.94642264 | BM103: 1.952722126 | BN103: 1.958750343 | BO103: 1.964518971 | BP103: 1.97003919 | BQ103: 1.975321696 | BR103: 1.980376725 | BS103: 1.985214074 | BT103: 1.989843116 | BU103: 1.994272821
A104: Commercial-large Office-Heat | B104: Large Office Heating | C104: 0 | D104: 0.07695962085 | E104: 0.1497652409 | F104: 0.2174415992 | G104: 0.2829138648 | H104: 0.3464943333 | I104: 0.4094125689 | J104: 0.4707402333 | K104: 0.5309153429 | L104: 0.5884423846 | M104: 0.6437219737 | N104: 0.6967933536 | O104: 0.7479631576 | P104: 0.7961815054 | Q104: 0.8429394403 | R104: 0.8880723233 | S104: 0.9315656135 | T104: 0.9728754176 | U104: 1.012615137 | V104: 1.050587982 | W104: 1.087071446 | X104: 1.121677269 | Y104: 1.155027381 | Z104: 1.186799341 | AA104: 1.2173144 | AB104: 1.246294303 | AC104: 1.274272884 | AD104: 1.300901482 | AE104: 1.326383394 | AF104: 1.350767999 | AG104: 1.37410255 | AH104: 1.396432263 | AI104: 1.417800409 | AJ104: 1.438248396 | AK104: 1.457815848 | AL104: 1.476540682 | AM104: 1.494459184 | AN104: 1.511606076 | AO104: 1.528014584 | AP104: 1.543716506 | AQ104: 1.558742269 | AR104: 1.57312099 | AS104: 1.586880531 | AT104: 1.600047556 | AU104: 1.612647579 | AV104: 1.624705019 | AW104: 1.636243238 | AX104: 1.647284596 | AY104: 1.657850489 | AZ104: 1.667961391 | BA104: 1.677636896 | BB104: 1.686895752 | BC104: 1.695755901 | BD104: 1.704234513 | BE104: 1.712348017 | BF104: 1.720112136 | BG104: 1.727541915 | BH104: 1.734651751 | BI104: 1.741455422 | BJ104: 1.747966112 | BK104: 1.754196437 | BL104: 1.760158471 | BM104: 1.765863766 | BN104: 1.771323379 | BO104: 1.776547889 | BP104: 1.78154742 | BQ104: 1.78633166 | BR104: 1.790909881 | BS104: 1.795290953 | BT104: 1.799483366 | BU104: 1.803495245
A105: Commercial-large Office-HotWater | B105: Large Office Hot Water | C105: 0 | D105: 0.07279384271 | E105: 0.14089344 | F105: 0.2037557563 | G105: 0.2646021814 | H105: 0.3237590019 | I105: 0.3823111963 | J105: 0.4394552516 | K105: 0.4955090962 | L105: 0.5491989054 | M105: 0.6006436815 | N105: 0.6500699657 | O105: 0.6976600259 | P105: 0.7424955591 | Q105: 0.7859011018 | R105: 0.82790535 | S105: 0.8683378805 | T105: 0.9067263498 | U105: 0.9436988006 | V105: 0.9789702187 | W105: 1.012872743 | X105: 1.045068546 | Y105: 1.076103001 | Z105: 1.105682389 | AA105: 1.134100342 | AB105: 1.161090761 | AC105: 1.187148837 | AD105: 1.211959967 | AE105: 1.235702675 | AF105: 1.258422971 | AG105: 1.28016488 | AH105: 1.300970534 | AI105: 1.320880252 | AJ105: 1.339932613 | AK105: 1.358164537 | AL105: 1.375611355 | AM105: 1.392306874 | AN105: 1.408283448 | AO105: 1.423572035 | AP105: 1.438202262 | AQ105: 1.452202479 | AR105: 1.465599816 | AS105: 1.478420234 | AT105: 1.490688577 | AU105: 1.502428618 | AV105: 1.513663107 | AW105: 1.524413814 | AX105: 1.534701572 | AY105: 1.544546316 | AZ105: 1.553967124 | BA105: 1.562982252 | BB105: 1.571609168 | BC105: 1.57986459 | BD105: 1.587764515 | BE105: 1.595324253 | BF105: 1.602558451 | BG105: 1.609481129 | BH105: 1.616105701 | BI105: 1.622445005 | BJ105: 1.628511324 | BK105: 1.634316414 | BL105: 1.639871524 | BM105: 1.645187419 | BN105: 1.650274399 | BO105: 1.655142324 | BP105: 1.659800624 | BQ105: 1.664258328 | BR105: 1.668524074 | BS105: 1.672606127 | BT105: 1.676512397 | BU105: 1.680250456
A106: C-LOff-Lgt-LPD Int-All-All-C | B106: Large Office Interior Lights | C106: 0 | D106: 0.07776439653 | E106: 0.1500661205 | F106: 0.2165666748 | G106: 0.2809420038 | H106: 0.3435091137 | I106: 0.4053080009 | J106: 0.4655477912 | K106: 0.524588941 | L106: 0.5811387139 | M106: 0.6352732333 | N106: 0.6872569877 | O106: 0.7372681783 | P106: 0.7844528549 | Q106: 0.8300942073 | R106: 0.8742400796 | S106: 0.9167260937 | T106: 0.9570802995 | U106: 0.9959389091 | V106: 1.032974523 | W106: 1.06858877 | X106: 1.102429395 | Y106: 1.135035754 | Z106: 1.16611992 | AA106: 1.195986536 | AB106: 1.224343495 | AC106: 1.251719852 | AD106: 1.277800691 | AE106: 1.302758431 | AF106: 1.326641436 | AG106: 1.349495986 | AH106: 1.371366369 | AI106: 1.392294965 | AJ106: 1.412322329 | AK106: 1.431487271 | AL106: 1.449826929 | AM106: 1.467376841 | AN106: 1.484171015 | AO106: 1.500241994 | AP106: 1.515620922 | AQ106: 1.5303376 | AR106: 1.544420545 | AS106: 1.557897047 | AT106: 1.570793222 | AU106: 1.583134058 | AV106: 1.594943472 | AW106: 1.606244346 | AX106: 1.617058579 | AY106: 1.627407128 | AZ106: 1.637310045 | BA106: 1.646786521 | BB106: 1.655854919 | BC106: 1.664532812 | BD106: 1.672837016 | BE106: 1.680783622 | BF106: 1.688388031 | BG106: 1.695664976 | BH106: 1.70262856 | BI106: 1.709292277 | BJ106: 1.71566904 | BK106: 1.721771205 | BL106: 1.727610598 | BM106: 1.733198533 | BN106: 1.73854584 | BO106: 1.74366288 | BP106: 1.748559569 | BQ106: 1.753245395 | BR106: 1.75772944 | BS106: 1.762020392 | BT106: 1.766126566 | BU106: 1.770055919
A107: Commercial-large Office-Misc | B107: Large Office Other | C107: 0 | D107: 0.0734811006 | E107: 0.1419362626 | F107: 0.2049737293 | G107: 0.2660497197 | H107: 0.3254435184 | I107: 0.3842026186 | J107: 0.4415327213 | K107: 0.4977790371 | L107: 0.5516650801 | M107: 0.6032785238 | N107: 0.6528651398 | O107: 0.7006052039 | P107: 0.7455835284 | Q107: 0.7891232836 | R107: 0.8312693394 | S107: 0.8718387342 | T107: 0.9103469717 | U107: 0.9474543393 | V107: 0.9828096076 | W107: 1.0168131 | X107: 1.049107635 | Y107: 1.080241418 | Z107: 1.109916398 | AA107: 1.138425619 | AB107: 1.16549781 | AC107: 1.191642224 | AD107: 1.216534903 | AE107: 1.240355648 | AF107: 1.26315062 | AG107: 1.28496399 | AH107: 1.305838028 | AI107: 1.325813185 | AJ107: 1.344928167 | AK107: 1.363220015 | AL107: 1.380724177 | AM107: 1.397474571 | AN107: 1.413503656 | AO107: 1.428842493 | AP107: 1.443520806 | AQ107: 1.457567039 | AR107: 1.47100841 | AS107: 1.483870966 | AT107: 1.496179632 | AU107: 1.50795826 | AV107: 1.519229674 | AW107: 1.530015717 | AX107: 1.540337288 | AY107: 1.55021439 | AZ107: 1.559666162 | BA107: 1.56871092 | BB107: 1.577366191 | BC107: 1.585648747 | BD107: 1.593574638 | BE107: 1.601159223 | BF107: 1.608417198 | BG107: 1.615362629 | BH107: 1.622008975 | BI107: 1.628369114 | BJ107: 1.634455372 | BK107: 1.640279542 | BL107: 1.645852911 | BM107: 1.651186278 | BN107: 1.656289978 | BO107: 1.661173902 | BP107: 1.665847514 | BQ107: 1.670319869 | BR107: 1.674599635 | BS107: 1.678695105 | BT107: 1.682614215 | BU107: 1.686364559
A108: Commercial-large Office-Motors | B108: Large Office Motors | C108: 0 | D108: 0.07477198203 | E108: 0.1439953955 | F108: 0.2073694134 | G108: 0.2687454566 | H108: 0.3284568103 | I108: 0.387526592 | J108: 0.4451565986 | K108: 0.5017110527 | L108: 0.5558713518 | M108: 0.607697033 | N108: 0.6574596602 | O108: 0.7053273086 | P108: 0.7504867215 | Q108: 0.7941835049 | R108: 0.8364597633 | S108: 0.8771596817 | T108: 0.915811972 | U108: 0.9530313047 | V108: 0.9884998283 | W108: 1.022617381 | X108: 1.055030034 | Y108: 1.086264597 | Z108: 1.11603564 | AA108: 1.144653422 | AB108: 1.171802565 | AC108: 1.198025597 | AD108: 1.223010517 | AE108: 1.246919532 | AF108: 1.269798971 | AG108: 1.291693172 | AH108: 1.31264456 | AI108: 1.332693735 | AJ108: 1.351879548 | AK108: 1.370239178 | AL108: 1.387808202 | AM108: 1.404620666 | AN108: 1.420709147 | AO108: 1.436104823 | AP108: 1.450837528 | AQ108: 1.46493581 | AR108: 1.478426988 | AS108: 1.491337207 | AT108: 1.503691484 | AU108: 1.515513758 | AV108: 1.526826939 | AW108: 1.537652949 | AX108: 1.548012768 | AY108: 1.55792647 | AZ108: 1.567413266 | BA108: 1.57649154 | BB108: 1.585178883 | BC108: 1.593492131 | BD108: 1.601447391 | BE108: 1.609060081 | BF108: 1.616344951 | BG108: 1.623316119 | BH108: 1.629987093 | BI108: 1.6363708 | BJ108: 1.642479611 | BK108: 1.648325363 | BL108: 1.653919384 | BM108: 1.659272514 | BN108: 1.664395126 | BO108: 1.669297148 | BP108: 1.673988078 | BQ108: 1.678477006 | BR108: 1.68277263 | BS108: 1.686883276 | BT108: 1.690816909 | BU108: 1.69458115
A109: Commercial-large Office-OffEquip | B109: Large Office Office Eqpmt | C109: 0 | D109: 0.07299787851 | E109: 0.1410810853 | F109: 0.2038375908 | G109: 0.264647704 | H109: 0.3237813978 | I109: 0.3822905558 | J109: 0.4393808722 | K109: 0.4953937469 | L109: 0.5490601521 | M109: 0.6004725318 | N109: 0.6498718178 | O109: 0.6974400487 | P109: 0.7422438757 | Q109: 0.785619305 | R109: 0.8276117033 | S109: 0.8680327585 | T109: 0.9063964528 | U109: 0.9433693039 | V109: 0.9785958188 | W109: 1.012474739 | X109: 1.044648374 | Y109: 1.075668443 | Z109: 1.105234772 | AA109: 1.133636729 | AB109: 1.160611544 | AC109: 1.186661855 | AD109: 1.211461279 | AE109: 1.235192786 | AF109: 1.257902361 | AG109: 1.279634012 | AH109: 1.30042985 | AI109: 1.320330174 | AJ109: 1.339373546 | AK109: 1.357596869 | AL109: 1.375035455 | AM109: 1.391723097 | AN109: 1.407692133 | AO109: 1.422973507 | AP109: 1.437596831 | AQ109: 1.451590443 | AR109: 1.464981459 | AS109: 1.477795828 | AT109: 1.490058383 | AU109: 1.501792884 | AV109: 1.513022073 | AW109: 1.523767708 | AX109: 1.534050612 | AY109: 1.543890711 | AZ109: 1.553307075 | BA109: 1.562317949 | BB109: 1.570940794 | BC109: 1.579192322 | BD109: 1.58708852 | BE109: 1.59464469 | BF109: 1.601875476 | BG109: 1.608794887 | BH109: 1.615416334 | BI109: 1.621752647 | BJ109: 1.627816104 | BK109: 1.633618455 | BL109: 1.639170944 | BM109: 1.644484331 | BN109: 1.649568911 | BO109: 1.654434539 | BP109: 1.659090641 | BQ109: 1.663546242 | BR109: 1.667809975 | BS109: 1.671890102 | BT109: 1.67579453 | BU109: 1.679530824
A110: Commercial-large Office-Process | B110: Large Office Process | C110: 0 | D110: 0.07482243137 | E110: 0.1447255541 | F110: 0.2092881175 | G110: 0.2718291174 | H110: 0.332613867 | I110: 0.3927018463 | J110: 0.4513018431 | K110: 0.5087553933 | L110: 0.5638036104 | M110: 0.6165474497 | N110: 0.6672248331 | O110: 0.7160222215 | P110: 0.7619916624 | Q110: 0.8064847294 | R110: 0.8495499844 | S110: 0.8909972984 | T110: 0.9303399887 | U110: 0.9682538653 | V110: 1.004379055 | W110: 1.039117106 | X110: 1.072111486 | Y110: 1.103919497 | Z110: 1.134239862 | AA110: 1.163360641 | AB110: 1.191027348 | AC110: 1.217738947 | AD110: 1.243168696 | AE110: 1.267503385 | AF110: 1.290790168 | AG110: 1.313074172 | AH110: 1.334398577 | AI110: 1.354804706 | AJ110: 1.374332102 | AK110: 1.393018606 | AL110: 1.410900428 | AM110: 1.428012219 | AN110: 1.444387139 | AO110: 1.460056918 | AP110: 1.475051923 | AQ110: 1.489401209 | AR110: 1.503132584 | AS110: 1.516272656 | AT110: 1.528846887 | AU110: 1.540879644 | AV110: 1.552394244 | AW110: 1.563413 | AX110: 1.573957264 | AY110: 1.584047469 | AZ110: 1.593703167 | BA110: 1.60294307 | BB110: 1.611785082 | BC110: 1.620246338 | BD110: 1.628343234 | BE110: 1.636091459 | BF110: 1.643506029 | BG110: 1.650601311 | BH110: 1.657391054 | BI110: 1.663888416 | BJ110: 1.670105988 | BK110: 1.676055817 | BL110: 1.681749434 | BM110: 1.687197871 | BN110: 1.692411686 | BO110: 1.697400982 | BP110: 1.702175429 | BQ110: 1.706744278 | BR110: 1.711116381 | BS110: 1.715300213 | BT110: 1.719303879 | BU110: 1.723135139
A111: Commercial-large Office-Refrig | B111: Large Office Refrigeration | C111: 0 | D111: 0.07200693152 | E111: 0.1393815758 | F111: 0.2016740271 | G111: 0.2620547034 | H111: 0.3207607713 | I111: 0.3788532988 | J111: 0.4355431019 | K111: 0.4911585772 | L111: 0.5444591039 | M111: 0.5955460681 | N111: 0.644650044 | O111: 0.6919570039 | P111: 0.7364782928 | Q111: 0.779589886 | R111: 0.8213435632 | S111: 0.8615312594 | T111: 0.8996605803 | U111: 0.9364250316 | V111: 0.9714460129 | W111: 1.005125865 | X111: 1.037105062 | Y111: 1.067946229 | Z111: 1.097342074 | AA111: 1.125571395 | AB111: 1.152396494 | AC111: 1.178300749 | AD111: 1.202950998 | AE111: 1.226539752 | AF111: 1.249112723 | AG111: 1.270713652 | AH111: 1.291384397 | AI111: 1.311165014 | AJ111: 1.330093835 | AK111: 1.348207539 | AL111: 1.365541227 | AM111: 1.382128488 | AN111: 1.398001465 | AO111: 1.413190917 | AP111: 1.427726278 | AQ111: 1.441635714 | AR111: 1.454946179 | AS111: 1.467683466 | AT111: 1.479872258 | AU111: 1.491536173 | AV111: 1.502697815 | AW111: 1.513378812 | AX111: 1.523599861 | AY111: 1.53338077 | AZ111: 1.542740491 | BA111: 1.551697162 | BB111: 1.560268139 | BC111: 1.56847003 | BD111: 1.576318731 | BE111: 1.583829449 | BF111: 1.591016739 | BG111: 1.597894528 | BH111: 1.604476145 | BI111: 1.610774343 | BJ111: 1.616801326 | BK111: 1.622568774 | BL111: 1.628087864 | BM111: 1.633369289 | BN111: 1.638423284 | BO111: 1.643259644 | BP111: 1.647887738 | BQ111: 1.652316538 | BR111: 1.656554623 | BS111: 1.660610207 | BT111: 1.664491148 | BU111: 1.668204968
A112: Commercial-large Office-Vent | B112: Large Office Ventilation | C112: 0 | D112: 0.07709242929 | E112: 0.1487828885 | F112: 0.2147618261 | G112: 0.2786589215 | H112: 0.3407555364 | I112: 0.4020916068 | J112: 0.4618851382 | K112: 0.5204897736 | L112: 0.5766360656 | M112: 0.6303974748 | N112: 0.6820319919 | O112: 0.7317222573 | P112: 0.7785750293 | Q112: 0.8239014396 | R112: 0.8677606223 | S112: 0.9099678098 | T112: 0.9500414291 | U112: 0.9886465792 | V112: 1.025423154 | W112: 1.060793139 | X112: 1.094401545 | Y112: 1.126791523 | Z112: 1.157668862 | AA112: 1.187333206 | AB112: 1.215505629 | AC112: 1.24270396 | AD112: 1.268609944 | AE112: 1.293400359 | AF112: 1.317123244 | AG112: 1.339824569 | AH112: 1.361548326 | AI112: 1.382336609 | AJ112: 1.402229704 | AK112: 1.421266158 | AL112: 1.43948286 | AM112: 1.456915111 | AN112: 1.473596691 | AO112: 1.489559926 | AP112: 1.504835748 | AQ112: 1.51945376 | AR112: 1.533442288 | AS112: 1.546828439 | AT112: 1.559638154 | AU112: 1.571896253 | AV112: 1.583626492 | AW112: 1.594851601 | AX112: 1.605593332 | AY112: 1.615872501 | AZ112: 1.625709026 | BA112: 1.635121968 | BB112: 1.644129569 | BC112: 1.652749282 | BD112: 1.660997812 | BE112: 1.668891142 | BF112: 1.676444567 | BG112: 1.683672726 | BH112: 1.690589624 | BI112: 1.697208665 | BJ112: 1.703542675 | BK112: 1.70960393 | BL112: 1.715404173 | BM112: 1.720954645 | BN112: 1.726266102 | BO112: 1.731348835 | BP112: 1.736212695 | BQ112: 1.740867106 | BR112: 1.745321088 | BS112: 1.749583272 | BT112: 1.753661917 | BU112: 1.757564926
A113: Commercial-Misc. Com-AirComp | B113: Other Compressed Air | C113: 0 | D113: 0.07508017619 | E113: 0.1446142362 | F113: 0.2083048942 | G113: 0.2699868127 | H113: 0.3299906447 | I113: 0.3893390603 | J113: 0.4472345653 | K113: 0.5040407637 | L113: 0.5584458341 | M113: 0.610502794 | N113: 0.6604917336 | O113: 0.708576029 | P113: 0.7539434938 | Q113: 0.7978360654 | R113: 0.8403026093 | S113: 0.8811820834 | T113: 0.9200065051 | U113: 0.9573922638 | V113: 0.99301835 | W113: 1.027287369 | X113: 1.059845095 | Y113: 1.09121804 | Z113: 1.12112224 | AA113: 1.14986613 | AB113: 1.177137869 | AC113: 1.203478748 | AD113: 1.228574641 | AE113: 1.25258985 | AF113: 1.27557091 | AG113: 1.297562356 | AH113: 1.318606802 | AI113: 1.338745027 | AJ113: 1.358016056 | AK113: 1.376457232 | AL113: 1.394104291 | AM113: 1.410991428 | AN113: 1.427151369 | AO113: 1.442615426 | AP113: 1.457413567 | AQ113: 1.471574468 | AR113: 1.485125569 | AS113: 1.49809313 | AT113: 1.510502279 | AU113: 1.522377063 | AV113: 1.533740492 | AW113: 1.544614588 | AX113: 1.55502042 | AY113: 1.564978155 | AZ113: 1.574507088 | BA113: 1.583625684 | BB113: 1.592351613 | BC113: 1.600701784 | BD113: 1.608692379 | BE113: 1.616338881 | BF113: 1.623656108 | BG113: 1.630658239 | BH113: 1.637358842 | BI113: 1.643770903 | BJ113: 1.649906847 | BK113: 1.655778563 | BL113: 1.661397431 | BM113: 1.666774337 | BN113: 1.671919702 | BO113: 1.676843497 | BP113: 1.681555261 | BQ113: 1.686064127 | BR113: 1.690378832 | BS113: 1.694507735 | BT113: 1.698458839 | BU113: 1.7022398
A114: Commercial-Misc. Com-Cook | B114: Other Cooking | C114: 0 | D114: 0.07681302977 | E114: 0.1482098773 | F114: 0.2138522773 | G114: 0.2774121916 | H114: 0.3391978612 | I114: 0.4002536777 | J114: 0.4597848658 | K114: 0.5181512821 | L114: 0.5740525639 | M114: 0.627569677 | N114: 0.6789670788 | O114: 0.7284201782 | P114: 0.7750676428 | Q114: 0.8201978732 | R114: 0.863855902 | S114: 0.9058755217 | T114: 0.9457781267 | U114: 0.9842076181 | V114: 1.020830362 | W114: 1.056050468 | X114: 1.089514288 | Y114: 1.121760711 | Z114: 1.152499255 | AA114: 1.182036347 | AB114: 1.210076566 | AC114: 1.237150354 | AD114: 1.262941147 | AE114: 1.287621331 | AF114: 1.311238733 | AG114: 1.333839117 | AH114: 1.355466279 | AI114: 1.376162128 | AJ114: 1.395966768 | AK114: 1.414918576 | AL114: 1.433054278 | AM114: 1.450409017 | AN114: 1.467016423 | AO114: 1.482908677 | AP114: 1.498116575 | AQ114: 1.512669588 | AR114: 1.526595917 | AS114: 1.539922547 | AT114: 1.552675303 | AU114: 1.564878897 | AV114: 1.576556977 | AW114: 1.587732174 | AX114: 1.598426142 | AY114: 1.608659605 | AZ114: 1.618452391 | BA114: 1.627823479 | BB114: 1.636791028 | BC114: 1.645372414 | BD114: 1.653584266 | BE114: 1.661442498 | BF114: 1.668962338 | BG114: 1.676158356 | BH114: 1.683044498 | BI114: 1.689634108 | BJ114: 1.695939955 | BK114: 1.701974257 | BL114: 1.70774871 | BM114: 1.713274502 | BN114: 1.718562341 | BO114: 1.723622474 | BP114: 1.728464707 | BQ114: 1.733098423 | BR114: 1.7375326 | BS114: 1.741775832 | BT114: 1.745836341 | BU114: 1.749721996
A115: Commercial-Misc. Com-Cool | B115: Other Cooling | C115: 0 | D115: 0.106376227 | E115: 0.2028988731 | F115: 0.2907710475 | G115: 0.3758329129 | H115: 0.458208405 | I115: 0.5386764541 | J115: 0.616764265 | K115: 0.6927617356 | L115: 0.7657253587 | M115: 0.8353061962 | N115: 0.9020686333 | O115: 0.9661001659 | P115: 1.02671815 | Q115: 1.085034553 | R115: 1.141515265 | S115: 1.195715979 | T115: 1.24718283 | U115: 1.29679152 | V115: 1.343830551 | W115: 1.389105338 | X115: 1.43233486 | Y115: 1.473935708 | Z115: 1.513656276 | AA115: 1.551808049 | AB115: 1.588086101 | AC115: 1.623042115 | AD115: 1.65643063 | AE115: 1.688381363 | AF115: 1.718956226 | AG115: 1.748214469 | AH115: 1.776212787 | AI115: 1.803005436 | AJ115: 1.828644335 | AK115: 1.853179166 | AL115: 1.876657473 | AM115: 1.899124753 | AN115: 1.920624542 | AO115: 1.941198503 | AP115: 1.960886504 | AQ115: 1.979726697 | AR115: 1.997755589 | AS115: 2.015008117 | AT115: 2.031517714 | AU115: 2.047316371 | AV115: 2.062434703 | AW115: 2.076902006 | AX115: 2.090746315 | AY115: 2.103994459 | AZ115: 2.116672107 | BA115: 2.128803829 | BB115: 2.140413131 | BC115: 2.151522512 | BD115: 2.162153498 | BE115: 2.172326691 | BF115: 2.182061803 | BG115: 2.1913777 | BH115: 2.200292435 | BI115: 2.208823281 | BJ115: 2.21698677 | BK115: 2.224798721 | BL115: 2.232274272 | BM115: 2.23942791 | BN115: 2.246273496 | BO115: 2.252824297 | BP115: 2.259093005 | BQ115: 2.265091769 | BR115: 2.270832213 | BS115: 2.276325461 | BT115: 2.281582158 | BU115: 2.286612489
A116: Commercial-Misc. Com-ExtLight | B116: Other Exterior Lights | C116: 0 | D116: 0.09590452937 | E116: 0.1870994834 | F116: 0.2728813175 | G116: 0.3557994576 | H116: 0.4360183934 | I116: 0.5147387951 | J116: 0.5911585217 | K116: 0.6656760084 | L116: 0.7370539117 | M116: 0.8055944943 | N116: 0.8714209141 | O116: 0.9348325833 | P116: 0.9946467899 | Q116: 1.052476615 | R116: 1.108308799 | S116: 1.16199574 | T116: 1.213002669 | U116: 1.262124872 | V116: 1.308975557 | W116: 1.353968395 | X116: 1.396730045 | Y116: 1.437916556 | Z116: 1.477200454 | AA116: 1.514867311 | AB116: 1.550754708 | AC116: 1.585331688 | AD116: 1.61824695 | AE116: 1.649744807 | AF116: 1.679886298 | AG116: 1.708729829 | AH116: 1.736331295 | AI116: 1.762744181 | AJ116: 1.78801967 | AK116: 1.812206741 | AL116: 1.835352263 | AM116: 1.857501088 | AN116: 1.878696136 | AO116: 1.898978478 | AP116: 1.918387418 | AQ116: 1.936960567 | AR116: 1.954733915 | AS116: 1.971741903 | AT116: 1.98801749 | AU116: 2.003592214 | AV116: 2.018496257 | AW116: 2.032758498 | AX116: 2.046406576 | AY116: 2.059466938 | AZ116: 2.071964892 | BA116: 2.083924656 | BB116: 2.095369407 | BC116: 2.106321322 | BD116: 2.116801623 | BE116: 2.126830619 | BF116: 2.136427744 | BG116: 2.145611596 | BH116: 2.154399972 | BI116: 2.1628099 | BJ116: 2.170857679 | BK116: 2.178558902 | BL116: 2.185928494 | BM116: 2.192980735 | BN116: 2.199729291 | BO116: 2.206187239 | BP116: 2.212367094 | BQ116: 2.21828083 | BR116: 2.223939908 | BS116: 2.229355294 | BT116: 2.234537481 | BU116: 2.239496512
A117: Commercial-Misc. Com-Heat | B117: Other Heating | C117: 0 | D117: 0.09358939026 | E117: 0.1837234039 | F117: 0.2683528422 | G117: 0.3500125937 | H117: 0.4289858045 | I117: 0.506926623 | J117: 0.5826841034 | K117: 0.6568804949 | L117: 0.7275937967 | M117: 0.7958800229 | N117: 0.8613070465 | O117: 0.9245220361 | P117: 0.9841550404 | Q117: 1.042106993 | R117: 1.097761331 | S117: 1.151472179 | T117: 1.202501595 | U117: 1.251462746 | V117: 1.298439281 | W117: 1.343493599 | X117: 1.386202846 | Y117: 1.427310689 | Z117: 1.466455158 | AA117: 1.504038117 | AB117: 1.539760367 | AC117: 1.574198695 | AD117: 1.606989617 | AE117: 1.63836849 | AF117: 1.66839612 | AG117: 1.697130694 | AH117: 1.724627894 | AI117: 1.750941004 | AJ117: 1.776121013 | AK117: 1.800216716 | AL117: 1.823274805 | AM117: 1.845339962 | AN117: 1.866454945 | AO117: 1.88666067 | AP117: 1.905996292 | AQ117: 1.924499279 | AR117: 1.942205487 | AS117: 1.959149227 | AT117: 1.975363333 | AU117: 1.990879223 | AV117: 2.005726964 | AW117: 2.01993533 | AX117: 2.033531852 | AY117: 2.046542877 | AZ117: 2.058993619 | BA117: 2.070908205 | BB117: 2.082309723 | BC117: 2.093220266 | BD117: 2.103660977 | BE117: 2.113652088 | BF117: 2.12321296 | BG117: 2.13236212 | BH117: 2.141117297 | BI117: 2.149495457 | BJ117: 2.157512834 | BK117: 2.165184966 | BL117: 2.172526719 | BM117: 2.179552319 | BN117: 2.186275382 | BO117: 2.192708935 | BP117: 2.198865445 | BQ117: 2.204756843 | BR117: 2.210394543 | BS117: 2.215789472 | BT117: 2.220952084 | BU117: 2.225892382
A118: Commercial-Misc. Com-HotWater | B118: Other Hot Water | C118: 0 | D118: 0.07469633942 | E118: 0.1445044825 | F118: 0.2088886859 | G118: 0.2711744271 | H118: 0.331717021 | I118: 0.3916021478 | J118: 0.4500304945 | K118: 0.5073169072 | L118: 0.5621746473 | M118: 0.6147242777 | N118: 0.6651954502 | O118: 0.7137749257 | P118: 0.7595748406 | Q118: 0.8039016296 | R118: 0.8467767417 | S118: 0.8880449418 | T118: 0.927238724 | U118: 0.9649722236 | V118: 1.000983695 | W118: 1.035592231 | X118: 1.068464318 | Y118: 1.100141804 | Z118: 1.130336253 | AA118: 1.159349281 | AB118: 1.186900138 | AC118: 1.21349353 | AD118: 1.238824304 | AE118: 1.263064279 | AF118: 1.286260428 | AG118: 1.308457699 | AH118: 1.329699107 | AI118: 1.350025813 | AJ118: 1.369477206 | AK118: 1.38809098 | AL118: 1.405903203 | AM118: 1.422948393 | AN118: 1.439259579 | AO118: 1.45486837 | AP118: 1.469805012 | AQ118: 1.48409845 | AR118: 1.49777638 | AS118: 1.510865309 | AT118: 1.5233906 | AU118: 1.535376524 | AV118: 1.546846307 | AW118: 1.557822177 | AX118: 1.568325402 | AY118: 1.578376334 | AZ118: 1.587994452 | BA118: 1.597198392 | BB118: 1.60600599 | BC118: 1.614434313 | BD118: 1.622499694 | BE118: 1.630217763 | BF118: 1.637603474 | BG118: 1.64467114 | BH118: 1.651434457 | BI118: 1.657906531 | BJ118: 1.664099903 | BK118: 1.670026575 | BL118: 1.675698031 | BM118: 1.681125262 | BN118: 1.686318784 | BO118: 1.691288662 | BP118: 1.696044526 | BQ118: 1.700595592 | BR118: 1.704950679 | BS118: 1.709118226 | BT118: 1.71310631 | BU118: 1.716922658
A119: C-Oth-Lgt-LPD Int-All-All-C | B119: Other Interior Lights | C119: 0 | D119: 0.07649769119 | E119: 0.1475417618 | F119: 0.212797522 | G119: 0.2759828257 | H119: 0.3374144332 | I119: 0.3981324608 | J119: 0.4573403143 | K119: 0.5154003292 | L119: 0.5710053425 | M119: 0.624233554 | N119: 0.6753475146 | O119: 0.724524579 | P119: 0.7709159829 | Q119: 0.8158001504 | R119: 0.8592170771 | S119: 0.9010084512 | T119: 0.940696202 | U119: 0.9789162927 | V119: 1.015341191 | W119: 1.05037215 | X119: 1.083654137 | Y119: 1.115725044 | Z119: 1.146295561 | AA119: 1.175673809 | AB119: 1.203558688 | AC119: 1.230484343 | AD119: 1.256135374 | AE119: 1.280681815 | AF119: 1.304171232 | AG119: 1.326649143 | AH119: 1.348159106 | AI119: 1.368742803 | AJ119: 1.38844012 | AK119: 1.407289227 | AL119: 1.425326651 | AM119: 1.442587343 | AN119: 1.459104752 | AO119: 1.474910885 | AP119: 1.490036371 | AQ119: 1.50451052 | AR119: 1.518361381 | AS119: 1.531615793 | AT119: 1.54429944 | AU119: 1.556436902 | AV119: 1.568051699 | AW119: 1.579166336 | AX119: 1.589802353 | AY119: 1.59998036 | AZ119: 1.609720079 | BA119: 1.619040384 | BB119: 1.627959337 | BC119: 1.636494219 | BD119: 1.644661571 | BE119: 1.652477219 | BF119: 1.659956308 | BG119: 1.667113331 | BH119: 1.673962156 | BI119: 1.680516057 | BJ119: 1.686787731 | BK119: 1.692789334 | BL119: 1.698532494 | BM119: 1.704028342 | BN119: 1.709287526 | BO119: 1.714320238 | BP119: 1.71913623 | BQ119: 1.723744835 | BR119: 1.728154984 | BS119: 1.732375221 | BT119: 1.736413726 | BU119: 1.740278324
A120: Commercial-Misc. Com-Misc | B120: Other Other | C120: 0 | D120: 0.07629773611 | E120: 0.1472055077 | F120: 0.212376289 | G120: 0.2754868573 | H120: 0.3368427768 | I120: 0.397489983 | J120: 0.4566300815 | K120: 0.5146260812 | L120: 0.5701696419 | M120: 0.6233508716 | N120: 0.674421914 | O120: 0.7235663766 | P120: 0.7699168543 | Q120: 0.8147661174 | R120: 0.858152103 | S120: 0.8999150159 | T120: 0.9395714091 | U120: 0.977764678 | V120: 1.014162394 | W120: 1.049167048 | X120: 1.082421797 | Y120: 1.114469418 | Z120: 1.1450169 | AA120: 1.174370886 | AB120: 1.202235427 | AC120: 1.22914156 | AD120: 1.254771578 | AE120: 1.279297912 | AF120: 1.302768087 | AG120: 1.325227585 | AH120: 1.346719928 | AI120: 1.367286763 | AJ120: 1.386967945 | AK120: 1.405801612 | AL120: 1.42382426 | AM120: 1.441070812 | AN120: 1.457574691 | AO120: 1.473367876 | AP120: 1.488480971 | AQ120: 1.502943264 | AR120: 1.516782778 | AS120: 1.530026333 | AT120: 1.542699591 | AU120: 1.55482711 | AV120: 1.566432392 | AW120: 1.577537925 | AX120: 1.588165229 | AY120: 1.598334898 | AZ120: 1.608066638 | BA120: 1.617379309 | BB120: 1.626290955 | BC120: 1.634818847 | BD120: 1.642979508 | BE120: 1.650788754 | BF120: 1.658261716 | BG120: 1.665412876 | BH120: 1.672256091 | BI120: 1.678804623 | BJ120: 1.68507116 | BK120: 1.691067846 | BL120: 1.696806302 | BM120: 1.702297647 | BN120: 1.707552523 | BO120: 1.712581112 | BP120: 1.71739316 | BQ120: 1.72199799 | BR120: 1.726404525 | BS120: 1.730621306 | BT120: 1.734656503 | BU120: 1.738517935
A121: Commercial-Misc. Com-Motors | B121: Other Motors | C121: 0 | D121: 0.07548532598 | E121: 0.145561142 | F121: 0.2099358274 | G121: 0.2722865254 | H121: 0.3329163799 | I121: 0.3928497449 | J121: 0.4513022101 | K121: 0.5086237263 | L121: 0.5635405251 | M121: 0.616099887 | N121: 0.6665887903 | O121: 0.7151647289 | P121: 0.760976388 | Q121: 0.8052907625 | R121: 0.8481824551 | S121: 0.8894584978 | T121: 0.9286531903 | U121: 0.9664074246 | V121: 1.002375348 | W121: 1.036969962 | X121: 1.069842737 | Y121: 1.101522661 | Z121: 1.131722634 | AA121: 1.160741169 | AB121: 1.188290107 | AC121: 1.214893405 | AD121: 1.240233577 | AE121: 1.264482546 | AF121: 1.287687301 | AG121: 1.309892809 | AH121: 1.331142098 | AI121: 1.351476346 | AJ121: 1.370934957 | AK121: 1.389555637 | AL121: 1.407374469 | AM121: 1.424425984 | AN121: 1.440743222 | AO121: 1.456357805 | AP121: 1.471299989 | AQ121: 1.48559873 | AR121: 1.499281735 | AS121: 1.512375521 | AT121: 1.524905459 | AU121: 1.53689583 | AV121: 1.548369869 | AW121: 1.559349812 | AX121: 1.569856933 | AY121: 1.579911595 | AZ121: 1.589533281 | BA121: 1.598740636 | BB121: 1.607551502 | BC121: 1.615982953 | BD121: 1.624051327 | BE121: 1.631772259 | BF121: 1.639160711 | BG121: 1.646230999 | BH121: 1.652996826 | BI121: 1.659471301 | BJ121: 1.665666971 | BK121: 1.671595842 | BL121: 1.677269402 | BM121: 1.682698647 | BN121: 1.687894096 | BO121: 1.692865818 | BP121: 1.697623447 | BQ121: 1.702176201 | BR121: 1.706532904 | BS121: 1.710701998 | BT121: 1.714691561 | BU121: 1.718509325
A122: Commercial-Misc. Com-OffEquip | B122: Other Office Eqpmt | C122: 0 | D122: 0.07500255779 | E122: 0.1446064881 | F122: 0.2084764569 | G122: 0.27033471 | H122: 0.3304975964 | I122: 0.3900001147 | J122: 0.4480441936 | K122: 0.5049898042 | L122: 0.5595292781 | M122: 0.611735633 | N122: 0.6618708539 | O122: 0.710109956 | P122: 0.7556061013 | Q122: 0.7996313445 | R122: 0.8422270705 | S122: 0.8832316009 | T122: 0.9221686637 | U122: 0.9596689005 | V122: 0.9954057471 | W122: 1.029777783 | X122: 1.06242965 | Y122: 1.093897209 | Z122: 1.123890906 | AA122: 1.152716807 | AB122: 1.180073318 | AC122: 1.206493379 | AD122: 1.231660863 | AE122: 1.25574458 | AF122: 1.278791199 | AG122: 1.300845381 | AH122: 1.32194986 | AI122: 1.342145534 | AJ122: 1.361471538 | AK122: 1.379965322 | AL122: 1.397662722 | AM122: 1.414598034 | AN122: 1.430804074 | AO122: 1.446312246 | AP122: 1.461152602 | AQ122: 1.4753539 | AR122: 1.488943658 | AS122: 1.501948212 | AT122: 1.514392761 | AU122: 1.52630142 | AV122: 1.537697266 | AW122: 1.548602382 | AX122: 1.5590379 | AY122: 1.569024041 | AZ122: 1.578580157 | BA122: 1.587724766 | BB122: 1.596475587 | BC122: 1.60484958 | BD122: 1.612862969 | BE122: 1.620531284 | BF122: 1.627869385 | BG122: 1.634891491 | BH122: 1.64161121 | BI122: 1.648041563 | BJ122: 1.65419501 | BK122: 1.660083477 | BL122: 1.665718373 | BM122: 1.671110619 | BN122: 1.676270662 | BO122: 1.681208503 | BP122: 1.685933709 | BQ122: 1.690455437 | BR122: 1.69478245 | BS122: 1.698923132 | BT122: 1.702885508 | BU122: 1.706677254
A123: Commercial-Misc. Com-Process | B123: Other Process | C123: 0 | D123: 0.07383637629 | E123: 0.1427228216 | F123: 0.2062489978 | G123: 0.2677966537 | H123: 0.3276361813 | I123: 0.3868207393 | J123: 0.444556864 | K123: 0.5011880968 | L123: 0.5554465544 | M123: 0.607425687 | N123: 0.6573675287 | O123: 0.7054552457 | P123: 0.7507560757 | Q123: 0.7946072951 | R123: 0.8370549332 | S123: 0.8779116372 | T123: 0.9166921513 | U123: 0.9540642522 | V123: 0.9896721544 | W123: 1.023916464 | X123: 1.05643938 | Y123: 1.087793782 | Z123: 1.117679985 | AA123: 1.146387994 | AB123: 1.173655757 | AC123: 1.199986637 | AD123: 1.225054126 | AE123: 1.249042153 | AF123: 1.271997203 | AG123: 1.293963758 | AH123: 1.314984385 | AI123: 1.335099817 | AJ123: 1.354349034 | AK123: 1.372769338 | AL123: 1.390396423 | AM123: 1.407264447 | AN123: 1.423406097 | AO123: 1.438852651 | AP123: 1.453634043 | AQ123: 1.467778916 | AR123: 1.48131468 | AS123: 1.494267563 | AT123: 1.506662667 | AU123: 1.518524011 | AV123: 1.529874579 | AW123: 1.540736366 | AX123: 1.551130421 | AY123: 1.561076886 | AZ123: 1.570595033 | BA123: 1.579703308 | BB123: 1.588419361 | BC123: 1.596760081 | BD123: 1.604741632 | BE123: 1.612379479 | BF123: 1.619688424 | BG123: 1.62668263 | BH123: 1.63337565 | BI123: 1.639780453 | BJ123: 1.645909452 | BK123: 1.651774523 | BL123: 1.65738703 | BM123: 1.662757851 | BN123: 1.667897392 | BO123: 1.672815614 | BP123: 1.677522046 | BQ123: 1.682025808 | BR123: 1.686335629 | BS123: 1.690459859 | BT123: 1.694406491 | BU123: 1.698183173
A124: Commercial-Misc. Com-Refrig | B124: Other Refrigeration | C124: 0 | D124: 0.07268111172 | E124: 0.140610787 | F124: 0.2033918006 | G124: 0.2642451837 | H124: 0.3234054284 | I124: 0.3819203152 | J124: 0.439013292 | K124: 0.4950064996 | L124: 0.5486780989 | M124: 0.6001056998 | N124: 0.649538658 | O124: 0.6971534636 | P124: 0.741972908 | Q124: 0.7853593404 | R124: 0.8273852352 | S124: 0.8678272674 | T124: 0.9061994011 | U124: 0.9431999695 | V124: 0.9784382888 | W124: 1.012328544 | X124: 1.044514447 | Y124: 1.075553283 | Z124: 1.105140206 | AA124: 1.133552408 | AB124: 1.160553466 | AC124: 1.186625644 | AD124: 1.211438053 | AE124: 1.235181986 | AF124: 1.257903452 | AG124: 1.279646482 | AH124: 1.300453209 | AI124: 1.320363953 | AJ124: 1.339417296 | AK124: 1.357650161 | AL124: 1.375097878 | AM124: 1.391794258 | AN124: 1.407771655 | AO124: 1.42306103 | AP124: 1.437692011 | AQ124: 1.45169295 | AR124: 1.465090978 | AS124: 1.477912057 | AT124: 1.490181032 | AU124: 1.501921678 | AV124: 1.513156746 | AW124: 1.523908008 | AX124: 1.534196296 | AY124: 1.544041548 | AZ124: 1.553462842 | BA124: 1.562478434 | BB124: 1.571105795 | BC124: 1.579361643 | BD124: 1.587261975 | BE124: 1.594822102 | BF124: 1.602056674 | BG124: 1.608979708 | BH124: 1.615604622 | BI124: 1.621944252 | BJ124: 1.628010884 | BK124: 1.633816274 | BL124: 1.63937167 | BM124: 1.644687839 | BN124: 1.649775082 | BO124: 1.654643257 | BP124: 1.659301798 | BQ124: 1.663759731 | BR124: 1.668025697 | BS124: 1.67210796 | BT124: 1.676014432 | BU124: 1.679752683
A125: Commercial-Misc. Com-Vent | B125: Other Ventilation | C125: 0 | D125: 0.07848553005 | E125: 0.1513306039 | F125: 0.2183123975 | G125: 0.2831934426 | H125: 0.3462286593 | I125: 0.4084512709 | J125: 0.4690963476 | K125: 0.5285141795 | L125: 0.5854440189 | M125: 0.6399544295 | N125: 0.6923057664 | O125: 0.7426845592 | P125: 0.7901872824 | Q125: 0.8361314719 | R125: 0.8805971867 | S125: 0.9233820051 | T125: 0.963994699 | U125: 1.003125033 | V125: 1.040385923 | W125: 1.076223446 | X125: 1.110287993 | Y125: 1.143118218 | Z125: 1.17441677 | AA125: 1.20448548 | AB125: 1.233043904 | AC125: 1.260611641 | AD125: 1.286874251 | AE125: 1.312005936 | AF125: 1.336055394 | AG125: 1.35906923 | AH125: 1.38109204 | AI125: 1.402166499 | AJ125: 1.422333445 | AK125: 1.441631958 | AL125: 1.460099435 | AM125: 1.477771662 | AN125: 1.494682883 | AO125: 1.51086587 | AP125: 1.526351983 | AQ125: 1.541171229 | AR125: 1.555352325 | AS125: 1.568922753 | AT125: 1.581908808 | AU125: 1.594335655 | AV125: 1.606227374 | AW125: 1.61760701 | AX125: 1.628496614 | AY125: 1.638917287 | AZ125: 1.648889224 | BA125: 1.658431746 | BB125: 1.667563347 | BC125: 1.676301721 | BD125: 1.684663801 | BE125: 1.692665792 | BF125: 1.700323199 | BG125: 1.707650862 | BH125: 1.714662979 | BI125: 1.721373139 | BJ125: 1.727794345 | BK125: 1.73393904 | BL125: 1.73981913 | BM125: 1.745446011 | BN125: 1.750830586 | BO125: 1.755983289 | BP125: 1.760914106 | BQ125: 1.765632591 | BR125: 1.770147887 | BS125: 1.774468745 | BT125: 1.778603537 | BU125: 1.782560276
A126: Commercial-Resturant-AirComp | B126: Restaurant Compressed Air | C126: 0 | D126: 0.07960333965 | E126: 0.1536119727 | F126: 0.2217057556 | G126: 0.287610802 | H126: 0.3516444772 | I126: 0.4148505746 | J126: 0.4764418543 | K126: 0.5367810516 | L126: 0.5945677431 | M126: 0.6498860778 | N126: 0.7030002202 | O126: 0.7540923038 | P126: 0.8023124389 | Q126: 0.8489457699 | R126: 0.89404005 | S126: 0.9374362186 | T126: 0.9786557684 | U126: 1.018344378 | V126: 1.056173122 | W126: 1.092544847 | X126: 1.12711335 | Y126: 1.160415894 | Z126: 1.192165204 | AA126: 1.22267129 | AB126: 1.251635661 | AC126: 1.27959343 | AD126: 1.306233266 | AE126: 1.331725933 | AF126: 1.35612083 | AG126: 1.379465228 | AH126: 1.401804365 | AI126: 1.42318153 | AJ126: 1.443638147 | AK126: 1.463213858 | AL126: 1.481946595 | AM126: 1.499872659 | AN126: 1.517026787 | AO126: 1.533442221 | AP126: 1.54915077 | AQ126: 1.564182874 | AR126: 1.578567663 | AS126: 1.592333011 | AT126: 1.605505593 | AU126: 1.618110935 | AV126: 1.630173463 | AW126: 1.641716552 | AX126: 1.65276257 | AY126: 1.663332922 | AZ126: 1.673448092 | BA126: 1.68312768 | BB126: 1.692390444 | BC126: 1.701254333 | BD126: 1.709736523 | BE126: 1.717853451 | BF126: 1.725620847 | BG126: 1.733053761 | BH126: 1.740166598 | BI126: 1.746973141 | BJ126: 1.753486578 | BK126: 1.759719533 | BL126: 1.765684083 | BM126: 1.771391786 | BN126: 1.776853703 | BO126: 1.782080418 | BP126: 1.787082059 | BQ126: 1.791868319 | BR126: 1.796448471 | BS126: 1.800831392 | BT126: 1.805025575 | BU126: 1.809039147
A127: Commercial-Resturant-Cook | B127: Restaurant Cooking | C127: 0 | D127: 0.08346867069 | E127: 0.1611252528 | F127: 0.2326681091 | G127: 0.301873014 | H127: 0.369066214 | I127: 0.435297556 | J127: 0.4997847123 | K127: 0.5628978218 | L127: 0.6233358803 | M127: 0.6811873653 | N127: 0.7367232117 | O127: 0.7901294908 | P127: 0.840567867 | Q127: 0.8893246474 | R127: 0.9364491035 | S127: 0.9817889174 | T127: 1.024868364 | U127: 1.066335351 | V127: 1.10586555 | W127: 1.143866648 | X127: 1.17999541 | Y127: 1.21479033 | Z127: 1.247967323 | AA127: 1.279841873 | AB127: 1.310112638 | AC127: 1.339320783 | AD127: 1.367159279 | AE127: 1.393798989 | AF127: 1.419291534 | AG127: 1.443686314 | AH127: 1.467030602 | AI127: 1.489369632 | AJ127: 1.510746695 | AK127: 1.531203215 | AL127: 1.550778832 | AM127: 1.569511479 | AN127: 1.587437458 | AO127: 1.604591505 | AP127: 1.62100686 | AQ127: 1.636715334 | AR127: 1.651747367 | AS127: 1.666132087 | AT127: 1.67989737 | AU127: 1.693069889 | AV127: 1.705675171 | AW127: 1.717737641 | AX127: 1.729280675 | AY127: 1.74032664 | AZ127: 1.750896942 | BA127: 1.761012064 | BB127: 1.770691605 | BC127: 1.779954325 | BD127: 1.788818172 | BE127: 1.797300321 | BF127: 1.805417211 | BG127: 1.81318457 | BH127: 1.820617449 | BI127: 1.827730252 | BJ127: 1.834536762 | BK127: 1.841050168 | BL127: 1.847283093 | BM127: 1.853247615 | BN127: 1.858955291 | BO127: 1.864417182 | BP127: 1.869643872 | BQ127: 1.874645489 | BR127: 1.879431726 | BS127: 1.884011857 | BT127: 1.888394757 | BU127: 1.89258892
A128: Commercial-Resturant-Cool | B128: Restaurant Cooling | C128: 0 | D128: 0.1037273488 | E128: 0.1985729121 | F128: 0.28539223 | G128: 0.3693834203 | H128: 0.450735482 | I128: 0.5302729127 | J128: 0.6074709958 | K128: 0.682620961 | L128: 0.754753878 | M128: 0.8235682401 | N128: 0.8896154522 | O128: 0.9529777487 | P128: 1.012961993 | Q128: 1.070689984 | R128: 1.126577757 | S128: 1.180209752 | T128: 1.231165075 | U128: 1.280263552 | V128: 1.326882902 | W128: 1.371732133 | X128: 1.414521383 | Y128: 1.455700665 | Z128: 1.495015511 | AA128: 1.532770744 | AB128: 1.568679042 | AC128: 1.60327651 | AD128: 1.636306622 | AE128: 1.667914386 | AF128: 1.698161049 | AG128: 1.727105225 | AH128: 1.754803001 | AI128: 1.781308049 | AJ128: 1.806671732 | AK128: 1.830943199 | AL128: 1.854169483 | AM128: 1.876395592 | AN128: 1.897664596 | AO128: 1.91801771 | AP128: 1.937494374 | AQ128: 1.95613233 | AR128: 1.973967694 | AS128: 1.991035029 | AT128: 2.007367406 | AU128: 2.022996475 | AV128: 2.037952523 | AW128: 2.05226453 | AX128: 2.06596023 | AY128: 2.079066163 | AZ128: 2.091607726 | BA128: 2.103609222 | BB128: 2.115093907 | BC128: 2.126084036 | BD128: 2.136600906 | BE128: 2.146664897 | BF128: 2.156295509 | BG128: 2.165511407 | BH128: 2.174330447 | BI128: 2.182769721 | BJ128: 2.19084558 | BK128: 2.198573676 | BL128: 2.205968982 | BM128: 2.213045831 | BN128: 2.219817934 | BO128: 2.226298416 | BP128: 2.232499835 | BQ128: 2.238434206 | BR128: 2.24411303 | BS128: 2.249547312 | BT128: 2.254747582 | BU128: 2.259723916
A129: Commercial-Resturant-ExtLight | B129: Restaurant Exterior Lights | C129: 0 | D129: 0.09241907982 | E129: 0.1803340868 | F129: 0.2630339334 | G129: 0.3430033937 | H129: 0.4203973889 | I129: 0.4964082955 | J129: 0.5702334835 | K129: 0.6422590996 | L129: 0.7112608922 | M129: 0.7775275683 | N129: 0.841184198 | O129: 0.9025216288 | P129: 0.960344906 | Q129: 1.016266095 | R129: 1.070277735 | S129: 1.122217605 | T129: 1.171553123 | U129: 1.219079482 | V129: 1.264400718 | W129: 1.307930325 | X129: 1.349291608 | Y129: 1.389138862 | Z129: 1.427142944 | AA129: 1.463581379 | AB129: 1.498298829 | AC129: 1.53175533 | AD129: 1.563595918 | AE129: 1.59406538 | AF129: 1.623222761 | AG129: 1.65112456 | AH129: 1.677824846 | AI129: 1.703375359 | AJ129: 1.727825611 | AK129: 1.751222982 | AL129: 1.77361281 | AM129: 1.795038482 | AN129: 1.815541518 | AO129: 1.835161649 | AP129: 1.853936893 | AQ129: 1.871903634 | AR129: 1.889096687 | AS129: 1.90554937 | AT129: 1.921293564 | AU129: 1.936359778 | AV129: 1.950777208 | AW129: 1.964573792 | AX129: 1.977776265 | AY129: 1.99041021 | AZ129: 2.002500109 | BA129: 2.014069391 | BB129: 2.025140474 | BC129: 2.035734812 | BD129: 2.045872934 | BE129: 2.055574487 | BF129: 2.064858269 | BG129: 2.073742271 | BH129: 2.082243709 | BI129: 2.090379056 | BJ129: 2.098164077 | BK129: 2.105613857 | BL129: 2.112742834 | BM129: 2.119564822 | BN129: 2.126093039 | BO129: 2.132340138 | BP129: 2.138318222 | BQ129: 2.144038877 | BR129: 2.149513188 | BS129: 2.154751763 | BT129: 2.159764753 | BU129: 2.164561874
A130: Commercial-Resturant-Heat | B130: Restaurant Heating | C130: 0 | D130: 0.1001697572 | E130: 0.1969056218 | F130: 0.2880066776 | G130: 0.3758565938 | H130: 0.4607587808 | I130: 0.5444734292 | J130: 0.625775054 | K130: 0.7053639093 | L130: 0.781133787 | M130: 0.8543817754 | N130: 0.9245184447 | O130: 0.9923063241 | P130: 1.056278986 | Q130: 1.118463872 | R130: 1.178113357 | S130: 1.23568893 | T130: 1.290407729 | U130: 1.342882115 | V130: 1.393256623 | W130: 1.441568862 | X130: 1.487338143 | Y130: 1.531391778 | Z130: 1.573329268 | AA130: 1.613599731 | AB130: 1.651867948 | AC130: 1.688753359 | AD130: 1.723872299 | AE130: 1.757478939 | AF130: 1.789638404 | AG130: 1.820413011 | AH130: 1.849862396 | AI130: 1.878043626 | AJ130: 1.90501131 | AK130: 1.930817706 | AL130: 1.955512822 | AM130: 1.979144511 | AN130: 2.001758569 | AO130: 2.023398815 | AP130: 2.044107184 | AQ130: 2.063923806 | AR130: 2.08288708 | AS130: 2.101033754 | AT130: 2.118398992 | AU130: 2.135016445 | AV130: 2.150918314 | AW130: 2.166135413 | AX130: 2.18069723 | AY130: 2.194631984 | AZ130: 2.207966676 | BA130: 2.220727147 | BB130: 2.232938125 | BC130: 2.24462327 | BD130: 2.255805228 | BE130: 2.266505666 | BF130: 2.276745319 | BG130: 2.286544031 | BH130: 2.295920788 | BI130: 2.304893762 | BJ130: 2.313480339 | BK130: 2.32169716 | BL130: 2.329560146 | BM130: 2.337084535 | BN130: 2.344284907 | BO130: 2.351175215 | BP130: 2.357768811 | BQ130: 2.364078473 | BR130: 2.370116426 | BS130: 2.375894373 | BT130: 2.381423508 | BU130: 2.386714546
A131: Commercial-Resturant-HotWater | B131: Restaurant Hot Water | C131: 0 | D131: 0.07685381102 | E131: 0.1484265503 | F131: 0.2142653256 | G131: 0.2779477353 | H131: 0.3398458155 | I131: 0.4010288286 | J131: 0.4606992124 | K131: 0.5191897517 | L131: 0.5751901249 | M131: 0.6288060319 | N131: 0.6802842908 | O131: 0.7298077404 | P131: 0.7765390971 | Q131: 0.8217496904 | R131: 0.8654646006 | S131: 0.9075388635 | T131: 0.9475094493 | U131: 0.9859784029 | V131: 1.022686872 | W131: 1.057970122 | X131: 1.091492081 | Y131: 1.123787415 | Z131: 1.154572164 | AA131: 1.184159112 | AB131: 1.212243568 | AC131: 1.239351902 | AD131: 1.265183606 | AE131: 1.28990294 | AF131: 1.313557805 | AG131: 1.336194039 | AH131: 1.357855507 | AI131: 1.378584185 | AJ131: 1.39842024 | AK131: 1.417402111 | AL131: 1.435566581 | AM131: 1.452948849 | AN131: 1.469582598 | AO131: 1.485500062 | AP131: 1.500732084 | AQ131: 1.515308182 | AR131: 1.529256601 | AS131: 1.54260437 | AT131: 1.555377355 | AU131: 1.567600308 | AV131: 1.579296913 | AW131: 1.590489836 | AX131: 1.601200768 | AY131: 1.611450463 | AZ131: 1.621258784 | BA131: 1.630644737 | BB131: 1.63962651 | BC131: 1.648221508 | BD131: 1.656446387 | BE131: 1.664317084 | BF131: 1.671848852 | BG131: 1.679056285 | BH131: 1.68595335 | BI131: 1.692553413 | BJ131: 1.698869262 | BK131: 1.704913137 | BL131: 1.71069675 | BM131: 1.716231307 | BN131: 1.721527534 | BO131: 1.726595694 | BP131: 1.731445607 | BQ131: 1.736086673 | BR131: 1.740527885 | BS131: 1.744777848 | BT131: 1.748844798 | BU131: 1.752736616
A132: C-Res-Lgt-LPD Int-All-All-C | B132: Restaurant Interior Lights | C132: 0 | D132: 0.08272795865 | E132: 0.1597383541 | F132: 0.2307201323 | G132: 0.2993918232 | H132: 0.3660693181 | I132: 0.4318036323 | J132: 0.4958152292 | K132: 0.5584686059 | L132: 0.618470556 | M132: 0.6759137599 | N132: 0.7310612722 | O132: 0.7841023324 | P132: 0.8341800125 | Q132: 0.8825941895 | R132: 0.9293947612 | S132: 0.9744242216 | T132: 1.017202479 | U132: 1.058386063 | V132: 1.097643162 | W132: 1.135381353 | X132: 1.17125813 | Y132: 1.205814574 | Z132: 1.23876346 | AA132: 1.270417084 | AB132: 1.300480895 | AC132: 1.329489582 | AD132: 1.357135311 | AE132: 1.383590553 | AF132: 1.408906575 | AG132: 1.433132432 | AH132: 1.456315072 | AI132: 1.478499415 | AJ132: 1.499728452 | AK132: 1.52004332 | AL132: 1.539483385 | AM132: 1.558086318 | AN132: 1.575888168 | AO132: 1.592923431 | AP132: 1.609225118 | AQ132: 1.624824818 | AR132: 1.639752761 | AS132: 1.654037874 | AT132: 1.667707839 | AU132: 1.680789145 | AV132: 1.693307141 | AW132: 1.705286084 | AX132: 1.716749188 | AY132: 1.727718665 | AZ132: 1.738215773 | BA132: 1.748260852 | BB132: 1.757873368 | BC132: 1.767071947 | BD132: 1.775874416 | BE132: 1.784297831 | BF132: 1.792358515 | BG132: 1.800072088 | BH132: 1.807453498 | BI132: 1.814517049 | BJ132: 1.821276427 | BK132: 1.827744731 | BL132: 1.833934496 | BM132: 1.839857716 | BN132: 1.845525869 | BO132: 1.850949939 | BP132: 1.856140437 | BQ132: 1.86110742 | BR132: 1.865860515 | BS132: 1.87040893 | BT132: 1.874761481 | BU132: 1.878926601
A133: Commercial-Resturant-Misc | B133: Restaurant Other | C133: 0 | D133: 0.08175817225 | E133: 0.1580682858 | F133: 0.2285741436 | G133: 0.2967989188 | H133: 0.3630335086 | I133: 0.4283387028 | J133: 0.491937458 | K133: 0.5541836675 | L133: 0.6138071142 | M133: 0.6709124613 | N133: 0.7257491484 | O133: 0.7785120544 | P133: 0.8282946905 | Q133: 0.8764334825 | R133: 0.922980487 | S133: 0.9677643471 | T133: 1.010299769 | U133: 1.051262683 | V133: 1.090305667 | W133: 1.127836331 | X133: 1.16350987 | Y133: 1.197878134 | Z133: 1.230647484 | AA133: 1.262120589 | AB133: 1.29202546 | AC133: 1.320879465 | AD133: 1.348368945 | AE133: 1.374674669 | AF133: 1.399847609 | AG133: 1.423936548 | AH133: 1.446988164 | AI133: 1.469047126 | AJ133: 1.490156181 | AK133: 1.510356234 | AL133: 1.529686428 | AM133: 1.548184221 | AN133: 1.565885459 | AO133: 1.582824442 | AP133: 1.599033996 | AQ133: 1.61454553 | AR133: 1.629389104 | AS133: 1.64359348 | AT133: 1.657186185 | AU133: 1.670193558 | AV133: 1.682640805 | AW133: 1.694552046 | AX133: 1.705950363 | AY133: 1.716857843 | AZ133: 1.727295624 | BA133: 1.73728393 | BB133: 1.746842118 | BC133: 1.755988709 | BD133: 1.764741428 | BE133: 1.773117236 | BF133: 1.781132363 | BG133: 1.78880234 | BH133: 1.796142032 | BI133: 1.803165661 | BJ133: 1.809886836 | BK133: 1.816318583 | BL133: 1.822473365 | BM133: 1.828363108 | BN133: 1.833999226 | BO133: 1.839392641 | BP133: 1.844553803 | BQ133: 1.849492714 | BR133: 1.854218945 | BS133: 1.858741654 | BT133: 1.863069605 | BU133: 1.867211184
A134: Commercial-Resturant-Motors | B134: Restaurant Motors | C134: 0 | D134: 0.07958212681 | E134: 0.1535466575 | F134: 0.221596813 | G134: 0.287467314 | H134: 0.3514655409 | I134: 0.414631843 | J134: 0.4761857497 | K134: 0.5364847001 | L134: 0.5942370916 | M134: 0.6495246871 | N134: 0.7026117795 | O134: 0.7536810323 | P134: 0.8018719294 | Q134: 0.8484774407 | R134: 0.893550123 | S134: 0.9369253388 | T134: 0.9781204149 | U134: 1.017790182 | V134: 1.055593755 | W134: 1.091944654 | X134: 1.126493811 | Y134: 1.159779858 | Z134: 1.191513929 | AA134: 1.222003587 | AB134: 1.250954582 | AC134: 1.278899437 | AD134: 1.305526874 | AE134: 1.331007674 | AF134: 1.355391216 | AG134: 1.378724748 | AH134: 1.401053487 | AI134: 1.422420701 | AJ134: 1.442867796 | AK134: 1.462434394 | AL134: 1.481158412 | AM134: 1.499076132 | AN134: 1.516222275 | AO134: 1.532630068 | AP134: 1.548331305 | AQ134: 1.563356412 | AR134: 1.577734506 | AS134: 1.591493446 | AT134: 1.604659897 | AU134: 1.617259371 | AV134: 1.629316284 | AW134: 1.640854 | AX134: 1.651894876 | AY134: 1.662460308 | AZ134: 1.67257077 | BA134: 1.682245852 | BB134: 1.691504304 | BC134: 1.700364067 | BD134: 1.708842309 | BE134: 1.716955459 | BF134: 1.72471924 | BG134: 1.732148694 | BH134: 1.73925822 | BI134: 1.746061594 | BJ134: 1.752572 | BK134: 1.758802054 | BL134: 1.764763827 | BM134: 1.770468874 | BN134: 1.775928249 | BO134: 1.781152531 | BP134: 1.786151844 | BQ134: 1.790935875 | BR134: 1.795513896 | BS134: 1.799894777 | BT134: 1.804087007 | BU134: 1.808098711
A135: Commercial-Resturant-OffEquip | B135: Restaurant Office Eqpmt | C135: 0 | D135: 0.08124475495 | E135: 0.1568228424 | F135: 0.2264223887 | G135: 0.2937716851 | H135: 0.359185164 | I135: 0.4237107319 | J135: 0.4865652858 | K135: 0.54811291 | L135: 0.6070558734 | M135: 0.6634836972 | N135: 0.7176591124 | O135: 0.7697686624 | P135: 0.8189572396 | Q135: 0.8665208203 | R135: 0.9125062602 | S135: 0.956755973 | T135: 0.9987890956 | U135: 1.039258726 | V135: 1.077832631 | W135: 1.11491792 | X135: 1.150169763 | Y135: 1.184127552 | Z135: 1.216503608 | AA135: 1.247609339 | AB135: 1.277148077 | AC135: 1.305654801 | AD135: 1.33282046 | AE135: 1.358816306 | AF135: 1.383692714 | AG135: 1.407497889 | AH135: 1.430277961 | AI135: 1.452077072 | AJ135: 1.472937466 | AK135: 1.492899565 | AL135: 1.512002053 | AM135: 1.530281945 | AN135: 1.547774665 | AO135: 1.56451411 | AP135: 1.580532718 | AQ135: 1.595861529 | AR135: 1.610530248 | AS135: 1.624567299 | AT135: 1.637999884 | AU135: 1.650854033 | AV135: 1.663154653 | AW135: 1.674925582 | AX135: 1.686189628 | AY135: 1.69696862 | AZ135: 1.707283445 | BA135: 1.717154091 | BB135: 1.726599685 | BC135: 1.735638531 | BD135: 1.744288144 | BE135: 1.752565286 | BF135: 1.760485996 | BG135: 1.768065623 | BH135: 1.775318855 | BI135: 1.782259746 | BJ135: 1.788901747 | BK135: 1.795257729 | BL135: 1.801340009 | BM135: 1.807160372 | BN135: 1.812730097 | BO135: 1.818059978 | BP135: 1.823160343 | BQ135: 1.828041074 | BR135: 1.832711631 | BS135: 1.837181063 | BT135: 1.841458031 | BU135: 1.845550824
A136: Commercial-Resturant-Process | B136: Restaurant Process | C136: 0 | D136: 0.07563396677 | E136: 0.1446995227 | F136: 0.2070765326 | G136: 0.2674709362 | H136: 0.3263051698 | I136: 0.3845487742 | J136: 0.4414002443 | K136: 0.4972597612 | L136: 0.5507060492 | M136: 0.6017614285 | N136: 0.6507138119 | O136: 0.6977366226 | P136: 0.7422011317 | Q136: 0.7852044112 | R136: 0.8267743032 | S136: 0.866820618 | T136: 0.904881809 | U136: 0.9414834569 | V136: 0.9763794263 | W136: 1.009947651 | X136: 1.041853713 | Y136: 1.072580154 | Z136: 1.101865447 | AA136: 1.130048881 | AB136: 1.156728981 | AC136: 1.18251347 | AD136: 1.207113844 | AE136: 1.230654872 | AF136: 1.253182171 | AG136: 1.274739396 | AH136: 1.295368319 | AI136: 1.315108915 | AJ136: 1.333999438 | AK136: 1.352076493 | AL136: 1.36937511 | AM136: 1.385928811 | AN136: 1.401769673 | AO136: 1.416928392 | AP136: 1.431434344 | AQ136: 1.445315638 | AR136: 1.458599172 | AS136: 1.471310689 | AT136: 1.483474819 | AU136: 1.495115135 | AV136: 1.506254194 | AW136: 1.51691358 | AX136: 1.527113949 | AY136: 1.536875069 | AZ136: 1.546215852 | BA136: 1.555154402 | BB136: 1.563708037 | BC136: 1.571893334 | BD136: 1.579726155 | BE136: 1.587221677 | BF136: 1.594394425 | BG136: 1.601258299 | BH136: 1.607826599 | BI136: 1.614112054 | BJ136: 1.620126843 | BK136: 1.625882622 | BL136: 1.631390545 | BM136: 1.636661285 | BN136: 1.641705054 | BO136: 1.646531628 | BP136: 1.651150359 | BQ136: 1.655570198 | BR136: 1.659799708 | BS136: 1.663847087 | BT136: 1.667720176 | BU136: 1.671426482
A137: Commercial-Resturant-Refrig | B137: Restaurant Refrigeration | C137: 0 | D137: 0.07282313452 | E137: 0.1409172239 | F137: 0.2038643141 | G137: 0.2648759975 | H137: 0.3241875135 | I137: 0.382853613 | J137: 0.4400918955 | K137: 0.4962295922 | L137: 0.5500339473 | M137: 0.6015953878 | N137: 0.6511537864 | O137: 0.6988919747 | P137: 0.7438281903 | Q137: 0.7873322756 | R137: 0.8294654105 | S137: 0.8700138056 | T137: 0.908487142 | U137: 0.9455833153 | V137: 0.9809163682 | W137: 1.014896873 | X137: 1.047166107 | Y137: 1.078284877 | Z137: 1.107947045 | AA137: 1.136431823 | AB137: 1.163500981 | AC137: 1.189638853 | AD137: 1.214513615 | AE137: 1.238317215 | AF137: 1.261095779 | AG137: 1.282893449 | AH137: 1.303752462 | AI137: 1.323713241 | AJ137: 1.342814465 | AK137: 1.361093148 | AL137: 1.37858471 | AM137: 1.395323048 | AN137: 1.411340596 | AO137: 1.426668392 | AP137: 1.441336141 | AQ137: 1.455372263 | AR137: 1.46880396 | AS137: 1.481657258 | AT137: 1.493957064 | AU137: 1.505727214 | AV137: 1.516990516 | AW137: 1.527768794 | AX137: 1.538082937 | AY137: 1.54795293 | AZ137: 1.557397899 | BA137: 1.566436147 | BB137: 1.575085188 | BC137: 1.583361782 | BD137: 1.591281968 | BE137: 1.598861094 | BF137: 1.606113845 | BG137: 1.613054277 | BH137: 1.619695839 | BI137: 1.626051401 | BJ137: 1.632133278 | BK137: 1.637953256 | BL137: 1.643522613 | BM137: 1.648852141 | BN137: 1.653952168 | BO137: 1.658832577 | BP137: 1.663502824 | BQ137: 1.66797196 | BR137: 1.672248646 | BS137: 1.676341168 | BT137: 1.680257457 | BU137: 1.684005102
A138: Commercial-Resturant-Vent | B138: Restaurant Ventilation | C138: 0 | D138: 0.07923736943 | E138: 0.1529634261 | F138: 0.220939574 | G138: 0.2867667948 | H138: 0.3507079732 | I138: 0.4137875748 | J138: 0.4752494187 | K138: 0.5354307322 | L138: 0.5931074525 | M138: 0.6483193939 | N138: 0.7013582159 | O138: 0.7523926019 | P138: 0.8005240579 | Q138: 0.8470572282 | R138: 0.892095976 | S138: 0.9354163267 | T138: 0.9765490721 | U138: 1.016183116 | V138: 1.053928511 | W138: 1.090229393 | X138: 1.12473217 | Y138: 1.157982746 | Z138: 1.189686788 | AA138: 1.220137671 | AB138: 1.249071571 | AC138: 1.276996683 | AD138: 1.303594975 | AE138: 1.329047885 | AF138: 1.353404737 | AG138: 1.376712729 | AH138: 1.399017028 | AI138: 1.420360855 | AJ138: 1.440785569 | AK138: 1.460330751 | AL138: 1.479034273 | AM138: 1.496932381 | AN138: 1.514059757 | AO138: 1.530449591 | AP138: 1.546133642 | AQ138: 1.561142304 | AR138: 1.575504659 | AS138: 1.58924854 | AT138: 1.602400579 | AU138: 1.614986262 | AV138: 1.627029978 | AW138: 1.638555066 | AX138: 1.649583857 | AY138: 1.660137725 | AZ138: 1.670237119 | BA138: 1.679901612 | BB138: 1.68914993 | BC138: 1.697999996 | BD138: 1.706468958 | BE138: 1.714573228 | BF138: 1.72232851 | BG138: 1.729749832 | BH138: 1.736851577 | BI138: 1.743647504 | BJ138: 1.750150784 | BK138: 1.756374018 | BL138: 1.762329266 | BM138: 1.768028068 | BN138: 1.773481468 | BO138: 1.778700031 | BP138: 1.783693872 | BQ138: 1.788472667 | BR138: 1.793045677 | BS138: 1.797421763 | BT138: 1.801609405 | BU138: 1.805616717
A139: Commercial-Retail-AirComp | B139: Retail Compressed Air | C139: 0 | D139: 0.07603779605 | E139: 0.1463420461 | F139: 0.2106425927 | G139: 0.272902284 | H139: 0.3334685495 | I139: 0.3933612681 | J139: 0.4517792993 | K139: 0.5090948882 | L139: 0.5639770645 | M139: 0.6164788912 | N139: 0.6668847785 | O139: 0.7153559655 | P139: 0.7611097409 | Q139: 0.8053694845 | R139: 0.848180105 | S139: 0.88939298 | T139: 0.9285406187 | U139: 0.966227535 | V139: 1.002143413 | W139: 1.036691143 | X139: 1.069518868 | Y139: 1.101146912 | Z139: 1.131294497 | AA139: 1.160276969 | AB139: 1.187766684 | AC139: 1.214318025 | AD139: 1.239621607 | AE139: 1.263835561 | AF139: 1.287006808 | AG139: 1.309180251 | AH139: 1.330398856 | AI139: 1.350703741 | AJ139: 1.370134254 | AK139: 1.388728046 | AL139: 1.406521148 | AM139: 1.42354804 | AN139: 1.439841716 | AO139: 1.455433751 | AP139: 1.470354359 | AQ139: 1.484632453 | AR139: 1.4982957 | AS139: 1.511370578 | AT139: 1.523882423 | AU139: 1.53585548 | AV139: 1.547312951 | AW139: 1.558277038 | AX139: 1.568768987 | AY139: 1.57880913 | AZ139: 1.588416923 | BA139: 1.597610982 | BB139: 1.606409126 | BC139: 1.614828401 | BD139: 1.622885125 | BE139: 1.630594908 | BF139: 1.63797269 | BG139: 1.64503277 | BH139: 1.651788826 | BI139: 1.658253952 | BJ139: 1.664440676 | BK139: 1.670360985 | BL139: 1.676026353 | BM139: 1.681447758 | BN139: 1.686635705 | BO139: 1.691600248 | BP139: 1.696351006 | BQ139: 1.700897187 | BR139: 1.705247598 | BS139: 1.709410672 | BT139: 1.713394475 | BU139: 1.717206726
A140: Commercial-Retail-Cook | B140: Retail Cooking | C140: 0 | D140: 0.07698322776 | E140: 0.1482242713 | F140: 0.2134506036 | G140: 0.2766038114 | H140: 0.3380215982 | I140: 0.3987298347 | J140: 0.4579301937 | K140: 0.5159950512 | L140: 0.5715945415 | M140: 0.6247899933 | N140: 0.6758610893 | O140: 0.7249755256 | P140: 0.7713366706 | Q140: 0.8161829012 | R140: 0.8595562052 | S140: 0.9013080906 | T140: 0.9409652522 | U140: 0.9791451023 | V140: 1.015530743 | W140: 1.050527749 | X140: 1.083784637 | Y140: 1.115824906 | Z140: 1.146366162 | AA140: 1.175724922 | AB140: 1.203576582 | AC140: 1.230473612 | AD140: 1.256106581 | AE140: 1.280635738 | AF140: 1.304108616 | AG140: 1.326570699 | AH140: 1.348065516 | AI140: 1.368634719 | AJ140: 1.388318167 | AK140: 1.407154002 | AL140: 1.425178724 | AM140: 1.442427262 | AN140: 1.458933041 | AO140: 1.474728044 | AP140: 1.489842879 | AQ140: 1.504306837 | AR140: 1.518147945 | AS140: 1.531393024 | AT140: 1.54406774 | AU140: 1.556196656 | AV140: 1.567803274 | AW140: 1.578910085 | AX140: 1.589538613 | AY140: 1.599709452 | AZ140: 1.609442313 | BA140: 1.618756056 | BB140: 1.627668728 | BC140: 1.636197601 | BD140: 1.644359203 | BE140: 1.652169347 | BF140: 1.65964317 | BG140: 1.666795153 | BH140: 1.673639156 | BI140: 1.680188441 | BJ140: 1.6864557 | BK140: 1.692453076 | BL140: 1.698192193 | BM140: 1.70368417 | BN140: 1.708939651 | BO140: 1.713968819 | BP140: 1.718781421 | BQ140: 1.723386781 | BR140: 1.727793824 | BS140: 1.73201109 | BT140: 1.736046751 | BU140: 1.739908628
A141: Commercial-Retail-Cool | B141: Retail Cooling | C141: 0 | D141: 0.1088997446 | E141: 0.2078089287 | F141: 0.2979321161 | G141: 0.3851412281 | H141: 0.4695802742 | I141: 0.552022088 | J141: 0.6319993652 | K141: 0.7098064596 | L141: 0.7845010367 | M141: 0.8557196054 | N141: 0.9240465056 | O141: 0.9895598625 | P141: 1.051608842 | Q141: 1.111291908 | R141: 1.16907647 | S141: 1.224524897 | T141: 1.2771907 | U141: 1.32794368 | V141: 1.376082501 | W141: 1.422402622 | X141: 1.466640362 | Y141: 1.509201704 | Z141: 1.549843001 | AA141: 1.588878875 | AB141: 1.625997031 | AC141: 1.661755856 | AD141: 1.695917961 | AE141: 1.72860897 | AF141: 1.759892233 | AG141: 1.789828369 | AH141: 1.81847539 | AI141: 1.845888806 | AJ141: 1.872121741 | AK141: 1.897225028 | AL141: 1.921247312 | AM141: 1.944235144 | AN141: 1.966233069 | AO141: 1.987283714 | AP141: 2.007427873 | AQ141: 2.02670458 | AR141: 2.04515119 | AS141: 2.062803448 | AT141: 2.079695561 | AU141: 2.095860262 | AV141: 2.111328875 | AW141: 2.126131377 | AX141: 2.140296449 | AY141: 2.153851543 | AZ141: 2.166822925 | BA141: 2.17923573 | BB141: 2.191114012 | BC141: 2.20248079 | BD141: 2.213358089 | BE141: 2.223766988 | BF141: 2.233727656 | BG141: 2.243259396 | BH141: 2.252380679 | BI141: 2.261109179 | BJ141: 2.26946181 | BK141: 2.277454759 | BL141: 2.285103514 | BM141: 2.292422897 | BN141: 2.299427091 | BO141: 2.306129669 | BP141: 2.312543619 | BQ141: 2.318681371 | BR141: 2.324554817 | BS141: 2.33017534 | BT141: 2.33555383 | BU141: 2.340700711
A142: Commercial-Retail-ExtLight | B142: Retail Exterior Lights | C142: 0 | D142: 0.09418290565 | E142: 0.1837412079 | F142: 0.2680004109 | G142: 0.3494547606 | H142: 0.4282690822 | I142: 0.5056264102 | J142: 0.5807421668 | K142: 0.6539901099 | L142: 0.7241699116 | M142: 0.791551756 | N142: 0.8562778345 | O142: 0.9186314561 | P142: 0.9774292882 | Q142: 1.034271458 | R142: 1.089173216 | S142: 1.141958194 | T142: 1.192103091 | U142: 1.240405252 | V142: 1.286466504 | W142: 1.330701638 | X142: 1.372745678 | Y142: 1.413245828 | Z142: 1.451876955 | AA142: 1.48891559 | AB142: 1.524209782 | AC142: 1.558215232 | AD142: 1.59058367 | AE142: 1.621558253 | AF142: 1.651199001 | AG142: 1.679563354 | AH142: 1.706706275 | AI142: 1.732680362 | AJ142: 1.757535948 | AK142: 1.781321197 | AL142: 1.804082202 | AM142: 1.825863067 | AN142: 1.846706001 | AO142: 1.866651392 | AP142: 1.88573789 | AQ142: 1.904002482 | AR142: 1.92148056 | AS142: 1.938205994 | AT142: 1.954211194 | AU142: 1.969527174 | AV142: 1.984183615 | AW142: 1.998208917 | AX142: 2.011630259 | AY142: 2.024473649 | AZ142: 2.036763973 | BA142: 2.048525049 | BB142: 2.059779668 | BC142: 2.070549638 | BD142: 2.080855829 | BE142: 2.090718213 | BF142: 2.100155901 | BG142: 2.109187181 | BH142: 2.117829555 | BI142: 2.126099769 | BJ142: 2.134013849 | BK142: 2.141587131 | BL142: 2.148834292 | BM142: 2.155769374 | BN142: 2.162405815 | BO142: 2.168756477 | BP142: 2.174833666 | BQ142: 2.180649157 | BR142: 2.186214221 | BS142: 2.191539641 | BT142: 2.196635736 | BU142: 2.201512382
A143: Commercial-Retail-Heat | B143: Retail Heating | C143: 0 | D143: 0.09813822447 | E143: 0.1927921518 | F143: 0.2818796732 | G143: 0.3679094914 | H143: 0.4511097152 | I143: 0.5331684526 | J143: 0.6128673855 | K143: 0.6909508719 | L143: 0.7653134689 | M143: 0.8371831289 | N143: 0.9060519281 | O143: 0.9726230573 | P143: 1.03544565 | Q143: 1.096507003 | R143: 1.155136322 | S143: 1.211711743 | T143: 1.265483013 | U143: 1.317058847 | V143: 1.366521633 | W143: 1.413965856 | X143: 1.458932917 | Y143: 1.502214621 | Z143: 1.543422301 | AA143: 1.582981189 | AB143: 1.620567198 | AC143: 1.656818482 | AD143: 1.691317581 | AE143: 1.724331072 | AF143: 1.75592293 | AG143: 1.786154373 | AH143: 1.815083984 | AI143: 1.842767822 | AJ143: 1.869259533 | AK143: 1.894610452 | AL143: 1.918869706 | AM143: 1.942084302 | AN143: 1.964299227 | AO143: 1.985557528 | AP143: 2.0059004 | AQ143: 2.025367263 | AR143: 2.04399584 | AS143: 2.061822229 | AT143: 2.078880975 | AU143: 2.095205134 | AV143: 2.110826339 | AW143: 2.12577486 | AX143: 2.140079665 | AY143: 2.153768474 | AZ143: 2.166867812 | BA143: 2.179403064 | BB143: 2.191398521 | BC143: 2.202877426 | BD143: 2.213862025 | BE143: 2.224373603 | BF143: 2.234432529 | BG143: 2.244058296 | BH143: 2.253269555 | BI143: 2.262084158 | BJ143: 2.270519185 | BK143: 2.278590981 | BL143: 2.286315187 | BM143: 2.293706772 | BN143: 2.300780059 | BO143: 2.307548755 | BP143: 2.314025976 | BQ143: 2.320224274 | BR143: 2.326155659 | BS143: 2.331831626 | BT143: 2.337263173 | BU143: 2.342460826
A144: Commercial-Retail-HotWater | B144: Retail Hot Water | C144: 0 | D144: 0.07474642256 | E144: 0.1444216656 | F144: 0.2085314214 | G144: 0.2705542907 | H144: 0.3308581184 | I144: 0.3905175745 | J144: 0.448729853 | K144: 0.5058204853 | L144: 0.5604831587 | M144: 0.6128282081 | N144: 0.6630954265 | O144: 0.7114661984 | P144: 0.7570870439 | Q144: 0.801237584 | R144: 0.8439387391 | S144: 0.8850420779 | T144: 0.9240840576 | U144: 0.9616645474 | V144: 0.9975280944 | W144: 1.031999722 | X144: 1.064742786 | Y144: 1.096293559 | Z144: 1.126366132 | AA144: 1.155268281 | AB144: 1.182702651 | AC144: 1.209187621 | AD144: 1.234419854 | AE144: 1.258565531 | AF144: 1.281671441 | AG144: 1.303782361 | AH144: 1.324941136 | AI144: 1.345188767 | AJ144: 1.36456449 | AK144: 1.383105853 | AL144: 1.400848783 | AM144: 1.417827664 | AN144: 1.434075397 | AO144: 1.449623467 | AP144: 1.464502002 | AQ144: 1.478739836 | AR144: 1.492364556 | AS144: 1.505402567 | AT144: 1.517879131 | AU144: 1.529818428 | AV144: 1.541243592 | AW144: 1.552176763 | AX144: 1.562639128 | AY144: 1.572650961 | AZ144: 1.582231662 | BA144: 1.591399797 | BB144: 1.600173132 | BC144: 1.608568667 | BD144: 1.616602673 | BE144: 1.624290716 | BF144: 1.631647696 | BG144: 1.638687867 | BH144: 1.645424874 | BI144: 1.65187177 | BJ144: 1.658041049 | BK144: 1.663944664 | BL144: 1.669594058 | BM144: 1.675000175 | BN144: 1.680173494 | BO144: 1.685124038 | BP144: 1.689861401 | BQ144: 1.694394762 | BR144: 1.698732907 | BS144: 1.702884242 | BT144: 1.706856811 | BU144: 1.710658313
A145: C-Ret-Lgt-LPD Int-All-All-C | B145: Retail Interior Lights | C145: 0 | D145: 0.07670188924 | E145: 0.1479580369 | F145: 0.2134383973 | G145: 0.2768471655 | H145: 0.3384908852 | I145: 0.3994108523 | J145: 0.4588127806 | K145: 0.5170583264 | L145: 0.572841885 | M145: 0.6262463476 | N145: 0.677531046 | O145: 0.7268753188 | P145: 0.773419292 | Q145: 0.8184522307 | R145: 0.8620151851 | S145: 0.9039464994 | T145: 0.9437635649 | U145: 0.9821115729 | V145: 1.018655471 | W145: 1.053799447 | X145: 1.087191501 | Y145: 1.119369 | Z145: 1.150041607 | AA145: 1.179516001 | AB145: 1.207494493 | AC145: 1.234509431 | AD145: 1.260245585 | AE145: 1.284873485 | AF145: 1.308440852 | AG145: 1.330993357 | AH145: 1.352574702 | AI145: 1.373226706 | AJ145: 1.392989389 | AK145: 1.411901048 | AL145: 1.429998329 | AM145: 1.447316302 | AN145: 1.463888524 | AO145: 1.47974711 | AP145: 1.494922791 | AQ145: 1.509444973 | AR145: 1.523341798 | AS145: 1.536640195 | AT145: 1.549365934 | AU145: 1.561543675 | AV145: 1.573197015 | AW145: 1.584348537 | AX145: 1.59501985 | AY145: 1.605231632 | AZ145: 1.615003673 | BA145: 1.624354908 | BB145: 1.633303459 | BC145: 1.641866665 | BD145: 1.65006112 | BE145: 1.657902705 | BF145: 1.665406613 | BG145: 1.672587387 | BH145: 1.679458941 | BI145: 1.68603459 | BJ145: 1.692327078 | BK145: 1.698348597 | BL145: 1.704110816 | BM145: 1.709624901 | BN145: 1.714901538 | BO145: 1.719950951 | BP145: 1.724782926 | BQ145: 1.729406825 | BR145: 1.733831608 | BS145: 1.738065851 | BT145: 1.742117758 | BU145: 1.745995181
A146: Commercial-Retail-Misc | B146: Retail Other | C146: 0 | D146: 0.07680379384 | E146: 0.148160353 | F146: 0.213740399 | G146: 0.2772455447 | H146: 0.3389802138 | I146: 0.3999865533 | J146: 0.4594706779 | K146: 0.5177942489 | L146: 0.5736533905 | M146: 0.6271312858 | N146: 0.6784869367 | O146: 0.7279003559 | P146: 0.7745090619 | Q146: 0.819603807 | R146: 0.8632271538 | S146: 0.9052154719 | T146: 0.9450866887 | U146: 0.9834870804 | V146: 1.020080366 | W146: 1.055272018 | X146: 1.088709203 | Y146: 1.120930454 | Z146: 1.151644879 | AA146: 1.181159018 | AB146: 1.209176234 | AC146: 1.236228228 | AD146: 1.261999209 | AE146: 1.286660435 | AF146: 1.310259694 | AG146: 1.332842717 | AH146: 1.354453266 | AI146: 1.375133217 | AJ146: 1.394922643 | AK146: 1.413859894 | AL146: 1.431981665 | AM146: 1.449323072 | AN146: 1.46591772 | AO146: 1.481797766 | AP146: 1.496993982 | AQ146: 1.511535816 | AR146: 1.525451447 | AS146: 1.53876784 | AT146: 1.551510799 | AU146: 1.563705019 | AV146: 1.575374129 | AW146: 1.586540741 | AX146: 1.597226494 | AY146: 1.607452096 | AZ146: 1.61723736 | BA146: 1.626601249 | BB146: 1.635561909 | BC146: 1.644136703 | BD146: 1.652342247 | BE146: 1.660194443 | BF146: 1.667708506 | BG146: 1.674898996 | BH146: 1.681779849 | BI146: 1.688364397 | BJ146: 1.694665399 | BK146: 1.700695067 | BL146: 1.706465084 | BM146: 1.711986631 | BN146: 1.717270408 | BO146: 1.722326654 | BP146: 1.727165167 | BQ146: 1.731795323 | BR146: 1.736226095 | BS146: 1.740466067 | BT146: 1.744523457 | BU146: 1.748406127
A147: Commercial-Retail-Motors | B147: Retail Motors | C147: 0 | D147: 0.07707826316 | E147: 0.1485601314 | F147: 0.2141415262 | G147: 0.277639244 | H147: 0.3393768543 | I147: 0.400388267 | J147: 0.459879351 | K147: 0.518215312 | L147: 0.5740793052 | M147: 0.6275465209 | N147: 0.6788828195 | O147: 0.7282641636 | P147: 0.7748605871 | Q147: 0.8199382859 | R147: 0.8635386924 | S147: 0.9055075566 | T147: 0.9453662542 | U147: 0.9837460216 | V147: 1.020323197 | W147: 1.055499278 | X147: 1.088925659 | Y147: 1.121132377 | Z147: 1.151833061 | AA147: 1.18133895 | AB147: 1.209339844 | AC147: 1.236377235 | AD147: 1.262140448 | AE147: 1.28679424 | AF147: 1.310386386 | AG147: 1.332962602 | AH147: 1.354566636 | AI147: 1.375240353 | AJ147: 1.395023814 | AK147: 1.413955356 | AL147: 1.432071665 | AM147: 1.449407845 | AN147: 1.465997491 | AO147: 1.48187275 | AP147: 1.497064385 | AQ147: 1.511601836 | AR147: 1.525513272 | AS147: 1.53882565 | AT147: 1.551564769 | AU147: 1.563755313 | AV147: 1.575420905 | AW147: 1.586584151 | AX147: 1.597266684 | AY147: 1.607489202 | AZ147: 1.617271517 | BA147: 1.626632584 | BB147: 1.635590543 | BC147: 1.644162752 | BD147: 1.652365823 | BE147: 1.660215651 | BF147: 1.667727449 | BG147: 1.674915773 | BH147: 1.681794551 | BI147: 1.688377114 | BJ147: 1.694676217 | BK147: 1.700704067 | BL147: 1.706472344 | BM147: 1.711992227 | BN147: 1.717274412 | BO147: 1.722329134 | BP147: 1.727166188 | BQ147: 1.731794949 | BR147: 1.736224384 | BS147: 1.740463079 | BT147: 1.744519246 | BU147: 1.748400745
A148: Commercial-Retail-OffEquip | B148: Retail Office Eqpmt | C148: 0 | D148: 0.07557538838 | E148: 0.1457240707 | F148: 0.2101212303 | G148: 0.2724879569 | H148: 0.3331354312 | I148: 0.3931010129 | J148: 0.4515894688 | K148: 0.5089591359 | L148: 0.5639046817 | M148: 0.6165027731 | N148: 0.6670147869 | O148: 0.7156157433 | P148: 0.7614524781 | Q148: 0.8058048916 | R148: 0.8487167067 | S148: 0.8900238644 | T148: 0.9292460832 | U148: 0.9670223504 | V148: 1.003019992 | W148: 1.037641436 | X148: 1.070534414 | Y148: 1.102233682 | Z148: 1.132448957 | AA148: 1.161486659 | AB148: 1.189046083 | AC148: 1.215659791 | AD148: 1.241013335 | AE148: 1.2652751 | AF148: 1.2884921 | AG148: 1.310709325 | AH148: 1.331969827 | AI148: 1.352314806 | AJ148: 1.371783684 | AK148: 1.39041419 | AL148: 1.408242425 | AM148: 1.425302938 | AN148: 1.441628787 | AO148: 1.457251609 | AP148: 1.472201678 | AQ148: 1.486507964 | AR148: 1.50019819 | AS148: 1.513298884 | AT148: 1.525835434 | AU148: 1.537832133 | AV148: 1.549312227 | AW148: 1.560297963 | AX148: 1.570810629 | AY148: 1.580870597 | AZ148: 1.59049736 | BA148: 1.599709574 | BB148: 1.608525089 | BC148: 1.616960989 | BD148: 1.625033621 | BE148: 1.632758627 | BF148: 1.640150977 | BG148: 1.647224997 | BH148: 1.653994394 | BI148: 1.660472285 | BJ148: 1.666671225 | BK148: 1.672603224 | BL148: 1.678279778 | BM148: 1.683711888 | BN148: 1.688910079 | BO148: 1.693884424 | BP148: 1.698644563 | BQ148: 1.70319972 | BR148: 1.707558722 | BS148: 1.711730016 | BT148: 1.715721685 | BU148: 1.719541463
A149: Commercial-Retail-Process | B149: Retail Process | C149: 0 | D149: 0.07926816117 | E149: 0.1530393055 | F149: 0.2209486153 | G149: 0.2866756928 | H149: 0.3505360314 | I149: 0.4135847667 | J149: 0.4750287839 | K149: 0.5352306504 | L149: 0.5928792021 | M149: 0.6480783293 | N149: 0.7010743092 | O149: 0.7520617787 | P149: 0.8001746243 | Q149: 0.8467171721 | R149: 0.891716434 | S149: 0.9350273858 | T149: 0.976163315 | U149: 1.015772436 | V149: 1.053531936 | W149: 1.089835528 | X149: 1.124332787 | Y149: 1.157568426 | Z149: 1.189252557 | AA149: 1.219695357 | AB149: 1.248599984 | AC149: 1.276499804 | AD149: 1.3030833 | AE149: 1.328522053 | AF149: 1.352865356 | AG149: 1.376160384 | AH149: 1.398452276 | AI149: 1.419784231 | AJ149: 1.440197584 | AK149: 1.459731894 | AL149: 1.478425013 | AM149: 1.496313165 | AN149: 1.513431014 | AO149: 1.529811731 | AP149: 1.545487058 | AQ149: 1.560487371 | AR149: 1.574841738 | AS149: 1.588577974 | AT149: 1.601722697 | AU149: 1.61430138 | AV149: 1.626338397 | AW149: 1.637857073 | AX149: 1.64887973 | AY149: 1.659427727 | AZ149: 1.669521504 | BA149: 1.679180621 | BB149: 1.688423795 | BC149: 1.697268938 | BD149: 1.705733189 | BE149: 1.713832951 | BF149: 1.721583919 | BG149: 1.729001114 | BH149: 1.736098908 | BI149: 1.742891055 | BJ149: 1.749390718 | BK149: 1.75561049 | BL149: 1.761562426 | BM149: 1.767258058 | BN149: 1.772708424 | BO149: 1.777924085 | BP149: 1.782915148 | BQ149: 1.787691285 | BR149: 1.792261751 | BS149: 1.796635403 | BT149: 1.800820715 | BU149: 1.804825799
A150: Commercial-Retail-Refrig | B150: Retail Refrigeration | C150: 0 | D150: 0.07258768225 | E150: 0.1404154061 | F150: 0.2030979863 | G150: 0.2638515752 | H150: 0.3229164245 | I150: 0.3813354462 | J150: 0.4383368329 | K150: 0.4942361019 | L150: 0.5478221182 | M150: 0.5991598014 | N150: 0.6485098013 | O150: 0.6960396451 | P150: 0.7407812419 | Q150: 0.7840861099 | R150: 0.8260379176 | S150: 0.8664050798 | T150: 0.9047076 | U150: 0.9416407484 | V150: 0.9768151829 | W150: 1.010642161 | X150: 1.042771845 | Y150: 1.073755277 | Z150: 1.103290555 | AA150: 1.131653503 | AB150: 1.158608065 | AC150: 1.184634699 | AD150: 1.209404672 | AE150: 1.233107996 | AF150: 1.255790602 | AG150: 1.277496445 | AH150: 1.298267587 | AI150: 1.318144278 | AJ150: 1.337165035 | AK150: 1.355366716 | AL150: 1.372784593 | AM150: 1.389452418 | AN150: 1.405402489 | AO150: 1.420665715 | AP150: 1.435271673 | AQ150: 1.449248667 | AR150: 1.46262378 | AS150: 1.475422931 | AT150: 1.487670923 | AU150: 1.49939149 | AV150: 1.510607343 | AW150: 1.521340216 | AX150: 1.531610909 | AY150: 1.541439323 | AZ150: 1.550844503 | BA150: 1.559844676 | BB150: 1.568457282 | BC150: 1.57669901 | BD150: 1.584585831 | BE150: 1.592133028 | BF150: 1.599355226 | BG150: 1.606266421 | BH150: 1.612880004 | BI150: 1.619208792 | BJ150: 1.625265048 | BK150: 1.631060509 | BL150: 1.636606404 | BM150: 1.641913481 | BN150: 1.646992023 | BO150: 1.651851872 | BP150: 1.656502446 | BQ150: 1.660952755 | BR150: 1.665211424 | BS150: 1.669286706 | BT150: 1.673186497 | BU150: 1.676918354
A151: Commercial-Retail-Vent | B151: Retail Ventilation | C151: 0 | D151: 0.07997692868 | E151: 0.1542519112 | F151: 0.2225974498 | G151: 0.2887718144 | H151: 0.3530561656 | I151: 0.41647718 | J151: 0.4782681306 | K151: 0.5387822522 | L151: 0.5967601319 | M151: 0.6522528085 | N151: 0.7055459865 | O151: 0.7568129192 | P151: 0.8051861451 | Q151: 0.8519543026 | R151: 0.8972032991 | S151: 0.9407341122 | T151: 0.9820730863 | U151: 1.021892345 | V151: 1.059820659 | W151: 1.096296781 | X151: 1.130970138 | Y151: 1.164378632 | Z151: 1.196232028 | AA151: 1.22683309 | AB151: 1.255897611 | AC151: 1.283950645 | AD151: 1.310678383 | AE151: 1.336255166 | AF151: 1.360730557 | AG151: 1.384151983 | AH151: 1.406564831 | AI151: 1.428012533 | AJ151: 1.448536649 | AK151: 1.468176952 | AL151: 1.4869715 | AM151: 1.504956714 | AN151: 1.522167444 | AO151: 1.538637043 | AP151: 1.554397425 | AQ151: 1.569479129 | AR151: 1.583911383 | AS151: 1.597722151 | AT151: 1.610938198 | AU151: 1.623585133 | AV151: 1.635687463 | AW151: 1.647268639 | AX151: 1.658351105 | AY151: 1.668956336 | AZ151: 1.679104882 | BA151: 1.688816409 | BB151: 1.698109736 | BC151: 1.707002873 | BD151: 1.715513051 | BE151: 1.723656762 | BF151: 1.731449787 | BG151: 1.738907228 | BH151: 1.746043534 | BI151: 1.752872536 | BJ151: 1.759407466 | BK151: 1.765660987 | BL151: 1.771645218 | BM151: 1.777371754 | BN151: 1.782851694 | BO151: 1.788095655 | BP151: 1.793113799 | BQ151: 1.797915852 | BR151: 1.802511117 | BS151: 1.8069085 | BT151: 1.811116522 | BU151: 1.815143338
A152: Commercial-School-AirComp | B152: School Compressed Air | C152: 0 | D152: 0.07402846967 | E152: 0.1429272973 | F152: 0.2062321812 | G152: 0.2675131402 | H152: 0.3271275808 | I152: 0.3861325933 | J152: 0.4436917745 | K152: 0.5001809971 | L152: 0.5542800534 | M152: 0.6060553318 | N152: 0.6557719103 | O152: 0.7036017335 | P152: 0.7487388643 | Q152: 0.7924164143 | R152: 0.8346605195 | S152: 0.87531328 | T152: 0.9139399347 | U152: 0.9511251005 | V152: 0.9866006496 | W152: 1.020711664 | X152: 1.053097716 | Y152: 1.084302702 | Z152: 1.114042582 | AA152: 1.14263411 | AB152: 1.169761797 | AC152: 1.195961442 | AD152: 1.220910703 | AE152: 1.244785594 | AF152: 1.267632379 | AG152: 1.289495332 | AH152: 1.310416818 | AI152: 1.330437379 | AJ152: 1.34959581 | AK152: 1.367929237 | AL152: 1.385473186 | AM152: 1.402261654 | AN152: 1.418327174 | AO152: 1.433700877 | AP152: 1.448412555 | AQ152: 1.462490715 | AR152: 1.475962639 | AS152: 1.488854432 | AT152: 1.501191076 | AU152: 1.512996478 | AV152: 1.524293512 | AW152: 1.535104072 | AX152: 1.545449104 | AY152: 1.555348658 | AZ152: 1.564821914 | BA152: 1.573887231 | BB152: 1.582562176 | BC152: 1.590863558 | BD152: 1.598807465 | BE152: 1.60640929 | BF152: 1.613683763 | BG152: 1.620644981 | BH152: 1.627306435 | BI152: 1.633681031 | BJ152: 1.639781123 | BK152: 1.645618532 | BL152: 1.651204569 | BM152: 1.656550059 | BN152: 1.66166536 | BO152: 1.666560385 | BP152: 1.67124462 | BQ152: 1.675727141 | BR152: 1.680016635 | BS152: 1.684121414 | BT152: 1.688049433 | BU152: 1.691808302
A153: Commercial-School-Cook | B153: School Cooking | C153: 0 | D153: 0.0769205594 | E153: 0.1484080124 | F153: 0.2139307866 | G153: 0.2772881451 | H153: 0.3389180747 | I153: 0.3998914486 | J153: 0.4593294914 | K153: 0.5176575921 | L153: 0.5734764298 | M153: 0.6268462955 | N153: 0.6780578011 | O153: 0.7272816288 | P153: 0.7738297008 | Q153: 0.8188590629 | R153: 0.8623476302 | S153: 0.9042039052 | T153: 0.9440200645 | U153: 0.9823065517 | V153: 1.018871014 | W153: 1.054025648 | X153: 1.087395638 | Y153: 1.119531534 | Z153: 1.150158478 | AA153: 1.179616947 | AB153: 1.207547293 | AC153: 1.234520233 | AD153: 1.260217619 | AE153: 1.284808419 | AF153: 1.308340285 | AG153: 1.330858817 | AH153: 1.352407652 | AI153: 1.373028546 | AJ153: 1.39276146 | AK153: 1.41164463 | AL153: 1.42971465 | AM153: 1.447006535 | AN153: 1.463553793 | AO153: 1.47938849 | AP153: 1.49454131 | AQ153: 1.509041616 | AR153: 1.522917507 | AS153: 1.536195872 | AT153: 1.548902441 | AU153: 1.561061837 | AV153: 1.572697623 | AW153: 1.583832346 | AX153: 1.594487584 | AY153: 1.604683984 | AZ153: 1.614441304 | BA153: 1.623778452 | BB153: 1.632713523 | BC153: 1.641263829 | BD153: 1.649445941 | BE153: 1.657275713 | BF153: 1.664768317 | BG153: 1.671938274 | BH153: 1.678799476 | BI153: 1.68536522 | BJ153: 1.691648229 | BK153: 1.697660677 | BL153: 1.703414217 | BM153: 1.708919996 | BN153: 1.714188684 | BO153: 1.719230491 | BP153: 1.724055186 | BQ153: 1.72867212 | BR153: 1.733090238 | BS153: 1.737318102 | BT153: 1.741363905 | BU153: 1.745235487
A154: Commercial-School-Cool | B154: School Cooling | C154: 0 | D154: 0.08678030067 | E154: 0.1639548636 | F154: 0.2327860544 | G154: 0.2995657944 | H154: 0.3644787746 | I154: 0.4282382066 | J154: 0.490310783 | K154: 0.5510281709 | L154: 0.6093494925 | M154: 0.6648211297 | N154: 0.7180310788 | O154: 0.7689891905 | P154: 0.8171910182 | Q154: 0.863597416 | R154: 0.9086613601 | S154: 0.9519359151 | T154: 0.9929849755 | U154: 1.032573499 | V154: 1.070045143 | W154: 1.106117249 | X154: 1.140615418 | Y154: 1.173827036 | Z154: 1.205520794 | AA154: 1.236026988 | AB154: 1.264941875 | AC154: 1.29284848 | AD154: 1.319525547 | AE154: 1.34505384 | AF154: 1.36948283 | AG154: 1.392859853 | AH154: 1.41523021 | AI154: 1.43663725 | AJ154: 1.457122456 | AK154: 1.476725524 | AL154: 1.49548444 | AM154: 1.513435557 | AN154: 1.530613659 | AO154: 1.547052034 | AP154: 1.562782536 | AQ154: 1.577835648 | AR154: 1.59224054 | AS154: 1.606025126 | AT154: 1.619216117 | AU154: 1.631839075 | AV154: 1.643918461 | AW154: 1.655477682 | AX154: 1.666539137 | AY154: 1.677124262 | AZ154: 1.687253568 | BA154: 1.696946684 | BB154: 1.706222392 | BC154: 1.715098669 | BD154: 1.723592713 | BE154: 1.731720985 | BF154: 1.739499236 | BG154: 1.746942538 | BH154: 1.754065316 | BI154: 1.76088137 | BJ154: 1.767403911 | BK154: 1.773645576 | BL154: 1.779618462 | BM154: 1.785334142 | BN154: 1.790803692 | BO154: 1.796037712 | BP154: 1.801046343 | BQ154: 1.805839291 | BR154: 1.810425845 | BS154: 1.814814891 | BT154: 1.819014935 | BU154: 1.823034117
A155: Commercial-School-ExtLight | B155: School Exterior Lights | C155: 0 | D155: 0.09003875584 | E155: 0.1758653339 | F155: 0.2567163514 | G155: 0.3349216107 | H155: 0.4106196184 | I155: 0.4850061058 | J155: 0.557273958 | K155: 0.6278074214 | L155: 0.6953866972 | M155: 0.7603095606 | N155: 0.8226923283 | O155: 0.8828219053 | P155: 0.9394732174 | Q155: 0.9942798688 | R155: 1.047229894 | S155: 1.098153759 | T155: 1.146513899 | U155: 1.193110854 | V155: 1.23754403 | W155: 1.280217425 | X155: 1.320760753 | Y155: 1.359825745 | Z155: 1.397081301 | AA155: 1.432798276 | AB155: 1.466832928 | AC155: 1.499635995 | AD155: 1.530844744 | AE155: 1.560709575 | AF155: 1.589288361 | AG155: 1.616636482 | AH155: 1.642806932 | AI155: 1.667850425 | AJ155: 1.69181549 | AK155: 1.714748567 | AL155: 1.736694095 | AM155: 1.7576946 | AN155: 1.777790777 | AO155: 1.797021568 | AP155: 1.81542424 | AQ155: 1.833034452 | AR155: 1.849886329 | AS155: 1.866012527 | AT155: 1.881444296 | AU155: 1.896211539 | AV155: 1.910342872 | AW155: 1.923865679 | AX155: 1.936806163 | AY155: 1.949189402 | AZ155: 1.961039392 | BA155: 1.972379095 | BB155: 1.983230485 | BC155: 1.993614591 | BD155: 2.003551534 | BE155: 2.01306057 | BF155: 2.022160127 | BG155: 2.030867836 | BH155: 2.039200573 | BI155: 2.047174483 | BJ155: 2.054805019 | BK155: 2.062106968 | BL155: 2.069094479 | BM155: 2.075781092 | BN155: 2.082179764 | BO155: 2.088302896 | BP155: 2.094162352 | BQ155: 2.099769488 | BR155: 2.105135167 | BS155: 2.110269789 | BT155: 2.115183303 | BU155: 2.119885229
A156: Commercial-School-Heat | B156: School Heating | C156: 0 | D156: 0.09946095641 | E156: 0.1954139869 | F156: 0.2856247733 | G156: 0.3726102206 | H156: 0.4567235621 | I156: 0.5396999601 | J156: 0.620287007 | K156: 0.6992006158 | L156: 0.7743237132 | M156: 0.8468909382 | N156: 0.9163818226 | O156: 0.9835151349 | P156: 1.046940882 | Q156: 1.108570039 | R156: 1.167665133 | S156: 1.224702192 | T156: 1.278949042 | U156: 1.33094879 | V156: 1.380886265 | W156: 1.42879618 | X156: 1.474155729 | Y156: 1.517809285 | Z156: 1.559367558 | AA156: 1.599276238 | AB156: 1.637184293 | AC156: 1.67373781 | AD156: 1.708535383 | AE156: 1.741834496 | AF156: 1.773699676 | AG156: 1.804192672 | AH156: 1.833372571 | AI156: 1.86129592 | AJ156: 1.888016829 | AK156: 1.913587076 | AL156: 1.938056212 | AM156: 1.961471653 | AN156: 1.983878774 | AO156: 2.005320994 | AP156: 2.025839866 | AQ156: 2.04547515 | AR156: 2.064264895 | AS156: 2.082245512 | AT156: 2.099451845 | AU156: 2.115917235 | AV156: 2.131673589 | AW156: 2.14675144 | AX156: 2.161180005 | AY156: 2.174987244 | AZ156: 2.188199914 | BA156: 2.200843617 | BB156: 2.212942854 | BC156: 2.224521071 | BD156: 2.235600705 | BE156: 2.246203225 | BF156: 2.256349178 | BG156: 2.266058223 | BH156: 2.275349176 | BI156: 2.28424004 | BJ156: 2.292748043 | BK156: 2.300889673 | BL156: 2.308680707 | BM156: 2.316136242 | BN156: 2.323270725 | BO156: 2.330097981 | BP156: 2.336631241 | BQ156: 2.342883164 | BR156: 2.348865865 | BS156: 2.354590939 | BT156: 2.360069478 | BU156: 2.365312099
A157: Commercial-School-HotWater | B157: School Hot Water | C157: 0 | D157: 0.07380675693 | E157: 0.1423461084 | F157: 0.205144763 | G157: 0.2658741665 | H157: 0.3249621517 | I157: 0.3834687239 | J157: 0.4405736676 | K157: 0.4966211176 | L157: 0.5502668617 | M157: 0.601606836 | N157: 0.6508955336 | O157: 0.6982979864 | P157: 0.7430455676 | Q157: 0.786336895 | R157: 0.8282062452 | S157: 0.8685098666 | T157: 0.9068174597 | U157: 0.9436598014 | V157: 0.9788346647 | W157: 1.012650248 | X157: 1.04476491 | Y157: 1.075710204 | Z157: 1.105201288 | AA157: 1.13355723 | AB157: 1.160450966 | AC157: 1.186422053 | AD157: 1.211171711 | AE157: 1.234855594 | AF157: 1.257519596 | AG157: 1.279207637 | AH157: 1.299961743 | AI157: 1.319822132 | AJ157: 1.338827288 | AK157: 1.357014041 | AL157: 1.374417632 | AM157: 1.391071786 | AN157: 1.407008776 | AO157: 1.422259484 | AP157: 1.436853462 | AQ157: 1.450818992 | AR157: 1.464183136 | AS157: 1.47697179 | AT157: 1.489209736 | AU157: 1.50092069 | AV157: 1.512127344 | AW157: 1.522851415 | AX157: 1.533113683 | AY157: 1.542934036 | AZ157: 1.552331503 | BA157: 1.561324294 | BB157: 1.569929836 | BC157: 1.578164805 | BD157: 1.586045157 | BE157: 1.593586164 | BF157: 1.600802439 | BG157: 1.607707965 | BH157: 1.614316124 | BI157: 1.620639721 | BJ157: 1.62669101 | BK157: 1.632481717 | BL157: 1.638023064 | BM157: 1.643325788 | BN157: 1.648400165 | BO157: 1.653256028 | BP157: 1.657902788 | BQ157: 1.662349447 | BR157: 1.666604623 | BS157: 1.670676563 | BT157: 1.674573155 | BU157: 1.678301952
A158: C-K12-Lgt-LPD Int-All-All-C | B158: School Interior Lights | C158: 0 | D158: 0.07584398739 | E158: 0.146402081 | F158: 0.2112038708 | G158: 0.2738961302 | H158: 0.33487001 | I158: 0.3951791064 | J158: 0.4539847439 | K158: 0.5116757756 | L158: 0.5669124082 | M158: 0.6197529361 | N158: 0.6704817235 | O158: 0.7192595547 | P158: 0.7653247508 | Q158: 0.8098910278 | R158: 0.8529717335 | S158: 0.8944339985 | T158: 0.9338448105 | U158: 0.9717702573 | V158: 1.007958314 | W158: 1.042750027 | X158: 1.075791732 | Y158: 1.107621959 | Z158: 1.137959775 | AA158: 1.167128787 | AB158: 1.194799676 | AC158: 1.221519203 | AD158: 1.246973139 | AE158: 1.271330972 | AF158: 1.294639903 | AG158: 1.3169451 | AH158: 1.338289787 | AI158: 1.358715324 | AJ158: 1.378261293 | AK158: 1.396965569 | AL158: 1.414864398 | AM158: 1.431992464 | AN158: 1.448382957 | AO158: 1.46406764 | AP158: 1.479076906 | AQ158: 1.49343984 | AR158: 1.507184275 | AS158: 1.520336843 | AT158: 1.532923034 | AU158: 1.544967235 | AV158: 1.556492786 | AW158: 1.567522022 | AX158: 1.578076315 | AY158: 1.588176116 | AZ158: 1.597840998 | BA158: 1.607089689 | BB158: 1.615940111 | BC158: 1.624409414 | BD158: 1.63251401 | BE158: 1.640269605 | BF158: 1.647691226 | BG158: 1.654793257 | BH158: 1.661589458 | BI158: 1.668093 | BJ158: 1.674316485 | BK158: 1.680271973 | BL158: 1.685971004 | BM158: 1.691424623 | BN158: 1.696643397 | BO158: 1.701637439 | BP158: 1.706416426 | BQ158: 1.71098962 | BR158: 1.715365882 | BS158: 1.719553693 | BT158: 1.723561167 | BU158: 1.727396071
A159: Commercial-School-Misc | B159: School Other | C159: 0 | D159: 0.07410240033 | E159: 0.1431975363 | F159: 0.2067258368 | G159: 0.2681905253 | H159: 0.3279834204 | I159: 0.3871766364 | J159: 0.4449160816 | K159: 0.5015870134 | L159: 0.5558426325 | M159: 0.607755624 | N159: 0.6575960454 | O159: 0.7055323362 | P159: 0.7507864046 | Q159: 0.7945892624 | R159: 0.8369269935 | S159: 0.8776806295 | T159: 0.9164155002 | U159: 0.9536948579 | V159: 0.9892825294 | W159: 1.023490122 | X159: 1.05596618 | Y159: 1.087251774 | Z159: 1.117068579 | AA159: 1.145737348 | AB159: 1.172933637 | AC159: 1.199197275 | AD159: 1.224210373 | AE159: 1.248146352 | AF159: 1.271051596 | AG159: 1.292970489 | AH159: 1.313945506 | AI159: 1.334017293 | AJ159: 1.353224744 | AK159: 1.37160508 | AL159: 1.389193919 | AM159: 1.406025343 | AN159: 1.42213197 | AO159: 1.437545009 | AP159: 1.452294329 | AQ159: 1.466408511 | AR159: 1.479914905 | AS159: 1.492839685 | AT159: 1.505207894 | AU159: 1.517043502 | AV159: 1.528369442 | AW159: 1.539207662 | AX159: 1.549579164 | AY159: 1.559504047 | AZ159: 1.569001543 | BA159: 1.578090055 | BB159: 1.586787196 | BC159: 1.595109819 | BD159: 1.603074052 | BE159: 1.610695327 | BF159: 1.617988413 | BG159: 1.624967443 | BH159: 1.631645941 | BI159: 1.638036848 | BJ159: 1.644152548 | BK159: 1.650004893 | BL159: 1.655605223 | BM159: 1.66096439 | BN159: 1.66609278 | BO159: 1.67100033 | BP159: 1.67569655 | BQ159: 1.680190541 | BR159: 1.68449101 | BS159: 1.688606292 | BT159: 1.692544361 | BU159: 1.696312848
A160: Commercial-School-Motors | B160: School Motors | C160: 0 | D160: 0.07480198539 | E160: 0.1445020193 | F160: 0.208595633 | G160: 0.2706229281 | H160: 0.3309459303 | I160: 0.3906403438 | J160: 0.4488538609 | K160: 0.5059793591 | L160: 0.5606768586 | M160: 0.6130267692 | N160: 0.6632918428 | O160: 0.7116457722 | P160: 0.7572827227 | Q160: 0.8014526484 | R160: 0.8441527755 | S160: 0.8852510187 | T160: 0.9243018909 | U160: 0.9618943678 | V160: 0.997759785 | W160: 1.032247886 | X160: 1.064988501 | Y160: 1.09653425 | Z160: 1.126597254 | AA160: 1.155500768 | AB160: 1.182924601 | AC160: 1.209407995 | AD160: 1.234627245 | AE160: 1.258760499 | AF160: 1.281854522 | AG160: 1.303954066 | AH160: 1.325101954 | AI160: 1.345339168 | AJ160: 1.364704923 | AK160: 1.383236745 | AL160: 1.400970547 | AM160: 1.417940692 | AN160: 1.434180066 | AO160: 1.449720136 | AP160: 1.464591016 | AQ160: 1.478821524 | AR160: 1.492439235 | AS160: 1.505470537 | AT160: 1.517940683 | AU160: 1.529873836 | AV160: 1.541293122 | AW160: 1.552220668 | AX160: 1.562677651 | AY160: 1.572684332 | AZ160: 1.582260104 | BA160: 1.591423521 | BB160: 1.600192342 | BC160: 1.608583559 | BD160: 1.616613431 | BE160: 1.624297519 | BF160: 1.631650713 | BG160: 1.638687262 | BH160: 1.645420803 | BI160: 1.651864382 | BJ160: 1.658030486 | BK160: 1.663931065 | BL160: 1.669577551 | BM160: 1.674980887 | BN160: 1.680151544 | BO160: 1.685099541 | BP160: 1.689834467 | BQ160: 1.694365496 | BR160: 1.698701409 | BS160: 1.702850608 | BT160: 1.706821133 | BU160: 1.710620679
A161: Commercial-School-OffEquip | B161: School Office Eqpmt | C161: 0 | D161: 0.072766971 | E161: 0.1405436788 | F161: 0.2028412723 | G161: 0.2631476389 | H161: 0.3218250363 | I161: 0.3799293206 | J161: 0.4366213293 | K161: 0.4922796824 | L161: 0.5455826576 | M161: 0.5965899385 | N161: 0.6455813466 | O161: 0.6927074438 | P161: 0.7371657319 | Q161: 0.7801965285 | R161: 0.8218234675 | S161: 0.8618892872 | T161: 0.8999545013 | U161: 0.9366028196 | V161: 0.9715619095 | W161: 1.005171497 | X161: 1.037089003 | Y161: 1.067845735 | Z161: 1.097157513 | AA161: 1.125338165 | AB161: 1.152073261 | AC161: 1.177895418 | AD161: 1.202485349 | AE161: 1.226016383 | AF161: 1.24853412 | AG161: 1.270082193 | AH161: 1.290702358 | AI161: 1.310434574 | AJ161: 1.329317077 | AK161: 1.347386458 | AL161: 1.364677732 | AM161: 1.381224406 | AN161: 1.397058543 | AO161: 1.412210827 | AP161: 1.426710621 | AQ161: 1.440586022 | AR161: 1.453863917 | AS161: 1.466570037 | AT161: 1.478729004 | AU161: 1.490364378 | AV161: 1.501498708 | AW161: 1.512153569 | AX161: 1.522349608 | AY161: 1.532106584 | AZ161: 1.541443402 | BA161: 1.550378157 | BB161: 1.558928161 | BC161: 1.567109984 | BD161: 1.574939479 | BE161: 1.582431819 | BF161: 1.589601522 | BG161: 1.596462482 | BH161: 1.603027994 | BI161: 1.609310781 | BJ161: 1.615323016 | BK161: 1.621076352 | BL161: 1.626581937 | BM161: 1.631850439 | BN161: 1.636892067 | BO161: 1.641716592 | BP161: 1.646333363 | BQ161: 1.650751325 | BR161: 1.65497904 | BS161: 1.6590247 | BT161: 1.662896145 | BU161: 1.666600877
A162: Commercial-School-Process | B162: School Process | C162: 0 | D162: 0.07969424964 | E162: 0.1542972964 | F162: 0.2227487217 | G162: 0.2888984968 | H162: 0.3532229821 | I162: 0.4169834954 | J162: 0.4790688793 | K162: 0.540126661 | L162: 0.5984072818 | M162: 0.6542325333 | N162: 0.7076776179 | O162: 0.7591238396 | P162: 0.8078801549 | Q162: 0.8551830771 | R162: 0.9006248371 | S162: 0.9444359444 | T162: 0.9861366754 | U162: 1.026207465 | V162: 1.064559797 | W162: 1.101496898 | X162: 1.136397652 | Y162: 1.170000772 | Z162: 1.201981098 | AA162: 1.232788399 | AB162: 1.261966982 | AC162: 1.290158877 | AD162: 1.316973454 | AE162: 1.342633336 | AF162: 1.367188247 | AG162: 1.39068577 | AH162: 1.413171437 | AI162: 1.434688823 | AJ162: 1.455279622 | AK162: 1.474983736 | AL162: 1.493839348 | AM162: 1.511882995 | AN162: 1.529149643 | AO162: 1.545672752 | AP162: 1.561484339 | AQ162: 1.576615044 | AR162: 1.591094188 | AS162: 1.604949828 | AT162: 1.618208814 | AU162: 1.630896838 | AV162: 1.643038488 | AW162: 1.654657293 | AX162: 1.665775765 | AY162: 1.676415452 | AZ162: 1.686596971 | BA162: 1.696340051 | BB162: 1.705663572 | BC162: 1.714585603 | BD162: 1.72312343 | BE162: 1.731293601 | BF162: 1.739111945 | BG162: 1.746593615 | BH162: 1.753753107 | BI162: 1.760604296 | BJ162: 1.767160458 | BK162: 1.773434297 | BL162: 1.779437971 | BM162: 1.785183113 | BN162: 1.790680856 | BO162: 1.795941855 | BP162: 1.800976304 | BQ162: 1.805793958 | BR162: 1.810404153 | BS162: 1.814815824 | BT162: 1.819037518 | BU162: 1.823077416
